Workbook

Sheet Guidance
D7: STF Finance and Efficiency Template Guidance
D9: Cell colour coding
F11: These cells are unlocked and trusts should either enter the required text description, numeric value or select from the drop down choices.
F13: These cells are linked cells and the values within them are derived from values entered on other worksheets within this workbook. These cells are locked and organisations are unable to input values directly into them.
F15: These cells are calculated values based on values on the same worksheet. These cells are locked and organisations are unable to input into them.
D17: i | F17: These cells contain information / guidance on completing the adjacent cells through a pop-up box which appears after clicking on to the cell.
F19: No data should be required for these cells as per the worksheet/line description. These cells are locked and organisations are unable to input values directly into them.
D21: Signage rules
D23: Income | F23: Income should be entered as positive values. However, adjustments to income on the 'Solutions' worksheets can be positive or negative depending on the adjustments to income. Units are in £'000s.
D24: Expenditure | F24: Expenditure should be entered as positive values. However, adjustments to expenditure on the 'Solutions' worksheets can be positive or negative depending on the adjustments to expenditure. Units are in £'000s.
D25: Other | F25: Other lines should be entered as positive values. However, adjustments on the 'Solutions' worksheets can be positive or negative depending on the adjustments. Units are the actual value (not a multiple). Relates mainly to activity and workforce WTE numbers.
D27: Suggested approach
D29: Completion of the organisational level 5 year forecasts and footprint level solution worksheets
D30: 1 | F30: Complete the yellow highlighted cells on the 'Footprint Orgs' worksheet - these cells relate to organisations that exist in multiple footprints and must show the percentage allocation of that organisation's total I&E to the selected footprint. Such organisations should ensure that their I&E values split across the multiple footprints total to 100%. Where an organisation exists solely in one footprint, 100% of that organisation's I&E is allocated to the selected footprint.
D31: =D30+1 -> 2 | F31: Complete the detail for the 2015/16 outturn and 2016/17-2020/21 forecast I&Es for each commissioner, provider and other entities within your STP (with any normalising adjustments for the relevant years). Each entry line has been aggregated, and a mapping of each income and expenditure lines has been provided as an appendix worksheet in this workbook. These individual organisation input worksheets should be completed on a 'do nothing' basis - see accompanying guidance for a full description of what should be incorporated. The guidance will also include what constitutes a normalising adjustment. Do not include any STP funding within the template (other than the indicative STP funding for 2020/21 on the 'STP Summary Do Something' worksheet).
D32: =D31+1 -> 3 | F32: Complete the 'Solutions' worksheets to enter your business as usual efficiencies and STP transformational plans. These worksheets have been designed at an STP footprint level to promote place based planning.
D34: Reviewing the planned outcome
D35: =D32+1 -> 4 | F35: Review the 'STP Summary Do Nothing' worksheet. This aggregates the individual commissioner, provider and other input worksheets to provide a footprint-level 'gap', before business as usual efficiencies and transformational plans are implemented.
D36: =D35+1 -> 5 | F36: Review the 'Solution Control' worksheet. This worksheet has on/off switches for each solution so the impact of each strategy can be visualised individually or in aggregate. The bridge on this tab provides a comparison between the 2020/21 forecast outturn on the 'STP Summary - Do Nothing' worksheet and the 2020/21 forecast outturn on 'STP Summary - Do Something' for all solutions that have been switched 'on'.
D37: =D36+1 -> 6 | F37: Review the 'STP Summary Do Something' worksheet. The 'Do Nothing' position is the sum of the individual organisational worksheets (as per the 'STP Summary Do Nothing' worksheet). The solutions are the sum of all solutions that have been switched 'on' as per the 'Solution Control' worksheet. The 'Do Something' position is the sum of the 'Do Nothing' and 'Solutions' positions. The 'Do Something' position should be reviewed in detail as this the forecast five year forward view position for the STP footprint. The 'STP Summary Do Something' worksheet contains an input cell for the entry of the indicative STP funding for 2020/21.
D39: Pre-submission checks/review
D40: =D37+1 -> 7 | F40: Review all sections including the 'Data Validation' worksheet and ensure no validation errors exist, or that all valid errors have appropriate explanations. We would recommend that you use this worksheet throughout the template completion process
D41: =D40+1 -> 8 | F41: Enter the relevant contact details on the 'Cover' worksheet
D42: =D41+1 -> 9 | F42: The financial template should now be complete and can be submitted via the email address on the 'Cover' worksheet.

Sheet Cover
E18: STP Finance and Efficiency Template
E20: South East London
E22: ="Template Version Number: "&Settings!$D$10 -> Template Version Number: 17.1.12.7
E25: Validation errors: | F25: =COUNTIF('Validation Checklist'!$F$17:$F$83, "ERROR") -> 0
E27: Validation message: | F27: =IF(F25>0,"Template contains errors which require correcting prior to submission","No errors noted") -> No errors noted
E29: This template completed by (and queries to be directed to): | H29: For queries on this template, please contact:
E31: Name: | F31: Alan Goldsman | H31: Contact: | I31: Stuart Saw (NHS England)
H32: Email: | I32: s.saw@nhs.net
E33: Job Title: | F33: Programme Finance Lead
H34: Contact: | I34: Kevin Stewart (NHSI)
E35: Telephone number: | F35: 07958330860 | H35: Email: | I35: kevin.stewart4@nhs.net
E37: Email address: | F37: alangoldsman@nhs.net | H37: Contact: | I37: Lee Outhwaite (NHSI)
H38: Email: | I38: lee.outhwaite@nhs.net
E39: Date: | F39: 2016-10-21

Sheet Validation Checklist
D7: Validation Checklist - October Return | K7: =INDEX(O88:P132,MATCH(Cover!$E$20,P88:P132,0),1) -> STP30 | O7: Validations Checklist - Result by Worksheet | AD7: Validations Checklist - Additional Calculation | AS7: Validations Checklist - Additional Calculation
D9: Ref | E9: Validation Title | F9: Result | H9: Resolution Action | J9: Worksheet Reference | K9: Cell Reference
E11: KEY
D12: K1 | E12: Validation pass | F12: OK | H12: No action required | J12: Guidance note to identify validation
D13: K2 | E13: Validation fail | F13: ERROR | H13: Requires resolution prior to submission - review guidance notes in column H | J13: source
D14: K3 | E14: Validation flag | F14: FLAG | H14: Review prior to submission and confirm inputs are correct
E16: TEMPLATE VERSION
D17: 1 | E17: Submission is the latest template version (Template Version Number: 17.1.12.7) | F17: =IF(Cover!E22="Template Version Number: 17.1.12.7","OK","ERROR") -> OK | H17: Ensures that the fixer has run and the correct template is due to be submitted in October | J17: Cover | K17: E22
E19: FINANCIAL BALANCE
D20: 2 | E20: Financial balance is achieved by 2020/21 | F20: =IF('STP Summary Do Something'!$Y$15>=0,"OK","FLAG") -> OK | H20: =CONCATENATE("STP position at 2020/21 is ",TEXT('STP Summary Do Something'!Y15/1000,"£#,###.###"),"m") -> STP position at 2020/21 is £4.936m | J20: STP Summary Do Something | K20: Y15
D21: 3 | E21: STF allocation reconciles to published indicative allocation | F21: =IF(ROUND(INDEX(O88:T132,MATCH(Cover!$E$20,P88:P132,0),6)*1000,0)=ROUND('STP Summary Do Something'!$Y$14,0), "OK","ERROR") -> OK | H21: Check that input in cell Y14 in the Summary Do Something sheet matches the published indicative allocation | J21: STP Summary Do Something | K21: Y14
E23: FOOTPRINT ORGANISATIONS
D24: 4 | E24: For those organisations which are split between STP footprints, the 'Footprint Orgs' worksheet has been updated to identify the % included in this STP submission | F24: =IF(AND((19-COUNTIFS('Footprints Orgs'!$D$12:$D$30,"")=19-COUNTIFS('Footprints Orgs'!$F$12:$F$30,"")),(19-COUNTIFS('Footprints Orgs'!$I$12:$I$30,"")=19-COUNTIFS('Footprints Orgs'!$K$12:$K$30,"")),(19-COUNTIFS('Footprints Orgs'!$O$12:$O$30,"")=19-COUNTIFS('Footprints Orgs'!$Q$12:$Q$30,""))),"OK","ERROR") -> OK | H24: Check that a percentage input has been made into cells K12:K31 and Q21:Q31 on the Footprint Orgs worksheet | J24: Footprint Orgs | K24: K12 - K31 Q12 - Q31
O25: CCG 1 | P25: CCG 2 | Q25: CCG 3 | R25: CCG 4 | S25: CCG 5 | T25: CCG 6 | U25: CCG 7 | V25: CCG 8 | W25: CCG 9 | X25: CCG 10 | Y25: CCG 11 | Z25: CCG 12 | AD25: CCG 1 | AE25: CCG 2 | AF25: CCG 3 | AG25: CCG 4 | AH25: CCG 5 | AI25: CCG 6 | AJ25: CCG 7 | AK25: CCG 8 | AL25: CCG 9 | AM25: CCG 10 | AN25: CCG 11 | AO25: CCG 12 | AS25: CCG 1 | AT25: CCG 2 | AU25: CCG 3 | AV25: CCG 4 | AW25: CCG 5 | AX25: CCG 6 | AY25: CCG 7 | AZ25: CCG 8 | BA25: CCG 9 | BB25: CCG 10 | BC25: CCG 11 | BD25: CCG 12
E26: DO NOTHING - CCG | O26: =IFERROR(IF(O27="","",INDEX($D$88:$E$297,MATCH(INDIRECT(CONCATENATE("'",O$25,"'!$C$6")),$E$88:$E$297,0),1)),"ERROR") -> 07N | P26: =IFERROR(IF(P27="","",INDEX($D$88:$E$297,MATCH(INDIRECT(CONCATENATE("'",P$25,"'!$C$6")),$E$88:$E$297,0),1)),"ERROR") -> 07Q | Q26: =IFERROR(IF(Q27="","",INDEX($D$88:$E$297,MATCH(INDIRECT(CONCATENATE("'",Q$25,"'!$C$6")),$E$88:$E$297,0),1)),"ERROR") -> 08A | R26: =IFERROR(IF(R27="","",INDEX($D$88:$E$297,MATCH(INDIRECT(CONCATENATE("'",R$25,"'!$C$6")),$E$88:$E$297,0),1)),"ERROR") -> 08K | S26: 08L | T26: 08Q | AD26: =O26 -> 07N | AE26: =P26 -> 07Q | AF26: 08A | AG26: 08K | AH26: 08L | AI26: 08Q | AS26: =AD26 -> 07N | AT26: =AE26 -> 07Q | AU26: 08A | AV26: 08K | AW26: 08L | AX26: 08Q
D27: 5 | E27: CCG do nothing income completed | F27: =IF(COUNTIF($O$27:$Z$27, "ERROR")>0,"ERROR","OK") -> OK | H27: Check income inputs on the CCG worksheets & agree to published allocations for programme and primary medical care income | J27: CCG 1 - CCG 12 | K27: Rows 21-27 Rows 106 & 113 | O27: =IF('Data Validation'!L18="","", IF(OR(INDIRECT(CONCATENATE("'",O$25,"'!$R$21"))="ERROR",INDIRECT(CONCATENATE("'",O$25,"'!$R$22"))="ERROR",INDIRECT(CONCATENATE("'",O$25,"'!$R$25"))="ERROR", INDIRECT(CONCATENATE("'",O$25,"'!$R$26"))="ERROR", INDIRECT(CONCATENATE("'",O$25,"'!$R$106"))="ERROR", INDIRECT(CONCATENATE("'",O$25,"'!$R$113"))="ERROR"),"ERROR","OK")) -> OK | P27: =IF('Data Validation'!M18="","", IF(OR(INDIRECT(CONCATENATE("'",P$25,"'!$R$21"))="ERROR",INDIRECT(CONCATENATE("'",P$25,"'!$R$22"))="ERROR",INDIRECT(CONCATENATE("'",P$25,"'!$R$25"))="ERROR",INDIRECT(CONCATENATE("'",P$25,"'!$R$26"))="ERROR", INDIRECT(CONCATENATE("'",P$25,"'!$R$106"))="ERROR", INDIRECT(CONCATENATE("'",P$25,"'!$R$113"))="ERROR"),"ERROR","OK")) -> OK | Q27: =IF('Data Validation'!N18="","", IF(OR(INDIRECT(CONCATENATE("'",Q$25,"'!$R$21"))="ERROR",INDIRECT(CONCATENATE("'",Q$25,"'!$R$22"))="ERROR",INDIRECT(CONCATENATE("'",Q$25,"'!$R$25"))="ERROR",INDIRECT(CONCATENATE("'",Q$25,"'!$R$26"))="ERROR", INDIRECT(CONCATENATE("'",Q$25,"'!$R$106"))="ERROR", INDIRECT(CONCATENATE("'",Q$25,"'!$R$113"))="ERROR"),"ERROR","OK")) -> OK | R27: =IF('Data Validation'!O18="","", IF(OR(INDIRECT(CONCATENATE("'",R$25,"'!$R$21"))="ERROR",INDIRECT(CONCATENATE("'",R$25,"'!$R$22"))="ERROR",INDIRECT(CONCATENATE("'",R$25,"'!$R$25"))="ERROR",INDIRECT(CONCATENATE("'",R$25,"'!$R$26"))="ERROR", INDIRECT(CONCATENATE("'",R$25,"'!$R$106"))="ERROR", INDIRECT(CONCATENATE("'",R$25,"'!$R$113"))="ERROR"),"ERROR","OK")) -> OK | S27: =IF('Data Validation'!P18="","", IF(OR(INDIRECT(CONCATENATE("'",S$25,"'!$R$21"))="ERROR",INDIRECT(CONCATENATE("'",S$25,"'!$R$22"))="ERROR",INDIRECT(CONCATENATE("'",S$25,"'!$R$25"))="ERROR",INDIRECT(CONCATENATE("'",S$25,"'!$R$26"))="ERROR", INDIRECT(CONCATENATE("'",S$25,"'!$R$2"))="ERROR", INDIRECT(CONCATENATE("'",S$25,"'!$R$113"))="ERROR"),"ERROR","OK")) -> OK | T27: =IF('Data Validation'!Q18="","", IF(OR(INDIRECT(CONCATENATE("'",T$25,"'!$R$21"))="ERROR",INDIRECT(CONCATENATE("'",T$25,"'!$R$22"))="ERROR",INDIRECT(CONCATENATE("'",T$25,"'!$R$25"))="ERROR",INDIRECT(CONCATENATE("'",T$25,"'!$R$26"))="ERROR", INDIRECT(CONCATENATE("'",T$25,"'!$R$106"))="ERROR", INDIRECT(CONCATENATE("'",T$25,"'!$R$113"))="ERROR"),"ERROR","OK")) -> OK | U27: =IF('Data Validation'!R18="","", IF(OR(INDIRECT(CONCATENATE("'",U$25,"'!$R$21"))="ERROR",INDIRECT(CONCATENATE("'",U$25,"'!$R$22"))="ERROR",INDIRECT(CONCATENATE("'",U$25,"'!$R$25"))="ERROR",INDIRECT(CONCATENATE("'",U$25,"'!$R$26"))="ERROR", INDIRECT(CONCATENATE("'",U$25,"'!$R$106"))="ERROR", INDIRECT(CONCATENATE("'",U$25,"'!$R$113"))="ERROR"),"ERROR","OK")) ->  | V27: =IF('Data Validation'!S18="","", IF(OR(INDIRECT(CONCATENATE("'",V$25,"'!$R$21"))="ERROR",INDIRECT(CONCATENATE("'",V$25,"'!$R$22"))="ERROR",INDIRECT(CONCATENATE("'",V$25,"'!$R$25"))="ERROR",INDIRECT(CONCATENATE("'",V$25,"'!$R$26"))="ERROR", INDIRECT(CONCATENATE("'",V$25,"'!$R$106"))="ERROR", INDIRECT(CONCATENATE("'",V$25,"'!$R$113"))="ERROR"),"ERROR","OK")) ->  | W27: =IF('Data Validation'!T18="","", IF(OR(INDIRECT(CONCATENATE("'",W$25,"'!$R$21"))="ERROR",INDIRECT(CONCATENATE("'",W$25,"'!$R$22"))="ERROR",INDIRECT(CONCATENATE("'",W$25,"'!$R$25"))="ERROR",INDIRECT(CONCATENATE("'",W$25,"'!$R$26"))="ERROR", INDIRECT(CONCATENATE("'",W$25,"'!$R$106"))="ERROR", INDIRECT(CONCATENATE("'",W$25,"'!$R$113"))="ERROR"),"ERROR","OK")) ->  | X27: =IF('Data Validation'!U18="","", IF(OR(INDIRECT(CONCATENATE("'",X$25,"'!$R$21"))="ERROR",INDIRECT(CONCATENATE("'",X$25,"'!$R$22"))="ERROR",INDIRECT(CONCATENATE("'",X$25,"'!$R$25"))="ERROR",INDIRECT(CONCATENATE("'",X$25,"'!$R$26"))="ERROR", INDIRECT(CONCATENATE("'",X$25,"'!$R$106"))="ERROR", INDIRECT(CONCATENATE("'",X$25,"'!$R$113"))="ERROR"),"ERROR","OK")) ->  | Y27: =IF('Data Validation'!V18="","", IF(OR(INDIRECT(CONCATENATE("'",Y$25,"'!$R$21"))="ERROR",INDIRECT(CONCATENATE("'",Y$25,"'!$R$22"))="ERROR",INDIRECT(CONCATENATE("'",Y$25,"'!$R$25"))="ERROR",INDIRECT(CONCATENATE("'",Y$25,"'!$R$26"))="ERROR", INDIRECT(CONCATENATE("'",Y$25,"'!$R$106"))="ERROR", INDIRECT(CONCATENATE("'",Y$25,"'!$R$113"))="ERROR"),"ERROR","OK")) ->  | Z27: =IF('Data Validation'!W18="","",IF(OR(INDIRECT(CONCATENATE("'",Z$25,"'!$R$21"))="ERROR",INDIRECT(CONCATENATE("'",Z$25,"'!$R$22"))="ERROR",INDIRECT(CONCATENATE("'",Z$25,"'!$R$25"))="ERROR",INDIRECT(CONCATENATE("'",Z$25,"'!$R$26"))="ERROR", INDIRECT(CONCATENATE("'",Z$25,"'!$R$106"))="ERROR", INDIRECT(CONCATENATE("'",Z$25,"'!$R$113"))="ERROR"),"ERROR","OK")) -> 
D28: 6 | E28: CCG do nothing expenditure completed | F28: =IF(COUNTIF($O$28:$Z$28, "ERROR")>0,"ERROR","OK") -> OK | H28: Check expenditure inputs on the CCG worksheets | J28: CCG 1 - CCG 12 | K28: Rows 31 - 48 | O28: =IF('Data Validation'!L18="","",IF(OR(INDIRECT(CONCATENATE("'",O$25,"'!$R$32"))="ERROR",INDIRECT(CONCATENATE("'",O$25,"'!$R$33"))="ERROR",INDIRECT(CONCATENATE("'",O$25,"'!$R$34"))="ERROR",INDIRECT(CONCATENATE("'",O$25,"'!$R$35"))="ERROR",INDIRECT(CONCATENATE("'",O$25,"'!$R$36"))="ERROR",INDIRECT(CONCATENATE("'",O$25,"'!$R$37"))="ERROR",INDIRECT(CONCATENATE("'",O$25,"'!$R$39"))="ERROR",INDIRECT(CONCATENATE("'",O$25,"'!$R$40"))="ERROR",INDIRECT(CONCATENATE("'",O$25,"'!$R$41"))="ERROR",INDIRECT(CONCATENATE("'",O$25,"'!$R$42"))="ERROR",INDIRECT(CONCATENATE("'",O$25,"'!$R$46"))="ERROR",INDIRECT(CONCATENATE("'",O$25,"'!$R$47"))="ERROR"),"ERROR","OK")) -> OK | P28: =IF('Data Validation'!M18="","",IF(OR(INDIRECT(CONCATENATE("'",P$25,"'!$R$32"))="ERROR",INDIRECT(CONCATENATE("'",P$25,"'!$R$33"))="ERROR",INDIRECT(CONCATENATE("'",P$25,"'!$R$34"))="ERROR",INDIRECT(CONCATENATE("'",P$25,"'!$R$35"))="ERROR",INDIRECT(CONCATENATE("'",P$25,"'!$R$36"))="ERROR",INDIRECT(CONCATENATE("'",P$25,"'!$R$37"))="ERROR",INDIRECT(CONCATENATE("'",P$25,"'!$R$39"))="ERROR",INDIRECT(CONCATENATE("'",P$25,"'!$R$40"))="ERROR",INDIRECT(CONCATENATE("'",P$25,"'!$R$41"))="ERROR",INDIRECT(CONCATENATE("'",P$25,"'!$R$42"))="ERROR",INDIRECT(CONCATENATE("'",P$25,"'!$R$46"))="ERROR",INDIRECT(CONCATENATE("'",P$25,"'!$R$47"))="ERROR"),"ERROR","OK")) -> OK | Q28: =IF('Data Validation'!N18="","",IF(OR(INDIRECT(CONCATENATE("'",Q$25,"'!$R$32"))="ERROR",INDIRECT(CONCATENATE("'",Q$25,"'!$R$33"))="ERROR",INDIRECT(CONCATENATE("'",Q$25,"'!$R$34"))="ERROR",INDIRECT(CONCATENATE("'",Q$25,"'!$R$35"))="ERROR",INDIRECT(CONCATENATE("'",Q$25,"'!$R$36"))="ERROR",INDIRECT(CONCATENATE("'",Q$25,"'!$R$37"))="ERROR",INDIRECT(CONCATENATE("'",Q$25,"'!$R$39"))="ERROR",INDIRECT(CONCATENATE("'",Q$25,"'!$R$40"))="ERROR",INDIRECT(CONCATENATE("'",Q$25,"'!$R$41"))="ERROR",INDIRECT(CONCATENATE("'",Q$25,"'!$R$42"))="ERROR",INDIRECT(CONCATENATE("'",Q$25,"'!$R$46"))="ERROR",INDIRECT(CONCATENATE("'",Q$25,"'!$R$47"))="ERROR"),"ERROR","OK")) -> OK | R28: =IF('Data Validation'!O18="","",IF(OR(INDIRECT(CONCATENATE("'",R$25,"'!$R$32"))="ERROR",INDIRECT(CONCATENATE("'",R$25,"'!$R$33"))="ERROR",INDIRECT(CONCATENATE("'",R$25,"'!$R$34"))="ERROR",INDIRECT(CONCATENATE("'",R$25,"'!$R$35"))="ERROR",INDIRECT(CONCATENATE("'",R$25,"'!$R$36"))="ERROR",INDIRECT(CONCATENATE("'",R$25,"'!$R$37"))="ERROR",INDIRECT(CONCATENATE("'",R$25,"'!$R$39"))="ERROR",INDIRECT(CONCATENATE("'",R$25,"'!$R$40"))="ERROR",INDIRECT(CONCATENATE("'",R$25,"'!$R$41"))="ERROR",INDIRECT(CONCATENATE("'",R$25,"'!$R$42"))="ERROR",INDIRECT(CONCATENATE("'",R$25,"'!$R$46"))="ERROR",INDIRECT(CONCATENATE("'",R$25,"'!$R$47"))="ERROR"),"ERROR","OK")) -> OK | S28: =IF('Data Validation'!P18="","",IF(OR(INDIRECT(CONCATENATE("'",S$25,"'!$R$32"))="ERROR",INDIRECT(CONCATENATE("'",S$25,"'!$R$33"))="ERROR",INDIRECT(CONCATENATE("'",S$25,"'!$R$34"))="ERROR",INDIRECT(CONCATENATE("'",S$25,"'!$R$35"))="ERROR",INDIRECT(CONCATENATE("'",S$25,"'!$R$36"))="ERROR",INDIRECT(CONCATENATE("'",S$25,"'!$R$37"))="ERROR",INDIRECT(CONCATENATE("'",S$25,"'!$R$39"))="ERROR",INDIRECT(CONCATENATE("'",S$25,"'!$R$40"))="ERROR",INDIRECT(CONCATENATE("'",S$25,"'!$R$41"))="ERROR",INDIRECT(CONCATENATE("'",S$25,"'!$R$42"))="ERROR",INDIRECT(CONCATENATE("'",S$25,"'!$R$46"))="ERROR",INDIRECT(CONCATENATE("'",S$25,"'!$R$47"))="ERROR"),"ERROR","OK")) -> OK | T28: =IF('Data Validation'!Q18="","",IF(OR(INDIRECT(CONCATENATE("'",T$25,"'!$R$32"))="ERROR",INDIRECT(CONCATENATE("'",T$25,"'!$R$33"))="ERROR",INDIRECT(CONCATENATE("'",T$25,"'!$R$34"))="ERROR",INDIRECT(CONCATENATE("'",T$25,"'!$R$35"))="ERROR",INDIRECT(CONCATENATE("'",T$25,"'!$R$36"))="ERROR",INDIRECT(CONCATENATE("'",T$25,"'!$R$37"))="ERROR",INDIRECT(CONCATENATE("'",T$25,"'!$R$39"))="ERROR",INDIRECT(CONCATENATE("'",T$25,"'!$R$40"))="ERROR",INDIRECT(CONCATENATE("'",T$25,"'!$R$41"))="ERROR",INDIRECT(CONCATENATE("'",T$25,"'!$R$42"))="ERROR",INDIRECT(CONCATENATE("'",T$25,"'!$R$46"))="ERROR",INDIRECT(CONCATENATE("'",T$25,"'!$R$47"))="ERROR"),"ERROR","OK")) -> OK | U28: =IF('Data Validation'!R18="","",IF(OR(INDIRECT(CONCATENATE("'",U$25,"'!$R$32"))="ERROR",INDIRECT(CONCATENATE("'",U$25,"'!$R$33"))="ERROR",INDIRECT(CONCATENATE("'",U$25,"'!$R$34"))="ERROR",INDIRECT(CONCATENATE("'",U$25,"'!$R$35"))="ERROR",INDIRECT(CONCATENATE("'",U$25,"'!$R$36"))="ERROR",INDIRECT(CONCATENATE("'",U$25,"'!$R$37"))="ERROR",INDIRECT(CONCATENATE("'",U$25,"'!$R$39"))="ERROR",INDIRECT(CONCATENATE("'",U$25,"'!$R$40"))="ERROR",INDIRECT(CONCATENATE("'",U$25,"'!$R$41"))="ERROR",INDIRECT(CONCATENATE("'",U$25,"'!$R$42"))="ERROR",INDIRECT(CONCATENATE("'",U$25,"'!$R$46"))="ERROR",INDIRECT(CONCATENATE("'",U$25,"'!$R$47"))="ERROR"),"ERROR","OK")) ->  | V28: =IF('Data Validation'!S18="","",IF(OR(INDIRECT(CONCATENATE("'",V$25,"'!$R$32"))="ERROR",INDIRECT(CONCATENATE("'",V$25,"'!$R$33"))="ERROR",INDIRECT(CONCATENATE("'",V$25,"'!$R$34"))="ERROR",INDIRECT(CONCATENATE("'",V$25,"'!$R$35"))="ERROR",INDIRECT(CONCATENATE("'",V$25,"'!$R$36"))="ERROR",INDIRECT(CONCATENATE("'",V$25,"'!$R$37"))="ERROR",INDIRECT(CONCATENATE("'",V$25,"'!$R$39"))="ERROR",INDIRECT(CONCATENATE("'",V$25,"'!$R$40"))="ERROR",INDIRECT(CONCATENATE("'",V$25,"'!$R$41"))="ERROR",INDIRECT(CONCATENATE("'",V$25,"'!$R$42"))="ERROR",INDIRECT(CONCATENATE("'",V$25,"'!$R$46"))="ERROR",INDIRECT(CONCATENATE("'",V$25,"'!$R$47"))="ERROR"),"ERROR","OK")) ->  | W28: =IF('Data Validation'!T18="","",IF(OR(INDIRECT(CONCATENATE("'",W$25,"'!$R$32"))="ERROR",INDIRECT(CONCATENATE("'",W$25,"'!$R$33"))="ERROR",INDIRECT(CONCATENATE("'",W$25,"'!$R$34"))="ERROR",INDIRECT(CONCATENATE("'",W$25,"'!$R$35"))="ERROR",INDIRECT(CONCATENATE("'",W$25,"'!$R$36"))="ERROR",INDIRECT(CONCATENATE("'",W$25,"'!$R$37"))="ERROR",INDIRECT(CONCATENATE("'",W$25,"'!$R$39"))="ERROR",INDIRECT(CONCATENATE("'",W$25,"'!$R$40"))="ERROR",INDIRECT(CONCATENATE("'",W$25,"'!$R$41"))="ERROR",INDIRECT(CONCATENATE("'",W$25,"'!$R$42"))="ERROR",INDIRECT(CONCATENATE("'",W$25,"'!$R$46"))="ERROR",INDIRECT(CONCATENATE("'",W$25,"'!$R$47"))="ERROR"),"ERROR","OK")) ->  | X28: =IF('Data Validation'!U18="","",IF(OR(INDIRECT(CONCATENATE("'",X$25,"'!$R$32"))="ERROR",INDIRECT(CONCATENATE("'",X$25,"'!$R$33"))="ERROR",INDIRECT(CONCATENATE("'",X$25,"'!$R$34"))="ERROR",INDIRECT(CONCATENATE("'",X$25,"'!$R$35"))="ERROR",INDIRECT(CONCATENATE("'",X$25,"'!$R$36"))="ERROR",INDIRECT(CONCATENATE("'",X$25,"'!$R$37"))="ERROR",INDIRECT(CONCATENATE("'",X$25,"'!$R$39"))="ERROR",INDIRECT(CONCATENATE("'",X$25,"'!$R$40"))="ERROR",INDIRECT(CONCATENATE("'",X$25,"'!$R$41"))="ERROR",INDIRECT(CONCATENATE("'",X$25,"'!$R$42"))="ERROR",INDIRECT(CONCATENATE("'",X$25,"'!$R$46"))="ERROR",INDIRECT(CONCATENATE("'",X$25,"'!$R$47"))="ERROR"),"ERROR","OK")) ->  | Y28: =IF('Data Validation'!V18="","",IF(OR(INDIRECT(CONCATENATE("'",Y$25,"'!$R$32"))="ERROR",INDIRECT(CONCATENATE("'",Y$25,"'!$R$33"))="ERROR",INDIRECT(CONCATENATE("'",Y$25,"'!$R$34"))="ERROR",INDIRECT(CONCATENATE("'",Y$25,"'!$R$35"))="ERROR",INDIRECT(CONCATENATE("'",Y$25,"'!$R$36"))="ERROR",INDIRECT(CONCATENATE("'",Y$25,"'!$R$37"))="ERROR",INDIRECT(CONCATENATE("'",Y$25,"'!$R$39"))="ERROR",INDIRECT(CONCATENATE("'",Y$25,"'!$R$40"))="ERROR",INDIRECT(CONCATENATE("'",Y$25,"'!$R$41"))="ERROR",INDIRECT(CONCATENATE("'",Y$25,"'!$R$42"))="ERROR",INDIRECT(CONCATENATE("'",Y$25,"'!$R$46"))="ERROR",INDIRECT(CONCATENATE("'",Y$25,"'!$R$47"))="ERROR"),"ERROR","OK")) ->  | Z28: =IF('Data Validation'!W18="","",IF(OR(INDIRECT(CONCATENATE("'",Z$25,"'!$R$32"))="ERROR",INDIRECT(CONCATENATE("'",Z$25,"'!$R$33"))="ERROR",INDIRECT(CONCATENATE("'",Z$25,"'!$R$34"))="ERROR",INDIRECT(CONCATENATE("'",Z$25,"'!$R$35"))="ERROR",INDIRECT(CONCATENATE("'",Z$25,"'!$R$36"))="ERROR",INDIRECT(CONCATENATE("'",Z$25,"'!$R$37"))="ERROR",INDIRECT(CONCATENATE("'",Z$25,"'!$R$39"))="ERROR",INDIRECT(CONCATENATE("'",Z$25,"'!$R$40"))="ERROR",INDIRECT(CONCATENATE("'",Z$25,"'!$R$41"))="ERROR",INDIRECT(CONCATENATE("'",Z$25,"'!$R$42"))="ERROR",INDIRECT(CONCATENATE("'",Z$25,"'!$R$46"))="ERROR",INDIRECT(CONCATENATE("'",Z$25,"'!$R$47"))="ERROR"),"ERROR","OK")) ->  | AD28: Variance calculated including b/f cumulative surplus/(deficit) | AS28: Lowest Variance
D29: 7 | E29: 2015/16 CCG underspend / (deficit) position (excluding normalisation adjustments) reconciles to outturn (INCLUDING primary care co-commissioning) (threshold for FLAG is £100,000 across the STP) | F29: =IF((SUMIF(O29:Z29,">0",O29:Z29)-SUMIF(O29:Z29,"<0",O29:Z29))>100,"FLAG","OK") -> FLAG | H29: Check input to column F of the CCG worksheets | J29: CCG 1 - CCG 12 | K29: F68 | O29: =IF(O26="", 0, IF(O26="01H", 0, (ROUND(IF(INDEX('Validation Checklist'!$O$136:$T$345,MATCH(O$26,'Validation Checklist'!$O$136:$O$345,0),6)="No",INDIRECT(CONCATENATE("'",O$25,"'!$F$24"))-INDIRECT(CONCATENATE("'",O$25,"'!$F$45")),INDIRECT(CONCATENATE("'",O$25,"'!$F$24"))-INDIRECT(CONCATENATE("'",O$25,"'!$F$45"))+INDIRECT(CONCATENATE("'",O$25,"'!$F$25"))-INDIRECT(CONCATENATE("'",O$25,"'!$F$46"))),0))-ROUND(INDEX('Validation Checklist'!$O$136:$T$345,MATCH(O$26,'Validation Checklist'!$O$136:$O$345,0),4),0))) -> -289 | P29: =IF(P26="",0,(ROUND(IF(INDEX('Validation Checklist'!$O$136:$T$345,MATCH(P$26,'Validation Checklist'!$O$136:$O$345,0),6)="No",INDIRECT(CONCATENATE("'",P$25,"'!$F$24"))-INDIRECT(CONCATENATE("'",P$25,"'!$F$45")),INDIRECT(CONCATENATE("'",P$25,"'!$F$24"))-INDIRECT(CONCATENATE("'",P$25,"'!$F$45"))+INDIRECT(CONCATENATE("'",P$25,"'!$F$25"))-INDIRECT(CONCATENATE("'",P$25,"'!$F$46"))),0))-ROUND(INDEX('Validation Checklist'!$O$136:$T$345,MATCH(P$26,'Validation Checklist'!$O$136:$O$345,0),4),0)) -> -3 | Q29: =IF(Q26="",0,(ROUND(IF(INDEX('Validation Checklist'!$O$136:$T$345,MATCH(Q$26,'Validation Checklist'!$O$136:$O$345,0),6)="No",INDIRECT(CONCATENATE("'",Q$25,"'!$F$24"))-INDIRECT(CONCATENATE("'",Q$25,"'!$F$45")),INDIRECT(CONCATENATE("'",Q$25,"'!$F$24"))-INDIRECT(CONCATENATE("'",Q$25,"'!$F$45"))+INDIRECT(CONCATENATE("'",Q$25,"'!$F$25"))-INDIRECT(CONCATENATE("'",Q$25,"'!$F$46"))),0))-ROUND(INDEX('Validation Checklist'!$O$136:$T$345,MATCH(Q$26,'Validation Checklist'!$O$136:$O$345,0),4),0)) -> -17 | R29: =IF(R26="",0,(ROUND(IF(INDEX('Validation Checklist'!$O$136:$T$345,MATCH(R$26,'Validation Checklist'!$O$136:$O$345,0),6)="No",INDIRECT(CONCATENATE("'",R$25,"'!$F$24"))-INDIRECT(CONCATENATE("'",R$25,"'!$F$45")),INDIRECT(CONCATENATE("'",R$25,"'!$F$24"))-INDIRECT(CONCATENATE("'",R$25,"'!$F$45"))+INDIRECT(CONCATENATE("'",R$25,"'!$F$25"))-INDIRECT(CONCATENATE("'",R$25,"'!$F$46"))),0))-ROUND(INDEX('Validation Checklist'!$O$136:$T$345,MATCH(R$26,'Validation Checklist'!$O$136:$O$345,0),4),0)) -> 4 | S29: =IF(S26="",0,(ROUND(IF(INDEX('Validation Checklist'!$O$136:$T$345,MATCH(S$26,'Validation Checklist'!$O$136:$O$345,0),6)="No",INDIRECT(CONCATENATE("'",S$25,"'!$F$24"))-INDIRECT(CONCATENATE("'",S$25,"'!$F$45")),INDIRECT(CONCATENATE("'",S$25,"'!$F$24"))-INDIRECT(CONCATENATE("'",S$25,"'!$F$45"))+INDIRECT(CONCATENATE("'",S$25,"'!$F$25"))-INDIRECT(CONCATENATE("'",S$25,"'!$F$46"))),0))-ROUND(INDEX('Validation Checklist'!$O$136:$T$345,MATCH(S$26,'Validation Checklist'!$O$136:$O$345,0),4),0)) -> 2 | T29: =IF(T26="",0,(ROUND(IF(INDEX('Validation Checklist'!$O$136:$T$345,MATCH(T$26,'Validation Checklist'!$O$136:$O$345,0),6)="No",INDIRECT(CONCATENATE("'",T$25,"'!$F$24"))-INDIRECT(CONCATENATE("'",T$25,"'!$F$45")),INDIRECT(CONCATENATE("'",T$25,"'!$F$24"))-INDIRECT(CONCATENATE("'",T$25,"'!$F$45"))+INDIRECT(CONCATENATE("'",T$25,"'!$F$25"))-INDIRECT(CONCATENATE("'",T$25,"'!$F$46"))),0))-ROUND(INDEX('Validation Checklist'!$O$136:$T$345,MATCH(T$26,'Validation Checklist'!$O$136:$O$345,0),4),0)) -> 0 | U29: =IF(U26="",0,(ROUND(IF(INDEX('Validation Checklist'!$O$136:$T$345,MATCH(U$26,'Validation Checklist'!$O$136:$O$345,0),6)="No",INDIRECT(CONCATENATE("'",U$25,"'!$F$24"))-INDIRECT(CONCATENATE("'",U$25,"'!$F$45")),INDIRECT(CONCATENATE("'",U$25,"'!$F$24"))-INDIRECT(CONCATENATE("'",U$25,"'!$F$45"))+INDIRECT(CONCATENATE("'",U$25,"'!$F$25"))-INDIRECT(CONCATENATE("'",U$25,"'!$F$46"))),0))-ROUND(INDEX('Validation Checklist'!$O$136:$T$345,MATCH(U$26,'Validation Checklist'!$O$136:$O$345,0),4),0)) -> 0 | V29: =IF(V26="",0,(ROUND(IF(INDEX('Validation Checklist'!$O$136:$T$345,MATCH(V$26,'Validation Checklist'!$O$136:$O$345,0),6)="No",INDIRECT(CONCATENATE("'",V$25,"'!$F$24"))-INDIRECT(CONCATENATE("'",V$25,"'!$F$45")),INDIRECT(CONCATENATE("'",V$25,"'!$F$24"))-INDIRECT(CONCATENATE("'",V$25,"'!$F$45"))+INDIRECT(CONCATENATE("'",V$25,"'!$F$25"))-INDIRECT(CONCATENATE("'",V$25,"'!$F$46"))),0))-ROUND(INDEX('Validation Checklist'!$O$136:$T$345,MATCH(V$26,'Validation Checklist'!$O$136:$O$345,0),4),0)) -> 0 | W29: =IF(W26="",0,(ROUND(IF(INDEX('Validation Checklist'!$O$136:$T$345,MATCH(W$26,'Validation Checklist'!$O$136:$O$345,0),6)="No",INDIRECT(CONCATENATE("'",W$25,"'!$F$24"))-INDIRECT(CONCATENATE("'",W$25,"'!$F$45")),INDIRECT(CONCATENATE("'",W$25,"'!$F$24"))-INDIRECT(CONCATENATE("'",W$25,"'!$F$45"))+INDIRECT(CONCATENATE("'",W$25,"'!$F$25"))-INDIRECT(CONCATENATE("'",W$25,"'!$F$46"))),0))-ROUND(INDEX('Validation Checklist'!$O$136:$T$345,MATCH(W$26,'Validation Checklist'!$O$136:$O$345,0),4),0)) -> 0 | X29: =IF(X26="",0,(ROUND(IF(INDEX('Validation Checklist'!$O$136:$T$345,MATCH(X$26,'Validation Checklist'!$O$136:$O$345,0),6)="No",INDIRECT(CONCATENATE("'",X$25,"'!$F$24"))-INDIRECT(CONCATENATE("'",X$25,"'!$F$45")),INDIRECT(CONCATENATE("'",X$25,"'!$F$24"))-INDIRECT(CONCATENATE("'",X$25,"'!$F$45"))+INDIRECT(CONCATENATE("'",X$25,"'!$F$25"))-INDIRECT(CONCATENATE("'",X$25,"'!$F$46"))),0))-ROUND(INDEX('Validation Checklist'!$O$136:$T$345,MATCH(X$26,'Validation Checklist'!$O$136:$O$345,0),4),0)) -> 0 | Y29: =IF(Y26="",0,(ROUND(IF(INDEX('Validation Checklist'!$O$136:$T$345,MATCH(Y$26,'Validation Checklist'!$O$136:$O$345,0),6)="No",INDIRECT(CONCATENATE("'",Y$25,"'!$F$24"))-INDIRECT(CONCATENATE("'",Y$25,"'!$F$45")),INDIRECT(CONCATENATE("'",Y$25,"'!$F$24"))-INDIRECT(CONCATENATE("'",Y$25,"'!$F$45"))+INDIRECT(CONCATENATE("'",Y$25,"'!$F$25"))-INDIRECT(CONCATENATE("'",Y$25,"'!$F$46"))),0))-ROUND(INDEX('Validation Checklist'!$O$136:$T$345,MATCH(Y$26,'Validation Checklist'!$O$136:$O$345,0),4),0)) -> 0 | Z29: =IF(Z26="",0,(ROUND(IF(INDEX('Validation Checklist'!$O$136:$T$345,MATCH(Z$26,'Validation Checklist'!$O$136:$O$345,0),6)="No",INDIRECT(CONCATENATE("'",Z$25,"'!$F$24"))-INDIRECT(CONCATENATE("'",Z$25,"'!$F$45")),INDIRECT(CONCATENATE("'",Z$25,"'!$F$24"))-INDIRECT(CONCATENATE("'",Z$25,"'!$F$45"))+INDIRECT(CONCATENATE("'",Z$25,"'!$F$25"))-INDIRECT(CONCATENATE("'",Z$25,"'!$F$46"))),0))-ROUND(INDEX('Validation Checklist'!$O$136:$T$345,MATCH(Z$26,'Validation Checklist'!$O$136:$O$345,0),4),0)) -> 0 | AC29: ∆ | AD29: =IF(OR(AD26="", AD26="01H"), 0, (ROUND(IF(INDEX('Validation Checklist'!$O$136:$T$345,MATCH(AD$26,'Validation Checklist'!$O$136:$O$345,0),6)="No",INDIRECT(CONCATENATE("'",AD$25,"'!$F$24"))-INDIRECT(CONCATENATE("'",AD$25,"'!$F$45")),INDIRECT(CONCATENATE("'",AD$25,"'!$F$24"))-INDIRECT(CONCATENATE("'",AD$25,"'!$F$45"))+INDIRECT(CONCATENATE("'",AD$25,"'!$F$25"))-INDIRECT(CONCATENATE("'",AD$25,"'!$F$46"))),0))-ROUND(INDEX('Validation Checklist'!$O$136:$T$345,MATCH(AD$26,'Validation Checklist'!$O$136:$O$345,0),5),0)) -> -436 | AE29: =IF(AE26="",0,(ROUND(IF(INDEX('Validation Checklist'!$O$136:$T$345,MATCH(AE$26,'Validation Checklist'!$O$136:$O$345,0),6)="No",INDIRECT(CONCATENATE("'",AE$25,"'!$F$24"))-INDIRECT(CONCATENATE("'",AE$25,"'!$F$45")),INDIRECT(CONCATENATE("'",AE$25,"'!$F$24"))-INDIRECT(CONCATENATE("'",AE$25,"'!$F$45"))+INDIRECT(CONCATENATE("'",AE$25,"'!$F$25"))-INDIRECT(CONCATENATE("'",AE$25,"'!$F$46"))),0))-ROUND(INDEX('Validation Checklist'!$O$136:$T$345,MATCH(AE$26,'Validation Checklist'!$O$136:$O$345,0),5),0)) -> -5871 | AF29: =IF(AF26="",0,(ROUND(IF(INDEX('Validation Checklist'!$O$136:$T$345,MATCH(AF$26,'Validation Checklist'!$O$136:$O$345,0),6)="No",INDIRECT(CONCATENATE("'",AF$25,"'!$F$24"))-INDIRECT(CONCATENATE("'",AF$25,"'!$F$45")),INDIRECT(CONCATENATE("'",AF$25,"'!$F$24"))-INDIRECT(CONCATENATE("'",AF$25,"'!$F$45"))+INDIRECT(CONCATENATE("'",AF$25,"'!$F$25"))-INDIRECT(CONCATENATE("'",AF$25,"'!$F$46"))),0))-ROUND(INDEX('Validation Checklist'!$O$136:$T$345,MATCH(AF$26,'Validation Checklist'!$O$136:$O$345,0),5),0)) -> -7400 | AG29: =IF(AG26="",0,(ROUND(IF(INDEX('Validation Checklist'!$O$136:$T$345,MATCH(AG$26,'Validation Checklist'!$O$136:$O$345,0),6)="No",INDIRECT(CONCATENATE("'",AG$25,"'!$F$24"))-INDIRECT(CONCATENATE("'",AG$25,"'!$F$45")),INDIRECT(CONCATENATE("'",AG$25,"'!$F$24"))-INDIRECT(CONCATENATE("'",AG$25,"'!$F$45"))+INDIRECT(CONCATENATE("'",AG$25,"'!$F$25"))-INDIRECT(CONCATENATE("'",AG$25,"'!$F$46"))),0))-ROUND(INDEX('Validation Checklist'!$O$136:$T$345,MATCH(AG$26,'Validation Checklist'!$O$136:$O$345,0),5),0)) -> -7692 | AH29: =IF(AH26="",0,(ROUND(IF(INDEX('Validation Checklist'!$O$136:$T$345,MATCH(AH$26,'Validation Checklist'!$O$136:$O$345,0),6)="No",INDIRECT(CONCATENATE("'",AH$25,"'!$F$24"))-INDIRECT(CONCATENATE("'",AH$25,"'!$F$45")),INDIRECT(CONCATENATE("'",AH$25,"'!$F$24"))-INDIRECT(CONCATENATE("'",AH$25,"'!$F$45"))+INDIRECT(CONCATENATE("'",AH$25,"'!$F$25"))-INDIRECT(CONCATENATE("'",AH$25,"'!$F$46"))),0))-ROUND(INDEX('Validation Checklist'!$O$136:$T$345,MATCH(AH$26,'Validation Checklist'!$O$136:$O$345,0),5),0)) -> -7663 | AI29: =IF(AI26="",0,(ROUND(IF(INDEX('Validation Checklist'!$O$136:$T$345,MATCH(AI$26,'Validation Checklist'!$O$136:$O$345,0),6)="No",INDIRECT(CONCATENATE("'",AI$25,"'!$F$24"))-INDIRECT(CONCATENATE("'",AI$25,"'!$F$45")),INDIRECT(CONCATENATE("'",AI$25,"'!$F$24"))-INDIRECT(CONCATENATE("'",AI$25,"'!$F$45"))+INDIRECT(CONCATENATE("'",AI$25,"'!$F$25"))-INDIRECT(CONCATENATE("'",AI$25,"'!$F$46"))),0))-ROUND(INDEX('Validation Checklist'!$O$136:$T$345,MATCH(AI$26,'Validation Checklist'!$O$136:$O$345,0),5),0)) -> -7276 | AJ29: =IF(AJ26="",0,(ROUND(IF(INDEX('Validation Checklist'!$O$136:$T$345,MATCH(AJ$26,'Validation Checklist'!$O$136:$O$345,0),6)="No",INDIRECT(CONCATENATE("'",AJ$25,"'!$F$24"))-INDIRECT(CONCATENATE("'",AJ$25,"'!$F$45")),INDIRECT(CONCATENATE("'",AJ$25,"'!$F$24"))-INDIRECT(CONCATENATE("'",AJ$25,"'!$F$45"))+INDIRECT(CONCATENATE("'",AJ$25,"'!$F$25"))-INDIRECT(CONCATENATE("'",AJ$25,"'!$F$46"))),0))-ROUND(INDEX('Validation Checklist'!$O$136:$T$345,MATCH(AJ$26,'Validation Checklist'!$O$136:$O$345,0),5),0)) -> 0 | AK29: =IF(AK26="",0,(ROUND(IF(INDEX('Validation Checklist'!$O$136:$T$345,MATCH(AK$26,'Validation Checklist'!$O$136:$O$345,0),6)="No",INDIRECT(CONCATENATE("'",AK$25,"'!$F$24"))-INDIRECT(CONCATENATE("'",AK$25,"'!$F$45")),INDIRECT(CONCATENATE("'",AK$25,"'!$F$24"))-INDIRECT(CONCATENATE("'",AK$25,"'!$F$45"))+INDIRECT(CONCATENATE("'",AK$25,"'!$F$25"))-INDIRECT(CONCATENATE("'",AK$25,"'!$F$46"))),0))-ROUND(INDEX('Validation Checklist'!$O$136:$T$345,MATCH(AK$26,'Validation Checklist'!$O$136:$O$345,0),5),0)) -> 0 | AL29: =IF(AL26="",0,(ROUND(IF(INDEX('Validation Checklist'!$O$136:$T$345,MATCH(AL$26,'Validation Checklist'!$O$136:$O$345,0),6)="No",INDIRECT(CONCATENATE("'",AL$25,"'!$F$24"))-INDIRECT(CONCATENATE("'",AL$25,"'!$F$45")),INDIRECT(CONCATENATE("'",AL$25,"'!$F$24"))-INDIRECT(CONCATENATE("'",AL$25,"'!$F$45"))+INDIRECT(CONCATENATE("'",AL$25,"'!$F$25"))-INDIRECT(CONCATENATE("'",AL$25,"'!$F$46"))),0))-ROUND(INDEX('Validation Checklist'!$O$136:$T$345,MATCH(AL$26,'Validation Checklist'!$O$136:$O$345,0),5),0)) -> 0 | AM29: =IF(AM26="",0,(ROUND(IF(INDEX('Validation Checklist'!$O$136:$T$345,MATCH(AM$26,'Validation Checklist'!$O$136:$O$345,0),6)="No",INDIRECT(CONCATENATE("'",AM$25,"'!$F$24"))-INDIRECT(CONCATENATE("'",AM$25,"'!$F$45")),INDIRECT(CONCATENATE("'",AM$25,"'!$F$24"))-INDIRECT(CONCATENATE("'",AM$25,"'!$F$45"))+INDIRECT(CONCATENATE("'",AM$25,"'!$F$25"))-INDIRECT(CONCATENATE("'",AM$25,"'!$F$46"))),0))-ROUND(INDEX('Validation Checklist'!$O$136:$T$345,MATCH(AM$26,'Validation Checklist'!$O$136:$O$345,0),5),0)) -> 0 | AN29: =IF(AN26="",0,(ROUND(IF(INDEX('Validation Checklist'!$O$136:$T$345,MATCH(AN$26,'Validation Checklist'!$O$136:$O$345,0),6)="No",INDIRECT(CONCATENATE("'",AN$25,"'!$F$24"))-INDIRECT(CONCATENATE("'",AN$25,"'!$F$45")),INDIRECT(CONCATENATE("'",AN$25,"'!$F$24"))-INDIRECT(CONCATENATE("'",AN$25,"'!$F$45"))+INDIRECT(CONCATENATE("'",AN$25,"'!$F$25"))-INDIRECT(CONCATENATE("'",AN$25,"'!$F$46"))),0))-ROUND(INDEX('Validation Checklist'!$O$136:$T$345,MATCH(AN$26,'Validation Checklist'!$O$136:$O$345,0),5),0)) -> 0 | AO29: =IF(AO26="",0,(ROUND(IF(INDEX('Validation Checklist'!$O$136:$T$345,MATCH(AO$26,'Validation Checklist'!$O$136:$O$345,0),6)="No",INDIRECT(CONCATENATE("'",AO$25,"'!$F$24"))-INDIRECT(CONCATENATE("'",AO$25,"'!$F$45")),INDIRECT(CONCATENATE("'",AO$25,"'!$F$24"))-INDIRECT(CONCATENATE("'",AO$25,"'!$F$45"))+INDIRECT(CONCATENATE("'",AO$25,"'!$F$25"))-INDIRECT(CONCATENATE("'",AO$25,"'!$F$46"))),0))-ROUND(INDEX('Validation Checklist'!$O$136:$T$345,MATCH(AO$26,'Validation Checklist'!$O$136:$O$345,0),5),0)) -> 0 | AS29: =IFERROR(IF(MIN(ROUND(ABS(O29),0)<=ROUND(ABS(AD29),0)),"IY","B/F"), 0) -> IY | AT29: =IF(MIN(ROUND(ABS(P29),0)<=ROUND(ABS(AE29),0)),"IY","B/F") -> IY | AU29: IY | AV29: IY | AW29: IY | AX29: IY | AY29: IY | AZ29: IY | BA29: IY | BB29: IY | BC29: IY | BD29: IY
D30: 8 | E30: 2016/17 CCG underspend / (deficit) position (excluding normalisation adjustments) reconciles to 2016/17 plan (INCLUDING primary care co-commissioning) (threshold for ERROR is £100,000 across the STP) | F30: =IF(SUM(MIN(ABS(O30),ABS(AD30)),MIN(ABS(P30),ABS(AE30)),MIN(ABS(Q30),ABS(AF30)),MIN(ABS(R30),ABS(AG30)),MIN(ABS(S30),ABS(AH30)),MIN(ABS(T30),ABS(AI30)),MIN(ABS(U30),ABS(AJ30)),MIN(ABS(V30),ABS(AK30)),MIN(ABS(W30),ABS(AL30)),MIN(ABS(X30),ABS(AM30)),MIN(ABS(Y30),ABS(AN30)),MIN(ABS(Z30),ABS(AO30)))<100,IF(COUNTIF($AS$30:$BD$30,"B/F")>0,"FLAG","OK"),"ERROR") -> OK | H30: FLAG - indicates that the STP has included b/f cumulative surplus/(deficit) in their income position, this should be removed for the October submission ERROR - is a variance £100k or greater from the plan position | J30: CCG 1 - CCG 12 | K30: I68 | O30: =IF(O26="", 0, IF(O26="01H", 0, (ROUND(IF(INDEX('Validation Checklist'!$O$347:$T$556,MATCH(O$26,'Validation Checklist'!$O$347:$O$556,0),6)="No",INDIRECT(CONCATENATE("'",O$25,"'!$I$68")),INDIRECT(CONCATENATE("'",O$25,"'!$I$68"))+INDIRECT(CONCATENATE("'",O$25,"'!$I$69"))),0)-ROUND(INDEX('Validation Checklist'!$O$347:$T$556,MATCH(O$26, 'Validation Checklist'!$O$347:$O$556,0),2),0)))) -> 18 | P30: =IF(P26="",0,(ROUND(IF(INDEX('Validation Checklist'!$O$347:$T$556,MATCH(P$26,'Validation Checklist'!$O$347:$O$556,0),6)="No",INDIRECT(CONCATENATE("'",P$25,"'!$I$68")),INDIRECT(CONCATENATE("'",P$25,"'!$I$68"))+INDIRECT(CONCATENATE("'",P$25,"'!$I$69"))),0)-ROUND(INDEX('Validation Checklist'!$O$347:$T$556,MATCH(P$26, 'Validation Checklist'!$O$347:$O$556,0),2),0))) -> 0 | Q30: =IF(Q26="",0,(ROUND(IF(INDEX('Validation Checklist'!$O$347:$T$556,MATCH(Q$26,'Validation Checklist'!$O$347:$O$556,0),6)="No",INDIRECT(CONCATENATE("'",Q$25,"'!$I$68")),INDIRECT(CONCATENATE("'",Q$25,"'!$I$68"))+INDIRECT(CONCATENATE("'",Q$25,"'!$I$69"))),0)-ROUND(INDEX('Validation Checklist'!$O$347:$T$556,MATCH(Q$26, 'Validation Checklist'!$O$347:$O$556,0),2),0))) -> 0 | R30: =IF(R26="",0,(ROUND(IF(INDEX('Validation Checklist'!$O$347:$T$556,MATCH(R$26,'Validation Checklist'!$O$347:$O$556,0),6)="No",INDIRECT(CONCATENATE("'",R$25,"'!$I$68")),INDIRECT(CONCATENATE("'",R$25,"'!$I$68"))+INDIRECT(CONCATENATE("'",R$25,"'!$I$69"))),0)-ROUND(INDEX('Validation Checklist'!$O$347:$T$556,MATCH(R$26, 'Validation Checklist'!$O$347:$O$556,0),2),0))) -> 0 | S30: =IF(S26="",0,(ROUND(IF(INDEX('Validation Checklist'!$O$347:$T$556,MATCH(S$26,'Validation Checklist'!$O$347:$O$556,0),6)="No",INDIRECT(CONCATENATE("'",S$25,"'!$I$68")),INDIRECT(CONCATENATE("'",S$25,"'!$I$68"))+INDIRECT(CONCATENATE("'",S$25,"'!$I$69"))),0)-ROUND(INDEX('Validation Checklist'!$O$347:$T$556,MATCH(S$26, 'Validation Checklist'!$O$347:$O$556,0),2),0))) -> -43 | T30: =IF(T26="",0,(ROUND(IF(INDEX('Validation Checklist'!$O$347:$T$556,MATCH(T$26,'Validation Checklist'!$O$347:$O$556,0),6)="No",INDIRECT(CONCATENATE("'",T$25,"'!$I$68")),INDIRECT(CONCATENATE("'",T$25,"'!$I$68"))+INDIRECT(CONCATENATE("'",T$25,"'!$I$69"))),0)-ROUND(INDEX('Validation Checklist'!$O$347:$T$556,MATCH(T$26, 'Validation Checklist'!$O$347:$O$556,0),2),0))) -> 0 | U30: =IF(U26="",0,(ROUND(IF(INDEX('Validation Checklist'!$O$347:$T$556,MATCH(U$26,'Validation Checklist'!$O$347:$O$556,0),6)="No",INDIRECT(CONCATENATE("'",U$25,"'!$I$68")),INDIRECT(CONCATENATE("'",U$25,"'!$I$68"))+INDIRECT(CONCATENATE("'",U$25,"'!$I$69"))),0)-ROUND(INDEX('Validation Checklist'!$O$347:$T$556,MATCH(U$26, 'Validation Checklist'!$O$347:$O$556,0),2),0))) -> 0 | V30: =IF(V26="",0,(ROUND(IF(INDEX('Validation Checklist'!$O$347:$T$556,MATCH(V$26,'Validation Checklist'!$O$347:$O$556,0),6)="No",INDIRECT(CONCATENATE("'",V$25,"'!$I$68")),INDIRECT(CONCATENATE("'",V$25,"'!$I$68"))+INDIRECT(CONCATENATE("'",V$25,"'!$I$69"))),0)-ROUND(INDEX('Validation Checklist'!$O$347:$T$556,MATCH(V$26, 'Validation Checklist'!$O$347:$O$556,0),2),0))) -> 0 | W30: =IF(W26="",0,(ROUND(IF(INDEX('Validation Checklist'!$O$347:$T$556,MATCH(W$26,'Validation Checklist'!$O$347:$O$556,0),6)="No",INDIRECT(CONCATENATE("'",W$25,"'!$I$68")),INDIRECT(CONCATENATE("'",W$25,"'!$I$68"))+INDIRECT(CONCATENATE("'",W$25,"'!$I$69"))),0)-ROUND(INDEX('Validation Checklist'!$O$347:$T$556,MATCH(W$26, 'Validation Checklist'!$O$347:$O$556,0),2),0))) -> 0 | X30: =IF(X26="",0,(ROUND(IF(INDEX('Validation Checklist'!$O$347:$T$556,MATCH(X$26,'Validation Checklist'!$O$347:$O$556,0),6)="No",INDIRECT(CONCATENATE("'",X$25,"'!$I$68")),INDIRECT(CONCATENATE("'",X$25,"'!$I$68"))+INDIRECT(CONCATENATE("'",X$25,"'!$I$69"))),0)-ROUND(INDEX('Validation Checklist'!$O$347:$T$556,MATCH(X$26, 'Validation Checklist'!$O$347:$O$556,0),2),0))) -> 0 | Y30: =IF(Y26="",0,(ROUND(IF(INDEX('Validation Checklist'!$O$347:$T$556,MATCH(Y$26,'Validation Checklist'!$O$347:$O$556,0),6)="No",INDIRECT(CONCATENATE("'",Y$25,"'!$I$68")),INDIRECT(CONCATENATE("'",Y$25,"'!$I$68"))+INDIRECT(CONCATENATE("'",Y$25,"'!$I$69"))),0)-ROUND(INDEX('Validation Checklist'!$O$347:$T$556,MATCH(Y$26, 'Validation Checklist'!$O$347:$O$556,0),2),0))) -> 0 | Z30: =IF(Z26="",0,(ROUND(IF(INDEX('Validation Checklist'!$O$347:$T$556,MATCH(Z$26,'Validation Checklist'!$O$347:$O$556,0),6)="No",INDIRECT(CONCATENATE("'",Z$25,"'!$I$68")),INDIRECT(CONCATENATE("'",Z$25,"'!$I$68"))+INDIRECT(CONCATENATE("'",Z$25,"'!$I$69"))),0)-ROUND(INDEX('Validation Checklist'!$O$347:$T$556,MATCH(Z$26, 'Validation Checklist'!$O$347:$O$556,0),2),0))) -> 0 | AC30: ∆ | AD30: =IF(OR(AD26="", AD26="01H"), 0, (ROUND(IF(INDEX('Validation Checklist'!$O$347:$T$556,MATCH(AD$26,'Validation Checklist'!$O$347:$O$556,0),6)="No",INDIRECT(CONCATENATE("'",AD$25,"'!$I$68")),INDIRECT(CONCATENATE("'",AD$25,"'!$I$68"))+INDIRECT(CONCATENATE("'",AD$25,"'!$I$69"))),0)-ROUND(INDEX('Validation Checklist'!$O$347:$T$556,MATCH(AD$26,'Validation Checklist'!$O$347:$O$556,0),5),0))) -> -151 | AE30: =IF(AE26="",0,(ROUND(IF(INDEX('Validation Checklist'!$O$347:$T$556,MATCH(AE$26,'Validation Checklist'!$O$347:$O$556,0),6)="No",INDIRECT(CONCATENATE("'",AE$25,"'!$I$68")),INDIRECT(CONCATENATE("'",AE$25,"'!$I$68"))+INDIRECT(CONCATENATE("'",AE$25,"'!$I$69"))),0)-ROUND(INDEX('Validation Checklist'!$O$347:$T$556,MATCH(AE$26,'Validation Checklist'!$O$347:$O$556,0),5),0))) -> -5911 | AF30: =IF(AF26="",0,(ROUND(IF(INDEX('Validation Checklist'!$O$347:$T$556,MATCH(AF$26,'Validation Checklist'!$O$347:$O$556,0),6)="No",INDIRECT(CONCATENATE("'",AF$25,"'!$I$68")),INDIRECT(CONCATENATE("'",AF$25,"'!$I$68"))+INDIRECT(CONCATENATE("'",AF$25,"'!$I$69"))),0)-ROUND(INDEX('Validation Checklist'!$O$347:$T$556,MATCH(AF$26,'Validation Checklist'!$O$347:$O$556,0),5),0))) -> -3249 | AG30: =IF(AG26="",0,(ROUND(IF(INDEX('Validation Checklist'!$O$347:$T$556,MATCH(AG$26,'Validation Checklist'!$O$347:$O$556,0),6)="No",INDIRECT(CONCATENATE("'",AG$25,"'!$I$68")),INDIRECT(CONCATENATE("'",AG$25,"'!$I$68"))+INDIRECT(CONCATENATE("'",AG$25,"'!$I$69"))),0)-ROUND(INDEX('Validation Checklist'!$O$347:$T$556,MATCH(AG$26,'Validation Checklist'!$O$347:$O$556,0),5),0))) -> -7753 | AH30: =IF(AH26="",0,(ROUND(IF(INDEX('Validation Checklist'!$O$347:$T$556,MATCH(AH$26,'Validation Checklist'!$O$347:$O$556,0),6)="No",INDIRECT(CONCATENATE("'",AH$25,"'!$I$68")),INDIRECT(CONCATENATE("'",AH$25,"'!$I$68"))+INDIRECT(CONCATENATE("'",AH$25,"'!$I$69"))),0)-ROUND(INDEX('Validation Checklist'!$O$347:$T$556,MATCH(AH$26,'Validation Checklist'!$O$347:$O$556,0),5),0))) -> -7688 | AI30: =IF(AI26="",0,(ROUND(IF(INDEX('Validation Checklist'!$O$347:$T$556,MATCH(AI$26,'Validation Checklist'!$O$347:$O$556,0),6)="No",INDIRECT(CONCATENATE("'",AI$25,"'!$I$68")),INDIRECT(CONCATENATE("'",AI$25,"'!$I$68"))+INDIRECT(CONCATENATE("'",AI$25,"'!$I$69"))),0)-ROUND(INDEX('Validation Checklist'!$O$347:$T$556,MATCH(AI$26,'Validation Checklist'!$O$347:$O$556,0),5),0))) -> -7673 | AJ30: =IF(AJ26="",0,(ROUND(IF(INDEX('Validation Checklist'!$O$347:$T$556,MATCH(AJ$26,'Validation Checklist'!$O$347:$O$556,0),6)="No",INDIRECT(CONCATENATE("'",AJ$25,"'!$I$68")),INDIRECT(CONCATENATE("'",AJ$25,"'!$I$68"))+INDIRECT(CONCATENATE("'",AJ$25,"'!$I$69"))),0)-ROUND(INDEX('Validation Checklist'!$O$347:$T$556,MATCH(AJ$26,'Validation Checklist'!$O$347:$O$556,0),5),0))) -> 0 | AK30: =IF(AK26="",0,(ROUND(IF(INDEX('Validation Checklist'!$O$347:$T$556,MATCH(AK$26,'Validation Checklist'!$O$347:$O$556,0),6)="No",INDIRECT(CONCATENATE("'",AK$25,"'!$I$68")),INDIRECT(CONCATENATE("'",AK$25,"'!$I$68"))+INDIRECT(CONCATENATE("'",AK$25,"'!$I$69"))),0)-ROUND(INDEX('Validation Checklist'!$O$347:$T$556,MATCH(AK$26,'Validation Checklist'!$O$347:$O$556,0),5),0))) -> 0 | AL30: =IF(AL26="",0,(ROUND(IF(INDEX('Validation Checklist'!$O$347:$T$556,MATCH(AL$26,'Validation Checklist'!$O$347:$O$556,0),6)="No",INDIRECT(CONCATENATE("'",AL$25,"'!$I$68")),INDIRECT(CONCATENATE("'",AL$25,"'!$I$68"))+INDIRECT(CONCATENATE("'",AL$25,"'!$I$69"))),0)-ROUND(INDEX('Validation Checklist'!$O$347:$T$556,MATCH(AL$26,'Validation Checklist'!$O$347:$O$556,0),5),0))) -> 0 | AM30: =IF(AM26="",0,(ROUND(IF(INDEX('Validation Checklist'!$O$347:$T$556,MATCH(AM$26,'Validation Checklist'!$O$347:$O$556,0),6)="No",INDIRECT(CONCATENATE("'",AM$25,"'!$I$68")),INDIRECT(CONCATENATE("'",AM$25,"'!$I$68"))+INDIRECT(CONCATENATE("'",AM$25,"'!$I$69"))),0)-ROUND(INDEX('Validation Checklist'!$O$347:$T$556,MATCH(AM$26,'Validation Checklist'!$O$347:$O$556,0),5),0))) -> 0 | AN30: =IF(AN26="",0,(ROUND(IF(INDEX('Validation Checklist'!$O$347:$T$556,MATCH(AN$26,'Validation Checklist'!$O$347:$O$556,0),6)="No",INDIRECT(CONCATENATE("'",AN$25,"'!$I$68")),INDIRECT(CONCATENATE("'",AN$25,"'!$I$68"))+INDIRECT(CONCATENATE("'",AN$25,"'!$I$69"))),0)-ROUND(INDEX('Validation Checklist'!$O$347:$T$556,MATCH(AN$26,'Validation Checklist'!$O$347:$O$556,0),5),0))) -> 0 | AO30: =IF(AO26="",0,(ROUND(IF(INDEX('Validation Checklist'!$O$347:$T$556,MATCH(AO$26,'Validation Checklist'!$O$347:$O$556,0),6)="No",INDIRECT(CONCATENATE("'",AO$25,"'!$I$68")),INDIRECT(CONCATENATE("'",AO$25,"'!$I$68"))+INDIRECT(CONCATENATE("'",AO$25,"'!$I$69"))),0)-ROUND(INDEX('Validation Checklist'!$O$347:$T$556,MATCH(AO$26,'Validation Checklist'!$O$347:$O$556,0),5),0))) -> 0 | AS30: =IFERROR(IF(MIN(ROUND(ABS(O30),0)<=ROUND(ABS(AD30),0)),"IY","B/F"), 0) -> IY | AT30: IY | AU30: IY | AV30: IY | AW30: IY | AX30: IY | AY30: IY | AZ30: IY | BA30: IY | BB30: IY | BC30: IY | BD30: IY
D31: 9 | E31: CCG Programme income for 2017/18 onwards reconciles to CCG Core Services published allocations (threshold for FLAG is £10,000 per CCG) | H31: Check inputs to row 21 of the CCG worksheets | J31: CCG 1 - CCG 12 | K31: Row 21 | O31: =IF(O$26="","",IF((ROUND(SUM(INDIRECT(CONCATENATE("'",O$25,"'!$L$21:$O$21")))/1000,2))=ROUND(INDEX('Validation Checklist'!$O$558:$W$767,MATCH(O$26,'Validation Checklist'!$O$558:$O$767,0),9)/1000,2),"OK","FLAG")) -> OK | P31: =IF(P$26="","",IF((ROUND(SUM(INDIRECT(CONCATENATE("'",P$25,"'!$L$21:$O$21")))/1000,2))=ROUND(INDEX('Validation Checklist'!$O$558:$W$767,MATCH(P$26,'Validation Checklist'!$O$558:$O$767,0),9)/1000,2),"OK","FLAG")) -> OK | Q31: =IF(Q$26="","",IF((ROUND(SUM(INDIRECT(CONCATENATE("'",Q$25,"'!$L$21:$O$21")))/1000,2))=ROUND(INDEX('Validation Checklist'!$O$558:$W$767,MATCH(Q$26,'Validation Checklist'!$O$558:$O$767,0),9)/1000,2),"OK","FLAG")) -> OK | R31: =IF(R$26="","",IF((ROUND(SUM(INDIRECT(CONCATENATE("'",R$25,"'!$L$21:$O$21")))/1000,2))=ROUND(INDEX('Validation Checklist'!$O$558:$W$767,MATCH(R$26,'Validation Checklist'!$O$558:$O$767,0),9)/1000,2),"OK","FLAG")) -> OK | S31: =IF(S$26="","",IF((ROUND(SUM(INDIRECT(CONCATENATE("'",S$25,"'!$L$21:$O$21")))/1000,2))=ROUND(INDEX('Validation Checklist'!$O$558:$W$767,MATCH(S$26,'Validation Checklist'!$O$558:$O$767,0),9)/1000,2),"OK","FLAG")) -> FLAG | T31: =IF(T$26="","",IF((ROUND(SUM(INDIRECT(CONCATENATE("'",T$25,"'!$L$21:$O$21")))/1000,2))=ROUND(INDEX('Validation Checklist'!$O$558:$W$767,MATCH(T$26,'Validation Checklist'!$O$558:$O$767,0),9)/1000,2),"OK","FLAG")) -> FLAG | U31: =IF(U$26="","",IF((ROUND(SUM(INDIRECT(CONCATENATE("'",U$25,"'!$L$21:$O$21")))/1000,2))=ROUND(INDEX('Validation Checklist'!$O$558:$W$767,MATCH(U$26,'Validation Checklist'!$O$558:$O$767,0),9)/1000,2),"OK","FLAG")) ->  | V31: =IF(V$26="","",IF((ROUND(SUM(INDIRECT(CONCATENATE("'",V$25,"'!$L$21:$O$21")))/1000,2))=ROUND(INDEX('Validation Checklist'!$O$558:$W$767,MATCH(V$26,'Validation Checklist'!$O$558:$O$767,0),9)/1000,2),"OK","FLAG")) ->  | W31: =IF(W$26="","",IF((ROUND(SUM(INDIRECT(CONCATENATE("'",W$25,"'!$L$21:$O$21")))/1000,2))=ROUND(INDEX('Validation Checklist'!$O$558:$W$767,MATCH(W$26,'Validation Checklist'!$O$558:$O$767,0),9)/1000,2),"OK","FLAG")) ->  | X31: =IF(X$26="","",IF((ROUND(SUM(INDIRECT(CONCATENATE("'",X$25,"'!$L$21:$O$21")))/1000,2))=ROUND(INDEX('Validation Checklist'!$O$558:$W$767,MATCH(X$26,'Validation Checklist'!$O$558:$O$767,0),9)/1000,2),"OK","FLAG")) ->  | Y31: =IF(Y$26="","",IF((ROUND(SUM(INDIRECT(CONCATENATE("'",Y$25,"'!$L$21:$O$21")))/1000,2))=ROUND(INDEX('Validation Checklist'!$O$558:$W$767,MATCH(Y$26,'Validation Checklist'!$O$558:$O$767,0),9)/1000,2),"OK","FLAG")) ->  | Z31: =IF(Z$26="","",IF((ROUND(SUM(INDIRECT(CONCATENATE("'",Z$25,"'!$L$21:$O$21")))/1000,2))=ROUND(INDEX('Validation Checklist'!$O$558:$W$767,MATCH(Z$26,'Validation Checklist'!$O$558:$O$767,0),9)/1000,2),"OK","FLAG")) -> 
D32: 9 | E32: CCG Admin income for 2017/18 onwards reconciles to CCG Running Costs published allocations (threshold for FLAG is £10,000 per CCG) | F32: =IF(COUNTIF($O32:$Z32,"FLAG")=0,"OK","FLAG") -> OK | H32: Check inputs to row 22 of the CCG worksheets | J32: CCG 1 - CCG 12 | K32: Row 22 | O32: =IF(O$26="","", IF(O26="01H", "N/A", IF((ROUND(SUM(INDIRECT(CONCATENATE("'",O$25,"'!$L$22:$O$22")))/1000,2))=ROUND(INDEX('Validation Checklist'!$O$769:$W$978,MATCH(O$26,'Validation Checklist'!$O$769:$O$978,0),8)/1000,2),"OK","FLAG"))) -> OK | P32: =IF(P$26="","",IF((ROUND(SUM(INDIRECT(CONCATENATE("'",P$25,"'!$L$22:$O$22")))/1000,2))=ROUND(INDEX('Validation Checklist'!$O$769:$W$978,MATCH(P$26,'Validation Checklist'!$O$769:$O$978,0),8)/1000,2),"OK","FLAG")) -> OK | Q32: =IF(Q$26="","",IF((ROUND(SUM(INDIRECT(CONCATENATE("'",Q$25,"'!$L$22:$O$22")))/1000,2))=ROUND(INDEX('Validation Checklist'!$O$769:$W$978,MATCH(Q$26,'Validation Checklist'!$O$769:$O$978,0),8)/1000,2),"OK","FLAG")) -> OK | R32: =IF(R$26="","",IF((ROUND(SUM(INDIRECT(CONCATENATE("'",R$25,"'!$L$22:$O$22")))/1000,2))=ROUND(INDEX('Validation Checklist'!$O$769:$W$978,MATCH(R$26,'Validation Checklist'!$O$769:$O$978,0),8)/1000,2),"OK","FLAG")) -> OK | S32: =IF(S$26="","",IF((ROUND(SUM(INDIRECT(CONCATENATE("'",S$25,"'!$L$22:$O$22")))/1000,2))=ROUND(INDEX('Validation Checklist'!$O$769:$W$978,MATCH(S$26,'Validation Checklist'!$O$769:$O$978,0),8)/1000,2),"OK","FLAG")) -> OK | T32: =IF(T$26="","",IF((ROUND(SUM(INDIRECT(CONCATENATE("'",T$25,"'!$L$22:$O$22")))/1000,2))=ROUND(INDEX('Validation Checklist'!$O$769:$W$978,MATCH(T$26,'Validation Checklist'!$O$769:$O$978,0),8)/1000,2),"OK","FLAG")) -> OK | U32: =IF(U$26="","",IF((ROUND(SUM(INDIRECT(CONCATENATE("'",U$25,"'!$L$22:$O$22")))/1000,2))=ROUND(INDEX('Validation Checklist'!$O$769:$W$978,MATCH(U$26,'Validation Checklist'!$O$769:$O$978,0),8)/1000,2),"OK","FLAG")) ->  | V32: =IF(V$26="","",IF((ROUND(SUM(INDIRECT(CONCATENATE("'",V$25,"'!$L$22:$O$22")))/1000,2))=ROUND(INDEX('Validation Checklist'!$O$769:$W$978,MATCH(V$26,'Validation Checklist'!$O$769:$O$978,0),8)/1000,2),"OK","FLAG")) ->  | W32: =IF(W$26="","",IF((ROUND(SUM(INDIRECT(CONCATENATE("'",W$25,"'!$L$22:$O$22")))/1000,2))=ROUND(INDEX('Validation Checklist'!$O$769:$W$978,MATCH(W$26,'Validation Checklist'!$O$769:$O$978,0),8)/1000,2),"OK","FLAG")) ->  | X32: =IF(X$26="","",IF((ROUND(SUM(INDIRECT(CONCATENATE("'",X$25,"'!$L$22:$O$22")))/1000,2))=ROUND(INDEX('Validation Checklist'!$O$769:$W$978,MATCH(X$26,'Validation Checklist'!$O$769:$O$978,0),8)/1000,2),"OK","FLAG")) ->  | Y32: =IF(Y$26="","",IF((ROUND(SUM(INDIRECT(CONCATENATE("'",Y$25,"'!$L$22:$O$22")))/1000,2))=ROUND(INDEX('Validation Checklist'!$O$769:$W$978,MATCH(Y$26,'Validation Checklist'!$O$769:$O$978,0),8)/1000,2),"OK","FLAG")) ->  | Z32: =IF(Z$26="","",IF((ROUND(SUM(INDIRECT(CONCATENATE("'",Z$25,"'!$L$22:$O$22")))/1000,2))=ROUND(INDEX('Validation Checklist'!$O$769:$W$978,MATCH(Z$26,'Validation Checklist'!$O$769:$O$978,0),8)/1000,2),"OK","FLAG")) -> 
D33: 10 | E33: Primary Medical Care income for 2017/18 onwards reconciles to Primary Care (Medical) published allocations (threshold for FLAG is £10,000 per CCG) | F33: =IF(COUNTIF($O33:$Z33,"FLAG")=0,"OK","FLAG") -> OK | H33: Check inputs to row 25 of the CCG worksheets | J33: CCG 1 - CCG 12 | K33: Row 25 | O33: =IF(O$26="","", IF(O26="01H", "N/A", IF((ROUND(SUM(INDIRECT(CONCATENATE("'",O$25,"'!$L$25:$O$25")))/1000,2))=ROUND(INDEX('Validation Checklist'!$O$980:$W$1189,MATCH(O$26,'Validation Checklist'!$O$980:$O$1189,0),9)/1000,2),"OK","FLAG"))) -> OK | P33: =IF(P$26="","",IF((ROUND(SUM(INDIRECT(CONCATENATE("'",P$25,"'!$L$25:$O$25")))/1000,2))=ROUND(INDEX('Validation Checklist'!$O$980:$W$1189,MATCH(P$26,'Validation Checklist'!$O$980:$O$1189,0),9)/1000,2),"OK","FLAG")) -> OK | Q33: =IF(Q$26="","",IF((ROUND(SUM(INDIRECT(CONCATENATE("'",Q$25,"'!$L$25:$O$25")))/1000,2))=ROUND(INDEX('Validation Checklist'!$O$980:$W$1189,MATCH(Q$26,'Validation Checklist'!$O$980:$O$1189,0),9)/1000,2),"OK","FLAG")) -> OK | R33: =IF(R$26="","",IF((ROUND(SUM(INDIRECT(CONCATENATE("'",R$25,"'!$L$25:$O$25")))/1000,2))=ROUND(INDEX('Validation Checklist'!$O$980:$W$1189,MATCH(R$26,'Validation Checklist'!$O$980:$O$1189,0),9)/1000,2),"OK","FLAG")) -> OK | S33: =IF(S$26="","",IF((ROUND(SUM(INDIRECT(CONCATENATE("'",S$25,"'!$L$25:$O$25")))/1000,2))=ROUND(INDEX('Validation Checklist'!$O$980:$W$1189,MATCH(S$26,'Validation Checklist'!$O$980:$O$1189,0),9)/1000,2),"OK","FLAG")) -> OK | T33: =IF(T$26="","",IF((ROUND(SUM(INDIRECT(CONCATENATE("'",T$25,"'!$L$25:$O$25")))/1000,2))=ROUND(INDEX('Validation Checklist'!$O$980:$W$1189,MATCH(T$26,'Validation Checklist'!$O$980:$O$1189,0),9)/1000,2),"OK","FLAG")) -> OK | U33: =IF(U$26="","",IF((ROUND(SUM(INDIRECT(CONCATENATE("'",U$25,"'!$L$25:$O$25")))/1000,2))=ROUND(INDEX('Validation Checklist'!$O$980:$W$1189,MATCH(U$26,'Validation Checklist'!$O$980:$O$1189,0),9)/1000,2),"OK","FLAG")) ->  | V33: =IF(V$26="","",IF((ROUND(SUM(INDIRECT(CONCATENATE("'",V$25,"'!$L$25:$O$25")))/1000,2))=ROUND(INDEX('Validation Checklist'!$O$980:$W$1189,MATCH(V$26,'Validation Checklist'!$O$980:$O$1189,0),9)/1000,2),"OK","FLAG")) ->  | W33: =IF(OW$26="","",IF((ROUND(SUM(INDIRECT(CONCATENATE("'",W$25,"'!$L$25:$O$25")))/1000,2))=ROUND(INDEX('Validation Checklist'!$O$980:$W$1189,MATCH(W$26,'Validation Checklist'!$O$980:$O$1189,0),9)/1000,2),"OK","FLAG")) ->  | X33: =IF(X$26="","",IF((ROUND(SUM(INDIRECT(CONCATENATE("'",X$25,"'!$L$25:$O$25")))/1000,2))=ROUND(INDEX('Validation Checklist'!$O$980:$W$1189,MATCH(X$26,'Validation Checklist'!$O$980:$O$1189,0),9)/1000,2),"OK","FLAG")) ->  | Y33: =IF(Y$26="","",IF((ROUND(SUM(INDIRECT(CONCATENATE("'",Y$25,"'!$L$25:$O$25")))/1000,2))=ROUND(INDEX('Validation Checklist'!$O$980:$W$1189,MATCH(Y$26,'Validation Checklist'!$O$980:$O$1189,0),9)/1000,2),"OK","FLAG")) ->  | Z33: =IF(Z$26="","",IF((ROUND(SUM(INDIRECT(CONCATENATE("'",Z$25,"'!$L$25:$O$25")))/1000,2))=ROUND(INDEX('Validation Checklist'!$O$980:$W$1189,MATCH(Z$26,'Validation Checklist'!$O$980:$O$1189,0),9)/1000,2),"OK","FLAG")) -> 
D34: 11 | E34: Specialised Commissioning income for 2016/17 onwards reconciles to Specialised Services published allocations (threshold for FLAG is £10,000 per CCG) | F34: =IF(COUNTIF($O34:$Z34,"FLAG")=0,"OK","FLAG") -> OK | H34: Check inputs to row 26 of the CCG worksheets | J34: CCG 1 - CCG 12 | K34: Row 26 | O34: =IF(O26="","", IF(O26="01H", "N/A", IF(ROUND((SUM(INDIRECT(CONCATENATE("'",O$25,"'!$L$26:$O$26")))+INDIRECT(CONCATENATE("'",O$25,"'!$I$26")))/1000,2)=ROUND(INDEX('Validation Checklist'!$O$1191:$W$1400,MATCH('Validation Checklist'!O$26,'Validation Checklist'!$O$1191:$O$1400,0),9)/1000,2),"OK","FLAG"))) -> OK | P34: =IF(P26="","",IF(ROUND((SUM(INDIRECT(CONCATENATE("'",P$25,"'!$L$26:$O$26")))+INDIRECT(CONCATENATE("'",P$25,"'!$I$26")))/1000,2)=ROUND(INDEX('Validation Checklist'!$O$1191:$W$1400,MATCH('Validation Checklist'!P$26,'Validation Checklist'!$O$1191:$O$1400,0),9)/1000,2),"OK","FLAG")) -> OK | Q34: =IF(Q26="","",IF(ROUND((SUM(INDIRECT(CONCATENATE("'",Q$25,"'!$L$26:$O$26")))+INDIRECT(CONCATENATE("'",Q$25,"'!$I$26")))/1000,2)=ROUND(INDEX('Validation Checklist'!$O$1191:$W$1400,MATCH('Validation Checklist'!Q$26,'Validation Checklist'!$O$1191:$O$1400,0),9)/1000,2),"OK","FLAG")) -> OK | R34: =IF(R26="","",IF(ROUND((SUM(INDIRECT(CONCATENATE("'",R$25,"'!$L$26:$O$26")))+INDIRECT(CONCATENATE("'",R$25,"'!$I$26")))/1000,2)=ROUND(INDEX('Validation Checklist'!$O$1191:$W$1400,MATCH('Validation Checklist'!R$26,'Validation Checklist'!$O$1191:$O$1400,0),9)/1000,2),"OK","FLAG")) -> OK | S34: =IF(S26="","",IF(ROUND((SUM(INDIRECT(CONCATENATE("'",S$25,"'!$L$26:$O$26")))+INDIRECT(CONCATENATE("'",S$25,"'!$I$26")))/1000,2)=ROUND(INDEX('Validation Checklist'!$O$1191:$W$1400,MATCH('Validation Checklist'!S$26,'Validation Checklist'!$O$1191:$O$1400,0),9)/1000,2),"OK","FLAG")) -> OK | T34: =IF(T26="","",IF(ROUND((SUM(INDIRECT(CONCATENATE("'",T$25,"'!$L$26:$O$26")))+INDIRECT(CONCATENATE("'",T$25,"'!$I$26")))/1000,2)=ROUND(INDEX('Validation Checklist'!$O$1191:$W$1400,MATCH('Validation Checklist'!T$26,'Validation Checklist'!$O$1191:$O$1400,0),9)/1000,2),"OK","FLAG")) -> OK | U34: =IF(U26="","",IF(ROUND((SUM(INDIRECT(CONCATENATE("'",U$25,"'!$L$26:$O$26")))+INDIRECT(CONCATENATE("'",U$25,"'!$I$26")))/1000,2)=ROUND(INDEX('Validation Checklist'!$O$1191:$W$1400,MATCH('Validation Checklist'!U$26,'Validation Checklist'!$O$1191:$O$1400,0),9)/1000,2),"OK","FLAG")) ->  | V34: =IF(V26="","",IF(ROUND((SUM(INDIRECT(CONCATENATE("'",V$25,"'!$L$26:$O$26")))+INDIRECT(CONCATENATE("'",V$25,"'!$I$26")))/1000,2)=ROUND(INDEX('Validation Checklist'!$O$1191:$W$1400,MATCH('Validation Checklist'!V$26,'Validation Checklist'!$O$1191:$O$1400,0),9)/1000,2),"OK","FLAG")) ->  | W34: =IF(W26="","",IF(ROUND((SUM(INDIRECT(CONCATENATE("'",W$25,"'!$L$26:$O$26")))+INDIRECT(CONCATENATE("'",W$25,"'!$I$26")))/1000,2)=ROUND(INDEX('Validation Checklist'!$O$1191:$W$1400,MATCH('Validation Checklist'!W$26,'Validation Checklist'!$O$1191:$O$1400,0),9)/1000,2),"OK","FLAG")) ->  | X34: =IF(X26="","",IF(ROUND((SUM(INDIRECT(CONCATENATE("'",X$25,"'!$L$26:$O$26")))+INDIRECT(CONCATENATE("'",X$25,"'!$I$26")))/1000,2)=ROUND(INDEX('Validation Checklist'!$O$1191:$W$1400,MATCH('Validation Checklist'!X$26,'Validation Checklist'!$O$1191:$O$1400,0),9)/1000,2),"OK","FLAG")) ->  | Y34: =IF(Y26="","",IF(ROUND((SUM(INDIRECT(CONCATENATE("'",Y$25,"'!$L$26:$O$26")))+INDIRECT(CONCATENATE("'",Y$25,"'!$I$26")))/1000,2)=ROUND(INDEX('Validation Checklist'!$O$1191:$W$1400,MATCH('Validation Checklist'!Y$26,'Validation Checklist'!$O$1191:$O$1400,0),9)/1000,2),"OK","FLAG")) ->  | Z34: =IF(Z26="","",IF(ROUND((SUM(INDIRECT(CONCATENATE("'",Z$25,"'!$L$26:$O$26")))+INDIRECT(CONCATENATE("'",Z$25,"'!$I$26")))/1000,2)=ROUND(INDEX('Validation Checklist'!$O$1191:$W$1400,MATCH('Validation Checklist'!Z$26,'Validation Checklist'!$O$1191:$O$1400,0),9)/1000,2),"OK","FLAG")) -> 
D35: 12 | E35: CCG do nothing expenditure to outside of the footprint completed | F35: =IF(COUNTIF($O$35:$Z$35, "ERROR")>0,"ERROR","OK") -> OK | H35: Check inputs to row 52 of the CCG worksheets | J35: CCG 1 - CCG 12 | K35: Row 52 | O35: =IF(O26="","",IF(INDIRECT(CONCATENATE("'",O$25,"'!R$52"))="ERROR","ERROR","OK")) -> OK | P35: =IF(P26="","",IF(INDIRECT(CONCATENATE("'",P$25,"'!R$52"))="ERROR","ERROR","OK")) -> OK | Q35: =IF(Q26="","",IF(INDIRECT(CONCATENATE("'",Q$25,"'!R$52"))="ERROR","ERROR","OK")) -> OK | R35: OK | S35: OK | T35: OK
D36: 13 | E36: CCG Primary Medical Care co-commissioning decision taken | F36: =IF(COUNTIF($O$36:$Z$36, "ERROR")>0,"ERROR","OK") -> OK | H36: Check inputs to row 103 of the CCG worksheets | J36: CCG 1 - CCG 12 | K36: Row 105 | O36: =IF(O26="","",IF(INDIRECT(CONCATENATE("'",O$25,"'!R$105"))="ERROR","ERROR","OK")) -> OK | P36: =IF(P26="","",IF(INDIRECT(CONCATENATE("'",P$25,"'!R$105"))="ERROR","ERROR","OK")) -> OK | Q36: OK | R36: OK | S36: OK | T36: OK
D37: 14 | E37: CCG 1% non recurrent treatment confirmed | F37: =IF(COUNTIF($O$37:$Z$37, "ERROR")>0,"ERROR","OK") -> OK | H37: Check inputs to row 119 of the CCG worksheets | J37: CCG 1 - CCG 12 | K37: Row 122 | O37: =IF(O26="","",IF(INDIRECT(CONCATENATE("'",O$25,"'!R$122"))="ERROR","ERROR","OK")) -> OK | P37: OK | Q37: OK | R37: OK | S37: OK | T37: OK
D38: 15 | E38: CCG 0.5% contingency treatment confirmed | F38: =IF(COUNTIF($O$38:$Z$38, "ERROR")>0,"ERROR","OK") -> OK | H38: Check inputs to row 126 of the CCG worksheets | J38: CCG 1 - CCG 12 | K38: Row 129 | O38: =IF(O26="","",IF(INDIRECT(CONCATENATE("'",O$25,"'!R$129"))="ERROR","ERROR","OK")) -> OK | P38: OK | Q38: OK | R38: OK | S38: OK | T38: OK
E40: DO NOTHING - TRUST
D41: 16 | E41: Trust do nothing income and expenditure completed | F41: =IF(COUNTIF('Data Validation'!$X$17:$AP$18, "ERROR")>0,"ERROR","OK") -> OK | H41: Check income and expenditure inputs for each Trust within the footprint (refer to rows 17 and 18 of the Data Validation worksheet for further detail) | J41: Trust 1 - Trust 19 | K41: Rows 19 - 36
D42: 17 | E42: Ambulance trust income and expenditure completed | F42: =IF(COUNTIF('Data Validation'!$AQ$17:$AR$18, "ERROR")>0,"ERROR","OK") -> OK | H42: Check income and expenditure inputs for each Ambulance trust within the footprint (refer to rows 17 and 18 of the Data Validation worksheet) | J42: Trust Amb 1 - 2 | K42: Rows 19 - 36
D43: 18 | E43: Do nothing income from outside of the footprint completed on Trust worksheets | F43: =IF(OR('Trust 1'!$R$40="ERROR",'Trust 2'!$R$40="ERROR",'Trust 3'!$R$40="ERROR",'Trust 4'!$R$40="ERROR",'Trust 5'!$R$40="ERROR",'Trust 6'!$R$40="ERROR",'Trust 7'!$R$40="ERROR",'Trust 8'!$R$40="ERROR",'Trust 9'!$R$40="ERROR",'Trust 10'!$R$40="ERROR",'Trust 11'!$R$40="ERROR",'Trust 12'!$R$40="ERROR",'Trust 13'!$R$40="ERROR",'Trust 14'!$R$40="ERROR",'Trust 15'!$R$40="ERROR",'Trust 16'!$R$40="ERROR",'Trust 17'!$R$40="ERROR",'Trust 18'!$R$40="ERROR",'Trust 19'!$R$40="ERROR"),"ERROR","OK") -> OK | H43: Check inputs to row 40 of the Trust worksheets | J43: Trust 1 - Trust 19 | K43: Row 40
E45: CAPITAL EXPENDITURE | O45: CCG 1 | P45: CCG 2 | Q45: CCG 3 | R45: CCG 4 | S45: CCG 5 | T45: CCG 6 | U45: CCG 7 | V45: CCG 8 | W45: CCG 9 | X45: CCG 10 | Y45: CCG 11 | Z45: CCG 12
D46: 19 | E46: CCG do nothing capital expenditure completed | F46: =IF(OR(OR('CCG 1'!$R$54="ERROR"),OR('CCG 2'!$R$54="ERROR"),OR('CCG 3'!$R$54="ERROR"),OR('CCG 4'!$R$54="ERROR"),OR('CCG 5'!$R$54="ERROR"),OR('CCG 6'!$R$54="ERROR"),OR('CCG 7'!$R$54="ERROR"),OR('CCG 8'!$R$54="ERROR"),OR('CCG 9'!$R$54="ERROR"),OR('CCG 10'!$R$54="ERROR"),OR('CCG 11'!$R$54="ERROR"),OR('CCG 12'!$R$54="ERROR")),"FLAG","OK") -> OK | H46: Check inputs to row 54 of the CCG worksheets | J46: CCG 1 - CCG 12 | K46: Row 54 | O46: =IF(O26="","",IF(INDIRECT(CONCATENATE("'",O$25,"'!$R$54"))="ERROR","FLAG","OK")) -> OK | P46: =IF(P26="","",IF(INDIRECT(CONCATENATE("'",P$25,"'!$R$54"))="ERROR","FLAG","OK")) -> OK | Q46: OK | R46: OK | S46: OK | T46: OK
D47: 20 | E47: Trust do nothing capital expenditure | F47: =IF(OR('Trust 1'!$R$42="ERROR",'Trust 2'!$R$42="ERROR",'Trust 3'!$R$42="ERROR",'Trust 4'!$R$42="ERROR",'Trust 5'!$R$42="ERROR",'Trust 6'!$R$42="ERROR",'Trust 7'!$R$42="ERROR",'Trust 8'!$R$42="ERROR",'Trust 9'!$R$42="ERROR",'Trust 10'!$R$42="ERROR",'Trust 11'!$R$42="ERROR",'Trust 12'!$R$42="ERROR",'Trust 13'!$R$42="ERROR",'Trust 14'!$R$42="ERROR",'Trust 15'!$R$42="ERROR",'Trust 16'!$R$42="ERROR",'Trust 17'!$R$42="ERROR",'Trust 18'!$R$42="ERROR",'Trust 19'!$R$42="ERROR",'Trust AMB 1'!$R$42="ERROR",'Trust AMB 2'!$R$42="ERROR"),"ERROR","OK") -> OK | H47: Check inputs to row 42 of the Trust worksheets | J47: Trust 1 - Trust 19 | K47: Row 42
D48: 21 | E48: Disaggregation of Total Footprint Capital Expenditure by Funding Sources has been completed | F48: =IFERROR(IF(COUNTIF('Capital Expenditure'!$F$30:$AF$30,"ERROR")>0,"ERROR","OK"),"ERROR") -> OK | H48: Check do nothing and solution inputs on Capital Expenditure worksheet and that solution inputs reconcile to Solution worksheets | J48: Capital Expenditure | K48: Rows 14-29
D49: 22 | E49: Explanation for 'Other' funding sources has been completed | F49: =IFERROR(IF(OR(AND(SUM('Capital Expenditure'!$F$26:$K$26)>0,'Capital Expenditure'!$F$31=""),AND(SUM('Capital Expenditure'!$M$26:$R$26)>0,'Capital Expenditure'!$M$31=""),AND(SUM('Capital Expenditure'!$T$26:$Y$26)>0,'Capital Expenditure'!$T$31="")),"ERROR","OK"),"ERROR") -> OK | H49: Check inputs to row 31 of Capital Expenditure worksheet | J49: Capital Expenditure | K49: Row 31
D50: 23 | E50: Disaggregation of Total Footprint Capital Expenditure by Capital Category has been completed | F50: =IFERROR(IF(COUNTIF('Capital Expenditure'!$F$42:$Y$42,"ERROR")>0,"ERROR","OK"),"ERROR") -> OK | H50: Check do nothing and solution inputs on Capital Expenditure worksheet and that solution inputs reconcile to Solution worksheets | J50: Capital Expenditure | K50: Rows 33-41
D51: 24 | E51: Summary Of Capital Expenditure By Solution - Revenue Impact Of Solution's Capital Investment completed | F51: =IFERROR(IF(COUNTIF('Capital Expenditure'!$O$98:$R$98, "ERROR")>0,"FLAG","OK"),"FLAG") -> OK | H51: Check inputs to rows 83-97 of Capital Expenditure worksheet | J51: Capital Expenditure | K51: Rows 83-97
D52: 25 | E52: Progress On Estimating The Return On Investment and Payback Period Of The Capital Expenditure Required To Deliver The Solution completed | F52: =IFERROR(IF(COUNTIF('Capital Expenditure'!$AA$105:$AA$116,"ERROR")>0,"FLAG","OK"),"FLAG") -> OK | H52: Check inputs to rows 102-117 of Capital Expenditure worksheet | J52: Capital Expenditure | K52: Rows 102 -117
E54: WORKFORCE
D55: 26 | E55: 2015/16 do nothing WTE inputs completed for each organisation | F55: =IF(COUNTIF('Workforce Summary'!$F$28:$AL$28,">0")=(19-(COUNTIF('Footprints Orgs'!F12:F30, "")+COUNTIF('Footprints Orgs'!F12:F30, 0))+19-(COUNTIF('Footprints Orgs'!K12:K30, 0)+COUNTIF('Footprints Orgs'!K12:K30, ""))+19-(COUNTIF('Footprints Orgs'!Q12:Q30, 0)+COUNTIF('Footprints Orgs'!Q12:Q30, ""))),"OK","ERROR") -> OK | H55: Check inputs to Workforce Summary worksheet | J55: Workforce Summary | K55: Rows 12 -28
D56: 27 | E56: 2016-17 - 2020/21 do nothing WTE inputs completed | F56: =IF(AND('Workforce Summary'!AO28<>0,'Workforce Summary'!AP28<>0,'Workforce Summary'!AQ28<>0,'Workforce Summary'!AR28<>0,'Workforce Summary'!AS28<>0),"OK","ERROR") -> OK | H56: Check inputs to Workforce Summary worksheet | J56: Workforce Summary | K56: Rows 12 -28
D57: 28 | E57: WTE impact of solutions have been completed on the Workforce Summary worksheet and inputs agree between Workforce Summary and Solution worksheets | F57: =IF(OR(SUM('Workforce Summary'!$AV$28:$AZ$28)=0,COUNTIF('Workforce Summary'!$AV$32:$AZ$32,"ERROR")>0),"ERROR","OK") -> OK | H57: Check inputs to Workforce Summary and Solution worksheets | J57: Workforce Summary Solution 1 - 12 | K57: Rows 12 -28 Rows 58 & 89
E59: ACTIVITY | O59: CCG 1 | P59: CCG 2 | Q59: CCG 3 | R59: CCG 4 | S59: CCG 5 | T59: CCG 6 | U59: CCG 7 | V59: CCG 8 | W59: CCG 9 | X59: CCG 10 | Y59: CCG 11 | Z59: CCG 12
D60: 29 | E60: CCG do nothing commissioned acute activity inputs have been completed | F60: =IF(COUNTIF('Data Validation'!$L$19:$W$19,"ERROR")>0,"ERROR","OK") -> OK | H60: Check acute activity inputs on each CCG worksheet (refer to row 19 of the Data Validation worksheet) | J60: CCG 1 - CCG 12 | K60: Rows 58 - 61 | O60: =IF(O26="","",IF(AND(INDIRECT(CONCATENATE("'",O$25,"'!$I$58"))>0,INDIRECT(CONCATENATE("'",O$25,"'!$L$58"))>0,INDIRECT(CONCATENATE("'",O$25,"'!$M$58"))>0,INDIRECT(CONCATENATE("'",O$25,"'!$N$58"))>0,INDIRECT(CONCATENATE("'",O$25,"'!$O$58"))>0),"OK","ERROR")) -> OK | P60: =IF(P26="","",IF(AND(INDIRECT(CONCATENATE("'",P$25,"'!$I$58"))>0,INDIRECT(CONCATENATE("'",P$25,"'!$L$58"))>0,INDIRECT(CONCATENATE("'",P$25,"'!$M$58"))>0,INDIRECT(CONCATENATE("'",P$25,"'!$N$58"))>0,INDIRECT(CONCATENATE("'",P$25,"'!$O$58"))>0),"OK","ERROR")) -> OK | Q60: OK | R60: OK | S60: OK | T60: OK
D61: 30 | E61: CCG do nothing commissioned non-acute activity inputs have been completed | F61: =IF(COUNTIF($O$61:$Z$61,"FLAG")>0,"FLAG","OK") -> OK | H61: Check Mental Health, Community and A&E activity inputs on each CCG worksheet | J61: CCG 1 - CCG 12 | K61: Rows 62 - 64 | O61: =IF(O26="","",IF(COUNTIF(INDIRECT(CONCATENATE("'",O$25,"'!$F$62:$O$64")),">0.01"),"OK","FLAG")) -> OK | P61: =IF(P26="","",IF(COUNTIF(INDIRECT(CONCATENATE("'",P$25,"'!$F$62:$O$64")),">0.01"),"OK","FLAG")) -> OK | Q61: OK | R61: =IF(R26="","",IF(COUNTIF(INDIRECT(CONCATENATE("'",R$25,"'!$F$62:$O$64")),">0.01"),"OK","FLAG")) -> OK | S61: OK | T61: OK
O62: =IF('Solution Control'!$D12="On","OK","FLAG") -> OK | P62: =IF('Solution Control'!$D13="On","OK","FLAG") -> OK | Q62: =IF('Solution Control'!$D14="On","OK","FLAG") -> OK | R62: =IF('Solution Control'!$D15="On","OK","FLAG") -> OK | S62: =IF('Solution Control'!$D16="On","OK","FLAG") -> OK | T62: =IF('Solution Control'!$D17="On","OK","FLAG") -> OK | U62: =IF('Solution Control'!$D18="On","OK","FLAG") -> OK | V62: =IF('Solution Control'!$D19="On","OK","FLAG") -> OK | W62: =IF('Solution Control'!$D20="On","OK","FLAG") -> OK | X62: =IF('Solution Control'!$D21="On","OK","FLAG") -> OK | Y62: =IF('Solution Control'!$D22="On","OK","FLAG") -> OK | Z62: =IF('Solution Control'!$D23="On","OK","FLAG") -> OK
E63: SOLUTIONS | O63: Solution 1 | P63: Solution 2 | Q63: Solution 3 | R63: Solution 4 | S63: Solution 5 | T63: Solution 6 | U63: Solution 7 | V63: Solution 8 | W63: Solution 9 | X63: Solution 10 | Y63: Solution 11 | Z63: Solution 12
D65: 31 | E65: Flag solutions turned "Off" on the Solution Control worksheet | F65: =IF(COUNTIF($O$65:$Z$65, "FLAG")>0, "FLAG", "OK") -> OK | H65: Check "Off" switches on the Solution Control worksheet | J65: Solution Control | K65: E12 - E23 | O65: =IF('Solution Control'!D12="Off", "FLAG", "OK") -> OK | P65: =IF('Solution Control'!D13="Off", "FLAG", "OK") -> OK | Q65: =IF('Solution Control'!D14="Off", "FLAG", "OK") -> OK | R65: =IF('Solution Control'!D15="Off", "FLAG", "OK") -> OK | S65: =IF('Solution Control'!D16="Off", "FLAG", "OK") -> OK | T65: =IF('Solution Control'!D17="Off", "FLAG", "OK") -> OK | U65: =IF('Solution Control'!D18="Off", "FLAG", "OK") -> OK | V65: =IF('Solution Control'!D19="Off", "FLAG", "OK") -> OK | W65: =IF('Solution Control'!D20="Off", "FLAG", "OK") -> OK | X65: =IF('Solution Control'!D21="Off", "FLAG", "OK") -> OK | Y65: =IF('Solution Control'!D22="Off", "FLAG", "OK") -> OK | Z65: =IF('Solution Control'!D23="Off", "FLAG", "OK") -> OK
D66: 32 | E66: Solution Type completed | F66: =IF(COUNTIF($O66:$Z66,"ERROR")=0,"OK","ERROR") -> OK | H66: Check input to M6 on Solution worksheets | J66: Solution 1 - 12 | K66: M6 | O66: =IF(AND(INDIRECT(CONCATENATE("'",O$63,"'!$K$17"))-INDIRECT(CONCATENATE("'",O$63,"'!$K$40"))+INDIRECT(CONCATENATE("'",O$63,"'!$K$70"))-INDIRECT(CONCATENATE("'",O$63,"'!$K$83"))<>0,OR(INDIRECT(CONCATENATE("'",O$63,"'!$M$6"))="[drop down]",INDIRECT(CONCATENATE("'",O$63,"'!$M$6"))="")),"ERROR","OK") -> OK | P66: =IF(AND(INDIRECT(CONCATENATE("'",P$63,"'!$K$17"))-INDIRECT(CONCATENATE("'",P$63,"'!$K$40"))+INDIRECT(CONCATENATE("'",P$63,"'!$K$70"))-INDIRECT(CONCATENATE("'",P$63,"'!$K$83"))<>0,OR(INDIRECT(CONCATENATE("'",P$63,"'!$M$6"))="[drop down]",INDIRECT(CONCATENATE("'",P$63,"'!$M$6"))="")),"ERROR","OK") -> OK | Q66: =IF(AND(INDIRECT(CONCATENATE("'",Q$63,"'!$K$17"))-INDIRECT(CONCATENATE("'",Q$63,"'!$K$40"))+INDIRECT(CONCATENATE("'",Q$63,"'!$K$70"))-INDIRECT(CONCATENATE("'",Q$63,"'!$K$83"))<>0,OR(INDIRECT(CONCATENATE("'",Q$63,"'!$M$6"))="[drop down]",INDIRECT(CONCATENATE("'",Q$63,"'!$M$6"))="")),"ERROR","OK") -> OK | R66: =IF(AND(INDIRECT(CONCATENATE("'",R$63,"'!$K$17"))-INDIRECT(CONCATENATE("'",R$63,"'!$K$40"))+INDIRECT(CONCATENATE("'",R$63,"'!$K$70"))-INDIRECT(CONCATENATE("'",R$63,"'!$K$83"))<>0,OR(INDIRECT(CONCATENATE("'",R$63,"'!$M$6"))="[drop down]",INDIRECT(CONCATENATE("'",R$63,"'!$M$6"))="")),"ERROR","OK") -> OK | S66: =IF(AND(INDIRECT(CONCATENATE("'",S$63,"'!$K$17"))-INDIRECT(CONCATENATE("'",S$63,"'!$K$40"))+INDIRECT(CONCATENATE("'",S$63,"'!$K$70"))-INDIRECT(CONCATENATE("'",S$63,"'!$K$83"))<>0,OR(INDIRECT(CONCATENATE("'",S$63,"'!$M$6"))="[drop down]",INDIRECT(CONCATENATE("'",S$63,"'!$M$6"))="")),"ERROR","OK") -> OK | T66: OK | U66: OK | V66: OK | W66: OK | X66: OK | Y66: OK | Z66: OK
D67: 33 | E67: Mapping of solution against national efficiency programmes completed | F67: =IF(COUNTIF($O67:$Z67,"ERROR")=0,"OK","ERROR") -> OK | H67: Check inputs to rows 104 - 117 on Solution worksheets | J67: Solution 1 - 12 | K67: E104 - E117 | O67: =IF(AND((INDIRECT(CONCATENATE("'",O$63,"'!$K$17"))-INDIRECT(CONCATENATE("'",O$63,"'!$K$40"))+INDIRECT(CONCATENATE("'",O$63,"'!$K$70"))-INDIRECT(CONCATENATE("'",O$63,"'!$K$83"))<>0), INDIRECT(CONCATENATE("'",O$63,"'!$E$118"))="ERROR"),"ERROR","OK") -> OK | P67: =IF(AND((INDIRECT(CONCATENATE("'",P$63,"'!$K$17"))-INDIRECT(CONCATENATE("'",P$63,"'!$K$40"))+INDIRECT(CONCATENATE("'",P$63,"'!$K$70"))-INDIRECT(CONCATENATE("'",P$63,"'!$K$83"))<>0), INDIRECT(CONCATENATE("'",P$63,"'!$E$118"))="ERROR"),"ERROR","OK") -> OK | Q67: OK | R67: OK | S67: OK | T67: OK | U67: OK | V67: OK | W67: OK | X67: OK | Y67: OK | Z67: OK
D68: 34 | E68: Where solutions have an impact on CCG NHS expenditure, there is an impact to provider income (either within the footprint or external to the footprint) | F68: =IF(COUNTIF($O$68:$Z$68,"FLAG")=0,"OK","FLAG") -> OK | H68: Review solutions and check impacts to commissioner I&E position have been appropriately reflected | J68: Solution 1 - 12 | K68: Rows 21,23,25, 27,42,63&85 | O68: =IF(AND(SUM(INDIRECT(CONCATENATE("'",O$63,"'!$G$21:$K$21")),INDIRECT(CONCATENATE("'",O$63,"'!$G$23:$K$23")),INDIRECT(CONCATENATE("'",O$63,"'!$G$25:$K$25")),INDIRECT(CONCATENATE("'",O$63,"'!$G$27:$K$27")))-SUM(INDIRECT(CONCATENATE("'",O$63,"'!$G$42:$K$42")))<>0,SUM(INDIRECT(CONCATENATE("'",O$63,"'!$G$63:$K$63")))-SUM(INDIRECT(CONCATENATE("'",O$63,"'!$G$85:$K$85")))=0),"FLAG","OK") -> OK | P68: =IF(AND(SUM(INDIRECT(CONCATENATE("'",P$63,"'!$G$21:$K$21")),INDIRECT(CONCATENATE("'",P$63,"'!$G$23:$K$23")),INDIRECT(CONCATENATE("'",P$63,"'!$G$25:$K$25")),INDIRECT(CONCATENATE("'",P$63,"'!$G$27:$K$27")))-SUM(INDIRECT(CONCATENATE("'",P$63,"'!$G$42:$K$42")))<>0,SUM(INDIRECT(CONCATENATE("'",P$63,"'!$G$63:$K$63")))-SUM(INDIRECT(CONCATENATE("'",P$63,"'!$G$85:$K$85")))=0),"FLAG","OK") -> OK | Q68: OK | R68: OK | S68: OK | T68: OK | U68: OK | V68: OK | W68: OK | X68: OK | Y68: OK | Z68: OK
D69: 35 | E69: Where solutions have an impact on substantive and bank expenditure, the WTE impact of solutions has been completed on the Solution worksheets | F69: =IF(COUNTIF($O$69:$Z$69,"FLAG")=0,"OK","FLAG") -> OK | H69: Check inputs to Solution worksheets | J69: Solution 1 - 12 | K69: Rows 73 & 89 | O69: =IF(OR(AND(SUM(INDIRECT(CONCATENATE("'",O$63,"'!$F$73:$K$73")))<>0,SUM(INDIRECT(CONCATENATE("'",O$63,"'!$F$89:$K$89")))=0),(AND(SUM(INDIRECT(CONCATENATE("'",O$63,"'!$F$73:$K$73")))=0,SUM(INDIRECT(CONCATENATE("'",O$63,"'!$F$89:$K$89")))<>0))),"FLAG","OK") -> OK | P69: =IF(OR(AND(SUM(INDIRECT(CONCATENATE("'",P$63,"'!$F$73:$K$73")))<>0,SUM(INDIRECT(CONCATENATE("'",P$63,"'!$F$89:$K$89")))=0),(AND(SUM(INDIRECT(CONCATENATE("'",P$63,"'!$F$73:$K$73")))=0,SUM(INDIRECT(CONCATENATE("'",P$63,"'!$F$89:$K$89")))<>0))),"FLAG","OK") -> OK | Q69: OK | R69: OK | S69: OK | T69: OK | U69: OK | V69: OK | W69: OK | X69: OK | Y69: OK | Z69: OK
D70: 36 | E70: Where solutions have an impact on CCG acute expenditure, the impact on CCG commissioned acute activity has been completed | F70: =IF(COUNTIF($O$70:$Z$70,"FLAG")=0,"OK","FLAG") -> OK | H70: Check inputs to Solution worksheets | J70: Solution 1 - 12 | K70: Rows 21-22, 48-51 & 54 | O70: =IF(OR(AND(SUM(INDIRECT(CONCATENATE("'",O$63,"'!$F$21:$K$22")))<>0,SUM(INDIRECT(CONCATENATE("'",O$63,"'!$F$48:$K$51")))=0,SUM(INDIRECT(CONCATENATE("'",O$63,"'!$F$54:$K$54")))=0),(AND(SUM(INDIRECT(CONCATENATE("'",O$63,"'!$F$21:$K$22")))=0,SUM(INDIRECT(CONCATENATE("'",O$63,"'!$F$48:$K$51")))<>0,SUM(INDIRECT(CONCATENATE("'",O$63,"'!$F$54:$K$54")))<>0))),"FLAG","OK") -> OK | P70: =IF(OR(AND(SUM(INDIRECT(CONCATENATE("'",P$63,"'!$F$21:$K$22")))<>0,SUM(INDIRECT(CONCATENATE("'",P$63,"'!$F$48:$K$51")))=0,SUM(INDIRECT(CONCATENATE("'",P$63,"'!$F$54:$K$54")))=0),(AND(SUM(INDIRECT(CONCATENATE("'",P$63,"'!$F$21:$K$22")))=0,SUM(INDIRECT(CONCATENATE("'",P$63,"'!$F$48:$K$51")))<>0,SUM(INDIRECT(CONCATENATE("'",P$63,"'!$F$54:$K$54")))<>0))),"FLAG","OK") -> OK | Q70: OK | R70: OK | S70: OK | T70: OK | U70: OK | V70: OK | W70: OK | X70: OK | Y70: OK | Z70: OK
D71: 37 | E71: Memo: Adjustment For CCG Expenditure To Outside Footprint has been completed | F71: =IF(COUNTIF($O$71:$Z$71,"FLAG")=0,"OK","FLAG") -> OK | H71: Check inputs to row 42 on Solution worksheets | J71: Solution 1 - 12 | K71: Row 42 | O71: =IF(AND(((INDIRECT(CONCATENATE("'",O$63,"'!$K$17")))-(INDIRECT(CONCATENATE("'",O$63,"'!$K$40")))<>0), SUM(INDIRECT(CONCATENATE("'",O$63,"'!$F$42:$K$42")))=0),"FLAG","OK") -> OK | P71: =IF(AND(((INDIRECT(CONCATENATE("'",P$63,"'!$K$17")))-(INDIRECT(CONCATENATE("'",P$63,"'!$K$40")))<>0), SUM(INDIRECT(CONCATENATE("'",P$63,"'!$F$42:$K$42")))=0),"FLAG","OK") -> OK | Q71: OK | R71: OK | S71: OK | T71: OK | U71: OK | V71: OK | W71: OK | X71: OK | Y71: OK | Z71: OK
D72: 38 | E72: Memo: Adjustment For Provider Income From Outside Footprint has been completed | F72: =IF(COUNTIF($O$72:$Z$72,"FLAG")=0,"OK","FLAG") -> OK | H72: Check inputs to row 85 on Solution worksheets | J72: Solution 1 - 12 | K72: Row 85 | O72: =IF(AND((INDIRECT(CONCATENATE("'",O$63,"'!$K$70"))-INDIRECT(CONCATENATE("'",O$63,"'!$K$83"))<>0), SUM(INDIRECT(CONCATENATE("'",O$63,"'!$F$85:$K$85")))=0),"FLAG","OK") -> OK | P72: =IF(AND((INDIRECT(CONCATENATE("'",P$63,"'!$K$70"))-INDIRECT(CONCATENATE("'",P$63,"'!$K$83"))<>0), SUM(INDIRECT(CONCATENATE("'",P$63,"'!$F$85:$K$85")))=0),"FLAG","OK") -> OK | Q72: OK | R72: OK | S72: OK | T72: OK | U72: OK | V72: OK | W72: OK | X72: OK | Y72: OK | Z72: OK
D73: 39 | E73: Memo: Estimated Impact Of Solution On Commissioner Capital Expenditure and Memo: Estimated Impact Of Solution On Provider Capital Expenditure have been completed | F73: =IF(COUNTIF($O$73:$Z$73,"FLAG")=0,"OK","FLAG") -> OK | H73: Check inputs to rows 44 and 87 on Solution worksheets | J73: Solution 1 - 12 | K73: Rows 44 & 87 | O73: =IF(AND((INDIRECT(CONCATENATE("'",O$63,"'!$K$17"))-INDIRECT(CONCATENATE("'",O$63,"'!$K$40"))+INDIRECT(CONCATENATE("'",O$63,"'!$K$70"))-INDIRECT(CONCATENATE("'",O$63,"'!$K$83"))<>0), SUM(INDIRECT(CONCATENATE("'",O$63,"'!$F$44:$K$44")),INDIRECT(CONCATENATE("'",O$63,"'!$F$87:$K$87")))=0),"FLAG","OK") -> OK | P73: =IF(AND((INDIRECT(CONCATENATE("'",P$63,"'!$K$17"))-INDIRECT(CONCATENATE("'",P$63,"'!$K$40"))+INDIRECT(CONCATENATE("'",P$63,"'!$K$70"))-INDIRECT(CONCATENATE("'",P$63,"'!$K$83"))<>0), SUM(INDIRECT(CONCATENATE("'",P$63,"'!$F$44:$K$44")),INDIRECT(CONCATENATE("'",P$63,"'!$F$87:$K$87")))=0),"FLAG","OK") -> OK | Q73: OK | R73: OK | S73: OK | T73: OK | U73: OK | V73: OK | W73: OK | X73: OK | Y73: OK | Z73: OK
D74: 40 | E74: Memo: Estimated Revenue Expenditure Required To Deliver Solution has been completed | F74: =IF(COUNTIF($O$74:$Z$74,"FLAG")=0,"OK","FLAG") -> OK | H74: Check inputs to row 99 on Solution worksheets | J74: Solution 1 - 12 | K74: Row 99 | O74: =IF(AND((INDIRECT(CONCATENATE("'",O$63,"'!$K$17"))-INDIRECT(CONCATENATE("'",O$63,"'!$K$40"))+INDIRECT(CONCATENATE("'",O$63,"'!$K$70"))-INDIRECT(CONCATENATE("'",O$63,"'!$K$83"))<>0), SUM(INDIRECT(CONCATENATE("'",O$63,"'!$F$99:$K$99")))=0),"FLAG","OK") -> OK | P74: =IF(AND((INDIRECT(CONCATENATE("'",P$63,"'!$K$17"))-INDIRECT(CONCATENATE("'",P$63,"'!$K$40"))+INDIRECT(CONCATENATE("'",P$63,"'!$K$70"))-INDIRECT(CONCATENATE("'",P$63,"'!$K$83"))<>0), SUM(INDIRECT(CONCATENATE("'",P$63,"'!$F$99:$K$99")))=0),"FLAG","OK") -> OK | Q74: OK | R74: OK | S74: OK | T74: OK | U74: OK | V74: OK | W74: OK | X74: OK | Y74: OK | Z74: OK
D75: 41 | E75: Memo: Estimated Capital Expenditure Required To Deliver Solution has been completed | F75: =IF(COUNTIF($O$75:$Z$75,"FLAG")=0,"OK","FLAG") -> OK | H75: Check inputs to row 101 on Solution worksheets | J75: Solution 1 - 12 | K75: Row 101 | O75: =IF(AND((INDIRECT(CONCATENATE("'",O$63,"'!$K$17"))-INDIRECT(CONCATENATE("'",O$63,"'!$K$40"))+INDIRECT(CONCATENATE("'",O$63,"'!$K$70"))-INDIRECT(CONCATENATE("'",O$63,"'!$K$83"))<>0), SUM(INDIRECT(CONCATENATE("'",O$63,"'!$F$101:$K$101")))=0),"FLAG","OK") -> OK | P75: =IF(AND((INDIRECT(CONCATENATE("'",P$63,"'!$K$17"))-INDIRECT(CONCATENATE("'",P$63,"'!$K$40"))+INDIRECT(CONCATENATE("'",P$63,"'!$K$70"))-INDIRECT(CONCATENATE("'",P$63,"'!$K$83"))<>0), SUM(INDIRECT(CONCATENATE("'",P$63,"'!$F$101:$K$101")))=0),"FLAG","OK") -> OK | Q75: OK | R75: OK | S75: OK | T75: OK | U75: OK | V75: OK | W75: OK | X75: OK | Y75: OK | Z75: OK
D76: 42 | E76: No efficiencies have been included within solutions sheets for 2016/17 | F76: =IF(COUNTIF($O$76:$Z$76,"ERROR")=0,"OK","ERROR") -> OK | H76: There should be no inputs in column G of the solutions tabs | J76: Solution 1 - 12 | K76: Column G | O76: =(INDIRECT(CONCATENATE("'",O$63,"'!$G$120"))) -> OK | P76: =(INDIRECT(CONCATENATE("'",P$63,"'!$G$120"))) -> OK | Q76: OK | R76: OK | S76: OK | T76: OK | U76: OK | V76: OK | W76: OK | X76: OK | Y76: OK | Z76: OK
E78: INVESTMENT IN NATIONAL PRIORITIES
D79: 43 | E79: Investment Requirements worksheet has been completed | F79: =IF(AND(SUM('Investment Requirements'!F13:K13,'Investment Requirements'!F23:K23)<>0, SUM('Investment Requirements'!F14:K14,'Investment Requirements'!F24:K24)<>0, SUM('Investment Requirements'!F15:K15,'Investment Requirements'!F25:K25)<>0, SUM('Investment Requirements'!F16:K16,'Investment Requirements'!F26:K26)<>0, SUM('Investment Requirements'!F17:K17,'Investment Requirements'!F27:K27)<>0, SUM('Investment Requirements'!F18:K18,'Investment Requirements'!F28:K28)<>0, SUM('Investment Requirements'!F19:K19,'Investment Requirements'!F29:K29)<>0, SUM('Investment Requirements'!F20:K20,'Investment Requirements'!F30:K30)<>0),"OK","FLAG") -> OK | H79: Check inputs to the Investment Requirements worksheet | J79: Investment Requirements | K79: Rows 13 - 30
E81: BETTER CARE FUND (BCF) & OTHER
D82: 44 | E82: BCF & Other worksheet has been completed | F82: =IF(COUNTIF('Data Validation'!$AS$17:$AS$18, "ERROR")>0,"FLAG","OK") -> OK | H82: Check inputs to the BCF & Other worksheet | J82: BCF & Other | K82: Rows 19 - 30
D83: 45 | E83: BCF income and expenditure not included elsewhere in the template | F83: =IF(OR('BCF & Other'!$N$23="ERROR",'BCF & Other'!$N$30="ERROR"),"FLAG","OK") -> OK | H83: Check rows 23 and 30 on the BCF & Other worksheet | J83: BCF & Other | K83: Rows 23 & 30
D88: CCG Code | E88: CCG Name (STP Templates) | K88: 2020/21 Indicative STF Allocations | O88: STP | P88: STP Name | Q88: 2016/17 STP place-based allocation | R88: 2020/21 STP place-based allocation | S88: 2020/21 indicative STP allocation including S&T funds | T88: 2020/21 indicative STF
D89: 00C | E89: NHS Darlington CCG | O89: STP1 | P89: Northumberland, Tyne and Wear | Q89: 2705 | R89: 2965 | S89: 3073 | T89: 108
D90: 00D | E90: NHS Durham Dales, Easington and Sedgefield CCG | O90: STP2 | P90: West, North and East Cumbria | Q90: 599 | R90: 663 | S90: 688 | T90: 25
D91: 00J | E91: NHS North Durham CCG | O91: STP3 | P91: Durham, Darlington and Tees, Hambleton, Richmondshire and Whitby | Q91: 2450 | R91: 2717 | S91: 2817 | T91: 100
D92: 00K | E92: NHS Hartlepool and Stockton-on-Tees CCG | O92: STP4 | P92: Lancashire and South Cumbria | Q92: 2974 | R92: 3310 | S92: 3433 | T92: 123
D93: 00L | E93: NHS Northumberland CCG | O93: STP5 | P93: West Yorkshire | Q93: 4218 | R93: 4703 | S93: 4875 | T93: 172
D94: 00M | E94: NHS South Tees CCG | O94: STP6 | P94: Coast, Humber and Vale | Q94: 2241 | R94: 2497 | S94: 2589 | T94: 92
D95: 00N | E95: NHS South Tyneside CCG | O95: STP7 | P95: Greater Manchester | Q95: 5153 | R95: 5791 | S95: 5961 | T95: 170
D96: 00P | E96: NHS Sunderland CCG | O96: STP8 | P96: Cheshire and Merseyside | Q96: 4628 | R96: 5136 | S96: 5326 | T96: 190
D97: 00Q | E97: NHS Blackburn with Darwen CCG | O97: STP9 | P97: South Yorkshire and Bassetlaw | Q97: 2661 | R97: 2940 | S97: 3045 | T97: 105
D98: 00R | E98: NHS Blackpool CCG | O98: STP10 | P98: Staffordshire | Q98: 1816 | R98: 2029 | S98: 2105 | T98: 76
D99: 00T | E99: NHS Bolton CCG | O99: STP11 | P99: Shropshire and Telford and Wrekin | Q99: 765 | R99: 851 | S99: 884 | T99: 33
D100: 00V | E100: NHS Bury CCG | O100: STP12 | P100: Derbyshire | Q100: 1675 | R100: 1857 | S100: 1926 | T100: 69
D101: 00W | E101: NHS Central Manchester CCG | O101: STP13 | P101: Lincolnshire | Q101: 1242 | R101: 1392 | S101: 1444 | T101: 52
D102: 00X | E102: NHS Chorley and South Ribble CCG | O102: STP14 | P102: Nottinghamshire | Q102: 1665 | R102: 1865 | S102: 1935 | T102: 70
D103: 00Y | E103: NHS Oldham CCG | O103: STP15 | P103: Leicester, Leicestershire and Rutland | Q103: 1567 | R103: 1753 | S103: 1819 | T103: 66
D104: 01A | E104: NHS East Lancashire CCG | O104: STP16 | P104: The Black Country | Q104: 2360 | R104: 2642 | S104: 2741 | T104: 99
D105: 01C | E105: NHS Eastern Cheshire CCG | O105: STP17 | P105: Birmingham and Solihull | Q105: 2073 | R105: 2336 | S105: 2423 | T105: 87
D106: 01D | E106: NHS Heywood, Middleton & Rochdale CCG | O106: STP18 | P106: Coventry and Warwickshire | Q106: 1480 | R106: 1671 | S106: 1734 | T106: 63
D107: 01E | E107: NHS Greater Preston CCG | O107: STP19 | P107: Herefordshire and Worcestershire | Q107: 1177 | R107: 1311 | S107: 1361 | T107: 50
D108: 01F | E108: NHS Halton CCG | O108: STP20 | P108: Northamptonshire | Q108: 1103 | R108: 1259 | S108: 1307 | T108: 48
D109: 01G | E109: NHS Salford CCG | O109: STP21 | P109: Cambridgeshire and Peterborough | Q109: 1291 | R109: 1469 | S109: 1524 | T109: 55
D110: 01H | E110: NHS Cumbria CCG | O110: STP22 | P110: Norfolk and Waveney | Q110: 1649 | R110: 1847 | S110: 1917 | T110: 70
D111: 01J | E111: NHS Knowsley CCG | O111: STP23 | P111: Suffolk and North East Essex | Q111: 1542 | R111: 1748 | S111: 1814 | T111: 66
D112: 01K | E112: NHS Lancashire North CCG | O112: STP24 | P112: Milton Keynes, Bedfordshire and Luton | Q112: 1432 | R112: 1673 | S112: 1735 | T112: 62
D113: 01M | E113: NHS North Manchester CCG | O113: STP25 | P113: Hertfordshire and West Essex | Q113: 2310 | R113: 2666 | S113: 2766 | T113: 100
D114: 01N | E114: NHS South Manchester CCG | O114: STP26 | P114: Mid and South Essex | Q114: 1826 | R114: 2068 | S114: 2146 | T114: 78
D115: 01R | E115: NHS South Cheshire CCG | O115: STP27 | P115: North West London | Q115: 3643 | R115: 4093 | S115: 4241 | T115: 148
D116: 01T | E116: NHS South Sefton CCG | O116: STP28 | P116: North Central London | Q116: 2568 | R116: 2935 | S116: 3040 | T116: 105
D117: 01V | E117: NHS Southport and Formby CCG | O117: STP29 | P117: North East London | Q117: 3282 | R117: 3801 | S117: 3937 | T117: 136
D118: 01W | E118: NHS Stockport CCG | O118: STP30 | P118: South East London | Q118: 3197 | R118: 3658 | S118: 3792 | T118: 134
D119: 01X | E119: NHS St Helens CCG | O119: STP31 | P119: South West London | Q119: 2418 | R119: 2760 | S119: 2861 | T119: 101
D120: 01Y | E120: NHS Tameside and Glossop CCG | O120: STP32 | P120: Kent & Medway | Q120: 2897 | R120: 3287 | S120: 3409 | T120: 122
D121: 02A | E121: NHS Trafford CCG | O121: STP33 | P121: Sussex and East Surrey | Q121: 3093 | R121: 3486 | S121: 3616 | T121: 130
D122: 02D | E122: NHS Vale Royal CCG | O122: STP34 | P122: Frimley Health | Q122: 1122 | R122: 1273 | S122: 1320 | T122: 47
D123: 02E | E123: NHS Warrington CCG | O123: STP35 | P123: Surrey Heartlands | Q123: 1322 | R123: 1497 | S123: 1553 | T123: 56
D124: 02F | E124: NHS West Cheshire CCG | O124: STP36 | P124: Cornwall and the Isles of Scilly | Q124: 946 | R124: 1054 | S124: 1093 | T124: 39
D125: 02G | E125: NHS West Lancashire CCG | O125: STP37 | P125: Devon | Q125: 1974 | R125: 2196 | S125: 2277 | T125: 81
D126: 02H | E126: NHS Wigan Borough CCG | O126: STP38 | P126: Somerset | Q126: 896 | R126: 999 | S126: 1036 | T126: 37
D127: 02M | E127: NHS Fylde & Wyre CCG | O127: STP39 | P127: Bristol, North Somerset, South Gloucestershire | Q127: 1491 | R127: 1681 | S127: 1742 | T127: 61
D128: 02N | E128: NHS Airedale, Wharfedale and Craven CCG | O128: STP40 | P128: Bath, Swindon and Wiltshire | Q128: 1356 | R128: 1532 | S128: 1590 | T128: 58
D129: 02P | E129: NHS Barnsley CCG | O129: STP41 | P129: Dorset | Q129: 1291 | R129: 1440 | S129: 1493 | T129: 53
D130: 02Q | E130: NHS Bassetlaw CCG | O130: STP42 | P130: Hampshire and the Isle of Wight | Q130: 2828 | R130: 3161 | S130: 3280 | T130: 119
D131: 02R | E131: NHS Bradford Districts CCG | O131: STP43 | P131: Gloucestershire | Q131: 951 | R131: 1062 | S131: 1102 | T131: 40
D132: 02T | E132: NHS Calderdale CCG | O132: STP44 | P132: Berkshire, Oxfordshire and Buckinghamshire | Q132: 2518 | R132: 2831 | S132: 2937 | T132: 106
D133: 02V | E133: NHS Leeds North CCG
D134: 02W | E134: NHS Bradford City CCG
D135: 02X | E135: NHS Doncaster CCG
D136: 02Y | E136: NHS East Riding Of Yorkshire CCG | K136: 2015/16 B/f by CCG | O136: CCG Code | P136: CCG Name | Q136: 2015/16 B/F (Incl. 2015/16 Lodgements) | R136: 2015/16 In-Year Movement | S136: 2015/16 C/F (Excl. 2016/17 Lodgements) | T136: Primary Care Co-Commissioning?
D137: 03A | E137: NHS Greater Huddersfield CCG | O137: 02N | P137: NHS Airedale, Wharfedale and Craven CCG | Q137: 2922 | R137: -903 | S137: 2019 | T137: NO
D138: 03C | E138: NHS Leeds West CCG | O138: 09C | P138: NHS Ashford CCG | Q138: 892 | R138: -821 | S138: 71 | T138: NO
D139: 03D | E139: NHS Hambleton, Richmondshire and Whitby CCG | O139: 10Y | P139: NHS Aylesbury Vale CCG | Q139: 2581.001 | R139: -300.001 | S139: 2281 | T139: NO
D140: 03E | E140: NHS Harrogate and Rural District CCG | O140: 07L | P140: NHS Barking & Dagenham CCG | Q140: 5454 | R140: -1787 | S140: 3667 | T140: YES
D141: 03F | E141: NHS Hull CCG | O141: 07M | P141: NHS Barnet CCG | Q141: -11017 | R141: 9455 | S141: -1562 | T141: NO
D142: 03G | E142: NHS Leeds South and East CCG | O142: 02P | P142: NHS Barnsley CCG | Q142: 10482 | R142: -2202 | S142: 8280 | T142: YES
D143: 03H | E143: NHS North East Lincolnshire CCG | O143: 99E | P143: NHS Basildon and Brentwood CCG | Q143: -3652 | R143: -6524 | S143: -10176 | T143: NO
D144: 03J | E144: NHS North Kirklees CCG | O144: 02Q | P144: NHS Bassetlaw CCG | Q144: 6109 | R144: -1753 | S144: 4356 | T144: NO
D145: 03K | E145: NHS North Lincolnshire CCG | O145: 11E | P145: NHS Bath and North East Somerset CCG | Q145: 3688 | R145: -1441 | S145: 2247 | T145: NO
D146: 03L | E146: NHS Rotherham CCG | O146: 06F | P146: NHS Bedfordshire CCG | Q146: -43229 | R146: -19920 | S146: -63149 | T146: NO
D147: 03M | E147: NHS Scarborough and Ryedale CCG | O147: 07N | P147: NHS Bexley CCG | Q147: 147.053 | R147: 21.947 | S147: 169 | T147: NO
D148: 03N | E148: NHS Sheffield CCG | O148: 04W | P148: NHS Birmingham CrossCity CCG | Q148: 16481.157 | R148: 3496.843 | S148: 19978 | T148: YES
D149: 03Q | E149: NHS Vale Of York CCG | O149: 04X | P149: NHS Birmingham South and Central CCG | Q149: 3138 | R149: 1767 | S149: 4905 | T149: YES
D150: 03R | E150: NHS Wakefield CCG | O150: 00Q | P150: NHS Blackburn with Darwen CCG | Q150: 2312 | R150: -723 | S150: 1589 | T150: YES
D151: 03T | E151: NHS Lincolnshire East CCG | O151: 00R | P151: NHS Blackpool CCG | Q151: 2327 | R151: -1764 | S151: 563 | T151: YES
D152: 03V | E152: NHS Corby CCG | O152: 00T | P152: NHS Bolton CCG | Q152: 4363 | R152: -513 | S152: 3850 | T152: NO
D153: 03W | E153: NHS East Leicestershire and Rutland CCG | O153: 10G | P153: NHS Bracknell and Ascot CCG | Q153: 5733 | R153: -2432 | S153: 3301 | T153: NO
D154: 03X | E154: NHS Erewash CCG | O154: 02W | P154: NHS Bradford City CCG | Q154: 3629.00042 | R154: -168.00042 | S154: 3461 | T154: YES
D155: 03Y | E155: NHS Hardwick CCG | O155: 02R | P155: NHS Bradford Districts CCG | Q155: 6384.00002 | R155: 912.99998 | S155: 7297 | T155: YES
D156: 04C | E156: NHS Leicester City CCG | O156: 07P | P156: NHS Brent CCG | Q156: 32571 | R156: -10684 | S156: 21887 | T156: NO
D157: 04D | E157: NHS Lincolnshire West CCG | O157: 09D | P157: NHS Brighton & Hove CCG | Q157: 15006 | R157: -2320 | S157: 12686 | T157: NO
D158: 04E | E158: NHS Mansfield & Ashfield CCG | O158: 11H | P158: NHS Bristol CCG | Q158: 6450 | R158: -713 | S158: 5737 | T158: NO
D159: 04F | E159: NHS Milton Keynes CCG | O159: 07Q | P159: NHS Bromley CCG | Q159: 5868 | R159: 44 | S159: 5912 | T159: NO
D160: 04G | E160: NHS Nene CCG | O160: 00V | P160: NHS Bury CCG | Q160: 278 | R160: 2271 | S160: 2549 | T160: NO
D161: 04H | E161: NHS Newark & Sherwood CCG | O161: 02T | P161: NHS Calderdale CCG | Q161: 7567 | R161: -134 | S161: 7433 | T161: YES
D162: 04J | E162: NHS North Derbyshire CCG | O162: 06H | P162: NHS Cambridgeshire and Peterborough CCG | Q162: 3058 | R162: -11500 | S162: -8442 | T162: NO
D163: 04K | E163: NHS Nottingham City CCG | O163: 07R | P163: NHS Camden CCG | Q163: 23346.90591 | R163: -12280.90591 | S163: 11066 | T163: NO
D164: 04L | E164: NHS Nottingham North & East CCG | O164: 04Y | P164: NHS Cannock Chase CCG | Q164: -18126 | R164: -6362 | S164: -24488 | T164: NO
D165: 04M | E165: NHS Nottingham West CCG | O165: 09E | P165: NHS Canterbury and Coastal CCG | Q165: 3306.999 | R165: -596.999 | S165: 2710 | T165: NO
D166: 04N | E166: NHS Rushcliffe CCG | O166: 99F | P166: NHS Castle Point and Rochford CCG | Q166: 983 | R166: 1238 | S166: 2221 | T166: YES
D167: 04Q | E167: NHS South West Lincolnshire CCG | O167: 09A | P167: NHS Central London (Westminster) CCG | Q167: 13448 | R167: -4808 | S167: 8640 | T167: NO
D168: 04R | E168: NHS Southern Derbyshire CCG | O168: 00W | P168: NHS Central Manchester CCG | Q168: 3888 | R168: -533 | S168: 3355 | T168: NO
D169: 04V | E169: NHS West Leicestershire CCG | O169: 10H | P169: NHS Chiltern CCG | Q169: 4016 | R169: -454 | S169: 3562 | T169: NO
D170: 04W | E170: NHS Birmingham Crosscity CCG | O170: 00X | P170: NHS Chorley and South Ribble CCG | Q170: 2814 | R170: -435 | S170: 2379 | T170: YES
D171: 04X | E171: NHS Birmingham South and Central CCG | O171: 07T | P171: NHS City and Hackney CCG | Q171: 41513 | R171: -3324 | S171: 38189 | T171: NO
D172: 04Y | E172: NHS Cannock Chase CCG | O172: 09G | P172: NHS Coastal West Sussex CCG | Q172: 1003 | R172: 2774 | S172: 3777 | T172: NO
D173: 05A | E173: NHS Coventry and Rugby CCG | O173: 03V | P173: NHS Corby CCG | Q173: 843 | R173: 69 | S173: 912 | T173: NO
D174: 05C | E174: NHS Dudley CCG | O174: 05A | P174: NHS Coventry and Rugby CCG | Q174: 6703.37 | R174: -877.37 | S174: 5826 | T174: NO
D175: 05D | E175: NHS East Staffordshire CCG | O175: 09H | P175: NHS Crawley CCG | Q175: 1149 | R175: 564 | S175: 1713 | T175: NO | V175: STP2 | W175: STP4
D176: 05F | E176: NHS Herefordshire CCG | O176: 07V | P176: NHS Croydon CCG | Q176: -32938 | R176: -10779 | S176: -43717 | T176: NO | V176: 0.61 | W176: 0.39
D177: 05G | E177: NHS North Staffordshire CCG | O177: 01H | P177: NHS Cumbria CCG | Q177: 5044 | R177: -4990 | S177: 54 | T177: NO | V177: =$S$177*V176 -> 32.94 | W177: =$S$177*W176 -> 21.06
D178: 05H | E178: NHS Warwickshire North CCG | O178: 00C | P178: NHS Darlington CCG | Q178: 1766 | R178: 2 | S178: 1768 | T178: NO
D179: 05J | E179: NHS Redditch and Bromsgrove CCG | O179: 09J | P179: NHS Dartford, Gravesham and Swanley CCG | Q179: 3877 | R179: -3872 | S179: 5 | T179: NO
D180: 05L | E180: NHS Sandwell and West Birmingham CCG | O180: 02X | P180: NHS Doncaster CCG | Q180: 7625.001 | R180: 2096.999 | S180: 9722 | T180: NO
D181: 05N | E181: NHS Shropshire CCG | O181: 11J | P181: NHS Dorset CCG | Q181: 24833 | R181: -7135 | S181: 17698 | T181: NO
D182: 05P | E182: NHS Solihull CCG | O182: 05C | P182: NHS Dudley CCG | Q182: 6339.481 | R182: 38.519 | S182: 6378 | T182: YES
D183: 05Q | E183: NHS South East Staffs and Seisdon and Peninsular CCG | O183: 00D | P183: NHS Durham Dales, Easington and Sedgefield CCG | Q183: 8975 | R183: -1002 | S183: 7973 | T183: YES
D184: 05R | E184: NHS South Warwickshire CCG | O184: 07W | P184: NHS Ealing CCG | Q184: 10521.516 | R184: -2932.516 | S184: 7589 | T184: NO
D185: 05T | E185: NHS South Worcestershire CCG | O185: 06K | P185: NHS East and North Hertfordshire CCG | Q185: 7739 | R185: 4 | S185: 7743 | T185: NO
D186: 05V | E186: NHS Stafford and Surrounds CCG | O186: 01A | P186: NHS EAST LANCASHIRE CCG | Q186: 12687 | R186: 5977 | S186: 18664 | T186: YES
D187: 05W | E187: NHS Stoke on Trent CCG | O187: 03W | P187: NHS East Leicestershire and Rutland CCG | Q187: 3313.00007 | R187: 265.99993 | S187: 3579 | T187: YES
D188: 05X | E188: NHS Telford & Wrekin CCG | O188: 02Y | P188: NHS East Riding of Yorkshire CCG | Q188: 4531 | R188: -736 | S188: 3795 | T188: NO
D189: 05Y | E189: NHS Walsall CCG | O189: 05D | P189: NHS East Staffordshire CCG | Q189: -5608 | R189: -1441 | S189: -7049 | T189: NO
D190: 06A | E190: NHS Wolverhampton CCG | O190: 09L | P190: NHS East Surrey CCG | Q190: -15418 | R190: -9312 | S190: -24730 | T190: NO
D191: 06D | E191: NHS Wyre Forest CCG | O191: 09F | P191: NHS Eastbourne, Hailsham and Seaford CCG | Q191: 3024 | R191: 13 | S191: 3037 | T191: YES
D192: 06F | E192: NHS Bedfordshire CCG | O192: 01C | P192: NHS Eastern Cheshire CCG | Q192: 188.571 | R192: 1228.429 | S192: 1417 | T192: NO
D193: 06H | E193: NHS Cambridgeshire and Peterborough CCG | O193: 07X | P193: NHS ENFIELD CCG | Q193: -18875.979 | R193: -14523.021 | S193: -33399 | T193: NO
D194: 06K | E194: NHS East and North Hertfordshire CCG | O194: 03X | P194: NHS Erewash CCG | Q194: 1759 | R194: -223 | S194: 1536 | T194: YES
D195: 06L | E195: NHS Ipswich and East Suffolk CCG | O195: 10K | P195: NHS Fareham and Gosport CCG | Q195: 88.389 | R195: -4100.389 | S195: -4012 | T195: YES
D196: 06M | E196: NHS Great Yarmouth & Waveney CCG | O196: 02M | P196: NHS Fylde & Wyre CCG | Q196: 4385.168 | R196: -314.168 | S196: 4071 | T196: YES
D197: 06N | E197: NHS Herts Valleys CCG | O197: 13T | P197: NHS Newcastle Gateshead CCG | Q197: 10482 | R197: -207 | S197: 10275 | T197: NO
D198: 06P | E198: NHS Luton CCG | O198: 11M | P198: NHS Gloucestershire CCG | Q198: 8496 | R198: 960 | S198: 9456 | T198: YES
D199: 06Q | E199: NHS Mid Essex CCG | O199: 06M | P199: NHS Great Yarmouth & Waveney CCG | Q199: 3069.475 | R199: -5514.475 | S199: -2445 | T199: NO
D200: 06T | E200: NHS North East Essex CCG | O200: 03A | P200: NHS Greater Huddersfield CCG | Q200: 4293 | R200: -1355 | S200: 2938 | T200: NO
D201: 06V | E201: NHS North Norfolk CCG | O201: 01E | P201: NHS Greater Preston CCG | Q201: 4064 | R201: -897 | S201: 3167 | T201: YES
D202: 06W | E202: NHS Norwich CCG | O202: 08A | P202: NHS Greenwich CCG | Q202: 7383 | R202: -4133 | S202: 3250 | T202: NO
D203: 06Y | E203: NHS South Norfolk CCG | O203: 09N | P203: NHS Guildford and Waverley CCG | Q203: 3010 | R203: -2973 | S203: 37 | T203: NO
D204: 07G | E204: NHS Thurrock CCG | O204: 01F | P204: NHS Halton CCG | Q204: 1838 | R204: 61 | S204: 1899 | T204: YES
D205: 07H | E205: NHS West Essex CCG | O205: 03D | P205: NHS Hambleton, Richmondshire and Whitby CCG | Q205: 2148 | R205: 22 | S205: 2170 | T205: NO
D206: 07J | E206: NHS West Norfolk CCG | O206: 08C | P206: NHS Hammersmith and Fulham CCG | Q206: 13174 | R206: -4020 | S206: 9154 | T206: NO
D207: 07K | E207: NHS West Suffolk CCG | O207: 03Y | P207: NHS Hardwick CCG | Q207: 1591 | R207: 1 | S207: 1592 | T207: YES
D208: 07L | E208: NHS Barking & Dagenham CCG | O208: 08D | P208: NHS Haringey CCG | Q208: 95.568 | R208: -20.568 | S208: 75 | T208: NO
D209: 07M | E209: NHS Barnet CCG | O209: 03E | P209: NHS Harrogate and Rural District CCG | Q209: 2252 | R209: -346 | S209: 1906 | T209: YES
D210: 07N | E210: NHS Bexley CCG | O210: 08E | P210: NHS Harrow CCG | Q210: 80 | R210: 2008 | S210: 2088 | T210: NO
D211: 07P | E211: NHS Brent CCG | O211: 00K | P211: NHS Hartlepool and Stockton-on-Tees CCG | Q211: 9855.731 | R211: -3095.731 | S211: 6760 | T211: NO
D212: 07Q | E212: NHS Bromley CCG | O212: 09P | P212: NHS Hastings & Rother CCG | Q212: 8164 | R212: -202 | S212: 7962 | T212: NO
D213: 07R | E213: NHS Camden CCG | O213: 08F | P213: NHS Havering CCG | Q213: 3878 | R213: -280 | S213: 3598 | T213: YES
D214: 07T | E214: NHS City and Hackney CCG | O214: 05F | P214: NHS Herefordshire CCG | Q214: 2400.046 | R214: -2388.046 | S214: 12 | T214: NO
D215: 07V | E215: NHS Croydon CCG | O215: 06N | P215: NHS Herts Valleys CCG | Q215: 7005 | R215: 6 | S215: 7011 | T215: NO
D216: 07W | E216: NHS Ealing CCG | O216: 01D | P216: NHS Heywood, Middleton & Rochdale CCG | Q216: 6938.02533 | R216: -950.02533 | S216: 5988 | T216: NO
D217: 07X | E217: NHS Enfield CCG | O217: 99K | P217: NHS High Weald Lewes Havens CCG | Q217: 2718 | R217: 28 | S217: 2746 | T217: YES
D218: 07Y | E218: NHS Hounslow CCG | O218: 08G | P218: NHS Hillingdon CCG | Q218: 3333.203 | R218: 4191.797 | S218: 7525 | T218: NO
D219: 08A | E219: NHS Greenwich CCG | O219: 09X | P219: NHS Horsham and Mid Sussex CCG | Q219: 1809 | R219: 1095 | S219: 2904 | T219: NO
D220: 08C | E220: NHS Hammersmith and Fulham CCG | O220: 07Y | P220: NHS Hounslow CCG | Q220: 6932.90102 | R220: -621.90102 | S220: 6311 | T220: NO
D221: 08D | E221: NHS Haringey CCG | O221: 03F | P221: NHS Hull CCG | Q221: 9894 | R221: -2074 | S221: 7820 | T221: NO
D222: 08E | E222: NHS Harrow CCG | O222: 06L | P222: NHS Ipswich and East Suffolk CCG | Q222: 4164 | R222: -1190 | S222: 2974 | T222: NO
... 1383 more rows

Sheet Outputs>>>

Sheet STP Summary Do Something
C2: Desc | E2: Unit | F2: DoNothing | G2: DoNothing | H2: DoNothing | I2: DoNothing | J2: DoNothing | K2: DoNothing | N2: Solution | O2: Solution | P2: Solution | Q2: Solution | R2: Solution | T2: DoSomething | U2: DoSomething | V2: DoSomething | W2: DoSomething | X2: DoSomething | Y2: DoSomething
C3: Year | E3: Year | F3: Year | G3: Year | H3: Year | I3: Year | J3: Year | K3: Year | N3: Year | O3: Year | P3: Year | Q3: Year | R3: Year | T3: Year | U3: Year | V3: Year | W3: Year | X3: Year | Y3: Year
C4: =SysCurrYE -> 2017-03-31 | E4: =SysCurrYE -> 2017-03-31 | F4: =SysPrevYE -> 2016-03-31 | G4: =SysCurrYE -> 2017-03-31 | H4: =Sys2ndYE -> 2018-03-31 | I4: =Sys3rdYE -> 2019-03-31 | J4: =Sys4thYE -> 2020-03-31 | K4: =Sys5thYE -> 2021-03-31 | N4: =SysCurrYE -> 2017-03-31 | O4: =Sys2ndYE -> 2018-03-31 | P4: =Sys3rdYE -> 2019-03-31 | Q4: =Sys4thYE -> 2020-03-31 | R4: =Sys5thYE -> 2021-03-31 | T4: =SysPrevYE -> 2016-03-31 | U4: =SysCurrYE -> 2017-03-31 | V4: =Sys2ndYE -> 2018-03-31 | W4: =Sys3rdYE -> 2019-03-31 | X4: =Sys4thYE -> 2020-03-31 | Y4: =Sys5thYE -> 2021-03-31
C6: South East London
C8: Footprint Summary | F8: Do Nothing | M8: Solutions | T8: Do Something
F10: 2015/16 | G10: 2016/17 | H10: 2017/18 | I10: 2018/19 | J10: 2019/20 | K10: 2020/21 | M10: 2015/16 | N10: 2016/17 | O10: 2017/18 | P10: 2018/19 | Q10: 2019/20 | R10: 2020/21 | T10: 2015/16 | U10: 2016/17 | V10: 2017/18 | W10: 2018/19 | X10: 2019/20 | Y10: 2020/21
A11: STPSUM01 | C11: Commissioner Surplus / (Deficit) | E11: £000s | F11: =F30-F65 -> 14193.48727 | G11: 27363.61143 | H11: -117074.1656 | I11: -217278.4041 | J11: -319493.487 | K11: -414952.585 | N11: =N30-N65 -> 0 | O11: 118975.1411 | P11: 228652.2052 | Q11: 285559.6742 | R11: 337383.4429 | T11: =T30-T65 -> 14193.48727 | U11: 27363.61143 | V11: 1900.975499 | W11: 11373.80111 | X11: -33933.81277 | Y11: -77569.14215
A12: STPSUM02 | C12: Provider Surplus / (Deficit) | E12: £000s | F12: =F39-F77 -> -197753.3368 | G12: -177140.6522 | H12: -264262.872 | I12: -348374.0276 | J12: -438830.6065 | K12: -519075.1872 | N12: =N39-N77 -> 0 | O12: 155200.4414 | P12: 264232.1334 | Q12: 366003.5753 | R12: 467580.1908 | T12: =T39-T77 -> -197753.3368 | U12: -177140.6522 | V12: -109062.4307 | W12: -84141.89417 | X12: -72827.03126 | Y12: -51494.99645
A13: STPSUM03 | C13: Footprint NHS Surplus / (Deficit) | E13: £000s | F13: =SUM(F11:F12) -> -183559.8496 | G13: =SUM(G11:G12) -> -149777.0407 | H13: -381337.0377 | I13: -565652.4317 | J13: -758324.0935 | K13: -934027.7723 | N13: =SUM(N11:N12) -> 0 | O13: 274175.5825 | P13: 492884.3387 | Q13: 651563.2495 | R13: 804963.6336 | T13: =SUM(T11:T12) -> -183559.8496 | U13: -149777.0407 | V13: -107161.4552 | W13: -72768.09306 | X13: -106760.844 | Y13: -129064.1386
A14: STPSUM04 | C14: Indicative STF Allocation 2020/21 | E14: £000s | V14: 0 | W14: 0 | X14: 0 | Y14: 134000
A15: STPSUM05 | C15: Footprint NHS Surplus / (Deficit) after STF Allocation | E15: £000s | F15: =SUM(F13:F14) -> -183559.8496 | G15: =SUM(G13:G14) -> -149777.0407 | H15: -381337.0377 | I15: -565652.4317 | J15: -758324.0935 | K15: -934027.7723 | N15: =SUM(N13:N14) -> 0 | O15: =SUM(O13:O14) -> 274175.5825 | P15: =SUM(P13:P14) -> 492884.3387 | Q15: =SUM(Q13:Q14) -> 651563.2495 | R15: =SUM(R13:R14) -> 804963.6336 | T15: =SUM(T13:T14) -> -183559.8496 | U15: =SUM(U13:U14) -> -149777.0407 | V15: =SUM(V13:V14) -> -107161.4552 | W15: =SUM(W13:W14) -> -72768.09306 | X15: =SUM(X13:X14) -> -106760.844 | Y15: =SUM(Y13:Y14) -> 4935.861395
A17: STPSUM06 | C17: Social Care And Other Surplus / (Deficit) | E17: £000s | F17: =F41-F79 -> 0 | G17: 0 | H17: 0 | I17: 0 | J17: 0 | K17: 0 | N17: =N41-N79 -> 0 | O17: =O41-O79 -> 0 | P17: =P41-P79 -> 0 | Q17: =Q41-Q79 -> 0 | R17: =R41-R79 -> 0 | T17: =T41-T79 -> 0 | U17: 0 | V17: 0 | W17: 0 | X17: 0 | Y17: 0
C19: Footprint Income
C21: Commissioner Income
A22: STPSUM07 | C22: CCG Programme | E22: £000s | F22: ='STP Summary Do Nothing'!F24 -> 2242923 | G22: ='STP Summary Do Nothing'!G24 -> 2330936.025 | H22: ='STP Summary Do Nothing'!H24 -> 2381792 | I22: ='STP Summary Do Nothing'!I24 -> 2442146 | J22: ='STP Summary Do Nothing'!J24 -> 2504543 | K22: ='STP Summary Do Nothing'!K24 -> 2603180 | T22: =F22+M22 -> 2242923 | U22: 2330936.025 | V22: 2381792 | W22: 2442146 | X22: 2504543 | Y22: 2603180
A23: STPSUM08 | C23: CCG Running Cost | E23: £000s | F23: ='STP Summary Do Nothing'!F25 -> 38871.00001 | G23: ='STP Summary Do Nothing'!G25 -> 39055 | H23: ='STP Summary Do Nothing'!H25 -> 39305 | I23: ='STP Summary Do Nothing'!I25 -> 39481 | J23: ='STP Summary Do Nothing'!J25 -> 39645 | K23: ='STP Summary Do Nothing'!K25 -> 39802 | T23: 38871.00001 | U23: 39055 | V23: 39305 | W23: 39481 | X23: 39645 | Y23: 39802
A24: STPSUM09 | C24: Social Care | E24: £000s | F24: ='STP Summary Do Nothing'!F26 -> 7.5e-05 | T24: =F24+M24 -> 7.5e-05
A25: STPSUM10 | C25: CCG Income, total | E25: £000s | F25: =SUM(F22:F24) -> 2281794 | G25: 2369991.025 | H25: 2421097 | I25: 2481627 | J25: 2544188 | K25: =SUM(K22:K24) -> 2642982 | T25: =SUM(T22:T24) -> 2281794 | U25: =SUM(U22:U24) -> 2369991.025 | V25: =SUM(V22:V24) -> 2421097 | W25: 2481627 | X25: 2544188 | Y25: =SUM(Y22:Y24) -> 2642982
A26: STPSUM11 | C26: Primary Medical Care (Mandate) | E26: £000s | F26: ='STP Summary Do Nothing'!F28 -> 228920 | G26: ='STP Summary Do Nothing'!G28 -> 238289 | H26: ='STP Summary Do Nothing'!H28 -> 248733 | I26: ='STP Summary Do Nothing'!I28 -> 257130 | J26: ='STP Summary Do Nothing'!J28 -> 267023 | K26: ='STP Summary Do Nothing'!K28 -> 280191 | T26: =F26+M26 -> 228920 | U26: 238289 | V26: 248733 | W26: 257130 | X26: 267023 | Y26: 280191
A27: STPSUM12 | C27: Specialised (Spec Comm) | E27: £000s | F27: ='STP Summary Do Nothing'!F29 -> 585981 | G27: ='STP Summary Do Nothing'!G29 -> 634049 | H27: ='STP Summary Do Nothing'!H29 -> 667389 | I27: ='STP Summary Do Nothing'!I29 -> 700379 | J27: ='STP Summary Do Nothing'!J29 -> 734617 | K27: ='STP Summary Do Nothing'!K29 -> 774522 | T27: 585981 | U27: 634049 | V27: 667389 | W27: 700379 | X27: 734617 | Y27: 774522
A29: STPSUM13 | C29: Non-Recurrent Commissioner Income | E29: £000s | N29: ='Solution Table'!DZ29 -> 0 | O29: ='Solution Table'!EA29 -> 0 | P29: ='Solution Table'!EB29 -> 0 | Q29: ='Solution Table'!EC29 -> 0 | R29: ='Solution Table'!ED29 -> 0 | T29: =F29+M29 -> 0 | U29: 0 | V29: 0 | W29: 0 | X29: 0 | Y29: 0
A30: STPSUM14 | C30: Commissioner Income, total | E30: £000s | F30: =SUM(F25:F29) -> 3096695 | G30: 3242329.025 | H30: 3337219 | I30: 3439136 | J30: 3545828 | K30: =SUM(K25:K29) -> 3697695 | N30: =SUM(N25:N29) -> 0 | O30: =SUM(O25:O29) -> 0 | P30: 0 | Q30: 0 | R30: =SUM(R25:R29) -> 0 | T30: =SUM(T25:T29) -> 3096695 | U30: =SUM(U25:U29) -> 3242329.025 | V30: 3337219 | W30: 3439136 | X30: 3545828 | Y30: =SUM(Y25:Y29) -> 3697695
C32: Provider Income
A33: STPSUM15 | C33: CCG | E33: £000s | F33: ='STP Summary Do Nothing'!F33 -> 1969664.513 | G33: ='STP Summary Do Nothing'!G33 -> 1949468.117 | H33: ='STP Summary Do Nothing'!H33 -> 2028682.09 | I33: ='STP Summary Do Nothing'!I33 -> 2103853.176 | J33: ='STP Summary Do Nothing'!J33 -> 2180258.581 | K33: ='STP Summary Do Nothing'!K33 -> 2261144.544 | N33: ='Solution Table'!DZ69 -> 0 | O33: ='Solution Table'!EA69 -> -62461.63404 | P33: ='Solution Table'!EB69 -> -117097.5812 | Q33: ='Solution Table'!EC69 -> -146945.6328 | R33: ='Solution Table'!ED69 -> -151654.5938 | T33: =F33+M33 -> 1969664.513 | U33: 1949468.117 | V33: 1966220.456 | W33: 1986755.595 | X33: 2033312.948 | Y33: 2109489.95
A34: STPSUM16 | C34: NHSE | E34: £000s | F34: ='STP Summary Do Nothing'!F34 -> 920505.8578 | G34: ='STP Summary Do Nothing'!G34 -> 1040945.392 | H34: ='STP Summary Do Nothing'!H34 -> 1142770.084 | I34: ='STP Summary Do Nothing'!I34 -> 1187411.366 | J34: ='STP Summary Do Nothing'!J34 -> 1232975.674 | K34: ='STP Summary Do Nothing'!K34 -> 1280724.41 | N34: ='Solution Table'!DZ70 -> 0 | O34: ='Solution Table'!EA70 -> 0 | P34: ='Solution Table'!EB70 -> 0 | Q34: ='Solution Table'!EC70 -> 0 | R34: ='Solution Table'!ED70 -> 0 | T34: 920505.8578 | U34: 1040945.392 | V34: 1142770.084 | W34: 1187411.366 | X34: 1232975.674 | Y34: 1280724.41
A35: STPSUM17 | C35: Other Internal (HEE, S7, LA, BCF) | E35: £000s | F35: ='STP Summary Do Nothing'!F35 -> 370059.531 | G35: ='STP Summary Do Nothing'!G35 -> 398873.0213 | H35: ='STP Summary Do Nothing'!H35 -> 397149.4244 | I35: ='STP Summary Do Nothing'!I35 -> 396185.25 | J35: ='STP Summary Do Nothing'!J35 -> 399939.832 | K35: ='STP Summary Do Nothing'!K35 -> 403846.04 | N35: ='Solution Table'!DZ71 -> 0 | O35: ='Solution Table'!EA71 -> 0 | P35: ='Solution Table'!EB71 -> 0 | Q35: ='Solution Table'!EC71 -> 0 | R35: ='Solution Table'!ED71 -> 0 | T35: 370059.531 | U35: 398873.0213 | V35: 397149.4244 | W35: 396185.25 | X35: 399939.832 | Y35: 403846.04
A36: STPSUM18 | C36: Other External | E36: £000s | F36: ='STP Summary Do Nothing'!F36 -> 242426.767 | G36: ='STP Summary Do Nothing'!G36 -> 262207.5545 | H36: ='STP Summary Do Nothing'!H36 -> 262199.269 | I36: ='STP Summary Do Nothing'!I36 -> 253242.0552 | J36: ='STP Summary Do Nothing'!J36 -> 238143.8861 | K36: ='STP Summary Do Nothing'!K36 -> 239764.1463 | N36: ='Solution Table'!DZ72 -> 0 | O36: ='Solution Table'!EA72 -> 0 | P36: ='Solution Table'!EB72 -> 0 | Q36: ='Solution Table'!EC72 -> 0 | R36: ='Solution Table'!ED72 -> 0 | T36: 242426.767 | U36: 262207.5545 | V36: 262199.269 | W36: 253242.0552 | X36: 238143.8861 | Y36: 239764.1463
A38: STPSUM19 | C38: Non-Recurrent Provider Income | E38: £000s | N38: ='Solution Table'!DZ74 -> 0 | O38: ='Solution Table'!EA74 -> 0 | P38: ='Solution Table'!EB74 -> 0 | Q38: ='Solution Table'!EC74 -> 0 | R38: ='Solution Table'!ED74 -> 0 | T38: =F38+M38 -> 0 | U38: 0 | V38: 0 | W38: 0 | X38: 0 | Y38: 0
A39: STPSUM20 | C39: Provider Income, total | E39: £000s | F39: =SUM(F33:F38) -> 3502656.668 | G39: 3651494.085 | H39: 3830800.868 | I39: 3940691.847 | J39: 4051317.972 | K39: =SUM(K33:K38) -> 4185479.139 | N39: =SUM(N33:N38) -> 0 | O39: -62461.63404 | P39: -117097.5812 | Q39: -146945.6328 | R39: =SUM(R33:R38) -> -151654.5938 | T39: =SUM(T33:T38) -> 3502656.668 | U39: 3651494.085 | V39: 3768339.234 | W39: 3823594.266 | X39: 3904372.339 | Y39: =SUM(Y33:Y38) -> 4033824.546
A41: STPSUM21 | C41: BCF, Social Care And Other Income | E41: £000s | F41: ='STP Summary Do Nothing'!F39 -> 15328.00001 | G41: ='STP Summary Do Nothing'!G39 -> 14732.00001 | H41: ='STP Summary Do Nothing'!H39 -> 14732.00001 | I41: ='STP Summary Do Nothing'!I39 -> 14732.00001 | J41: ='STP Summary Do Nothing'!J39 -> 14732.00001 | K41: ='STP Summary Do Nothing'!K39 -> 14732.00001 | N41: ='Solution Table'!DZ95 -> 0 | O41: ='Solution Table'!EA95 -> 0 | P41: ='Solution Table'!EB95 -> 0 | Q41: ='Solution Table'!EC95 -> 0 | R41: ='Solution Table'!ED95 -> 0 | T41: =F41+M41 -> 15328.00001 | U41: 14732.00001 | V41: 14732.00001 | W41: 14732.00001 | X41: 14732.00001 | Y41: 14732.00001
C43: Footprint Expenditure
C45: CCG Expenditure
C46: Secondary Care
A47: STPSUM22 | C47: Acute - NHS | E47: £000s | F47: ='STP Summary Do Nothing'!F45 -> 1213244.894 | G47: ='STP Summary Do Nothing'!G45 -> 1279544.485 | H47: ='STP Summary Do Nothing'!H45 -> 1341793 | I47: ='STP Summary Do Nothing'!I45 -> 1403024.133 | J47: ='STP Summary Do Nothing'!J45 -> 1465211.355 | K47: ='STP Summary Do Nothing'!K45 -> 1537551.212 | N47: ='Solution Table'!DZ36 -> 0 | O47: ='Solution Table'!EA36 -> -56132.9439 | P47: ='Solution Table'!EB36 -> -105411.2932 | Q47: ='Solution Table'!EC36 -> -134424.9121 | R47: ='Solution Table'!ED36 -> -139002.2292 | T47: =F47+M47 -> 1213244.894 | U47: =G47+N47 -> 1279544.485 | V47: =H47+O47 -> 1285660.056 | W47: =I47+P47 -> 1297612.839 | X47: =J47+Q47 -> 1330786.443 | Y47: =K47+R47 -> 1398548.983
A48: STPSUM23 | C48: Acute - Non-NHS | E48: £000s | F48: ='STP Summary Do Nothing'!F46 -> 56145.24422 | G48: ='STP Summary Do Nothing'!G46 -> 38165.513 | H48: ='STP Summary Do Nothing'!H46 -> 46230 | I48: ='STP Summary Do Nothing'!I46 -> 47440.86742 | J48: ='STP Summary Do Nothing'!J46 -> 49247.29557 | K48: ='STP Summary Do Nothing'!K46 -> 51217.65095 | N48: ='Solution Table'!DZ37 -> 0 | O48: ='Solution Table'!EA37 -> -9637.126487 | P48: ='Solution Table'!EB37 -> -17795.50483 | Q48: ='Solution Table'!EC37 -> -17795.50483 | R48: ='Solution Table'!ED37 -> -17795.50483 | T48: 56145.24422 | U48: 38165.513 | V48: 36592.87351 | W48: 29645.36258 | X48: 31451.79074 | Y48: 33422.14612
A49: STPSUM24 | C49: Mental Health - NHS | E49: £000s | F49: ='STP Summary Do Nothing'!F47 -> 257976 | G49: ='STP Summary Do Nothing'!G47 -> 275656.567 | H49: ='STP Summary Do Nothing'!H47 -> 287561 | I49: ='STP Summary Do Nothing'!I47 -> 300762.4072 | J49: ='STP Summary Do Nothing'!J47 -> 318023.0377 | K49: ='STP Summary Do Nothing'!K47 -> 335514.8482 | N49: ='Solution Table'!DZ38 -> 0 | O49: ='Solution Table'!EA38 -> -4510.245669 | P49: ='Solution Table'!EB38 -> -8328.426393 | Q49: ='Solution Table'!EC38 -> -8328.426393 | R49: ='Solution Table'!ED38 -> -8328.426393 | T49: 257976 | U49: 275656.567 | V49: 283050.7543 | W49: 292433.9808 | X49: 309694.6113 | Y49: 327186.4219
A50: STPSUM25 | C50: Mental Health - Non NHS | E50: £000s | F50: ='STP Summary Do Nothing'!F48 -> 48892 | G50: ='STP Summary Do Nothing'!G48 -> 36836.249 | H50: ='STP Summary Do Nothing'!H48 -> 38137 | I50: ='STP Summary Do Nothing'!I48 -> 39755.59284 | J50: ='STP Summary Do Nothing'!J48 -> 41597.76942 | K50: ='STP Summary Do Nothing'!K48 -> 43240.60577 | N50: ='Solution Table'!DZ39 -> 0 | O50: ='Solution Table'!EA39 -> 0 | P50: ='Solution Table'!EB39 -> 0 | Q50: ='Solution Table'!EC39 -> 0 | R50: ='Solution Table'!ED39 -> 0 | T50: 48892 | U50: 36836.249 | V50: 38137 | W50: 39755.59284 | X50: 41597.76942 | Y50: 43240.60577
A51: STPSUM26 | C51: Community Health Services - NHS | E51: £000s | F51: ='STP Summary Do Nothing'!F49 -> 137179.8309 | G51: ='STP Summary Do Nothing'!G49 -> 145646.743 | H51: ='STP Summary Do Nothing'!H49 -> 147314 | I51: ='STP Summary Do Nothing'!I49 -> 152171.7766 | J51: ='STP Summary Do Nothing'!J49 -> 158846.31 | K51: ='STP Summary Do Nothing'!K49 -> 165791.5943 | N51: ='Solution Table'!DZ40 -> 0 | O51: ='Solution Table'!EA40 -> -1818.444473 | P51: ='Solution Table'!EB40 -> -3357.861646 | Q51: ='Solution Table'!EC40 -> -4192.294384 | R51: ='Solution Table'!ED40 -> -4323.938193 | T51: 137179.8309 | U51: 145646.743 | V51: 145495.5555 | W51: 148813.915 | X51: 154654.0156 | Y51: 161467.6561
A52: STPSUM27 | C52: Community Health Services - Non NHS | E52: £000s | F52: ='STP Summary Do Nothing'!F50 -> 110277.59 | G52: ='STP Summary Do Nothing'!G50 -> 96933.933 | H52: ='STP Summary Do Nothing'!H50 -> 97934 | I52: ='STP Summary Do Nothing'!I50 -> 101126.2234 | J52: ='STP Summary Do Nothing'!J50 -> 105323.6869 | K52: ='STP Summary Do Nothing'!K50 -> 109852.6881 | N52: ='Solution Table'!DZ41 -> 0 | O52: ='Solution Table'!EA41 -> -281.8903543 | P52: ='Solution Table'!EB41 -> -520.5266496 | Q52: ='Solution Table'!EC41 -> -520.5266496 | R52: ='Solution Table'!ED41 -> -520.5266496 | T52: 110277.59 | U52: 96933.933 | V52: 97652.10965 | W52: 100605.6967 | X52: 104803.1603 | Y52: 109332.1615
A53: STPSUM28 | C53: Other NHS | E53: £000s | F53: ='STP Summary Do Nothing'!F51 -> 68733.091 | G53: ='STP Summary Do Nothing'!G51 -> 67958.912 | H53: ='STP Summary Do Nothing'!H51 -> 99502 | I53: ='STP Summary Do Nothing'!I51 -> 103376.3273 | J53: ='STP Summary Do Nothing'!J51 -> 110959.3777 | K53: ='STP Summary Do Nothing'!K51 -> 124375.3777 | N53: ='Solution Table'!DZ42 -> 0 | O53: ='Solution Table'!EA42 -> -21927.04256 | P53: ='Solution Table'!EB42 -> -40489.53724 | Q53: ='Solution Table'!EC42 -> -40489.53724 | R53: ='Solution Table'!ED42 -> -40489.53724 | T53: 68733.091 | U53: 67958.912 | V53: 77574.95744 | W53: 62886.79007 | X53: 70469.8405 | Y53: 83885.8405
A54: STPSUM29 | C54: Continuing Care | E54: £000s | F54: ='STP Summary Do Nothing'!F52 -> 90292.56 | G54: ='STP Summary Do Nothing'!G52 -> 91558.451 | H54: ='STP Summary Do Nothing'!H52 -> 94904 | I54: ='STP Summary Do Nothing'!I52 -> 98974 | J54: ='STP Summary Do Nothing'!J52 -> 104798.6765 | K54: ='STP Summary Do Nothing'!K52 -> 109805.0388 | N54: ='Solution Table'!DZ43 -> 0 | O54: ='Solution Table'!EA43 -> -656.9052006 | P54: ='Solution Table'!EB43 -> -1213.012996 | Q54: ='Solution Table'!EC43 -> -1213.012996 | R54: ='Solution Table'!ED43 -> -1213.012996 | T54: 90292.56 | U54: 91558.451 | V54: 94247.0948 | W54: 97760.987 | X54: 103585.6635 | Y54: 108592.0258
A55: STPSUM30 | C55: GP Prescribing | E55: £000s | F55: ='STP Summary Do Nothing'!F53 -> 215864 | G55: ='STP Summary Do Nothing'!G53 -> 223180.556 | H55: ='STP Summary Do Nothing'!H53 -> 234148 | I55: ='STP Summary Do Nothing'!I53 -> 248701.5925 | J55: ='STP Summary Do Nothing'!J53 -> 260186.1093 | K55: ='STP Summary Do Nothing'!K53 -> 275755.6858 | N55: ='Solution Table'!DZ44 -> 0 | O55: ='Solution Table'!EA44 -> -6742.7166 | P55: ='Solution Table'!EB44 -> -12450.81156 | Q55: ='Solution Table'!EC44 -> -12450.81156 | R55: ='Solution Table'!ED44 -> -12450.81156 | T55: 215864 | U55: 223180.556 | V55: 227405.2834 | W55: 236250.7809 | X55: 247735.2977 | Y55: 263304.8742
A56: STPSUM31 | C56: Other Primary Care | E56: £000s | F56: ='STP Summary Do Nothing'!F54 -> 16258.00001 | G56: ='STP Summary Do Nothing'!G54 -> 21957.797 | H56: ='STP Summary Do Nothing'!H54 -> 24593 | I56: ='STP Summary Do Nothing'!I54 -> 25936.40751 | J56: ='STP Summary Do Nothing'!J54 -> 32355.24739 | K56: ='STP Summary Do Nothing'!K54 -> 35271.86447 | N56: ='Solution Table'!DZ45 -> 0 | O56: ='Solution Table'!EA45 -> -286.9241106 | P56: ='Solution Table'!EB45 -> -529.8217683 | Q56: ='Solution Table'!EC45 -> -529.8217683 | R56: ='Solution Table'!ED45 -> -529.8217683 | T56: 16258.00001 | U56: 21957.797 | V56: 24306.07589 | W56: 25406.58574 | X56: 31825.42562 | Y56: 34742.0427
A57: STPSUM32 | C57: Running Cost (Admin) | E57: £000s | F57: ='STP Summary Do Nothing'!F55 -> 37656.302 | G57: ='STP Summary Do Nothing'!G55 -> 37755 | H57: ='STP Summary Do Nothing'!H55 -> 38193 | I57: ='STP Summary Do Nothing'!I55 -> 44548 | J57: ='STP Summary Do Nothing'!J55 -> 39341 | K57: ='STP Summary Do Nothing'!K55 -> 39486 | N57: ='Solution Table'!DZ46 -> 0 | O57: ='Solution Table'!EA46 -> 0 | P57: ='Solution Table'!EB46 -> 0 | Q57: ='Solution Table'!EC46 -> 0 | R57: ='Solution Table'!ED46 -> 0 | T57: 37656.302 | U57: 37755 | V57: 38193 | W57: 44548 | X57: 39341 | Y57: 39486
A58: STPSUM33 | C58: CCG Other - Non-NHS, Non-Recurrent Reserve, Contingency | E58: £000s | F58: ='STP Summary Do Nothing'!F56 -> 0.00012 | G58: ='STP Summary Do Nothing'!G56 -> 11162.00003 | H58: ='STP Summary Do Nothing'!H56 -> 27023.51997 | I58: ='STP Summary Do Nothing'!I56 -> 25777.51997 | J58: ='STP Summary Do Nothing'!J56 -> 21697.55408 | K58: ='STP Summary Do Nothing'!K56 -> 22660.4604 | N58: ='Solution Table'!DZ47 -> 0 | O58: ='Solution Table'!EA47 -> 27173.74385 | P58: ='Solution Table'!EB47 -> 51936.47516 | Q58: ='Solution Table'!EC47 -> 73479.45793 | R58: ='Solution Table'!ED47 -> 77607.14174 | T58: 0.00012 | U58: 11162.00003 | V58: 54197.26382 | W58: 77713.99513 | X58: 95177.01202 | Y58: 100267.6021
A59: STPSUM34 | C59: Social Care Expenditure | E59: £000s | F59: ='STP Summary Do Nothing'!F57 -> 15081.00008 | G59: ='STP Summary Do Nothing'!G57 -> 16271.20708 | H59: ='STP Summary Do Nothing'!H57 -> 16684.00003 | I59: ='STP Summary Do Nothing'!I57 -> 16818.67272 | J59: ='STP Summary Do Nothing'!J57 -> 16999.7828 | K59: ='STP Summary Do Nothing'!K57 -> 17074.7828 | N59: ='Solution Table'!DZ48 -> 0 | O59: ='Solution Table'!EA48 -> 0 | P59: ='Solution Table'!EB48 -> 0 | Q59: ='Solution Table'!EC48 -> 0 | R59: ='Solution Table'!ED48 -> 0 | T59: 15081.00008 | U59: 16271.20708 | V59: 16684.00003 | W59: 16818.67272 | X59: 16999.7828 | Y59: 17074.7828
A60: STPSUM35 | C60: CCG Expenditure, total | E60: £000s | F60: =SUM(F47:F59) -> 2267600.513 | G60: 2342627.413 | H60: 2494016.52 | I60: 2608413.52 | J60: 2724587.203 | K60: 2867597.809 | N60: =SUM(N47:N59) -> 0 | O60: =SUM(O47:O59) -> -74820.4955 | P60: -138160.3211 | Q60: -146465.3899 | R60: =SUM(R47:R59) -> -147046.6671 | T60: =SUM(T47:T59) -> 2267600.513 | U60: 2342627.413 | V60: 2419196.025 | W60: 2470253.199 | X60: 2578121.813 | Y60: =SUM(Y47:Y59) -> 2720551.142
A61: STPSUM36 | C61: Primary Medical Care (Mandate) | E61: £000s | F61: ='STP Summary Do Nothing'!F59 -> 228920 | G61: ='STP Summary Do Nothing'!G59 -> 238289 | H61: ='STP Summary Do Nothing'!H59 -> 248733 | I61: ='STP Summary Do Nothing'!I59 -> 257130 | J61: ='STP Summary Do Nothing'!J59 -> 267023 | K61: ='STP Summary Do Nothing'!K59 -> 280191 | N61: ='Solution Table'!DZ49 -> 0 | O61: ='Solution Table'!EA49 -> 0 | P61: ='Solution Table'!EB49 -> 0 | Q61: ='Solution Table'!EC49 -> 0 | R61: ='Solution Table'!ED49 -> 0 | T61: =F61+M61 -> 228920 | U61: 238289 | V61: 248733 | W61: 257130 | X61: 267023 | Y61: 280191
A62: STPSUM37 | C62: Specialised Expenditure (Spec Comm) | E62: £000s | F62: ='STP Summary Do Nothing'!F60 -> 585981 | G62: ='STP Summary Do Nothing'!G60 -> 634049 | H62: ='STP Summary Do Nothing'!H60 -> 711543.6456 | I62: ='STP Summary Do Nothing'!I60 -> 790870.8841 | J62: ='STP Summary Do Nothing'!J60 -> 873711.2843 | K62: ='STP Summary Do Nothing'!K60 -> 964858.7758 | N62: ='Solution Table'!DZ50 -> 0 | O62: ='Solution Table'!EA50 -> -44154.64564 | P62: ='Solution Table'!EB50 -> -90491.88413 | Q62: ='Solution Table'!EC50 -> -139094.2843 | R62: ='Solution Table'!ED50 -> -190336.7758 | T62: 585981 | U62: 634049 | V62: 667389 | W62: 700379 | X62: 734617 | Y62: 774522
A64: STPSUM38 | C64: Non-Recurrent Commissioner Expenditure | E64: £000s | N64: ='Solution Table'!DZ52 -> 0 | O64: ='Solution Table'!EA52 -> 0 | P64: ='Solution Table'!EB52 -> 0 | Q64: ='Solution Table'!EC52 -> 0 | R64: ='Solution Table'!ED52 -> 0 | T64: =F64+M64 -> 0 | U64: 0 | V64: 0 | W64: 0 | X64: 0 | Y64: 0
A65: STPSUM39 | C65: Commissioner Expenditure, total | E65: £000s | F65: =SUM(F60:F64) -> 3082501.513 | G65: 3214965.413 | H65: 3454293.166 | I65: 3656414.404 | J65: 3865321.487 | K65: =SUM(K60:K64) -> 4112647.585 | N65: =SUM(N60:N64) -> 0 | O65: =SUM(O60:O64) -> -118975.1411 | P65: -228652.2052 | Q65: -285559.6742 | R65: =SUM(R60:R64) -> -337383.4429 | T65: =SUM(T60:T64) -> 3082501.513 | U65: =SUM(U60:U64) -> 3214965.413 | V65: 3335318.025 | W65: 3427762.199 | X65: 3579761.813 | Y65: =SUM(Y60:Y64) -> 3775264.142
C67: Provider Expenditure
A68: STPSUM40 | C68: Workforce - Substantive and Bank | E68: £000s | F68: ='STP Summary Do Nothing'!F64 -> 2006128.539 | G68: ='STP Summary Do Nothing'!G64 -> 2138578.964 | H68: ='STP Summary Do Nothing'!H64 -> 2258793.819 | I68: ='STP Summary Do Nothing'!I64 -> 2376516.928 | J68: ='STP Summary Do Nothing'!J64 -> 2490414.323 | K68: ='STP Summary Do Nothing'!K64 -> 2623261.757 | N68: ='Solution Table'!DZ80 -> 0 | O68: ='Solution Table'!EA80 -> -95339.17329 | P68: ='Solution Table'!EB80 -> -180827.1529 | Q68: ='Solution Table'!EC80 -> -260191.795 | R68: ='Solution Table'!ED80 -> -310630.9069 | T68: =F68+M68 -> 2006128.539 | U68: 2138578.964 | V68: 2163454.645 | W68: 2195689.775 | X68: 2230222.528 | Y68: 2312630.85
A69: STPSUM41 | C69: Workforce - Agency | E69: £000s | F69: ='STP Summary Do Nothing'!F65 -> 169644.284 | G69: ='STP Summary Do Nothing'!G65 -> 116908.1972 | H69: ='STP Summary Do Nothing'!H65 -> 113604.7274 | I69: ='STP Summary Do Nothing'!I65 -> 115553.9034 | J69: ='STP Summary Do Nothing'!J65 -> 117556.7636 | K69: ='STP Summary Do Nothing'!K65 -> 120434.6677 | N69: ='Solution Table'!DZ81 -> 0 | O69: ='Solution Table'!EA81 -> -22001.80615 | P69: ='Solution Table'!EB81 -> -36293.68627 | Q69: ='Solution Table'!EC81 -> -43177.49541 | R69: ='Solution Table'!ED81 -> -48343.71449 | T69: 169644.284 | U69: 116908.1972 | V69: 91602.92126 | W69: 79260.21713 | X69: 74379.26816 | Y69: 72090.95317
A70: STPSUM42 | C70: Drugs | E70: £000s | F70: ='STP Summary Do Nothing'!F66 -> 320594.0899 | G70: ='STP Summary Do Nothing'!G66 -> 329970.0899 | H70: ='STP Summary Do Nothing'!H66 -> 349990.1482 | I70: ='STP Summary Do Nothing'!I66 -> 366377.4927 | J70: ='STP Summary Do Nothing'!J66 -> 384083.5994 | K70: ='STP Summary Do Nothing'!K66 -> 413540.0649 | N70: ='Solution Table'!DZ82 -> 0 | O70: ='Solution Table'!EA82 -> -30706.49645 | P70: ='Solution Table'!EB82 -> -53527.09679 | Q70: ='Solution Table'!EC82 -> -67104.82758 | R70: ='Solution Table'!ED82 -> -75586.13478 | T70: 320594.0899 | U70: 329970.0899 | V70: 319283.6518 | W70: 312850.3959 | X70: 316978.7719 | Y70: 337953.9301
A71: STPSUM43 | C71: Procurement (Non Pay) | E71: £000s | F71: ='STP Summary Do Nothing'!F67 -> 740200.4739 | G71: ='STP Summary Do Nothing'!G67 -> 784974.8951 | H71: ='STP Summary Do Nothing'!H67 -> 828583.2934 | I71: ='STP Summary Do Nothing'!I67 -> 862796.0764 | J71: ='STP Summary Do Nothing'!J67 -> 898040.191 | K71: ='STP Summary Do Nothing'!K67 -> 934327.5325 | N71: ='Solution Table'!DZ83 -> 0 | O71: ='Solution Table'!EA83 -> -56336.70087 | P71: ='Solution Table'!EB83 -> -83849.66798 | Q71: ='Solution Table'!EC83 -> -103184.975 | R71: ='Solution Table'!ED83 -> -127723.4293 | T71: 740200.4739 | U71: 784974.8951 | V71: 772246.5925 | W71: 778946.4084 | X71: 794855.216 | Y71: 806604.1032
A72: STPSUM44 | C72: Capital (Revenue Cost) | E72: £000s | F72: ='STP Summary Do Nothing'!F68 -> 177894.272 | G72: ='STP Summary Do Nothing'!G68 -> 147576.9819 | H72: ='STP Summary Do Nothing'!H68 -> 167084.4938 | I72: ='STP Summary Do Nothing'!I68 -> 174306.1391 | J72: ='STP Summary Do Nothing'!J68 -> 179380.731 | K72: ='STP Summary Do Nothing'!K68 -> 184417.9154 | N72: ='Solution Table'!DZ84 -> 0 | O72: ='Solution Table'!EA84 -> -1819.550503 | P72: ='Solution Table'!EB84 -> -6999.28396 | Q72: ='Solution Table'!EC84 -> -10101.97053 | R72: ='Solution Table'!ED84 -> -16752.35521 | T72: 177894.272 | U72: 147576.9819 | V72: 165264.9433 | W72: 167306.8551 | X72: 169278.7604 | Y72: 167665.5602
A73: STPSUM45 | C73: Litigation | E73: £000s | F73: ='STP Summary Do Nothing'!F69 -> 70517.14281 | G73: ='STP Summary Do Nothing'!G69 -> 82237.15931 | H73: ='STP Summary Do Nothing'!H69 -> 90764.28233 | I73: ='STP Summary Do Nothing'!I69 -> 99898.11715 | J73: ='STP Summary Do Nothing'!J69 -> 110471.1819 | K73: ='STP Summary Do Nothing'!K69 -> 122742.4888 | N73: ='Solution Table'!DZ85 -> 0 | O73: ='Solution Table'!EA85 -> -487.9056762 | P73: ='Solution Table'!EB85 -> -1626.765675 | Q73: ='Solution Table'!EC85 -> -3263.604635 | R73: ='Solution Table'!ED85 -> -5347.820842 | T73: 70517.14281 | U73: 82237.15931 | V73: 90276.37666 | W73: 98271.35148 | X73: 107207.5772 | Y73: 117394.668
A74: STPSUM46 | C74: Provider Other | E74: £000s | F74: ='STP Summary Do Nothing'!F70 -> 215431.2037 | G74: ='STP Summary Do Nothing'!G70 -> 228388.4493 | H74: ='STP Summary Do Nothing'!H70 -> 286242.9761 | I74: ='STP Summary Do Nothing'!I70 -> 293617.2184 | J74: ='STP Summary Do Nothing'!J70 -> 310201.7887 | K74: ='STP Summary Do Nothing'!K70 -> 305829.9008 | N74: ='Solution Table'!DZ86 -> 0 | O74: ='Solution Table'!EA86 -> -10970.44245 | P74: ='Solution Table'!EB86 -> -18206.06111 | Q74: ='Solution Table'!EC86 -> -25924.53999 | R74: ='Solution Table'!ED86 -> -34850.42304 | T74: 215431.2037 | U74: 228388.4493 | V74: 275272.5336 | W74: 275411.1573 | X74: 284277.2487 | Y74: 270979.4778
A76: STPSUM47 | C76: Non-Recurrent Provider Expenditure | E76: £000s | N76: ='Solution Table'!DZ88 -> 0 | O76: ='Solution Table'!EA88 -> 0 | P76: ='Solution Table'!EB88 -> 0 | Q76: ='Solution Table'!EC88 -> 0 | R76: ='Solution Table'!ED88 -> 0 | T76: =F76+M76 -> 0 | U76: 0 | V76: 0 | W76: 0 | X76: 0 | Y76: 0
A77: STPSUM48 | C77: Provider Expenditure, total | E77: £000s | F77: =SUM(F68:F76) -> 3700410.005 | G77: 3828634.737 | H77: 4095063.74 | I77: 4289065.875 | J77: 4490148.579 | K77: =SUM(K68:K76) -> 4704554.327 | N77: =SUM(N68:N76) -> 0 | O77: -217662.0754 | P77: -381329.7147 | Q77: -512949.2081 | R77: =SUM(R68:R76) -> -619234.7846 | T77: =SUM(T68:T76) -> 3700410.005 | U77: 3828634.737 | V77: 3877401.664 | W77: 3907736.16 | X77: 3977199.371 | Y77: =SUM(Y68:Y76) -> 4085319.542
A79: STPSUM49 | C79: BCF, Social Care And Other Expenditure | E79: £000s | F79: ='STP Summary Do Nothing'!F73 -> 15328.00001 | G79: ='STP Summary Do Nothing'!G73 -> 14732.00001 | H79: ='STP Summary Do Nothing'!H73 -> 14732.00001 | I79: ='STP Summary Do Nothing'!I73 -> 14732.00001 | J79: ='STP Summary Do Nothing'!J73 -> 14732.00001 | K79: ='STP Summary Do Nothing'!K73 -> 14732.00001 | N79: ='Solution Table'!DZ96 -> 0 | O79: ='Solution Table'!EA96 -> 0 | P79: ='Solution Table'!EB96 -> 0 | Q79: ='Solution Table'!EC96 -> 0 | R79: ='Solution Table'!ED96 -> 0 | T79: =F79+M79 -> 15328.00001 | U79: 14732.00001 | V79: 14732.00001 | W79: 14732.00001 | X79: 14732.00001 | Y79: 14732.00001
C81: Memorandum lines
C83: CCG - Commissioned activity
C84: Acute
A85: STPSUM50 | C85: Consultant Led First (E.M.8) and Follow-Up (E.M.9) Outpatient Attendances (Specific Acute) | E85: Number | F85: ='STP Summary Do Nothing'!F81 -> 1840941 | G85: ='STP Summary Do Nothing'!G81 -> 1881349.653 | H85: ='STP Summary Do Nothing'!H81 -> 2038905.592 | I85: ='STP Summary Do Nothing'!I81 -> 2089650.037 | J85: ='STP Summary Do Nothing'!J81 -> 2141767.577 | K85: ='STP Summary Do Nothing'!K81 -> 2195192.718 | N85: ='Solution Table'!DZ11 -> 0 | O85: ='Solution Table'!EA11 -> -35683.86518 | P85: ='Solution Table'!EB11 -> -54596.31383 | Q85: ='Solution Table'!EC11 -> -74250.98687 | R85: ='Solution Table'!ED11 -> -75736.00662 | T85: =F85+M85 -> 1840941 | U85: 1881349.653 | V85: 2003221.727 | W85: 2035053.723 | X85: 2067516.59 | Y85: 2119456.711
A86: STPSUM51 | C86: Total Elective Spells (Specific Acute) - E.M.10 | E86: Number | F86: ='STP Summary Do Nothing'!F82 -> 189348 | G86: ='STP Summary Do Nothing'!G82 -> 193831.5092 | H86: ='STP Summary Do Nothing'!H82 -> 165586.4503 | I86: ='STP Summary Do Nothing'!I82 -> 169510.8465 | J86: ='STP Summary Do Nothing'!J82 -> 173537.3483 | K86: ='STP Summary Do Nothing'!K82 -> 177658.4174 | N86: ='Solution Table'!DZ12 -> 0 | O86: ='Solution Table'!EA12 -> 0.0002 | P86: ='Solution Table'!EB12 -> 0.0002 | Q86: ='Solution Table'!EC12 -> 0.0002 | R86: ='Solution Table'!ED12 -> 0.0002 | T86: 189348 | U86: 193831.5092 | V86: 165586.4505 | W86: 169510.8467 | X86: 173537.3485 | Y86: 177658.4176
A87: STPSUM52 | C87: Total Non-Elective Spells (Specific Acute) - E.M.11 | E87: Number | F87: ='STP Summary Do Nothing'!F83 -> 182225 | G87: ='STP Summary Do Nothing'!G83 -> 172361.7892 | H87: ='STP Summary Do Nothing'!H83 -> 175823.3686 | I87: ='STP Summary Do Nothing'!I83 -> 180346.7352 | J87: ='STP Summary Do Nothing'!J83 -> 184999.823 | K87: ='STP Summary Do Nothing'!K83 -> 189773.5495 | N87: ='Solution Table'!DZ13 -> 0 | O87: ='Solution Table'!EA13 -> -13645.33437 | P87: ='Solution Table'!EB13 -> -20877.36169 | Q87: ='Solution Table'!EC13 -> -28393.21197 | R87: ='Solution Table'!ED13 -> -28961.07621 | T87: 182225 | U87: 172361.7892 | V87: 162178.0343 | W87: 159469.3735 | X87: 156606.611 | Y87: 160812.4733
A88: STPSUM53 | C88: Total A&E Attendances (Excluding Planned Follow-Up Attendances) - E.M.12 | E88: Number | F88: ='STP Summary Do Nothing'!F84 -> 644413 | G88: ='STP Summary Do Nothing'!G84 -> 624036.0397 | H88: ='STP Summary Do Nothing'!H84 -> 664854.9444 | I88: ='STP Summary Do Nothing'!I84 -> 681160.885 | J88: ='STP Summary Do Nothing'!J84 -> 697901.8165 | K88: ='STP Summary Do Nothing'!K84 -> 715061.6735 | N88: ='Solution Table'!DZ14 -> 0 | O88: ='Solution Table'!EA14 -> -52272.44086 | P88: ='Solution Table'!EB14 -> -79976.83462 | Q88: ='Solution Table'!EC14 -> -108768.4952 | R88: ='Solution Table'!ED14 -> -110943.8651 | T88: 644413 | U88: 624036.0397 | V88: 612582.5035 | W88: 601184.0504 | X88: 589133.3214 | Y88: 604117.8085
A89: STPSUM54 | C89: Mental Health Activity | E89: Number | F89: ='STP Summary Do Nothing'!F85 -> 6e-06 | G89: ='STP Summary Do Nothing'!G85 -> 6e-06 | H89: ='STP Summary Do Nothing'!H85 -> 6e-06 | I89: ='STP Summary Do Nothing'!I85 -> 6e-06 | J89: ='STP Summary Do Nothing'!J85 -> 6e-06 | K89: ='STP Summary Do Nothing'!K85 -> 6e-06 | N89: ='Solution Table'!DZ15 -> 0 | O89: ='Solution Table'!EA15 -> 0 | P89: ='Solution Table'!EB15 -> 0 | Q89: ='Solution Table'!EC15 -> 0 | R89: ='Solution Table'!ED15 -> 0 | T89: 6e-06 | U89: 6e-06 | V89: 6e-06 | W89: 6e-06 | X89: 6e-06 | Y89: 6e-06
A90: STPSUM55 | C90: Community Activity | E90: Number | F90: ='STP Summary Do Nothing'!F86 -> 0.055001 | G90: ='STP Summary Do Nothing'!G86 -> 6e-06 | H90: ='STP Summary Do Nothing'!H86 -> 6e-06 | I90: ='STP Summary Do Nothing'!I86 -> 6e-06 | J90: ='STP Summary Do Nothing'!J86 -> 6e-06 | K90: ='STP Summary Do Nothing'!K86 -> 6e-06 | N90: ='Solution Table'!DZ16 -> 0 | O90: ='Solution Table'!EA16 -> -607.6666949 | P90: ='Solution Table'!EB16 -> -929.7300431 | Q90: ='Solution Table'!EC16 -> -1264.432859 | R90: ='Solution Table'!ED16 -> -1289.721516 | T90: 0.055001 | U90: 6e-06 | V90: -607.6666889 | W90: -929.7300371 | X90: -1264.432853 | Y90: -1289.72151
A91: STPSUM56 | C91: Ambulance Activity | E91: Number | F91: ='STP Summary Do Nothing'!F87 -> 33160.00001 | G91: ='STP Summary Do Nothing'!G87 -> 34736.00001 | H91: ='STP Summary Do Nothing'!H87 -> 35582.40583 | I91: ='STP Summary Do Nothing'!I87 -> 36449.43587 | J91: ='STP Summary Do Nothing'!J87 -> 37337.59268 | K91: ='STP Summary Do Nothing'!K87 -> 38247.39104 | N91: ='Solution Table'!DZ17 -> 0 | O91: ='Solution Table'!EA17 -> 0 | P91: ='Solution Table'!EB17 -> 0 | Q91: ='Solution Table'!EC17 -> 0 | R91: ='Solution Table'!ED17 -> 0 | T91: 33160.00001 | U91: 34736.00001 | V91: 35582.40583 | W91: 36449.43587 | X91: 37337.59268 | Y91: 38247.39104
A92: STPSUM57 | C92: Other Activity | E92: Number | F92: ='STP Summary Do Nothing'!F88 -> 6e-06 | G92: ='STP Summary Do Nothing'!G88 -> 6e-06 | H92: ='STP Summary Do Nothing'!H88 -> 6e-06 | I92: ='STP Summary Do Nothing'!I88 -> 6e-06 | J92: ='STP Summary Do Nothing'!J88 -> 6e-06 | K92: ='STP Summary Do Nothing'!K88 -> 6e-06 | N92: ='Solution Table'!DZ18 -> 0 | O92: ='Solution Table'!EA18 -> 0 | P92: ='Solution Table'!EB18 -> 0 | Q92: ='Solution Table'!EC18 -> 0 | R92: ='Solution Table'!ED18 -> 0 | T92: 6e-06 | U92: 6e-06 | V92: 6e-06 | W92: 6e-06 | X92: 6e-06 | Y92: 6e-06
A93: STPSUM58 | C93: Total CCG commissioned activity | E93: Number | F93: =SUM(F85:F92) -> 2890087.055 | G93: =SUM(G85:G92) -> 2906314.991 | H93: 3080752.761 | I93: 3157117.94 | J93: 3235544.157 | K93: 3315933.749 | N93: =SUM(N85:N92) -> 0 | O93: =SUM(O85:O92) -> -102209.3069 | P93: -156380.24 | Q93: -212677.1267 | R93: -216930.6692 | T93: =SUM(T85:T92) -> 2890087.055 | U93: =SUM(U85:U92) -> 2906314.991 | V93: 2978543.454 | W93: 3000737.7 | X93: 3022867.03 | Y93: 3099003.08
A94: STPSUM59 | C94: Total Workforce - WTEs | E94: WTE | F94: ='Workforce Summary'!AM28 -> 47529.75581 | G94: ='Workforce Summary'!AO28 -> 47822.71006 | H94: ='Workforce Summary'!AP28 -> 49770 | I94: ='Workforce Summary'!AQ28 -> 51908 | J94: ='Workforce Summary'!AR28 -> 54424 | K94: ='Workforce Summary'!AS28 -> 56410 | N94: ='Workforce Summary'!AV28 -> 0 | O94: ='Workforce Summary'!AW28 -> -1674 | P94: ='Workforce Summary'!AX28 -> -3215 | Q94: ='Workforce Summary'!AY28 -> -4590 | R94: ='Workforce Summary'!AZ28 -> -5227 | T94: =F94+M94 -> 47529.75581 | U94: 47822.71006 | V94: 48096 | W94: 48693 | X94: 49834 | Y94: 51183
A96: STPSUM60 | C96: Total Capital Expenditure | E96: £000s | F96: ='STP Summary Do Nothing'!F91 -> 190026.0401 | G96: ='STP Summary Do Nothing'!G91 -> 308282.9746 | H96: ='STP Summary Do Nothing'!H91 -> 209708.2377 | I96: ='STP Summary Do Nothing'!I91 -> 154205.7918 | J96: ='STP Summary Do Nothing'!J91 -> 137103.5639 | K96: ='STP Summary Do Nothing'!K91 -> 123643.9512 | N96: ='Solution Table'!DZ56+'Solution Table'!DZ92+'Solution Table'!DZ105 -> 0 | O96: ='Solution Table'!EA56+'Solution Table'!EA92+'Solution Table'!EA105 -> 38987.0883 | P96: ='Solution Table'!EB56+'Solution Table'!EB92+'Solution Table'!EB105 -> 43987.0883 | Q96: ='Solution Table'!EC56+'Solution Table'!EC92+'Solution Table'!EC105 -> 43317.47477 | R96: ='Solution Table'!ED56+'Solution Table'!ED92+'Solution Table'!ED105 -> 36106.5538 | T96: =F96+M96 -> 190026.0401 | U96: 308282.9746 | V96: 248695.326 | W96: 198192.8801 | X96: 180421.0387 | Y96: 159750.505
A98: STPSUM61 | C98: CCG Surplus / (Deficit) | E98: £000s | F98: =SUM(F22:F24,F29)-SUM(F47:F59,F64) -> 14193.48727 | G98: 27363.61143 | H98: -72919.52 | I98: -126786.52 | J98: -180399.2027 | K98: -224615.8092 | N98: =SUM(N22:N24,N29)-SUM(N47:N59,N64) -> 0 | O98: =SUM(O22:O24,O29)-SUM(O47:O59,O64) -> 74820.4955 | P98: =SUM(P22:P24,P29)-SUM(P47:P59,P64) -> 138160.3211 | Q98: =SUM(Q22:Q24,Q29)-SUM(Q47:Q59,Q64) -> 146465.3899 | R98: =SUM(R22:R24,R29)-SUM(R47:R59,R64) -> 147046.6671 | T98: =SUM(T22:T24,T29)-SUM(T47:T59,T64) -> 14193.48727 | U98: 27363.61143 | V98: 1900.975499 | W98: 11373.80111 | X98: -33933.81277 | Y98: -77569.14215
A99: STPSUM62 | C99: Primary Medical Care (Mandate) Surplus / (Deficit) | E99: £000s | F99: =F26-F61 -> 0 | G99: 0 | H99: 0 | I99: 0 | J99: 0 | K99: 0 | N99: =N26-N61 -> 0 | O99: 0 | P99: 0 | Q99: 0 | R99: 0 | T99: =T26-T61 -> 0 | U99: 0 | V99: 0 | W99: 0 | X99: 0 | Y99: 0
A100: STPSUM63 | C100: Specialised (Spec Comm) Surplus / (Deficit) | E100: £000s | F100: 0 | G100: 0 | H100: -44154.64564 | I100: -90491.88413 | J100: -139094.2843 | K100: -190336.7758 | N100: 0 | O100: 44154.64564 | P100: 90491.88413 | Q100: 139094.2843 | R100: 190336.7758 | T100: 0 | U100: 0 | V100: 0 | W100: 0 | X100: 0 | Y100: 0
A102: STPSUM64 | C102: CCG Expenditure To Outside Footprint | E102: £000s | F102: ='STP Summary Do Nothing'!F97 -> 182036.8437 | G102: ='STP Summary Do Nothing'!G97 -> 185737.7198 | H102: ='STP Summary Do Nothing'!H97 -> 254395.9964 | I102: ='STP Summary Do Nothing'!I97 -> 265688.4296 | J102: ='STP Summary Do Nothing'!J97 -> 280582.5152 | K102: ='STP Summary Do Nothing'!K97 -> 302471.588 | N102: ='Solution Table'!DZ100 -> 0 | O102: ='Solution Table'!EA100 -> -66081.6872 | P102: ='Solution Table'!EB100 -> -130981.4204 | Q102: ='Solution Table'!EC100 -> -179583.8205 | R102: ='Solution Table'!ED100 -> -230826.312 | T102: =F102+M102 -> 182036.8437 | U102: 185737.7198 | V102: 188314.3092 | W102: 134707.0092 | X102: 100998.6947 | Y102: 71645.27597
A103: STPSUM65 | C103: Provider Income From Outside Footprint | E103: £000s | F103: ='STP Summary Do Nothing'!F98 -> 830974.7365 | G103: ='STP Summary Do Nothing'!G98 -> 854486.4085 | H103: ='STP Summary Do Nothing'!H98 -> 832417.0808 | I103: ='STP Summary Do Nothing'!I98 -> 810343.1203 | J103: ='STP Summary Do Nothing'!J98 -> 784887.7151 | K103: ='STP Summary Do Nothing'!K98 -> 754274.2934 | N103: ='Solution Table'!DZ101 -> 0 | O103: ='Solution Table'!EA101 -> 0.0012 | P103: ='Solution Table'!EB101 -> 0.0012 | Q103: ='Solution Table'!EC101 -> 0.0012 | R103: ='Solution Table'!ED101 -> 0.0012 | T103: 830974.7365 | U103: 854486.4085 | V103: 832417.082 | W103: 810343.1215 | X103: 784887.7163 | Y103: 754274.2946
A105: STPSUM66 | C105: Estimated Revenue Expenditure Required To Deliver Solutions | E105: £000s | N105: ='Solution Table'!DZ103 -> 0 | O105: ='Solution Table'!EA103 -> 39323.14406 | P105: ='Solution Table'!EB103 -> 66183.46887 | Q105: ='Solution Table'!EC103 -> 76345.43288 | R105: ='Solution Table'!ED103 -> 79703.84105 | T105: =F105+M105 -> 0 | U105: 0 | V105: 39323.14406 | W105: 66183.46887 | X105: 76345.43288 | Y105: 79703.84105
A107: STPSUM67 | C107: Estimated Capital Expenditure Required To Deliver Solutions | E107: £000s | N107: ='Solution Table'!DZ105 -> 0 | O107: ='Solution Table'!EA105 -> 38987.086 | P107: ='Solution Table'!EB105 -> 43987.086 | Q107: ='Solution Table'!EC105 -> 43317.47247 | R107: ='Solution Table'!ED105 -> 36106.5515 | T107: =F107+M107 -> 0 | U107: =G107+N107 -> 0 | V107: =H107+O107 -> 38987.086 | W107: =I107+P107 -> 43987.086 | X107: =J107+Q107 -> 43317.47247 | Y107: =K107+R107 -> 36106.5515
C109: Excludes co-commissioning on PMC
A110: STPSUM68 | C110: B/f CCG Underspend / (Deficit) Cumulative | E110: £000s | H110: ='CCG 1'!L133+'CCG 2'!L133+'CCG 3'!L133+'CCG 4'!L133+'CCG 5'!L133+'CCG 6'!L133+'CCG 7'!L133+'CCG 8'!L133+'CCG 9'!L133+'CCG 10'!L133+'CCG 11'!L133+'CCG 12'!L133 -> 27854 | I110: ='CCG 1'!M133+'CCG 2'!M133+'CCG 3'!M133+'CCG 4'!M133+'CCG 5'!M133+'CCG 6'!M133+'CCG 7'!M133+'CCG 8'!M133+'CCG 9'!M133+'CCG 10'!M133+'CCG 11'!M133+'CCG 12'!M133 -> -45065.52 | J110: ='CCG 1'!N133+'CCG 2'!N133+'CCG 3'!N133+'CCG 4'!N133+'CCG 5'!N133+'CCG 6'!N133+'CCG 7'!N133+'CCG 8'!N133+'CCG 9'!N133+'CCG 10'!N133+'CCG 11'!N133+'CCG 12'!N133 -> -174964.04 | K110: ='CCG 1'!O133+'CCG 2'!O133+'CCG 3'!O133+'CCG 4'!O133+'CCG 5'!O133+'CCG 6'!O133+'CCG 7'!O133+'CCG 8'!O133+'CCG 9'!O133+'CCG 10'!O133+'CCG 11'!O133+'CCG 12'!O133 -> -357725.2427 | V110: =H110 -> 27854 | W110: =V113 -> 29754.9755 | X110: =W113 -> 38016.77661 | Y110: =X113 -> 1720.963842
A111: STPSUM69 | C111: CCG Underspend / (Deficit) In-Year Movement | E111: £000s | H111: ='CCG 1'!L134+'CCG 2'!L134+'CCG 3'!L134+'CCG 4'!L134+'CCG 5'!L134+'CCG 6'!L134+'CCG 7'!L134+'CCG 8'!L134+'CCG 9'!L134+'CCG 10'!L134+'CCG 11'!L134+'CCG 12'!L134 -> -72919.52 | I111: ='CCG 1'!M134+'CCG 2'!M134+'CCG 3'!M134+'CCG 4'!M134+'CCG 5'!M134+'CCG 6'!M134+'CCG 7'!M134+'CCG 8'!M134+'CCG 9'!M134+'CCG 10'!M134+'CCG 11'!M134+'CCG 12'!M134 -> -126786.52 | J111: ='CCG 1'!N134+'CCG 2'!N134+'CCG 3'!N134+'CCG 4'!N134+'CCG 5'!N134+'CCG 6'!N134+'CCG 7'!N134+'CCG 8'!N134+'CCG 9'!N134+'CCG 10'!N134+'CCG 11'!N134+'CCG 12'!N134 -> -180399.2027 | K111: ='CCG 1'!O134+'CCG 2'!O134+'CCG 3'!O134+'CCG 4'!O134+'CCG 5'!O134+'CCG 6'!O134+'CCG 7'!O134+'CCG 8'!O134+'CCG 9'!O134+'CCG 10'!O134+'CCG 11'!O134+'CCG 12'!O134 -> -224615.8092 | O111: =O25-O60 -> 74820.4955 | P111: =P25-P60 -> 138160.3211 | Q111: =Q25-Q60 -> 146465.3899 | R111: =R25-R60 -> 147046.6671 | V111: =H111+O111 -> 1900.975499 | W111: 11373.80111 | X111: -33933.81277 | Y111: -77569.14215
A112: STPSUM70 | C112: CCG (Drawdown) / Draw Up Of Historic Underspend / Overspend | E112: £000s | H112: ='CCG 1'!L135+'CCG 2'!L135+'CCG 3'!L135+'CCG 4'!L135+'CCG 5'!L135+'CCG 6'!L135+'CCG 7'!L135+'CCG 8'!L135+'CCG 9'!L135+'CCG 10'!L135+'CCG 11'!L135+'CCG 12'!L135 -> 0 | I112: ='CCG 1'!M135+'CCG 2'!M135+'CCG 3'!M135+'CCG 4'!M135+'CCG 5'!M135+'CCG 6'!M135+'CCG 7'!M135+'CCG 8'!M135+'CCG 9'!M135+'CCG 10'!M135+'CCG 11'!M135+'CCG 12'!M135 -> -3112 | J112: ='CCG 1'!N135+'CCG 2'!N135+'CCG 3'!N135+'CCG 4'!N135+'CCG 5'!N135+'CCG 6'!N135+'CCG 7'!N135+'CCG 8'!N135+'CCG 9'!N135+'CCG 10'!N135+'CCG 11'!N135+'CCG 12'!N135 -> -2362 | K112: ='CCG 1'!O135+'CCG 2'!O135+'CCG 3'!O135+'CCG 4'!O135+'CCG 5'!O135+'CCG 6'!O135+'CCG 7'!O135+'CCG 8'!O135+'CCG 9'!O135+'CCG 10'!O135+'CCG 11'!O135+'CCG 12'!O135 -> 0 | V112: =H112 -> 0 | W112: -3112 | X112: -2362 | Y112: 0
A113: STPSUM71 | C113: C/f CCG Underspend / (Deficit) Cumulative | E113: £000s | H113: =SUM(H110:H112) -> -45065.52 | I113: -174964.04 | J113: -357725.2427 | K113: -582341.052 | V113: =SUM(V110:V112) -> 29754.9755 | W113: 38016.77661 | X113: 1720.963842 | Y113: -75848.17831
A114: STPSUM72 | C114: Recurrent CCG Programme allocation | E114: £000s | H114: ='CCG 1'!L109+'CCG 2'!L109+'CCG 3'!L109+'CCG 4'!L109+'CCG 5'!L109+'CCG 6'!L109+'CCG 7'!L109+'CCG 8'!L109+'CCG 9'!L109+'CCG 10'!L109+'CCG 11'!L109+'CCG 12'!L109 -> 2379792 | I114: ='CCG 1'!M109+'CCG 2'!M109+'CCG 3'!M109+'CCG 4'!M109+'CCG 5'!M109+'CCG 6'!M109+'CCG 7'!M109+'CCG 8'!M109+'CCG 9'!M109+'CCG 10'!M109+'CCG 11'!M109+'CCG 12'!M109 -> 2439034 | J114: ='CCG 1'!N109+'CCG 2'!N109+'CCG 3'!N109+'CCG 4'!N109+'CCG 5'!N109+'CCG 6'!N109+'CCG 7'!N109+'CCG 8'!N109+'CCG 9'!N109+'CCG 10'!N109+'CCG 11'!N109+'CCG 12'!N109 -> 2502181 | K114: ='CCG 1'!O109+'CCG 2'!O109+'CCG 3'!O109+'CCG 4'!O109+'CCG 5'!O109+'CCG 6'!O109+'CCG 7'!O109+'CCG 8'!O109+'CCG 9'!O109+'CCG 10'!O109+'CCG 11'!O109+'CCG 12'!O109 -> 2603180 | V114: =H114 -> 2379792 | W114: 2439034 | X114: 2502181 | Y114: 2603180
A115: STPSUM73 | C115: CCG Underspend / (Deficit) Cumulative % | E115: £000s | H115: =IFERROR(H113/H114, 0) -> -0.01893674741 | I115: -0.07173497377 | J115: -0.1429653741 | K115: -0.2237037208 | V115: =IFERROR(V113/V114, 0) -> 0.01250318326 | W115: 0.015586817 | X115: 0.0006877855126 | Y115: -0.0291367398

Sheet Solution Control
C6: Solution Control | AG6: Solutions | AJ6: Do Nothing | AK6: Do Something | AM6: Drop Down
AG7: Estates Management | AI7: CCG Allocations | AJ7: ='STP Summary Do Something'!K22+'STP Summary Do Something'!K23+'STP Summary Do Something'!K24 -> 2642982 | AK7: ='STP Summary Do Something'!Y22+'STP Summary Do Something'!Y23+'STP Summary Do Something'!Y24 -> 2642982 | AM7: a. Detailed plans worked up for each element and each organisation
C8: Solutions entered on the Efficiencies/Solutions worksheets can be turned on or off below. Those turned on will flow into the 'do something' position. | AG8: Major Transformation | AI8: Primary Medical Care | AJ8: ='STP Summary Do Something'!K26 -> 280191 | AK8: ='STP Summary Do Something'!Y26 -> 280191 | AM8: b. Detailed plans in place for some but not all elements or organisations
AG9: New Care Model | AI9: Specialised | AJ9: ='STP Summary Do Something'!K27 -> 774522 | AK9: ='STP Summary Do Something'!Y27 -> 774522 | AM9: c. Outline plans in place
AG10: Pathway Changes | AI10: Non-Recurrent Income | AJ10: ='STP Summary Do Something'!K29 -> 0 | AK10: ='STP Summary Do Something'!Y29 -> 0 | AM10: d. Savings estimate based on baseline modelling and potential size of the prize
C11: Solution(s) | D11: On/Off | E11: Impact | K11: STP 2020/21 Summary | AG11: Reduce Costs of Care | AI11: Secondary Care | AJ11: =-'STP Summary Do Something'!K47-'STP Summary Do Something'!K48-'STP Summary Do Something'!K49-'STP Summary Do Something'!K50-'STP Summary Do Something'!K51-'STP Summary Do Something'!K52 -> -2243168.599 | AK11: =-'STP Summary Do Something'!Y47-'STP Summary Do Something'!Y48-'STP Summary Do Something'!Y49-'STP Summary Do Something'!Y50-'STP Summary Do Something'!Y51-'STP Summary Do Something'!Y52 -> -2073197.974 | AM11: e. No detailed plans in place yet
C12: Solution 1 | D12: On | E12: ='Solution Table'!E42 -> 72999.21504 | AG12: Reduce Costs of System Management | AI12: Other | AJ12: =-'STP Summary Do Something'!K53-'STP Summary Do Something'!K54-'STP Summary Do Something'!K55-'STP Summary Do Something'!K56-'STP Summary Do Something'!K57-'STP Summary Do Something'!K58-'STP Summary Do Something'!K59 -> -624429.21 | AK12: =-'STP Summary Do Something'!Y53-'STP Summary Do Something'!Y54-'STP Summary Do Something'!Y55-'STP Summary Do Something'!Y56-'STP Summary Do Something'!Y57-'STP Summary Do Something'!Y58-'STP Summary Do Something'!Y59 -> -647353.1682
C13: Solution 2 | D13: On | E13: ='Solution Table'!E43 -> 187819.5166 | R13: Do Nothing | S13: Solutions | T13: Do Something | AG13: Reduce Demand Growth | AI13: GP | AJ13: =-'STP Summary Do Something'!K61 -> -280191 | AK13: =-'STP Summary Do Something'!Y61 -> -280191
C14: Solution 3 | D14: On | E14: ='Solution Table'!E44 -> 75837.20893 | K14: Commissioner Surplus / (Deficit) | R14: ='STP Summary Do Something'!K11 -> -414952.585 | S14: ='STP Summary Do Something'!R11 -> 337383.4429 | T14: ='STP Summary Do Something'!Y11 -> -77569.14215 | AG14: Workforce management | AI14: Specialised Expenditure | AJ14: =-'STP Summary Do Something'!K62 -> -964858.7758 | AK14: =-'STP Summary Do Something'!Y62 -> -774522
C15: Solution 4 | D15: On | E15: ='Solution Table'!E45 -> 26813.75009 | K15: Provider Surplus / (Deficit) | R15: ='STP Summary Do Something'!K12 -> -519075.1872 | S15: ='STP Summary Do Something'!R12 -> 467580.1908 | T15: ='STP Summary Do Something'!Y12 -> -51494.99645 | AG15: Other (please describe) | AI15: Non-Recurrent Expenditure | AJ15: =-'STP Summary Do Something'!K64 -> 0 | AK15: =-'STP Summary Do Something'!Y64 -> 0
C16: Solution 5 | D16: On | E16: ='Solution Table'!E46 -> -0.0002 | K16: Footprint NHS Surplus / (Deficit) | R16: =SUM(R14:R15) -> -934027.7723 | S16: =SUM(S14:S15) -> 804963.6336 | T16: -129064.1386 | AI16: CCG | AJ16: ='STP Summary Do Something'!K33 -> 2261144.544 | AK16: ='STP Summary Do Something'!Y33 -> 2109489.95
C17: Solution 6 | D17: On | E17: ='Solution Table'!E47 -> -9825.054341 | K17: Indicative STF Allocation 2020/21 | T17: ='STP Summary Do Something'!Y14 -> 134000 | AI17: NHSE | AJ17: ='STP Summary Do Something'!K34 -> 1280724.41 | AK17: ='STP Summary Do Something'!Y34 -> 1280724.41
C18: Solution 7 | D18: On | E18: ='Solution Table'!E48 -> 58510.72267 | K18: Footprint NHS Surplus /(Deficit) after STF Allocation | R18: =SUM(R16:R17) -> -934027.7723 | S18: =SUM(S16:S17) -> 804963.6336 | T18: 4935.861395 | AI18: Other Internal (HEE, S7, LA, BCF) | AJ18: ='STP Summary Do Something'!K35 -> 403846.04 | AK18: ='STP Summary Do Something'!Y35 -> 403846.04
C19: Solution 8 | D19: On | E19: ='Solution Table'!E49 -> 35698.85927 | AI19: Other External | AJ19: ='STP Summary Do Something'!K36 -> 239764.1463 | AK19: ='STP Summary Do Something'!Y36 -> 239764.1463
C20: Solution 9 | D20: On | E20: ='Solution Table'!E50 -> 61721.46172 | K20: Social Care And Other Surplus / (Deficit) | R20: ='STP Summary Do Something'!K17 -> 0 | S20: ='STP Summary Do Something'!R17 -> 0 | T20: ='STP Summary Do Something'!Y17 -> 0 | AI20: Non-Recurrent Income | AJ20: ='STP Summary Do Something'!K38 -> 0 | AK20: ='STP Summary Do Something'!Y38 -> 0
C21: Solution 10 | D21: On | E21: ='Solution Table'!E51 -> 32026.18503 | AI21: Workforce - Substantive | AJ21: =-'STP Summary Do Something'!K68 -> -2623261.757 | AK21: =-'STP Summary Do Something'!Y68 -> -2312630.85
C22: Solution 11 | D22: On | E22: ='Solution Table'!E52 -> 60825.40002 | AI22: Workforce - Agency | AJ22: =-'STP Summary Do Something'!K69 -> -120434.6677 | AK22: =-'STP Summary Do Something'!Y69 -> -72090.95317
C23: Solution 12 | D23: On | E23: ='Solution Table'!E53 -> 202536.3688 | AI23: Drugs | AJ23: =-'STP Summary Do Something'!K70 -> -413540.0649 | AK23: =-'STP Summary Do Something'!Y70 -> -337953.9301
AI24: Other | AJ24: =-'STP Summary Do Something'!K71-'STP Summary Do Something'!K72-'STP Summary Do Something'!K73-'STP Summary Do Something'!K74 -> -1547317.838 | AK24: =-'STP Summary Do Something'!Y71-'STP Summary Do Something'!Y72-'STP Summary Do Something'!Y73-'STP Summary Do Something'!Y74 -> -1362643.809
C25: STP 2020/21 'Do Nothing' to 'Do Something' NHS Bridge - Providers and Commissioners only | K25: STP 2020/21 'Do Nothing' to 'Do Something' NHS, Social Care And Other Bridge - Providers, Commissioners and Others | AI25: Non-Recurrent Expenditure | AJ25: =-'STP Summary Do Something'!K76 -> 0 | AK25: =-'STP Summary Do Something'!Y76 -> 0
AI26: BCF and Other Income | AJ26: ='STP Summary Do Something'!K41 -> 14732.00001 | AK26: ='STP Summary Do Something'!Y41 -> 14732.00001
AI27: BCF and Other Expenditure | AJ27: =-'STP Summary Do Something'!K79 -> -14732.00001 | AK27: =-'STP Summary Do Something'!Y79 -> -14732.00001
C55: STP 'Do Nothing' NHS 2020/21 Bridge - Providers and Commissioners only | K55: STP 'Do Something' NHS 2020/21 Bridge - Providers and Commissioners Only
C86: STP 'Do Nothing' NHS, Social Care And Other 2020/21 Bridge - Providers, Commissioners and Other | K86: STP 'Do Something' NHS Social Care And Other 2020/21 Bridge - Providers, Commissioners and Other
C120: STP 'Do Nothing' v 'Do Something' Outturn | K120: STP 'Do Nothing' v 'Do Something' Activity
C145: STP 'Do Nothing' v 'Do Something' Workforce Count | K145: STP 'Do Nothing' v 'Do Something' Capital Expenditure

Sheet Capital Expenditure
C2: Desc | E2: Unit | F2: DoNothing | G2: DoNothing | H2: DoNothing | I2: DoNothing | J2: DoNothing | K2: DoNothing | O2: NewCapex | P2: NewCapex | Q2: NewCapex | R2: NewCapex | V2: CapexImp | W2: CapexImp | X2: CapexImp | Y2: CapexImp | AA2: DoSomething | AB2: DoSomething | AC2: DoSomething | AD2: DoSomething | AE2: DoSomething | AF2: DoSomething
C3: Year | E3: Year | F3: Year | G3: Year | H3: Year | I3: Year | J3: Year | K3: Year | O3: Year | P3: Year | Q3: Year | R3: Year | V3: Year | W3: Year | X3: Year | Y3: Year | AA3: Year | AB3: Year | AC3: Year | AD3: Year | AE3: Year | AF3: Year
C4: 31/03/2017 | E4: 31/03/2017 | F4: 31/03/2016 | G4: 31/03/2017 | H4: 31/03/2018 | I4: 31/03/2019 | J4: 31/03/2020 | K4: 31/03/2021 | O4: 31/03/2018 | P4: 31/03/2019 | Q4: 31/03/2020 | R4: 31/03/2021 | V4: 31/03/2018 | W4: 31/03/2019 | X4: 31/03/2020 | Y4: 31/03/2021 | AA4: 31/03/2016 | AB4: 31/03/2017 | AC4: 31/03/2018 | AD4: 31/03/2019 | AE4: 31/03/2020 | AF4: 31/03/2021
C6: ='STP Summary Do Something'!$C$6 -> South East London | F6: 2015/16 | G6: 2016/17 | H6: 2017/18 | I6: 2018/19 | J6: 2019/20 | K6: 2020/21 | M6: 2015/16 | N6: 2016/17 | O6: 2017/18 | P6: 2018/19 | Q6: 2019/20 | R6: 2020/21 | T6: 2015/16 | U6: 2016/17 | V6: 2017/18 | W6: 2018/19 | X6: 2019/20 | Y6: 2020/21 | AA6: 2015/16 | AB6: 2016/17 | AC6: 2017/18 | AD6: 2018/19 | AE6: 2019/20 | AF6: 2020/21
F8: Do Nothing | M8: Solutions - Estimated Capital Expenditure Required To Deliver Solution | T8: Solutions - Estimated Impact Of Solution On Capital Expenditure | AA8: Do Something
A9: STPCAP01 | C9: Do Nothing Commissioner Capital Expenditure (Including Primary Care) | E9: £000s | F9: ='CCG 1'!H54+'CCG 2'!H54+'CCG 3'!H54+'CCG 4'!H54+'CCG 5'!H54+'CCG 6'!H54+'CCG 7'!H54+'CCG 8'!H54+'CCG 9'!H54+'CCG 10'!H54+'CCG 11'!H54+'CCG 12'!H54 -> 6e-05 | G9: ='CCG 1'!K54+'CCG 2'!K54+'CCG 3'!K54+'CCG 4'!K54+'CCG 5'!K54+'CCG 6'!K54+'CCG 7'!K54+'CCG 8'!K54+'CCG 9'!K54+'CCG 10'!K54+'CCG 11'!K54+'CCG 12'!K54 -> 720.05 | H9: ='CCG 1'!L54+'CCG 2'!L54+'CCG 3'!L54+'CCG 4'!L54+'CCG 5'!L54+'CCG 6'!L54+'CCG 7'!L54+'CCG 8'!L54+'CCG 9'!L54+'CCG 10'!L54+'CCG 11'!L54+'CCG 12'!L54 -> 0.06 | I9: ='CCG 1'!M54+'CCG 2'!M54+'CCG 3'!M54+'CCG 4'!M54+'CCG 5'!M54+'CCG 6'!M54+'CCG 7'!M54+'CCG 8'!M54+'CCG 9'!M54+'CCG 10'!M54+'CCG 11'!M54+'CCG 12'!M54 -> 0.06 | J9: ='CCG 1'!N54+'CCG 2'!N54+'CCG 3'!N54+'CCG 4'!N54+'CCG 5'!N54+'CCG 6'!N54+'CCG 7'!N54+'CCG 8'!N54+'CCG 9'!N54+'CCG 10'!N54+'CCG 11'!N54+'CCG 12'!N54 -> 0.06 | K9: ='CCG 1'!O54+'CCG 2'!O54+'CCG 3'!O54+'CCG 4'!O54+'CCG 5'!O54+'CCG 6'!O54+'CCG 7'!O54+'CCG 8'!O54+'CCG 9'!O54+'CCG 10'!O54+'CCG 11'!O54+'CCG 12'!O54 -> 0.06
A10: STPCAP02 | C10: Do Nothing Provider Capital Expenditure | E10: £000s | F10: ='Trust 1'!H42+'Trust 2'!H42+'Trust 3'!H42+'Trust 4'!H42+'Trust 5'!H42+'Trust 6'!H42+'Trust 7'!H42+'Trust 8'!H42+'Trust 9'!H42+'Trust 10'!H42+'Trust 11'!H42+'Trust 12'!H42+'Trust 13'!H42+'Trust 14'!H42+'Trust 15'!H42+'Trust 16'!H42+'Trust 17'!H42+'Trust 18'!H42+'Trust 19'!H42+'Trust AMB 1'!H42+'Trust AMB 2'!H42 -> 190026.04 | G10: ='Trust 1'!K42+'Trust 2'!K42+'Trust 3'!K42+'Trust 4'!K42+'Trust 5'!K42+'Trust 6'!K42+'Trust 7'!K42+'Trust 8'!K42+'Trust 9'!K42+'Trust 10'!K42+'Trust 11'!K42+'Trust 12'!K42+'Trust 13'!K42+'Trust 14'!K42+'Trust 15'!K42+'Trust 16'!K42+'Trust 17'!K42+'Trust 18'!K42+'Trust 19'!K42+'Trust AMB 1'!K42+'Trust AMB 2'!K42 -> 307562.9246 | H10: ='Trust 1'!L42+'Trust 2'!L42+'Trust 3'!L42+'Trust 4'!L42+'Trust 5'!L42+'Trust 6'!L42+'Trust 7'!L42+'Trust 8'!L42+'Trust 9'!L42+'Trust 10'!L42+'Trust 11'!L42+'Trust 12'!L42+'Trust 13'!L42+'Trust 14'!L42+'Trust 15'!L42+'Trust 16'!L42+'Trust 17'!L42+'Trust 18'!L42+'Trust 19'!L42+'Trust AMB 1'!L42+'Trust AMB 2'!L42 -> 209708.1777 | I10: ='Trust 1'!M42+'Trust 2'!M42+'Trust 3'!M42+'Trust 4'!M42+'Trust 5'!M42+'Trust 6'!M42+'Trust 7'!M42+'Trust 8'!M42+'Trust 9'!M42+'Trust 10'!M42+'Trust 11'!M42+'Trust 12'!M42+'Trust 13'!M42+'Trust 14'!M42+'Trust 15'!M42+'Trust 16'!M42+'Trust 17'!M42+'Trust 18'!M42+'Trust 19'!M42+'Trust AMB 1'!M42+'Trust AMB 2'!M42 -> 154205.7318 | J10: ='Trust 1'!N42+'Trust 2'!N42+'Trust 3'!N42+'Trust 4'!N42+'Trust 5'!N42+'Trust 6'!N42+'Trust 7'!N42+'Trust 8'!N42+'Trust 9'!N42+'Trust 10'!N42+'Trust 11'!N42+'Trust 12'!N42+'Trust 13'!N42+'Trust 14'!N42+'Trust 15'!N42+'Trust 16'!N42+'Trust 17'!N42+'Trust 18'!N42+'Trust 19'!N42+'Trust AMB 1'!N42+'Trust AMB 2'!N42 -> 137103.5039 | K10: ='Trust 1'!O42+'Trust 2'!O42+'Trust 3'!O42+'Trust 4'!O42+'Trust 5'!O42+'Trust 6'!O42+'Trust 7'!O42+'Trust 8'!O42+'Trust 9'!O42+'Trust 10'!O42+'Trust 11'!O42+'Trust 12'!O42+'Trust 13'!O42+'Trust 14'!O42+'Trust 15'!O42+'Trust 16'!O42+'Trust 17'!O42+'Trust 18'!O42+'Trust 19'!O42+'Trust AMB 1'!O42+'Trust AMB 2'!O42 -> 123643.8912
A11: STPCAP03 | C11: Total Capital Expenditure | E11: £000s | F11: =SUM(F9:F10) -> 190026.0401 | G11: =SUM(G9:G10) -> 308282.9746 | H11: =SUM(H9:H10) -> 209708.2377 | I11: =SUM(I9:I10) -> 154205.7918 | J11: =SUM(J9:J10) -> 137103.5639 | K11: =SUM(K9:K10) -> 123643.9512 | O11: ='Solution 1'!H101+'Solution 2'!H101+'Solution 3'!H101+'Solution 4'!H101+'Solution 5'!H101+'Solution 6'!H101+'Solution 7'!H101+'Solution 8'!H101+'Solution 9'!H101+'Solution 10'!H101+'Solution 11'!H101+'Solution 12'!H101 -> 38987.086 | P11: ='Solution 1'!I101+'Solution 2'!I101+'Solution 3'!I101+'Solution 4'!I101+'Solution 5'!I101+'Solution 6'!I101+'Solution 7'!I101+'Solution 8'!I101+'Solution 9'!I101+'Solution 10'!I101+'Solution 11'!I101+'Solution 12'!I101 -> 43987.086 | Q11: ='Solution 1'!J101+'Solution 2'!J101+'Solution 3'!J101+'Solution 4'!J101+'Solution 5'!J101+'Solution 6'!J101+'Solution 7'!J101+'Solution 8'!J101+'Solution 9'!J101+'Solution 10'!J101+'Solution 11'!J101+'Solution 12'!J101 -> 43317.47247 | R11: ='Solution 1'!K101+'Solution 2'!K101+'Solution 3'!K101+'Solution 4'!K101+'Solution 5'!K101+'Solution 6'!K101+'Solution 7'!K101+'Solution 8'!K101+'Solution 9'!K101+'Solution 10'!K101+'Solution 11'!K101+'Solution 12'!K101 -> 36106.5515 | V11: ='Solution 1'!H44+'Solution 1'!H87+'Solution 2'!H44+'Solution 2'!H87+'Solution 3'!H44+'Solution 3'!H87+'Solution 4'!H44+'Solution 4'!H87+'Solution 5'!H44+'Solution 5'!H87+'Solution 6'!H44+'Solution 6'!H87+'Solution 7'!H44+'Solution 7'!H87+'Solution 8'!H44+'Solution 8'!H87+'Solution 9'!H44+'Solution 9'!H87+'Solution 10'!H44+'Solution 10'!H87+'Solution 11'!H44+'Solution 11'!H87+'Solution 12'!H44+'Solution 12'!H87 -> 0.0023 | W11: ='Solution 1'!I44+'Solution 1'!I87+'Solution 2'!I44+'Solution 2'!I87+'Solution 3'!I44+'Solution 3'!I87+'Solution 4'!I44+'Solution 4'!I87+'Solution 5'!I44+'Solution 5'!I87+'Solution 6'!I44+'Solution 6'!I87+'Solution 7'!I44+'Solution 7'!I87+'Solution 8'!I44+'Solution 8'!I87+'Solution 9'!I44+'Solution 9'!I87+'Solution 10'!I44+'Solution 10'!I87+'Solution 11'!I44+'Solution 11'!I87+'Solution 12'!I44+'Solution 12'!I87 -> 0.0023 | X11: ='Solution 1'!J44+'Solution 1'!J87+'Solution 2'!J44+'Solution 2'!J87+'Solution 3'!J44+'Solution 3'!J87+'Solution 4'!J44+'Solution 4'!J87+'Solution 5'!J44+'Solution 5'!J87+'Solution 6'!J44+'Solution 6'!J87+'Solution 7'!J44+'Solution 7'!J87+'Solution 8'!J44+'Solution 8'!J87+'Solution 9'!J44+'Solution 9'!J87+'Solution 10'!J44+'Solution 10'!J87+'Solution 11'!J44+'Solution 11'!J87+'Solution 12'!J44+'Solution 12'!J87 -> 0.0023 | Y11: ='Solution 1'!K44+'Solution 1'!K87+'Solution 2'!K44+'Solution 2'!K87+'Solution 3'!K44+'Solution 3'!K87+'Solution 4'!K44+'Solution 4'!K87+'Solution 5'!K44+'Solution 5'!K87+'Solution 6'!K44+'Solution 6'!K87+'Solution 7'!K44+'Solution 7'!K87+'Solution 8'!K44+'Solution 8'!K87+'Solution 9'!K44+'Solution 9'!K87+'Solution 10'!K44+'Solution 10'!K87+'Solution 11'!K44+'Solution 11'!K87+'Solution 12'!K44+'Solution 12'!K87 -> 0.0023 | AA11: =F11+M11+T11 -> 190026.0401 | AB11: =G11+N11+U11 -> 308282.9746 | AC11: =H11+O11+V11 -> 248695.326 | AD11: =I11+P11+W11 -> 198192.8801 | AE11: =J11+Q11+X11 -> 180421.0387 | AF11: =K11+R11+Y11 -> 159750.505 | AJ11: Signage
C14: Disaggregation of Total Footprint Capital Expenditure by Funding Sources | F14: Do Nothing | M14: Solutions - Estimated Capital Expenditure Required To Deliver Solution | T14: Solutions - Estimated Impact Of Solution On Capital Expenditure | Y14: i | AA14: Do Something
O15: i | V15: i | AJ15: i
A16: STPCAP04 | C16: Proceeds from Disposals (local capital receipts) | D16: i | E16: £000s | F16: -5 | G16: 25972 | H16: 13900 | I16: 0 | J16: 0 | K16: 0 | O16: 0 | P16: 0 | Q16: 0 | R16: 0 | V16: 0 | W16: 0 | X16: 0 | Y16: 0 | AA16: =F16+M16+T16 -> -5 | AB16: =G16+N16+U16 -> 25972 | AC16: =H16+O16+V16 -> 13900 | AD16: =I16+P16+W16 -> 0 | AE16: =J16+Q16+X16 -> 0 | AF16: =K16+R16+Y16 -> 0 | AJ16: =IF(COUNTIF(O16:R16, "<0")>0, "ERROR", "OK") -> OK
A17: STPCAP05 | C17: Depreciation | E17: £000s | F17: 26409 | G17: 68927 | H17: 65488 | I17: 83130 | J17: 72550 | K17: 71430 | O17: 0 | P17: 0 | Q17: 0 | R17: 0 | V17: 0 | W17: 0 | X17: 0 | Y17: 0 | AA17: 26409 | AB17: 68927 | AC17: 65488 | AD17: 83130 | AE17: 72550 | AF17: 71430 | AJ17: =IF(COUNTIF(O17:R17, "<0")>0, "ERROR", "OK") -> OK
A18: STPCAP06 | C18: Internally Generated (e.g. accumulated cash) | E18: £000s | F18: 95098.04 | G18: 72304.5192 | H18: 64762.475 | I18: 59047.975 | J18: 53300.585 | K18: 49643.675 | O18: 0 | P18: 0 | Q18: 0 | R18: 0 | V18: 0 | W18: 0 | X18: 0 | Y18: 0 | AA18: 95098.04 | AB18: 72304.5192 | AC18: 64762.475 | AD18: 59047.975 | AE18: 53300.585 | AF18: 49643.675 | AJ18: OK
A19: STPCAP07 | C19: Grants or Donations | E19: £000s | F19: 33981 | G19: 3068 | H19: 813 | I19: 0 | J19: 0 | K19: 0 | O19: 0 | P19: 0 | Q19: 0 | R19: 0 | V19: 0 | W19: 0 | X19: 0 | Y19: 0 | AA19: 33981 | AB19: 3068 | AC19: 813 | AD19: 0 | AE19: 0 | AF19: 0 | AJ19: OK
A20: STPCAP08 | C20: PDC - already approved | D20: i | E20: £000s | F20: 15880 | G20: 1419.81982 | H20: 13243.24324 | I20: 5108.108108 | J20: 4036.036036 | K20: 4792.792793 | O20: 0 | P20: 0 | Q20: 0 | R20: 0 | V20: 0 | W20: 0 | X20: 0 | Y20: 0 | AA20: 15880 | AB20: 1419.81982 | AC20: 13243.24324 | AD20: 5108.108108 | AE20: 4036.036036 | AF20: 4792.792793 | AJ20: OK
A21: STPCAP09 | C21: PDC - still to be approved | E21: £000s | F21: 0 | G21: 13624 | H21: 1900 | I21: 0 | J21: 0 | K21: 0 | O21: 0 | P21: 0 | Q21: 0 | R21: 0 | V21: 0 | W21: 0 | X21: 0 | Y21: 0 | AA21: 0 | AB21: 13624 | AC21: 1900 | AD21: 0 | AE21: 0 | AF21: 0 | AJ21: OK
A22: STPCAP10 | C22: DH Loan - already approved | D22: i | E22: £000s | F22: 9000 | G22: 97693.5 | H22: 42459 | I22: 8445 | J22: 10480 | K22: 920 | O22: 0 | P22: 0 | Q22: 0 | R22: 0 | V22: 0 | W22: 0 | X22: 0 | Y22: 0 | AA22: 9000 | AB22: 97693.5 | AC22: 42459 | AD22: 8445 | AE22: 10480 | AF22: 920 | AJ22: OK
A23: STPCAP11 | C23: DH Loan - still to be approved | E23: £000s | F23: 5561 | G23: 585.5855856 | H23: 9459.459459 | I23: 3648.648649 | J23: 2882.882883 | K23: 3423.423423 | O23: =O11-O26 -> 0.0009999999747 | P23: =P11-P26 -> 5000.001 | Q23: 7210.921966 | R23: 0.0009999999747 | V23: 0 | W23: 0 | X23: 0 | Y23: 0 | AA23: 5561 | AB23: 585.5855856 | AC23: 9459.460459 | AD23: 8648.649649 | AE23: 10093.80485 | AF23: 3423.424423 | AJ23: OK
A24: STPCAP12 | C24: Commercial Borrowing - already approved | D24: i | E24: £000s | F24: 0 | G24: -787 | H24: 0 | I24: 0 | J24: 0 | K24: 0 | O24: 0 | P24: 0 | Q24: 0 | R24: 0 | V24: 0 | W24: 0 | X24: 0 | Y24: 0 | AA24: 0 | AB24: -787 | AC24: 0 | AD24: 0 | AE24: 0 | AF24: 0 | AJ24: OK
A25: STPCAP13 | C25: Commercial Borrowing - still to be approved | E25: £000s | F25: 0 | G25: 2237 | H25: -3178 | I25: -5174 | J25: -6146 | K25: -6566 | O25: 0 | P25: 0 | Q25: 0 | R25: 0 | V25: 0 | W25: 0 | X25: 0 | Y25: 0 | AA25: 0 | AB25: 2237 | AC25: -3178 | AD25: -5174 | AE25: -6146 | AF25: -6566 | AJ25: OK
A26: STPCAP14 | C26: Other - please add explanation below | E26: £000s | F26: 144 | G26: 16679.5 | H26: 0 | I26: 0 | J26: 0 | K26: 0 | O26: 38987.085 | P26: 38987.085 | Q26: 36106.5505 | R26: 36106.5505 | V26: 0 | W26: 0 | X26: 0 | Y26: 0 | AA26: 144 | AB26: 16679.5 | AC26: 38987.085 | AD26: 38987.085 | AE26: 36106.5505 | AF26: 36106.5505 | AJ26: OK
A27: STPCAP15 | C27: Unknown - to be determined | E27: £000s | F27: 3958 | G27: 6559 | H27: 861 | I27: 0 | J27: 0 | K27: 0 | O27: 0 | P27: 0 | Q27: 0 | R27: 0 | V27: 0 | W27: 0 | X27: 0 | Y27: 0 | AA27: 3958 | AB27: 6559 | AC27: 861 | AD27: 0 | AE27: 0 | AF27: 0 | AJ27: OK
A28: STPCAP16 | C28: Total Capex (Funding Sources) | E28: £000s | F28: =SUM(F16:F27) -> 190026.04 | G28: =SUM(G16:G27) -> 308282.9246 | H28: =SUM(H16:H27) -> 209708.1777 | I28: =SUM(I16:I27) -> 154205.7318 | J28: =SUM(J16:J27) -> 137103.5039 | K28: =SUM(K16:K27) -> 123643.8912 | O28: =SUM(O16:O27) -> 38987.086 | P28: =SUM(P16:P27) -> 43987.086 | Q28: =SUM(Q16:Q27) -> 43317.47247 | R28: =SUM(R16:R27) -> 36106.5515 | V28: =SUM(V16:V27) -> 0 | W28: =SUM(W16:W27) -> 0 | X28: =SUM(X16:X27) -> 0 | Y28: =SUM(Y16:Y27) -> 0 | AA28: =SUM(AA16:AA27) -> 190026.04 | AB28: =SUM(AB16:AB27) -> 308282.9246 | AC28: =SUM(AC16:AC27) -> 248695.2637 | AD28: =SUM(AD16:AD27) -> 198192.8178 | AE28: =SUM(AE16:AE27) -> 180420.9764 | AF28: =SUM(AF16:AF27) -> 159750.4427
A29: STPCAP17 | C29: Of which is currently committed in DH plans | E29: £000s | F29: 0 | G29: 0 | H29: 0 | I29: 0 | J29: 0 | K29: 0 | O29: 0 | P29: 0 | Q29: 0 | R29: 0 | V29: 0 | W29: 0 | X29: 0 | Y29: 0 | AA29: =F29+M29+T29 -> 0 | AB29: 0 | AC29: 0 | AD29: 0 | AE29: 0 | AF29: 0
C30: Check | D30: i | F30: =IF(ROUND(F28, 0)=ROUND(F11, 0), "OK", "ERROR") -> OK | G30: =IF(ROUND(G28, 0)=ROUND(G11, 0), "OK", "ERROR") -> OK | H30: OK | I30: OK | J30: OK | K30: OK | O30: =IF(ROUND(O28, 0)=ROUND(O11, 0), "OK", "ERROR") -> OK | P30: =IF(ROUND(P28, 0)=ROUND(P11, 0), "OK", "ERROR") -> OK | Q30: OK | R30: OK | V30: =IF(ROUND(V28, 0)=ROUND(V11, 0), "OK", "ERROR") -> OK | W30: OK | X30: OK | Y30: OK
C31: Explanation of Other Funding Source | D31: i | E31: Text | F31: £20m of DH Loan to be approved relates to a loan for LGT PFI infrastructure which has been agreed for the template with NHSI (business case process underway). £17m of Other funding source relates to distress capital funding across 38 schemes at KCHT (agreed for inclusion with NHSI). Negative commercial borrowing is for principle repayments of new and existing commercial loans for LGT. | M31: There is capital expenditure associated with the delivery of the Elective Orthopaedic Centre in South London. However, this information is currently commercially sensitive, as there is an ongoing evaluation process underway for the selection of the sites which will host the EOC.
C33: Disaggregation of Total Footprint Capital Expenditure by Capital Category | F33: Do Nothing | M33: Solutions - Estimated Capital Expenditure Required To Deliver Solution | T33: Solutions - Estimated Impact Of Solution On Capital Expenditure | Y33: i | AA33: Do Something
O34: i | V34: i | AJ34: i
A35: STPCAP18 | C35: Property, Land and Buildings | E35: £000s | F35: 48763.4715 | G35: 139124.4054 | H35: 55465.7027 | I35: 51583.75676 | J35: 40540.91892 | K35: 21540.21622 | O35: 19143.7295 | P35: 24143.7295 | Q35: 34567.47147 | R35: 27356.5505 | V35: 0 | W35: 0 | X35: 0 | Y35: 0 | AA35: =F35+M35+T35 -> 48763.4715 | AB35: =G35+N35+U35 -> 139124.4054 | AC35: =H35+O35+V35 -> 74609.4322 | AD35: =I35+P35+W35 -> 75727.48626 | AE35: =J35+Q35+X35 -> 75108.39038 | AF35: =K35+R35+Y35 -> 48896.76672 | AJ35: =IF(COUNTIF(O35:R35, "<0")>0, "ERROR", "OK") -> OK
A36: STPCAP19 | C36: Plant and Equipment | E36: £000s | F36: 29041.72823 | G36: 40521 | H36: 50132 | I36: 31326 | J36: 34014 | K36: 26760 | O36: 0 | P36: 0 | Q36: 0 | R36: 0 | V36: 0 | W36: 0 | X36: 0 | Y36: 0 | AA36: 29041.72823 | AB36: 40521 | AC36: 50132 | AD36: 31326 | AE36: 34014 | AF36: 26760 | AJ36: =IF(COUNTIF(O36:R36, "<0")>0, "ERROR", "OK") -> OK
A37: STPCAP20 | C37: Backlog Maintenance | E37: £000s | F37: 62281.04148 | G37: 63150.83 | H37: 60157 | I37: 36805 | J37: 28683 | K37: 24506 | O37: 0 | P37: 0 | Q37: 0 | R37: 0 | V37: 0 | W37: 0 | X37: 0 | Y37: 0 | AA37: 62281.04148 | AB37: 63150.83 | AC37: 60157 | AD37: 36805 | AE37: 28683 | AF37: 24506 | AJ37: OK
A38: STPCAP21 | C38: IT | E38: £000s | F38: 25955.07748 | G38: 55222.762 | H38: 32986 | I38: 22505 | J38: 22837 | K38: 20165 | O38: 19843.3555 | P38: 19843.3555 | Q38: 8750 | R38: 8750 | V38: 0 | W38: 0 | X38: 0 | Y38: 0 | AA38: 25955.07748 | AB38: 55222.762 | AC38: 52829.3555 | AD38: 42348.3555 | AE38: 31587 | AF38: 28915 | AJ38: OK
A39: STPCAP22 | C39: Other | E39: £000s | F39: 23984.72131 | G39: 10263.9272 | H39: 10967.475 | I39: 11985.975 | J39: 11028.585 | K39: 30672.675 | O39: 0 | P39: 0 | Q39: 0 | R39: 0 | V39: 0 | W39: 0 | X39: 0 | Y39: 0 | AA39: 23984.72131 | AB39: 10263.9272 | AC39: 10967.475 | AD39: =I39+P39+W39 -> 11985.975 | AE39: 11028.585 | AF39: =K39+R39+Y39 -> 30672.675 | AJ39: OK
A40: STPCAP23 | C40: Total Capex (Capital Category) | E40: £000s | F40: =SUM(F35:F39) -> 190026.04 | G40: =SUM(G35:G39) -> 308282.9246 | H40: =SUM(H35:H39) -> 209708.1777 | I40: =SUM(I35:I39) -> 154205.7318 | J40: =SUM(J35:J39) -> 137103.5039 | K40: =SUM(K35:K39) -> 123643.8912 | O40: =SUM(O35:O39) -> 38987.085 | P40: =SUM(P35:P39) -> 43987.085 | Q40: =SUM(Q35:Q39) -> 43317.47147 | R40: =SUM(R35:R39) -> 36106.5505 | V40: =SUM(V35:V39) -> 0 | W40: =SUM(W35:W39) -> 0 | X40: =SUM(X35:X39) -> 0 | Y40: =SUM(Y35:Y39) -> 0 | AA40: =SUM(AA35:AA39) -> 190026.04 | AB40: =SUM(AB35:AB39) -> 308282.9246 | AC40: =SUM(AC35:AC39) -> 248695.2627 | AD40: =SUM(AD35:AD39) -> 198192.8168 | AE40: =SUM(AE35:AE39) -> 180420.9754 | AF40: =SUM(AF35:AF39) -> 159750.4417
A41: STPCAP24 | C41: Of which is currently committed in DH plans | E41: £000s | F41: 0 | G41: 0 | H41: 0 | I41: 0 | J41: 0 | K41: 0 | O41: 0 | P41: 0 | Q41: 0 | R41: 0 | V41: 0 | W41: 0 | X41: 0 | Y41: 0 | AA41: =F41+M41+T41 -> 0 | AB41: 0 | AC41: 0 | AD41: 0 | AE41: 0 | AF41: 0
D42: i | F42: =IF(ROUND(F40, 0)=ROUND(F11, 0), "OK", "ERROR") -> OK | G42: =IF(ROUND(G40, 0)=ROUND(G11, 0), "OK", "ERROR") -> OK | H42: OK | I42: OK | J42: OK | K42: OK | O42: =IF(ROUND(O40, 0)=ROUND(O11, 0), "OK", "ERROR") -> OK | P42: =IF(ROUND(P40, 0)=ROUND(P11, 0), "OK", "ERROR") -> OK | Q42: =IF(ROUND(Q40, 0)=ROUND(Q11, 0), "OK", "ERROR") -> OK | R42: =IF(ROUND(R40, 0)=ROUND(R11, 0), "OK", "ERROR") -> OK | V42: =IF(ROUND(V40, 0)=ROUND(V11, 0), "OK", "ERROR") -> OK | W42: =IF(ROUND(W40, 0)=ROUND(W11, 0), "OK", "ERROR") -> OK | X42: =IF(ROUND(X40, 0)=ROUND(X11, 0), "OK", "ERROR") -> OK | Y42: =IF(ROUND(Y40, 0)=ROUND(Y11, 0), "OK", "ERROR") -> OK
C44: Estimated Revenue Changes From The Additional Capital Investment Required To Deliver Transformational Schemes | AA44: Do Something | AC44: i
A45: STPCAP25 | C45: Depreciation Charge | D45: i | E45: £000s | AC45: 0 | AD45: 0 | AE45: 0 | AF45: 0
A46: STPCAP26 | C46: PDC Dividend Charge | D46: i | E46: £000s | AC46: 0 | AD46: 0 | AE46: 0 | AF46: 0
A47: STPCAP27 | C47: Revenue Staffing Costs | D47: i | E47: £000s | AC47: 0 | AD47: 0 | AE47: 0 | AF47: 0
A48: STPCAP28 | C48: Revenue Infrastructure and Non Pay Costs (e.g. rent, rates, energy etc) | D48: i | E48: £000s | AC48: 0 | AD48: 0 | AE48: 0 | AF48: 0
A49: STPCAP29 | C49: Interest On Commercial Or Other Borrowings | D49: i | E49: £000s | AC49: 0 | AD49: 0 | AE49: 0 | AF49: 0
A50: STPCAP30 | C50: Total Estimated Revenue Changes For The Additional Capital Investment | E50: £000s | AC50: =SUM(AC45:AC49) -> 0 | AD50: =SUM(AD45:AD49) -> 0 | AE50: =SUM(AE45:AE49) -> 0 | AF50: =SUM(AF45:AF49) -> 0
C52: Summary Of Footprint Capital Expenditure
A54: STPCAP31 | C54: On-Going (Do Nothing) | E54: £000s | AA54: =SUM(F35:F36,F38:F39) -> 127744.9985 | AB54: 245132.0946 | AC54: 149551.1777 | AD54: 117400.7318 | AE54: 108420.5039 | AF54: 99137.89122
A55: STPCAP32 | C55: Backlog Maintenance (Do Nothing) | E55: £000s | AA55: =F37 -> 62281.04148 | AB55: 63150.83 | AC55: 60157 | AD55: 36805 | AE55: 28683 | AF55: 24506
A56: STPCAP33 | C56: Total Do Nothing On-Going and Backlog Maintenance | E56: £000s | AA56: =SUM(AA54:AA55) -> 190026.04 | AB56: =SUM(AB54:AB55) -> 308282.9246 | AC56: =SUM(AC54:AC55) -> 209708.1777 | AD56: =SUM(AD54:AD55) -> 154205.7318 | AE56: =SUM(AE54:AE55) -> 137103.5039 | AF56: =SUM(AF54:AF55) -> 123643.8912
A57: STPCAP34 | C57: Total New Capital Expenditure Required To Implement Solutions | E57: £000s | AC57: =O40 -> 38987.085 | AD57: =P40 -> 43987.085 | AE57: =Q40 -> 43317.47147 | AF57: =R40 -> 36106.5505
A58: STPCAP35 | C58: Reduction In Do Nothing Capital Expenditure As A Result Of Solutions | E58: £000s | AC58: =V40 -> 0 | AD58: =W40 -> 0 | AE58: =X40 -> 0 | AF58: =Y40 -> 0
A59: STPCAP36 | C59: Net Capital Effect Of Implementing Transformational Solutions | E59: £000s | AC59: =SUM(AC57:AC58) -> 38987.085 | AD59: =SUM(AD57:AD58) -> 43987.085 | AE59: =SUM(AE57:AE58) -> 43317.47147 | AF59: =SUM(AF57:AF58) -> 36106.5505
A60: STPCAP37 | C60: Total Do Something Capital Expenditure | E60: £000s | AA60: =AA56+AA59 -> 190026.04 | AB60: =AB56+AB59 -> 308282.9246 | AC60: =AC56+AC59 -> 248695.2627 | AD60: =AD56+AD59 -> 198192.8168 | AE60: =AE56+AE59 -> 180420.9754 | AF60: =AF56+AF59 -> 159750.4417
A61: STPCAP38 | C61: of which is currently committed in DH plans | E61: £000s | AA61: =AA41 -> 0 | AB61: 0 | AC61: 0 | AD61: 0 | AE61: 0 | AF61: 0
C63: Disaggregation of Solution Capital Expenditure
C65: Summary Of Capital Expenditure By Solution - Capex | M65: Solutions - Estimated Capital Expenditure Required To Deliver Solution | T65: Solutions - Estimated Impact Of Solution On Capital Expenditure | AA65: Solutions - Net Capital Expenditure
O66: i | V66: i
A67: STPCAP39 | C67: Solution 1 | E67: £000s | O67: ='Solution 1'!H$101 -> 38987.085 | P67: ='Solution 1'!I$101 -> 38987.085 | Q67: ='Solution 1'!J$101 -> 36106.5505 | R67: ='Solution 1'!K$101 -> 36106.5505 | V67: ='Solution 1'!H$44+'Solution 1'!H$87 -> 0.0002 | W67: ='Solution 1'!I$44+'Solution 1'!I$87 -> 0.0002 | X67: ='Solution 1'!J$44+'Solution 1'!J$87 -> 0.0002 | Y67: ='Solution 1'!K$44+'Solution 1'!K$87 -> 0.0002 | AC67: =O67+V67 -> 38987.0852 | AD67: =P67+W67 -> 38987.0852 | AE67: =Q67+X67 -> 36106.5507 | AF67: =R67+Y67 -> 36106.5507
A68: STPCAP40 | C68: Solution 2 | E68: £000s | O68: ='Solution 2'!H$101 -> 0.0001 | P68: ='Solution 2'!I$101 -> 0.0001 | Q68: ='Solution 2'!J$101 -> 0.0001 | R68: ='Solution 2'!K$101 -> 0.0001 | V68: ='Solution 2'!H$44+'Solution 2'!H$87 -> 0.0002 | W68: ='Solution 2'!I$44+'Solution 2'!I$87 -> 0.0002 | X68: ='Solution 2'!J$44+'Solution 2'!J$87 -> 0.0002 | Y68: ='Solution 2'!K$44+'Solution 2'!K$87 -> 0.0002 | AC68: =O68+V68 -> 0.0003 | AD68: 0.0003 | AE68: 0.0003 | AF68: 0.0003
A69: STPCAP41 | C69: Solution 3 | E69: £000s | O69: ='Solution 3'!H$101 -> 0.0001 | P69: ='Solution 3'!I$101 -> 0.0001 | Q69: ='Solution 3'!J$101 -> 0.0001 | R69: ='Solution 3'!K$101 -> 0.0001 | V69: ='Solution 3'!H$44+'Solution 3'!H$87 -> 0.0002 | W69: ='Solution 3'!I$44+'Solution 3'!I$87 -> 0.0002 | X69: ='Solution 3'!J$44+'Solution 3'!J$87 -> 0.0002 | Y69: ='Solution 3'!K$44+'Solution 3'!K$87 -> 0.0002 | AC69: 0.0003 | AD69: 0.0003 | AE69: 0.0003 | AF69: 0.0003
A70: STPCAP42 | C70: Solution 4 | E70: £000s | O70: ='Solution 4'!H$101 -> 0.0001 | P70: ='Solution 4'!I$101 -> 0.0001 | Q70: ='Solution 4'!J$101 -> 0.0001 | R70: ='Solution 4'!K$101 -> 0.0001 | V70: ='Solution 4'!H$44+'Solution 4'!H$87 -> 0.0002 | W70: ='Solution 4'!I$44+'Solution 4'!I$87 -> 0.0002 | X70: ='Solution 4'!J$44+'Solution 4'!J$87 -> 0.0002 | Y70: ='Solution 4'!K$44+'Solution 4'!K$87 -> 0.0002 | AC70: 0.0003 | AD70: 0.0003 | AE70: 0.0003 | AF70: 0.0003
A71: STPCAP43 | C71: Solution 5 | E71: £000s | O71: ='Solution 5'!H$101 -> 0.0001 | P71: ='Solution 5'!I$101 -> 0.0001 | Q71: ='Solution 5'!J$101 -> 0.0001 | R71: ='Solution 5'!K$101 -> 0.0001 | V71: ='Solution 5'!H$44+'Solution 5'!H$87 -> 0.0001 | W71: ='Solution 5'!I$44+'Solution 5'!I$87 -> 0.0001 | X71: ='Solution 5'!J$44+'Solution 5'!J$87 -> 0.0001 | Y71: ='Solution 5'!K$44+'Solution 5'!K$87 -> 0.0001 | AC71: 0.0002 | AD71: 0.0002 | AE71: 0.0002 | AF71: 0.0002
A72: STPCAP44 | C72: Solution 6 | E72: £000s | O72: ='Solution 6'!H$101 -> 0.0001 | P72: ='Solution 6'!I$101 -> 0.0001 | Q72: ='Solution 6'!J$101 -> 0.0001 | R72: ='Solution 6'!K$101 -> 0.0001 | V72: ='Solution 6'!H$44+'Solution 6'!H$87 -> 0.0002 | W72: ='Solution 6'!I$44+'Solution 6'!I$87 -> 0.0002 | X72: ='Solution 6'!J$44+'Solution 6'!J$87 -> 0.0002 | Y72: ='Solution 6'!K$44+'Solution 6'!K$87 -> 0.0002 | AC72: 0.0003 | AD72: 0.0003 | AE72: 0.0003 | AF72: 0.0003
A73: STPCAP45 | C73: Solution 7 | E73: £000s | O73: ='Solution 7'!H$101 -> 0.0001 | P73: ='Solution 7'!I$101 -> 0.0001 | Q73: ='Solution 7'!J$101 -> 0.0001 | R73: ='Solution 7'!K$101 -> 0.0001 | V73: ='Solution 7'!H$44+'Solution 7'!H$87 -> 0.0002 | W73: ='Solution 7'!I$44+'Solution 7'!I$87 -> 0.0002 | X73: ='Solution 7'!J$44+'Solution 7'!J$87 -> 0.0002 | Y73: ='Solution 7'!K$44+'Solution 7'!K$87 -> 0.0002 | AC73: 0.0003 | AD73: 0.0003 | AE73: 0.0003 | AF73: 0.0003
A74: STPCAP46 | C74: Solution 8 | E74: £000s | O74: ='Solution 8'!H$101 -> 0 | P74: ='Solution 8'!I$101 -> 5000 | Q74: ='Solution 8'!J$101 -> 7210.920966 | R74: ='Solution 8'!K$101 -> 0 | V74: ='Solution 8'!H$44+'Solution 8'!H$87 -> 0.0002 | W74: ='Solution 8'!I$44+'Solution 8'!I$87 -> 0.0002 | X74: ='Solution 8'!J$44+'Solution 8'!J$87 -> 0.0002 | Y74: ='Solution 8'!K$44+'Solution 8'!K$87 -> 0.0002 | AC74: 0.0002 | AD74: 5000.0002 | AE74: 7210.921166 | AF74: 0.0002
A75: STPCAP47 | C75: Solution 9 | E75: £000s | O75: ='Solution 9'!H$101 -> 0.0001 | P75: ='Solution 9'!I$101 -> 0.0001 | Q75: ='Solution 9'!J$101 -> 0.0001 | R75: ='Solution 9'!K$101 -> 0.0001 | V75: ='Solution 9'!H$44+'Solution 9'!H$87 -> 0.0002 | W75: ='Solution 9'!I$44+'Solution 9'!I$87 -> 0.0002 | X75: ='Solution 9'!J$44+'Solution 9'!J$87 -> 0.0002 | Y75: ='Solution 9'!K$44+'Solution 9'!K$87 -> 0.0002 | AC75: 0.0003 | AD75: 0.0003 | AE75: 0.0003 | AF75: 0.0003
A76: STPCAP48 | C76: Solution 10 | E76: £000s | O76: ='Solution 10'!H$101 -> 0.0001 | P76: ='Solution 10'!I$101 -> 0.0001 | Q76: ='Solution 10'!J$101 -> 0.0001 | R76: ='Solution 10'!K$101 -> 0.0001 | V76: ='Solution 10'!H$44+'Solution 10'!H$87 -> 0.0002 | W76: ='Solution 10'!I$44+'Solution 10'!I$87 -> 0.0002 | X76: ='Solution 10'!J$44+'Solution 10'!J$87 -> 0.0002 | Y76: ='Solution 10'!K$44+'Solution 10'!K$87 -> 0.0002 | AC76: 0.0003 | AD76: 0.0003 | AE76: 0.0003 | AF76: 0.0003
A77: STPCAP49 | C77: Solution 11 | E77: £000s | O77: ='Solution 11'!H$101 -> 0.0001 | P77: ='Solution 11'!I$101 -> 0.0001 | Q77: ='Solution 11'!J$101 -> 0.0001 | R77: ='Solution 11'!K$101 -> 0.0001 | V77: ='Solution 11'!H$44+'Solution 11'!H$87 -> 0.0002 | W77: ='Solution 11'!I$44+'Solution 11'!I$87 -> 0.0002 | X77: ='Solution 11'!J$44+'Solution 11'!J$87 -> 0.0002 | Y77: ='Solution 11'!K$44+'Solution 11'!K$87 -> 0.0002 | AC77: 0.0003 | AD77: 0.0003 | AE77: 0.0003 | AF77: 0.0003
A78: STPCAP50 | C78: Solution 12 | E78: £000s | O78: ='Solution 12'!H$101 -> 0.0001 | P78: ='Solution 12'!I$101 -> 0.0001 | Q78: ='Solution 12'!J$101 -> 0.0001 | R78: ='Solution 12'!K$101 -> 0.0001 | V78: ='Solution 12'!H$44+'Solution 12'!H$87 -> 0.0002 | W78: ='Solution 12'!I$44+'Solution 12'!I$87 -> 0.0002 | X78: ='Solution 12'!J$44+'Solution 12'!J$87 -> 0.0002 | Y78: ='Solution 12'!K$44+'Solution 12'!K$87 -> 0.0002 | AC78: 0.0003 | AD78: 0.0003 | AE78: 0.0003 | AF78: 0.0003
A79: STPCAP51 | C79: Total | E79: £000s | O79: =SUM(O67:O78) -> 38987.086 | P79: =SUM(P67:P78) -> 43987.086 | Q79: =SUM(Q67:Q78) -> 43317.47247 | R79: =SUM(R67:R78) -> 36106.5515 | V79: =SUM(V67:V78) -> 0.0023 | W79: =SUM(W67:W78) -> 0.0023 | X79: =SUM(X67:X78) -> 0.0023 | Y79: =SUM(Y67:Y78) -> 0.0023 | AC79: =SUM(AC67:AC78) -> 38987.0883 | AD79: =SUM(AD67:AD78) -> 43987.0883 | AE79: =SUM(AE67:AE78) -> 43317.47477 | AF79: =SUM(AF67:AF78) -> 36106.5538
C83: Summary Of Capital Expenditure By Solution - Revenue Impact Of Solution's Capital Investment | M83: Solutions - Additional Revenue Cost Of The Capital Expenditure Required | T83: Solutions - Estimated Revenue Savings Attributable To The Capital Expenditure | AA83: Solutions - Net Revenue Impact Of The Capital Investment
O84: i | V84: i | AC84: i | AJ84: i
A85: STPCAP52 | C85: Solution 1 | E85: £000s | O85: 0 | P85: 0 | Q85: 0 | R85: 0 | V85: 0 | W85: 0 | X85: 0 | Y85: 0 | AC85: =V85-O85 -> 0 | AD85: =W85-P85 -> 0 | AE85: 0 | AF85: 0 | AJ85: =IF((COUNTIF(O85:R85, "<0")+COUNTIF(V85:Y85, "<0"))>0, "ERROR", "OK") -> OK
A86: STPCAP53 | C86: Solution 2 | E86: £000s | O86: 0 | P86: 0 | Q86: 0 | R86: 0 | V86: 0 | W86: 0 | X86: 0 | Y86: 0 | AC86: =V86-O86 -> 0 | AD86: 0 | AE86: 0 | AF86: 0 | AJ86: =IF((COUNTIF(O86:R86, "<0")+COUNTIF(V86:Y86, "<0"))>0, "ERROR", "OK") -> OK
A87: STPCAP54 | C87: Solution 3 | E87: £000s | O87: 0 | P87: 0 | Q87: 0 | R87: 0 | V87: 0 | W87: 0 | X87: 0 | Y87: 0 | AC87: 0 | AD87: 0 | AE87: 0 | AF87: 0 | AJ87: OK
A88: STPCAP55 | C88: Solution 4 | E88: £000s | O88: 0 | P88: 0 | Q88: 0 | R88: 0 | V88: 0 | W88: 0 | X88: 0 | Y88: 0 | AC88: 0 | AD88: 0 | AE88: 0 | AF88: 0 | AJ88: OK
A89: STPCAP56 | C89: Solution 5 | E89: £000s | O89: 0 | P89: 0 | Q89: 0 | R89: 0 | V89: 0 | W89: 0 | X89: 0 | Y89: 0 | AC89: 0 | AD89: 0 | AE89: 0 | AF89: 0 | AJ89: OK
A90: STPCAP57 | C90: Solution 6 | E90: £000s | O90: 0 | P90: 0 | Q90: 0 | R90: 0 | V90: 0 | W90: 0 | X90: 0 | Y90: 0 | AC90: 0 | AD90: 0 | AE90: 0 | AF90: 0 | AJ90: OK
A91: STPCAP58 | C91: Solution 7 | E91: £000s | O91: 0 | P91: 0 | Q91: 0 | R91: 0 | V91: 0 | W91: 0 | X91: 0 | Y91: 0 | AC91: 0 | AD91: 0 | AE91: 0 | AF91: 0 | AJ91: OK
A92: STPCAP59 | C92: Solution 8 | E92: £000s | O92: 0 | P92: 0 | Q92: 0 | R92: 0 | V92: 0 | W92: 0 | X92: 0 | Y92: 0 | AC92: 0 | AD92: 0 | AE92: 0 | AF92: 0 | AJ92: OK
A93: STPCAP60 | C93: Solution 9 | E93: £000s | O93: 0 | P93: 0 | Q93: 0 | R93: 0 | V93: 0 | W93: 0 | X93: 0 | Y93: 0 | AC93: 0 | AD93: 0 | AE93: 0 | AF93: 0 | AJ93: OK
A94: STPCAP61 | C94: Solution 10 | E94: £000s | O94: 0 | P94: 0 | Q94: 0 | R94: 0 | V94: 0 | W94: 0 | X94: 0 | Y94: 0 | AC94: 0 | AD94: 0 | AE94: 0 | AF94: 0 | AJ94: OK
A95: STPCAP62 | C95: Solution 11 | E95: £000s | O95: 0 | P95: 0 | Q95: 0 | R95: 0 | V95: 0 | W95: 0 | X95: 0 | Y95: 0 | AC95: 0 | AD95: 0 | AE95: 0 | AF95: 0 | AJ95: OK
A96: STPCAP63 | C96: Solution 12 | E96: £000s | O96: 0 | P96: 0 | Q96: 0 | R96: 0 | V96: 0 | W96: 0 | X96: 0 | Y96: 0 | AC96: 0 | AD96: 0 | AE96: 0 | AF96: 0 | AJ96: OK
A97: STPCAP64 | C97: Total | E97: £000s | O97: =SUM(O85:O96) -> 0 | P97: =SUM(P85:P96) -> 0 | Q97: =SUM(Q85:Q96) -> 0 | R97: =SUM(R85:R96) -> 0 | V97: =SUM(V85:V96) -> 0 | W97: =SUM(W85:W96) -> 0 | X97: =SUM(X85:X96) -> 0 | Y97: =SUM(Y85:Y96) -> 0 | AC97: =SUM(AC85:AC96) -> 0 | AD97: =SUM(AD85:AD96) -> 0 | AE97: =SUM(AE85:AE96) -> 0 | AF97: =SUM(AF85:AF96) -> 0
C98: Check | O98: =IF(ROUND(O97, 0)=ROUND(AC50, 0), "OK", "ERROR") -> OK | P98: =IF(ROUND(P97, 0)=ROUND(AD50, 0), "OK", "ERROR") -> OK | Q98: OK | R98: OK
C102: Progress On Estimating The Return On Investment and Payback Period Of The Capital Expenditure Required To Deliver The Solution | F102: Total Capex Required For Solution | G102: Total Impact Of Solution Of Capex | H102: Net Capex | I102: Total Revenue Costs | J102: Total Revenue Savings | K102: Net Revenue Impact | M102: Progress On Estimating The Return On Investment and Payback Period Of The Capital Expenditure Required To Deliver The Solution Select From Drop Down | T102: ROI to 2020/21 | U102: ROI to 20/21 Completed | V102: ROI Over Project Lifetime | W102: ROI Over Lifetime Completed | X102: Payback Period | Y102: Payback Period Completed | AA102: Drop Downs All Completed
F103: Total of 2017/18 to 2020/21 | M103: ROI to 2020/21 | O103: ROI Over Project Lifetime | Q103: Payback Period
M104: i | O104: i | Q104: i | T104: i | V104: i | X104: i | AA104: i
A105: STPCAP67 | C105: Solution 1 | E105: £000s | F105: =SUM(O67:R67) -> 150187.271 | G105: =SUM(V67:Y67) -> 0.0008 | H105: =F105+G105 -> 150187.2718 | I105: =SUM(O85:R85) -> 0 | J105: =SUM(V85:Y85) -> 0 | K105: =J105-I105 -> 0 | M105: No - work in progress | O105: No - work in progress | Q105: No - work in progress | U105: =IF(AND(M105="Yes - ROI to 20/21 estimated", COUNTBLANK(T105)=1), "ERROR", "OK") -> OK | W105: =IF(AND(O105="Yes - ROI over lifetime estimated", COUNTBLANK(V105)=1), "ERROR", "OK") -> OK | Y105: =IF(AND(Q105="Yes - payback period estimated", COUNTBLANK(X105)=1), "ERROR", "OK") -> OK | AA105: =IF(OR(COUNTBLANK($M105)=1, COUNTBLANK($O105)=1, COUNTBLANK($Q105)=1), "ERROR", "OK") -> OK
A106: STPCAP68 | C106: Solution 2 | E106: £000s | F106: 0.0004 | G106: 0.0008 | H106: 0.0012 | I106: =SUM(O86:R86) -> 0 | J106: =SUM(V86:Y86) -> 0 | K106: =J106-I106 -> 0 | M106: No capex req for solution | O106: No capex req for solution | Q106: No capex req for solution | U106: =IF(AND(M106="Yes - ROI to 20/21 estimated", COUNTBLANK(T106)=1), "ERROR", "OK") -> OK | W106: =IF(AND(O106="Yes - ROI over lifetime estimated", COUNTBLANK(V106)=1), "ERROR", "OK") -> OK | Y106: =IF(AND(Q106="Yes - payback period estimated", COUNTBLANK(X106)=1), "ERROR", "OK") -> OK | AA106: =IF(OR(COUNTBLANK($M106)=1, COUNTBLANK($O106)=1, COUNTBLANK($Q106)=1), "ERROR", "OK") -> OK
A107: STPCAP69 | C107: Solution 3 | E107: £000s | F107: 0.0004 | G107: 0.0008 | H107: 0.0012 | I107: 0 | J107: 0 | K107: 0 | M107: No capex req for solution | O107: No capex req for solution | Q107: No capex req for solution | U107: OK | W107: OK | Y107: OK | AA107: OK
A108: STPCAP70 | C108: Solution 4 | E108: £000s | F108: 0.0004 | G108: 0.0008 | H108: 0.0012 | I108: 0 | J108: 0 | K108: 0 | M108: No capex req for solution | O108: No capex req for solution | Q108: No capex req for solution | U108: OK | W108: OK | Y108: OK | AA108: OK
A109: STPCAP71 | C109: Solution 5 | E109: £000s | F109: 0.0004 | G109: 0.0004 | H109: 0.0008 | I109: 0 | J109: 0 | K109: 0 | M109: Solution worksheet not used | O109: Solution worksheet not used | Q109: Solution worksheet not used | U109: OK | W109: OK | Y109: OK | AA109: OK
A110: STPCAP72 | C110: Solution 6 | E110: £000s | F110: 0.0004 | G110: 0.0008 | H110: 0.0012 | I110: 0 | J110: 0 | K110: 0 | M110: No capex req for solution | O110: No capex req for solution | Q110: No capex req for solution | U110: OK | W110: OK | Y110: OK | AA110: OK
A111: STPCAP73 | C111: Solution 7 | E111: £000s | F111: 0.0004 | G111: 0.0008 | H111: 0.0012 | I111: 0 | J111: 0 | K111: 0 | M111: No capex req for solution | O111: No capex req for solution | Q111: No capex req for solution | U111: OK | W111: OK | Y111: OK | AA111: OK
A112: STPCAP74 | C112: Solution 8 | E112: £000s | F112: 12210.92097 | G112: 0.0008 | H112: 12210.92177 | I112: 0 | J112: 0 | K112: 0 | M112: Yes - ROI to 20/21 estimated | O112: Yes - ROI over lifetime estimated | Q112: Yes - payback period estimated | T112: Annual average ROI: (103%) to +9% | U112: OK | V112: Annual average ROI: +47% to +75% | W112: OK | X112: 6 to 10 years | Y112: OK | AA112: OK
A113: STPCAP75 | C113: Solution 9 | E113: £000s | F113: 0.0004 | G113: 0.0008 | H113: 0.0012 | I113: 0 | J113: 0 | K113: 0 | M113: No capex req for solution | O113: No capex req for solution | Q113: No capex req for solution | U113: OK | W113: OK | Y113: OK | AA113: OK
A114: STPCAP76 | C114: Solution 10 | E114: £000s | F114: 0.0004 | G114: 0.0008 | H114: 0.0012 | I114: 0 | J114: 0 | K114: 0 | M114: No capex req for solution | O114: No capex req for solution | Q114: No capex req for solution | U114: OK | W114: OK | Y114: OK | AA114: OK
A115: STPCAP77 | C115: Solution 11 | E115: £000s | F115: 0.0004 | G115: 0.0008 | H115: 0.0012 | I115: 0 | J115: 0 | K115: 0 | M115: No capex req for solution | O115: No capex req for solution | Q115: No capex req for solution | U115: OK | W115: OK | Y115: OK | AA115: OK
A116: STPCAP78 | C116: Solution 12 | E116: £000s | F116: 0.0004 | G116: 0.0008 | H116: 0.0012 | I116: 0 | J116: 0 | K116: 0 | M116: No capex req for solution | O116: No capex req for solution | Q116: No capex req for solution | U116: OK | W116: OK | Y116: OK | AA116: OK
A117: STPCAP79 | C117: Total | E117: £000s | F117: =SUM(F105:F116) -> 162398.196 | G117: 0.0092 | H117: 162398.2052 | I117: 0 | J117: 0 | K117: 0
C119: Memorandum Lines For Use Only When Capital Is Funded And/Or Spent Outside The Organisations Contained Within The Template | M119: Solutions - Estimated Capital Expenditure Required To Deliver Solution
C121: Total Estimated Capital Expenditure Required To Deliver The Solution | E121: £000s | O121: =O11 -> 38987.086 | P121: =P11 -> 43987.086 | Q121: 43317.47247 | R121: 36106.5515
A122: STPCAP65 | C122: Of which, New Capex Contained In The Above To Be Funded Through NHS Organisations Contained Within The Template | D122: i | E122: £000s | O122: 38987.086 | P122: 43987.086 | Q122: 43317.47247 | R122: 36106.5515
A123: STPCAP66 | C123: Of which, New Capex Contained In The Above To Be Spent Outside Organisations Contained Within The Template | D123: i | E123: £000s | O123: 0 | P123: 0 | Q123: 0 | R123: 0
C125: Any additional comments relating to the footprint's capital expenditure | E125: Text | F125: Annual average and payback period ROIs for solution 8 given as a range due to multiple options still under consideration.

Sheet Investment Requirements
C2: Desc | E2: Unit | F2: Investment | G2: Investment | H2: Investment | I2: Investment | J2: Investment | K2: Investment
C3: Year | E3: Year | F3: Year | G3: Year | H3: Year | I3: Year | J3: Year | K3: Year
C4: =SysCurrYE -> 2017-03-31 | E4: =SysCurrYE -> 2017-03-31 | F4: =SysPrevYE -> 2016-03-31 | G4: =SysCurrYE -> 2017-03-31 | H4: =Sys2ndYE -> 2018-03-31 | I4: =Sys3rdYE -> 2019-03-31 | J4: =Sys4thYE -> 2020-03-31 | K4: =Sys5thYE -> 2021-03-31
C6: South East London
C8: Estimated Investment Required To Deliver Five Year Forward View
C10: This is a memorandum worksheet and the data entered does not flow through elsewhere in the template. | F10: 2015/16 | G10: 2016/17 | H10: 2017/18 | I10: 2018/19 | J10: 2019/20 | K10: 2020/21
C12: Enter the estimated non-recurrent revenue transformation costs required to develop each service in your STP footprint:
A13: STPINV001 | C13: Seven Day Services Roll Out Through To 2019/20 | D13: i | E13: £000s | G13: 0 | H13: 0 | I13: 0 | J13: 0 | K13: 0
A14: STPINV002 | C14: Taking Forward The Programmes Set Out In The General Practice Forward View and Delivering Extended GP Access | D14: i | E14: £000s | G14: 0 | H14: 0 | I14: 0 | J14: 0 | K14: 0
A15: STPINV003 | C15: Increasing Capacity Of Children And Adolescent Mental Health Services And Implementing Access and Wait Targets For Eating Disorders Services | D15: i | E15: £000s | G15: 0 | H15: 0 | I15: 0 | J15: 0 | K15: 0
A16: STPINV004 | C16: Implementing The Recommendations Of The Mental Health Taskforce | D16: i | E16: £000s | G16: 0 | H16: 0 | I16: 0 | J16: 0 | K16: 0
A17: STPINV005 | C17: Cancer Taskforce Strategy | D17: i | E17: £000s | G17: 0 | H17: 0 | I17: 0 | J17: 0 | K17: 0
A18: STPINV006 | C18: National Maternity Review | D18: i | E18: £000s | G18: 0 | H18: 0 | I18: 0 | J18: 0 | K18: 0
A19: STPINV007 | C19: Investment In Prevention, Tackling Childhood Obesity, And Improving Diabetes Diagnosis and Care | D19: i | E19: £000s | G19: 0 | H19: 0 | I19: 0 | J19: 0 | K19: 0
A20: STPINV008 | C20: Local Digital Roadmaps Supporting Paper Free At The Point Of Care And Electronic Health Records | D20: i | E20: £000s | G20: 0 | H20: 0 | I20: 0 | J20: 0 | K20: 0
C22: Enter the estimated additional recurrent revenue costs (net of savings) required to develop each service in your footprint:
A23: STPINV009 | C23: Seven Day Services Roll Out Through To 2019/20 | D23: i | E23: £000s | G23: 1964.326842 | H23: 4398.711527 | I23: 8407.143792 | J23: 11894.3838 | K23: 12562.5468
A24: STPINV010 | C24: Taking Forward The Programmes Set Out In The General Practice Forward View and Delivering Extended GP Access | D24: i | E24: £000s | G24: 4651.841417 | H24: 7774.988649 | I24: 12408.02327 | J24: 15070.42152 | K24: 16000.12106
A25: STPINV011 | C25: Increasing Capacity Of Children And Adolescent Mental Health Services And Implementing Access and Wait Targets For Eating Disorders Services | D25: i | E25: £000s | G25: 820.4151 | H25: 3572.36593 | I25: 6932.811108 | J25: 11550.60258 | K25: 15935.21581
A26: STPINV012 | C26: Implementing The Recommendations Of The Mental Health Taskforce | D26: i | E26: £000s | G26: 1914.3019 | H26: 8335.520504 | I26: 16176.55925 | J26: 26951.40603 | K26: 37182.17023
A27: STPINV013 | C27: Cancer Taskforce Strategy | D27: i | E27: £000s | G27: 292.8427852 | H27: 655.7620186 | I27: 1253.341018 | J27: 1773.220426 | K27: 1872.830487
A28: STPINV014 | C28: National Maternity Review | D28: i | E28: £000s | G28: 109.5427483 | H28: 245.2987656 | I28: 468.8331985 | J28: 663.3027979 | K28: 700.5636092
A29: STPINV015 | C29: Investment In Prevention, Tackling Childhood Obesity, And Improving Diabetes Diagnosis and Care | D29: i | E29: £000s | G29: 5013.003763 | H29: 13867.47176 | I29: 28956.65262 | J29: 43452.1092 | K29: 45809.89312
A30: STPINV016 | C30: Local Digital Roadmaps Supporting Paper Free At The Point Of Care And Electronic Health Records | D30: i | E30: £000s | G30: 103.3856232 | H30: 231.511133 | I30: 442.4812522 | J30: 626.0201999 | K30: 661.1866738
C32: Of which included within solutions (feeds from solution sheets, rows 124-141) | F32: 2015/16 | G32: 2016/17 | H32: 2017/18 | I32: 2018/19 | J32: 2019/20 | K32: 2020/21
C34: Enter the estimated non-recurrent revenue transformation costs required to develop each service in your STP footprint:
A35: STPINV017 | C35: Seven Day Services Roll Out Through To 2019/20 | D35: i | E35: £000s | H35: ='Solution 1'!H124+'Solution 2'!H124+'Solution 3'!H124+'Solution 4'!H124+'Solution 5'!H124+'Solution 6'!H124+'Solution 7'!H124+'Solution 8'!H124+'Solution 9'!H124+'Solution 10'!H124+'Solution 11'!H124+'Solution 12'!H124 -> 0 | I35: ='Solution 1'!I124+'Solution 2'!I124+'Solution 3'!I124+'Solution 4'!I124+'Solution 5'!I124+'Solution 6'!I124+'Solution 7'!I124+'Solution 8'!I124+'Solution 9'!I124+'Solution 10'!I124+'Solution 11'!I124+'Solution 12'!I124 -> 0 | J35: ='Solution 1'!J124+'Solution 2'!J124+'Solution 3'!J124+'Solution 4'!J124+'Solution 5'!J124+'Solution 6'!J124+'Solution 7'!J124+'Solution 8'!J124+'Solution 9'!J124+'Solution 10'!J124+'Solution 11'!J124+'Solution 12'!J124 -> 0 | K35: ='Solution 1'!K124+'Solution 2'!K124+'Solution 3'!K124+'Solution 4'!K124+'Solution 5'!K124+'Solution 6'!K124+'Solution 7'!K124+'Solution 8'!K124+'Solution 9'!K124+'Solution 10'!K124+'Solution 11'!K124+'Solution 12'!K124 -> 0
A36: STPINV018 | C36: Taking Forward The Programmes Set Out In The General Practice Forward View and Delivering Extended GP Access | D36: i | E36: £000s | H36: ='Solution 1'!H125+'Solution 2'!H125+'Solution 3'!H125+'Solution 4'!H125+'Solution 5'!H125+'Solution 6'!H125+'Solution 7'!H125+'Solution 8'!H125+'Solution 9'!H125+'Solution 10'!H125+'Solution 11'!H125+'Solution 12'!H125 -> 0 | I36: ='Solution 1'!I125+'Solution 2'!I125+'Solution 3'!I125+'Solution 4'!I125+'Solution 5'!I125+'Solution 6'!I125+'Solution 7'!I125+'Solution 8'!I125+'Solution 9'!I125+'Solution 10'!I125+'Solution 11'!I125+'Solution 12'!I125 -> 0 | J36: ='Solution 1'!J125+'Solution 2'!J125+'Solution 3'!J125+'Solution 4'!J125+'Solution 5'!J125+'Solution 6'!J125+'Solution 7'!J125+'Solution 8'!J125+'Solution 9'!J125+'Solution 10'!J125+'Solution 11'!J125+'Solution 12'!J125 -> 0 | K36: ='Solution 1'!K125+'Solution 2'!K125+'Solution 3'!K125+'Solution 4'!K125+'Solution 5'!K125+'Solution 6'!K125+'Solution 7'!K125+'Solution 8'!K125+'Solution 9'!K125+'Solution 10'!K125+'Solution 11'!K125+'Solution 12'!K125 -> 0
A37: STPINV019 | C37: Increasing Capacity Of Children And Adolescent Mental Health Services And Implementing Access and Wait Targets For Eating Disorders Services | D37: i | E37: £000s | H37: ='Solution 1'!H126+'Solution 2'!H126+'Solution 3'!H126+'Solution 4'!H126+'Solution 5'!H126+'Solution 6'!H126+'Solution 7'!H126+'Solution 8'!H126+'Solution 9'!H126+'Solution 10'!H126+'Solution 11'!H126+'Solution 12'!H126 -> 0 | I37: ='Solution 1'!I126+'Solution 2'!I126+'Solution 3'!I126+'Solution 4'!I126+'Solution 5'!I126+'Solution 6'!I126+'Solution 7'!I126+'Solution 8'!I126+'Solution 9'!I126+'Solution 10'!I126+'Solution 11'!I126+'Solution 12'!I126 -> 0 | J37: ='Solution 1'!J126+'Solution 2'!J126+'Solution 3'!J126+'Solution 4'!J126+'Solution 5'!J126+'Solution 6'!J126+'Solution 7'!J126+'Solution 8'!J126+'Solution 9'!J126+'Solution 10'!J126+'Solution 11'!J126+'Solution 12'!J126 -> 0 | K37: ='Solution 1'!K126+'Solution 2'!K126+'Solution 3'!K126+'Solution 4'!K126+'Solution 5'!K126+'Solution 6'!K126+'Solution 7'!K126+'Solution 8'!K126+'Solution 9'!K126+'Solution 10'!K126+'Solution 11'!K126+'Solution 12'!K126 -> 0
A38: STPINV020 | C38: Implementing The Recommendations Of The Mental Health Taskforce | D38: i | E38: £000s | H38: ='Solution 1'!H127+'Solution 2'!H127+'Solution 3'!H127+'Solution 4'!H127+'Solution 5'!H127+'Solution 6'!H127+'Solution 7'!H127+'Solution 8'!H127+'Solution 9'!H127+'Solution 10'!H127+'Solution 11'!H127+'Solution 12'!H127 -> 0 | I38: ='Solution 1'!I127+'Solution 2'!I127+'Solution 3'!I127+'Solution 4'!I127+'Solution 5'!I127+'Solution 6'!I127+'Solution 7'!I127+'Solution 8'!I127+'Solution 9'!I127+'Solution 10'!I127+'Solution 11'!I127+'Solution 12'!I127 -> 0 | J38: ='Solution 1'!J127+'Solution 2'!J127+'Solution 3'!J127+'Solution 4'!J127+'Solution 5'!J127+'Solution 6'!J127+'Solution 7'!J127+'Solution 8'!J127+'Solution 9'!J127+'Solution 10'!J127+'Solution 11'!J127+'Solution 12'!J127 -> 0 | K38: ='Solution 1'!K127+'Solution 2'!K127+'Solution 3'!K127+'Solution 4'!K127+'Solution 5'!K127+'Solution 6'!K127+'Solution 7'!K127+'Solution 8'!K127+'Solution 9'!K127+'Solution 10'!K127+'Solution 11'!K127+'Solution 12'!K127 -> 0
A39: STPINV021 | C39: Cancer Taskforce Strategy | D39: i | E39: £000s | H39: ='Solution 1'!H128+'Solution 2'!H128+'Solution 3'!H128+'Solution 4'!H128+'Solution 5'!H128+'Solution 6'!H128+'Solution 7'!H128+'Solution 8'!H128+'Solution 9'!H128+'Solution 10'!H128+'Solution 11'!H128+'Solution 12'!H128 -> 0 | I39: ='Solution 1'!I128+'Solution 2'!I128+'Solution 3'!I128+'Solution 4'!I128+'Solution 5'!I128+'Solution 6'!I128+'Solution 7'!I128+'Solution 8'!I128+'Solution 9'!I128+'Solution 10'!I128+'Solution 11'!I128+'Solution 12'!I128 -> 0 | J39: ='Solution 1'!J128+'Solution 2'!J128+'Solution 3'!J128+'Solution 4'!J128+'Solution 5'!J128+'Solution 6'!J128+'Solution 7'!J128+'Solution 8'!J128+'Solution 9'!J128+'Solution 10'!J128+'Solution 11'!J128+'Solution 12'!J128 -> 0 | K39: ='Solution 1'!K128+'Solution 2'!K128+'Solution 3'!K128+'Solution 4'!K128+'Solution 5'!K128+'Solution 6'!K128+'Solution 7'!K128+'Solution 8'!K128+'Solution 9'!K128+'Solution 10'!K128+'Solution 11'!K128+'Solution 12'!K128 -> 0
A40: STPINV022 | C40: National Maternity Review | D40: i | E40: £000s | H40: ='Solution 1'!H129+'Solution 2'!H129+'Solution 3'!H129+'Solution 4'!H129+'Solution 5'!H129+'Solution 6'!H129+'Solution 7'!H129+'Solution 8'!H129+'Solution 9'!H129+'Solution 10'!H129+'Solution 11'!H129+'Solution 12'!H129 -> 0 | I40: ='Solution 1'!I129+'Solution 2'!I129+'Solution 3'!I129+'Solution 4'!I129+'Solution 5'!I129+'Solution 6'!I129+'Solution 7'!I129+'Solution 8'!I129+'Solution 9'!I129+'Solution 10'!I129+'Solution 11'!I129+'Solution 12'!I129 -> 0 | J40: ='Solution 1'!J129+'Solution 2'!J129+'Solution 3'!J129+'Solution 4'!J129+'Solution 5'!J129+'Solution 6'!J129+'Solution 7'!J129+'Solution 8'!J129+'Solution 9'!J129+'Solution 10'!J129+'Solution 11'!J129+'Solution 12'!J129 -> 0 | K40: ='Solution 1'!K129+'Solution 2'!K129+'Solution 3'!K129+'Solution 4'!K129+'Solution 5'!K129+'Solution 6'!K129+'Solution 7'!K129+'Solution 8'!K129+'Solution 9'!K129+'Solution 10'!K129+'Solution 11'!K129+'Solution 12'!K129 -> 0
A41: STPINV023 | C41: Investment In Prevention, Tackling Childhood Obesity, And Improving Diabetes Diagnosis and Care | D41: i | E41: £000s | H41: ='Solution 1'!H130+'Solution 2'!H130+'Solution 3'!H130+'Solution 4'!H130+'Solution 5'!H130+'Solution 6'!H130+'Solution 7'!H130+'Solution 8'!H130+'Solution 9'!H130+'Solution 10'!H130+'Solution 11'!H130+'Solution 12'!H130 -> 0 | I41: ='Solution 1'!I130+'Solution 2'!I130+'Solution 3'!I130+'Solution 4'!I130+'Solution 5'!I130+'Solution 6'!I130+'Solution 7'!I130+'Solution 8'!I130+'Solution 9'!I130+'Solution 10'!I130+'Solution 11'!I130+'Solution 12'!I130 -> 0 | J41: ='Solution 1'!J130+'Solution 2'!J130+'Solution 3'!J130+'Solution 4'!J130+'Solution 5'!J130+'Solution 6'!J130+'Solution 7'!J130+'Solution 8'!J130+'Solution 9'!J130+'Solution 10'!J130+'Solution 11'!J130+'Solution 12'!J130 -> 0 | K41: ='Solution 1'!K130+'Solution 2'!K130+'Solution 3'!K130+'Solution 4'!K130+'Solution 5'!K130+'Solution 6'!K130+'Solution 7'!K130+'Solution 8'!K130+'Solution 9'!K130+'Solution 10'!K130+'Solution 11'!K130+'Solution 12'!K130 -> 0
A42: STPINV024 | C42: Local Digital Roadmaps Supporting Paper Free At The Point Of Care And Electronic Health Records | D42: i | E42: £000s | H42: ='Solution 1'!H131+'Solution 2'!H131+'Solution 3'!H131+'Solution 4'!H131+'Solution 5'!H131+'Solution 6'!H131+'Solution 7'!H131+'Solution 8'!H131+'Solution 9'!H131+'Solution 10'!H131+'Solution 11'!H131+'Solution 12'!H131 -> 0 | I42: ='Solution 1'!I131+'Solution 2'!I131+'Solution 3'!I131+'Solution 4'!I131+'Solution 5'!I131+'Solution 6'!I131+'Solution 7'!I131+'Solution 8'!I131+'Solution 9'!I131+'Solution 10'!I131+'Solution 11'!I131+'Solution 12'!I131 -> 0 | J42: ='Solution 1'!J131+'Solution 2'!J131+'Solution 3'!J131+'Solution 4'!J131+'Solution 5'!J131+'Solution 6'!J131+'Solution 7'!J131+'Solution 8'!J131+'Solution 9'!J131+'Solution 10'!J131+'Solution 11'!J131+'Solution 12'!J131 -> 0 | K42: ='Solution 1'!K131+'Solution 2'!K131+'Solution 3'!K131+'Solution 4'!K131+'Solution 5'!K131+'Solution 6'!K131+'Solution 7'!K131+'Solution 8'!K131+'Solution 9'!K131+'Solution 10'!K131+'Solution 11'!K131+'Solution 12'!K131 -> 0
C44: Enter the estimated additional recurrent revenue costs (net of savings) required to develop each service in your footprint:
A45: STPINV025 | C45: Seven Day Services Roll Out Through To 2019/20 | D45: i | E45: £000s | H45: ='Solution 1'!H134+'Solution 2'!H134+'Solution 3'!H134+'Solution 4'!H134+'Solution 5'!H134+'Solution 6'!H134+'Solution 7'!H134+'Solution 8'!H134+'Solution 9'!H134+'Solution 10'!H134+'Solution 11'!H134+'Solution 12'!H134 -> 4398.711527 | I45: ='Solution 1'!I134+'Solution 2'!I134+'Solution 3'!I134+'Solution 4'!I134+'Solution 5'!I134+'Solution 6'!I134+'Solution 7'!I134+'Solution 8'!I134+'Solution 9'!I134+'Solution 10'!I134+'Solution 11'!I134+'Solution 12'!I134 -> 8407.143792 | J45: ='Solution 1'!J134+'Solution 2'!J134+'Solution 3'!J134+'Solution 4'!J134+'Solution 5'!J134+'Solution 6'!J134+'Solution 7'!J134+'Solution 8'!J134+'Solution 9'!J134+'Solution 10'!J134+'Solution 11'!J134+'Solution 12'!J134 -> 11894.3838 | K45: ='Solution 1'!K134+'Solution 2'!K134+'Solution 3'!K134+'Solution 4'!K134+'Solution 5'!K134+'Solution 6'!K134+'Solution 7'!K134+'Solution 8'!K134+'Solution 9'!K134+'Solution 10'!K134+'Solution 11'!K134+'Solution 12'!K134 -> 12562.5468
A46: STPINV026 | C46: Taking Forward The Programmes Set Out In The General Practice Forward View and Delivering Extended GP Access | D46: i | E46: £000s | H46: ='Solution 1'!H135+'Solution 2'!H135+'Solution 3'!H135+'Solution 4'!H135+'Solution 5'!H135+'Solution 6'!H135+'Solution 7'!H135+'Solution 8'!H135+'Solution 9'!H135+'Solution 10'!H135+'Solution 11'!H135+'Solution 12'!H135 -> 7774.988649 | I46: ='Solution 1'!I135+'Solution 2'!I135+'Solution 3'!I135+'Solution 4'!I135+'Solution 5'!I135+'Solution 6'!I135+'Solution 7'!I135+'Solution 8'!I135+'Solution 9'!I135+'Solution 10'!I135+'Solution 11'!I135+'Solution 12'!I135 -> 12408.02327 | J46: ='Solution 1'!J135+'Solution 2'!J135+'Solution 3'!J135+'Solution 4'!J135+'Solution 5'!J135+'Solution 6'!J135+'Solution 7'!J135+'Solution 8'!J135+'Solution 9'!J135+'Solution 10'!J135+'Solution 11'!J135+'Solution 12'!J135 -> 15070.42152 | K46: ='Solution 1'!K135+'Solution 2'!K135+'Solution 3'!K135+'Solution 4'!K135+'Solution 5'!K135+'Solution 6'!K135+'Solution 7'!K135+'Solution 8'!K135+'Solution 9'!K135+'Solution 10'!K135+'Solution 11'!K135+'Solution 12'!K135 -> 16000.12106
A47: STPINV027 | C47: Increasing Capacity Of Children And Adolescent Mental Health Services And Implementing Access and Wait Targets For Eating Disorders Services | D47: i | E47: £000s | H47: ='Solution 1'!H136+'Solution 2'!H136+'Solution 3'!H136+'Solution 4'!H136+'Solution 5'!H136+'Solution 6'!H136+'Solution 7'!H136+'Solution 8'!H136+'Solution 9'!H136+'Solution 10'!H136+'Solution 11'!H136+'Solution 12'!H136 -> 0 | I47: ='Solution 1'!I136+'Solution 2'!I136+'Solution 3'!I136+'Solution 4'!I136+'Solution 5'!I136+'Solution 6'!I136+'Solution 7'!I136+'Solution 8'!I136+'Solution 9'!I136+'Solution 10'!I136+'Solution 11'!I136+'Solution 12'!I136 -> 0 | J47: ='Solution 1'!J136+'Solution 2'!J136+'Solution 3'!J136+'Solution 4'!J136+'Solution 5'!J136+'Solution 6'!J136+'Solution 7'!J136+'Solution 8'!J136+'Solution 9'!J136+'Solution 10'!J136+'Solution 11'!J136+'Solution 12'!J136 -> 0 | K47: ='Solution 1'!K136+'Solution 2'!K136+'Solution 3'!K136+'Solution 4'!K136+'Solution 5'!K136+'Solution 6'!K136+'Solution 7'!K136+'Solution 8'!K136+'Solution 9'!K136+'Solution 10'!K136+'Solution 11'!K136+'Solution 12'!K136 -> 0
A48: STPINV028 | C48: Implementing The Recommendations Of The Mental Health Taskforce | D48: i | E48: £000s | H48: ='Solution 1'!H137+'Solution 2'!H137+'Solution 3'!H137+'Solution 4'!H137+'Solution 5'!H137+'Solution 6'!H137+'Solution 7'!H137+'Solution 8'!H137+'Solution 9'!H137+'Solution 10'!H137+'Solution 11'!H137+'Solution 12'!H137 -> 0 | I48: ='Solution 1'!I137+'Solution 2'!I137+'Solution 3'!I137+'Solution 4'!I137+'Solution 5'!I137+'Solution 6'!I137+'Solution 7'!I137+'Solution 8'!I137+'Solution 9'!I137+'Solution 10'!I137+'Solution 11'!I137+'Solution 12'!I137 -> 0 | J48: ='Solution 1'!J137+'Solution 2'!J137+'Solution 3'!J137+'Solution 4'!J137+'Solution 5'!J137+'Solution 6'!J137+'Solution 7'!J137+'Solution 8'!J137+'Solution 9'!J137+'Solution 10'!J137+'Solution 11'!J137+'Solution 12'!J137 -> 0 | K48: ='Solution 1'!K137+'Solution 2'!K137+'Solution 3'!K137+'Solution 4'!K137+'Solution 5'!K137+'Solution 6'!K137+'Solution 7'!K137+'Solution 8'!K137+'Solution 9'!K137+'Solution 10'!K137+'Solution 11'!K137+'Solution 12'!K137 -> 0
A49: STPINV029 | C49: Cancer Taskforce Strategy | D49: i | E49: £000s | H49: ='Solution 1'!H138+'Solution 2'!H138+'Solution 3'!H138+'Solution 4'!H138+'Solution 5'!H138+'Solution 6'!H138+'Solution 7'!H138+'Solution 8'!H138+'Solution 9'!H138+'Solution 10'!H138+'Solution 11'!H138+'Solution 12'!H138 -> 655.7620186 | I49: ='Solution 1'!I138+'Solution 2'!I138+'Solution 3'!I138+'Solution 4'!I138+'Solution 5'!I138+'Solution 6'!I138+'Solution 7'!I138+'Solution 8'!I138+'Solution 9'!I138+'Solution 10'!I138+'Solution 11'!I138+'Solution 12'!I138 -> 1253.341018 | J49: ='Solution 1'!J138+'Solution 2'!J138+'Solution 3'!J138+'Solution 4'!J138+'Solution 5'!J138+'Solution 6'!J138+'Solution 7'!J138+'Solution 8'!J138+'Solution 9'!J138+'Solution 10'!J138+'Solution 11'!J138+'Solution 12'!J138 -> 1773.220426 | K49: ='Solution 1'!K138+'Solution 2'!K138+'Solution 3'!K138+'Solution 4'!K138+'Solution 5'!K138+'Solution 6'!K138+'Solution 7'!K138+'Solution 8'!K138+'Solution 9'!K138+'Solution 10'!K138+'Solution 11'!K138+'Solution 12'!K138 -> 1872.830487
A50: STPINV030 | C50: National Maternity Review | D50: i | E50: £000s | H50: ='Solution 1'!H139+'Solution 2'!H139+'Solution 3'!H139+'Solution 4'!H139+'Solution 5'!H139+'Solution 6'!H139+'Solution 7'!H139+'Solution 8'!H139+'Solution 9'!H139+'Solution 10'!H139+'Solution 11'!H139+'Solution 12'!H139 -> 245.2987656 | I50: ='Solution 1'!I139+'Solution 2'!I139+'Solution 3'!I139+'Solution 4'!I139+'Solution 5'!I139+'Solution 6'!I139+'Solution 7'!I139+'Solution 8'!I139+'Solution 9'!I139+'Solution 10'!I139+'Solution 11'!I139+'Solution 12'!I139 -> 468.8331985 | J50: ='Solution 1'!J139+'Solution 2'!J139+'Solution 3'!J139+'Solution 4'!J139+'Solution 5'!J139+'Solution 6'!J139+'Solution 7'!J139+'Solution 8'!J139+'Solution 9'!J139+'Solution 10'!J139+'Solution 11'!J139+'Solution 12'!J139 -> 663.3027979 | K50: ='Solution 1'!K139+'Solution 2'!K139+'Solution 3'!K139+'Solution 4'!K139+'Solution 5'!K139+'Solution 6'!K139+'Solution 7'!K139+'Solution 8'!K139+'Solution 9'!K139+'Solution 10'!K139+'Solution 11'!K139+'Solution 12'!K139 -> 700.5636092
A51: STPINV031 | C51: Investment In Prevention, Tackling Childhood Obesity, And Improving Diabetes Diagnosis and Care | D51: i | E51: £000s | H51: ='Solution 1'!H140+'Solution 2'!H140+'Solution 3'!H140+'Solution 4'!H140+'Solution 5'!H140+'Solution 6'!H140+'Solution 7'!H140+'Solution 8'!H140+'Solution 9'!H140+'Solution 10'!H140+'Solution 11'!H140+'Solution 12'!H140 -> 13867.47176 | I51: ='Solution 1'!I140+'Solution 2'!I140+'Solution 3'!I140+'Solution 4'!I140+'Solution 5'!I140+'Solution 6'!I140+'Solution 7'!I140+'Solution 8'!I140+'Solution 9'!I140+'Solution 10'!I140+'Solution 11'!I140+'Solution 12'!I140 -> 28956.65262 | J51: ='Solution 1'!J140+'Solution 2'!J140+'Solution 3'!J140+'Solution 4'!J140+'Solution 5'!J140+'Solution 6'!J140+'Solution 7'!J140+'Solution 8'!J140+'Solution 9'!J140+'Solution 10'!J140+'Solution 11'!J140+'Solution 12'!J140 -> 43452.1092 | K51: ='Solution 1'!K140+'Solution 2'!K140+'Solution 3'!K140+'Solution 4'!K140+'Solution 5'!K140+'Solution 6'!K140+'Solution 7'!K140+'Solution 8'!K140+'Solution 9'!K140+'Solution 10'!K140+'Solution 11'!K140+'Solution 12'!K140 -> 45809.89312
A52: STPINV032 | C52: Local Digital Roadmaps Supporting Paper Free At The Point Of Care And Electronic Health Records | D52: i | E52: £000s | H52: ='Solution 1'!H141+'Solution 2'!H141+'Solution 3'!H141+'Solution 4'!H141+'Solution 5'!H141+'Solution 6'!H141+'Solution 7'!H141+'Solution 8'!H141+'Solution 9'!H141+'Solution 10'!H141+'Solution 11'!H141+'Solution 12'!H141 -> 231.511133 | I52: ='Solution 1'!I141+'Solution 2'!I141+'Solution 3'!I141+'Solution 4'!I141+'Solution 5'!I141+'Solution 6'!I141+'Solution 7'!I141+'Solution 8'!I141+'Solution 9'!I141+'Solution 10'!I141+'Solution 11'!I141+'Solution 12'!I141 -> 442.4812522 | J52: ='Solution 1'!J141+'Solution 2'!J141+'Solution 3'!J141+'Solution 4'!J141+'Solution 5'!J141+'Solution 6'!J141+'Solution 7'!J141+'Solution 8'!J141+'Solution 9'!J141+'Solution 10'!J141+'Solution 11'!J141+'Solution 12'!J141 -> 626.0201999 | K52: ='Solution 1'!K141+'Solution 2'!K141+'Solution 3'!K141+'Solution 4'!K141+'Solution 5'!K141+'Solution 6'!K141+'Solution 7'!K141+'Solution 8'!K141+'Solution 9'!K141+'Solution 10'!K141+'Solution 11'!K141+'Solution 12'!K141 -> 661.1866738
C54: Implied amount included within do-nothing position | F54: 2015/16 | G54: 2016/17 | H54: 2017/18 | I54: 2018/19 | J54: 2019/20 | K54: 2020/21
C56: Enter the estimated non-recurrent revenue transformation costs required to develop each service in your STP footprint:
A57: STPINV033 | C57: Seven Day Services Roll Out Through To 2019/20 | D57: i | E57: £000s | G57: =G13-G35 -> 0 | H57: 0 | I57: 0 | J57: 0 | K57: 0
A58: STPINV034 | C58: Taking Forward The Programmes Set Out In The General Practice Forward View and Delivering Extended GP Access | D58: i | E58: £000s | G58: 0 | H58: 0 | I58: 0 | J58: 0 | K58: 0
A59: STPINV035 | C59: Increasing Capacity Of Children And Adolescent Mental Health Services And Implementing Access and Wait Targets For Eating Disorders Services | D59: i | E59: £000s | G59: 0 | H59: 0 | I59: 0 | J59: 0 | K59: 0
A60: STPINV036 | C60: Implementing The Recommendations Of The Mental Health Taskforce | D60: i | E60: £000s | G60: 0 | H60: 0 | I60: 0 | J60: 0 | K60: 0
A61: STPINV037 | C61: Cancer Taskforce Strategy | D61: i | E61: £000s | G61: 0 | H61: 0 | I61: 0 | J61: 0 | K61: 0
A62: STPINV038 | C62: National Maternity Review | D62: i | E62: £000s | G62: 0 | H62: 0 | I62: 0 | J62: 0 | K62: 0
A63: STPINV039 | C63: Investment In Prevention, Tackling Childhood Obesity, And Improving Diabetes Diagnosis and Care | D63: i | E63: £000s | G63: 0 | H63: 0 | I63: 0 | J63: 0 | K63: 0
A64: STPINV040 | C64: Local Digital Roadmaps Supporting Paper Free At The Point Of Care And Electronic Health Records | D64: i | E64: £000s | G64: 0 | H64: 0 | I64: 0 | J64: 0 | K64: 0
C66: Enter the estimated additional recurrent revenue costs (net of savings) required to develop each service in your footprint:
A67: STPINV041 | C67: Seven Day Services Roll Out Through To 2019/20 | D67: i | E67: £000s | G67: =G23-G45 -> 1964.326842 | H67: 0 | I67: 0 | J67: 0 | K67: 0
A68: STPINV042 | C68: Taking Forward The Programmes Set Out In The General Practice Forward View and Delivering Extended GP Access | D68: i | E68: £000s | G68: 4651.841417 | H68: 0 | I68: 0 | J68: 0 | K68: 0
A69: STPINV043 | C69: Increasing Capacity Of Children And Adolescent Mental Health Services And Implementing Access and Wait Targets For Eating Disorders Services | D69: i | E69: £000s | G69: 820.4151 | H69: 3572.36593 | I69: 6932.811108 | J69: 11550.60258 | K69: 15935.21581
A70: STPINV044 | C70: Implementing The Recommendations Of The Mental Health Taskforce | D70: i | E70: £000s | G70: 1914.3019 | H70: 8335.520504 | I70: 16176.55925 | J70: 26951.40603 | K70: 37182.17023
A71: STPINV045 | C71: Cancer Taskforce Strategy | D71: i | E71: £000s | G71: 292.8427852 | H71: 0 | I71: 0 | J71: 0 | K71: 0
A72: STPINV046 | C72: National Maternity Review | D72: i | E72: £000s | G72: 109.5427483 | H72: 0 | I72: 0 | J72: 0 | K72: 0
A73: STPINV047 | C73: Investment In Prevention, Tackling Childhood Obesity, And Improving Diabetes Diagnosis and Care | D73: i | E73: £000s | G73: 5013.003763 | H73: 0 | I73: 0 | J73: 0 | K73: 0
A74: STPINV048 | C74: Local Digital Roadmaps Supporting Paper Free At The Point Of Care And Electronic Health Records | D74: i | E74: £000s | G74: 103.3856232 | H74: 0 | I74: 0 | J74: 0 | K74: 0

Sheet Solution Table (hidden)
C4: STP 'Do Something' Health And Social Care 2020/21 Bridge - Providers, Commissioners and Other
C6: Data labels | D6: Totals | E6: Movement | F6: Base | G6: Standalone | H6: Positive | I6: Negative | J6: Positive cross | K6: Negative cross | L6: Total | M6: Choice | N6: Total positive | O6: Pos end pos | P6: pos end neg | Q6: neg end pos | R6: neg end neg | U6: Commissioner Impact | W6: Intervention 11 | AE6: Not Used | AM6: Intervention 12 | AU6: Intervention 1 | BC6: Intervention 2 | BK6: Intervention 3 | BS6: Intervention 4 | CA6: Intervention 5 | CI6: Intervention 6 | CQ6: Intervention 7 | CY6: Intervention 8 | DG6: Intervention 9 | DO6: Intervention 10 | DW6: Total Interventions
C7: Blank | D7: 0 | E7: 0 | F7: 0 | G7: 0 | H7: 0 | I7: 0 | J7: 0 | K7: 0 | L7: 0 | M7: 0
C8: CCG Allocations | E8: ='Solution Control'!$AK$7 -> 2642982 | F8: =CHOOSE(M8,IF(E8>0,L7,L8),IF(E8>0,L8,L7),0,0) -> 0 | G8: =D8 -> 0 | H8: =CHOOSE(M8,IF(E8>0,IF(J8<0,E8+J8,E8),0),IF(E8>0,IF(J8<0,-(E8+J8),-E8),0),IF(J8<0,L8,0),0) -> 2642982 | I8: =CHOOSE(M8,IF(E8<0,IF(K8>0,-E8-K8,-E8),0),IF(E8<0,IF(K8>0,E8+K8,E8),0),IF(K8>0,L8,0),0) -> 0 | J8: =IF(ISERROR(L7<0),0,IF(L7<0,IF(L8>0,L7,0),0)) -> 0 | K8: =IF(ISERROR(L7>0),0,IF(L7>0,IF(L8<=0,L7,0),0)) -> 0 | L8: =IF(D8=0,L7+E8,D8) -> 2642982 | M8: =IF(G8=0,IF(OR(J8 <0,K8>0),3,IF(L8>0,1,2)),4) -> 1 | N8: =IF(M8=3,E8,0) -> 0 | O8: =IF(M8=4,0,IF(AND(L8>0,E8>=0),E8,)) -> 2642982 | P8: =IF(M8=4,0,IF(AND(L8>0,E8<0),ABS(E8),0)) -> 0 | Q8: =IF(M8=4,0,IF(AND(L8<0,E8>=0),-1*ABS(E8),0)) -> 0 | R8: =IF(M8=4,0,IF(AND(L8<0,E8<0),E8,0)) -> 0 | W8: 2014/15 | X8: 2015/16 | Y8: 2016/17 | Z8: 2017/18 | AA8: 2018/19 | AB8: 2019/20 | AC8: 2020/21 | AE8: 2014/15 | AF8: 2015/16 | AG8: 2016/17 | AH8: 2017/18 | AI8: 2018/19 | AJ8: 2019/20 | AK8: 2020/21 | AM8: 2014/15 | AN8: 2015/16 | AO8: 2016/17 | AP8: 2017/18 | AQ8: 2018/19 | AR8: 2019/20 | AS8: 2020/21 | AU8: 2014/15 | AV8: 2015/16 | AW8: 2016/17 | AX8: 2017/18 | AY8: 2018/19 | AZ8: 2019/20 | BA8: 2020/21 | BC8: 2014/15 | BD8: 2015/16 | BE8: 2016/17 | BF8: 2017/18 | BG8: 2018/19 | BH8: 2019/20 | BI8: 2020/21 | BK8: 2014/15 | BL8: 2015/16 | BM8: 2016/17 | BN8: 2017/18 | BO8: 2018/19 | BP8: 2019/20 | BQ8: 2020/21 | BS8: 2014/15 | BT8: 2015/16 | BU8: 2016/17 | BV8: 2017/18 | BW8: 2018/19 | BX8: 2019/20 | BY8: 2020/21 | CA8: 2014/15 | CB8: 2015/16 | CC8: 2016/17 | CD8: 2017/18 | CE8: 2018/19 | CF8: 2019/20 | CG8: 2020/21 | CI8: 2014/15 | CJ8: 2015/16 | CK8: 2016/17 | CL8: 2017/18 | CM8: 2018/19 | CN8: 2019/20 | CO8: 2020/21 | CQ8: 2014/15 | CR8: 2015/16 | CS8: 2016/17 | CT8: 2017/18 | CU8: 2018/19 | CV8: 2019/20 | CW8: 2020/21 | CY8: 2014/15 | CZ8: 2015/16 | DA8: 2016/17 | DB8: 2017/18 | DC8: 2018/19 | DD8: 2019/20 | DE8: 2020/21 | DG8: 2014/15 | DH8: 2015/16 | DI8: 2016/17 | DJ8: 2017/18 | DK8: 2018/19 | DL8: 2019/20 | DM8: 2020/21 | DO8: 2014/15 | DP8: 2015/16 | DQ8: 2016/17 | DR8: 2017/18 | DS8: 2018/19 | DT8: 2019/20 | DU8: 2020/21 | DX8: 2014/15 | DY8: 2015/16 | DZ8: 2016/17 | EA8: 2017/18 | EB8: 2018/19 | EC8: 2019/20 | ED8: 2020/21
C9: CCG Primary Medical Care (Mandate) Income | E9: ='Solution Control'!$AK$8 -> 280191 | F9: =CHOOSE(M9,IF(E9>0,L8,L9),IF(E9>0,L9,L8),0,0) -> 2642982 | G9: =D9 -> 0 | H9: =CHOOSE(M9,IF(E9>0,IF(J9<0,E9+J9,E9),0),IF(E9>0,IF(J9<0,-(E9+J9),-E9),0),IF(J9<0,L9,0),0) -> 280191 | I9: =CHOOSE(M9,IF(E9<0,IF(K9>0,-E9-K9,-E9),0),IF(E9<0,IF(K9>0,E9+K9,E9),0),IF(K9>0,L9,0),0) -> 0 | J9: =IF(ISERROR(L8<0),0,IF(L8<0,IF(L9>0,L8,0),0)) -> 0 | K9: 0 | L9: =IF(D9=0,L8+E9,D9) -> 2923173 | M9: =IF(G9=0,IF(OR(J9 <0,K9>0),3,IF(L9>0,1,2)),4) -> 1 | N9: =IF(M9=3,E9,0) -> 0 | O9: =IF(M9=4,0,IF(AND(L9>0,E9>=0),E9,)) -> 280191 | P9: =IF(M9=4,0,IF(AND(L9>0,E9<0),ABS(E9),0)) -> 0 | Q9: =IF(M9=4,0,IF(AND(L9<0,E9>=0),-1*ABS(E9),0)) -> 0 | R9: =IF(M9=4,0,IF(AND(L9<0,E9<0),E9,0)) -> 0 | U9: Activity Intervention Adjustments | DW9: Activity Intervention Adjustments
C10: CCG Specialised (Spec Comm) Income | E10: ='Solution Control'!$AK$9 -> 774522 | F10: 2923173 | G10: =D10 -> 0 | H10: =CHOOSE(M10,IF(E10>0,IF(J10<0,E10+J10,E10),0),IF(E10>0,IF(J10<0,-(E10+J10),-E10),0),IF(J10<0,L10,0),0) -> 774522 | I10: =CHOOSE(M10,IF(E10<0,IF(K10>0,-E10-K10,-E10),0),IF(E10<0,IF(K10>0,E10+K10,E10),0),IF(K10>0,L10,0),0) -> 0 | J10: =IF(ISERROR(L9<0),0,IF(L9<0,IF(L10>0,L9,0),0)) -> 0 | K10: 0 | L10: =IF(D10=0,L9+E10,D10) -> 3697695 | M10: =IF(G10=0,IF(OR(J10 <0,K10>0),3,IF(L10>0,1,2)),4) -> 1 | N10: =IF(M10=3,E10,0) -> 0 | O10: =IF(M10=4,0,IF(AND(L10>0,E10>=0),E10,)) -> 774522 | P10: =IF(M10=4,0,IF(AND(L10>0,E10<0),ABS(E10),0)) -> 0 | Q10: =IF(M10=4,0,IF(AND(L10<0,E10>=0),-1*ABS(E10),0)) -> 0 | R10: =IF(M10=4,0,IF(AND(L10<0,E10<0),E10,0)) -> 0 | U10: Acute | DW10: Acute
C11: CCG Non-Recurrent Income | E11: ='Solution Control'!$AK$10 -> 0 | F11: 3697695 | G11: 0 | H11: 0 | I11: 0 | J11: 0 | K11: 0 | L11: 3697695 | M11: 1 | N11: 0 | O11: 0 | P11: 0 | Q11: 0 | R11: 0 | U11: Outpatient | V11: # | Y11: =IF('Solution Control'!$D$22="On",'Solution 11'!G48, 0) -> 0 | Z11: =IF('Solution Control'!$D$22="On",'Solution 11'!H48, 0) -> 0 | AA11: =IF('Solution Control'!$D$22="On",'Solution 11'!I48, 0) -> 0 | AB11: =IF('Solution Control'!$D$22="On",'Solution 11'!J48, 0) -> 0 | AC11: =IF('Solution Control'!$D$22="On",'Solution 11'!K48, 0) -> 0 | AO11: =IF('Solution Control'!$D$23="On",'Solution 12'!G48, 0) -> 0 | AP11: =IF('Solution Control'!$D$23="On",'Solution 12'!H48, 0) -> 0 | AQ11: =IF('Solution Control'!$D$23="On",'Solution 12'!I48, 0) -> 0 | AR11: =IF('Solution Control'!$D$23="On",'Solution 12'!J48, 0) -> 0 | AS11: =IF('Solution Control'!$D$23="On",'Solution 12'!K48, 0) -> 0 | AW11: =IF('Solution Control'!$D$12="On", 'Solution 1'!G48, 0) -> 0 | AX11: =IF('Solution Control'!$D$12="On", 'Solution 1'!H48, 0) -> 0.0001 | AY11: =IF('Solution Control'!$D$12="On", 'Solution 1'!I48, 0) -> 0.0001 | AZ11: =IF('Solution Control'!$D$12="On", 'Solution 1'!J48, 0) -> 0.0001 | BA11: =IF('Solution Control'!$D$12="On", 'Solution 1'!K48, 0) -> 0.0001 | BE11: =IF('Solution Control'!$D$13="On", 'Solution 2'!G48, 0) -> 0 | BF11: =IF('Solution Control'!$D$13="On", 'Solution 2'!H48, 0) -> 0 | BG11: =IF('Solution Control'!$D$13="On", 'Solution 2'!I48, 0) -> 0 | BH11: =IF('Solution Control'!$D$13="On", 'Solution 2'!J48, 0) -> 0 | BI11: =IF('Solution Control'!$D$13="On", 'Solution 2'!K48, 0) -> 0 | BM11: =IF('Solution Control'!$D$14="On", 'Solution 3'!G48, 0) -> 0 | BN11: =IF('Solution Control'!$D$14="On", 'Solution 3'!H48, 0) -> 0 | BO11: =IF('Solution Control'!$D$14="On", 'Solution 3'!I48, 0) -> 0 | BP11: =IF('Solution Control'!$D$14="On", 'Solution 3'!J48, 0) -> 0 | BQ11: =IF('Solution Control'!$D$14="On", 'Solution 3'!K48, 0) -> 0 | BU11: =IF('Solution Control'!$D$15="On", 'Solution 4'!G48, 0) -> 0 | BV11: =IF('Solution Control'!$D$15="On", 'Solution 4'!H48, 0) -> 0 | BW11: =IF('Solution Control'!$D$15="On", 'Solution 4'!I48, 0) -> 0 | BX11: =IF('Solution Control'!$D$15="On", 'Solution 4'!J48, 0) -> 0 | BY11: =IF('Solution Control'!$D$15="On", 'Solution 4'!K48, 0) -> 0 | CC11: =IF('Solution Control'!$D$16="On",'Solution 5'!G48, 0) -> 0 | CD11: =IF('Solution Control'!$D$16="On",'Solution 5'!H48, 0) -> 0.0001 | CE11: =IF('Solution Control'!$D$16="On",'Solution 5'!I48, 0) -> 0.0001 | CF11: =IF('Solution Control'!$D$16="On",'Solution 5'!J48, 0) -> 0.0001 | CG11: =IF('Solution Control'!$D$16="On",'Solution 5'!K48, 0) -> 0.0001 | CK11: =IF('Solution Control'!$D$17="On",'Solution 6'!G48, 0) -> 0 | CL11: =IF('Solution Control'!$D$17="On",'Solution 6'!H48, 0) -> -5734.635218 | CM11: =IF('Solution Control'!$D$17="On",'Solution 6'!I48, 0) -> -8773.991883 | CN11: =IF('Solution Control'!$D$17="On",'Solution 6'!J48, 0) -> -11932.62896 | CO11: =IF('Solution Control'!$D$17="On",'Solution 6'!K48, 0) -> -12171.28154 | CS11: =IF('Solution Control'!$D$18="On",'Solution 7'!G48, 0) -> 0 | CT11: =IF('Solution Control'!$D$18="On",'Solution 7'!H48, 0) -> -11260.40052 | CU11: =IF('Solution Control'!$D$18="On",'Solution 7'!I48, 0) -> -17228.41279 | CV11: =IF('Solution Control'!$D$18="On",'Solution 7'!J48, 0) -> -23430.64139 | CW11: =IF('Solution Control'!$D$18="On",'Solution 7'!K48, 0) -> -23899.25422 | DA11: =IF('Solution Control'!$D$19="On",'Solution 8'!G48, 0) -> 0 | DB11: =IF('Solution Control'!$D$19="On",'Solution 8'!H48, 0) -> -18688.82964 | DC11: =IF('Solution Control'!$D$19="On",'Solution 8'!I48, 0) -> -28593.90935 | DD11: =IF('Solution Control'!$D$19="On",'Solution 8'!J48, 0) -> -38887.71672 | DE11: =IF('Solution Control'!$D$19="On",'Solution 8'!K48, 0) -> -39665.47105 | DI11: =IF('Solution Control'!$D$20="On",'Solution 9'!G48, 0) -> 0 | DJ11: =IF('Solution Control'!$D$20="On",'Solution 9'!H48, 0) -> 0 | DK11: =IF('Solution Control'!$D$20="On",'Solution 9'!I48, 0) -> 0 | DL11: =IF('Solution Control'!$D$20="On",'Solution 9'!J48, 0) -> 0 | DM11: =IF('Solution Control'!$D$20="On",'Solution 9'!K48, 0) -> 0 | DQ11: =IF('Solution Control'!$D$21="On",'Solution 10'!G48, 0) -> 0 | DR11: =IF('Solution Control'!$D$21="On",'Solution 10'!H48, 0) -> 0 | DS11: =IF('Solution Control'!$D$21="On",'Solution 10'!I48, 0) -> 0 | DT11: =IF('Solution Control'!$D$21="On",'Solution 10'!J48, 0) -> 0 | DU11: =IF('Solution Control'!$D$21="On",'Solution 10'!K48, 0) -> 0 | DW11: Outpatient | DZ11: =Y11+AG11+AO11+AW11+BE11+BM11+BU11+CC11+CK11+CS11+DA11+DI11+DQ11 -> 0 | EA11: -35683.86518 | EB11: -54596.31383 | EC11: -74250.98687 | ED11: -75736.00662
C12: CCG Secondary Care Expenditure | E12: ='Solution Control'!$AK$11 -> -2073197.974 | F12: 1624497.026 | G12: 0 | H12: 0 | I12: =CHOOSE(M12,IF(E12<0,IF(K12>0,-E12-K12,-E12),0),IF(E12<0,IF(K12>0,E12+K12,E12),0),IF(K12>0,L12,0),0) -> 2073197.974 | J12: 0 | K12: =IF(ISERROR(L11>0),0,IF(L11>0,IF(L12<=0,L11,0),0)) -> 0 | L12: =IF(D12=0,L11+E12,D12) -> 1624497.026 | M12: 1 | N12: 0 | O12: 0 | P12: 2073197.974 | Q12: 0 | R12: =IF(M12=4,0,IF(AND(L12<0,E12<0),E12,0)) -> 0 | U12: Elective | V12: # | Y12: =IF('Solution Control'!$D$22="On",'Solution 11'!G49, 0) -> 0 | Z12: =IF('Solution Control'!$D$22="On",'Solution 11'!H49, 0) -> 0 | AA12: =IF('Solution Control'!$D$22="On",'Solution 11'!I49, 0) -> 0 | AB12: =IF('Solution Control'!$D$22="On",'Solution 11'!J49, 0) -> 0 | AC12: =IF('Solution Control'!$D$22="On",'Solution 11'!K49, 0) -> 0 | AO12: =IF('Solution Control'!$D$23="On",'Solution 12'!G49, 0) -> 0 | AP12: =IF('Solution Control'!$D$23="On",'Solution 12'!H49, 0) -> 0 | AQ12: =IF('Solution Control'!$D$23="On",'Solution 12'!I49, 0) -> 0 | AR12: =IF('Solution Control'!$D$23="On",'Solution 12'!J49, 0) -> 0 | AS12: =IF('Solution Control'!$D$23="On",'Solution 12'!K49, 0) -> 0 | AW12: =IF('Solution Control'!$D$12="On", 'Solution 1'!G49, 0) -> 0 | AX12: =IF('Solution Control'!$D$12="On", 'Solution 1'!H49, 0) -> 0.0001 | AY12: =IF('Solution Control'!$D$12="On", 'Solution 1'!I49, 0) -> 0.0001 | AZ12: =IF('Solution Control'!$D$12="On", 'Solution 1'!J49, 0) -> 0.0001 | BA12: =IF('Solution Control'!$D$12="On", 'Solution 1'!K49, 0) -> 0.0001 | BE12: =IF('Solution Control'!$D$13="On", 'Solution 2'!G49, 0) -> 0 | BF12: =IF('Solution Control'!$D$13="On", 'Solution 2'!H49, 0) -> 0 | BG12: =IF('Solution Control'!$D$13="On", 'Solution 2'!I49, 0) -> 0 | BH12: =IF('Solution Control'!$D$13="On", 'Solution 2'!J49, 0) -> 0 | BI12: =IF('Solution Control'!$D$13="On", 'Solution 2'!K49, 0) -> 0 | BM12: =IF('Solution Control'!$D$14="On", 'Solution 3'!G49, 0) -> 0 | BN12: =IF('Solution Control'!$D$14="On", 'Solution 3'!H49, 0) -> 0 | BO12: =IF('Solution Control'!$D$14="On", 'Solution 3'!I49, 0) -> 0 | BP12: =IF('Solution Control'!$D$14="On", 'Solution 3'!J49, 0) -> 0 | BQ12: =IF('Solution Control'!$D$14="On", 'Solution 3'!K49, 0) -> 0 | BU12: =IF('Solution Control'!$D$15="On", 'Solution 4'!G49, 0) -> 0 | BV12: =IF('Solution Control'!$D$15="On", 'Solution 4'!H49, 0) -> 0 | BW12: =IF('Solution Control'!$D$15="On", 'Solution 4'!I49, 0) -> 0 | BX12: =IF('Solution Control'!$D$15="On", 'Solution 4'!J49, 0) -> 0 | BY12: =IF('Solution Control'!$D$15="On", 'Solution 4'!K49, 0) -> 0 | CC12: =IF('Solution Control'!$D$16="On",'Solution 5'!G49, 0) -> 0 | CD12: =IF('Solution Control'!$D$16="On",'Solution 5'!H49, 0) -> 0.0001 | CE12: =IF('Solution Control'!$D$16="On",'Solution 5'!I49, 0) -> 0.0001 | CF12: =IF('Solution Control'!$D$16="On",'Solution 5'!J49, 0) -> 0.0001 | CG12: =IF('Solution Control'!$D$16="On",'Solution 5'!K49, 0) -> 0.0001 | CK12: =IF('Solution Control'!$D$17="On",'Solution 6'!G49, 0) -> 0 | CL12: =IF('Solution Control'!$D$17="On",'Solution 6'!H49, 0) -> 0 | CM12: =IF('Solution Control'!$D$17="On",'Solution 6'!I49, 0) -> 0 | CN12: =IF('Solution Control'!$D$17="On",'Solution 6'!J49, 0) -> 0 | CO12: =IF('Solution Control'!$D$17="On",'Solution 6'!K49, 0) -> 0 | CS12: =IF('Solution Control'!$D$18="On",'Solution 7'!G49, 0) -> 0 | CT12: =IF('Solution Control'!$D$18="On",'Solution 7'!H49, 0) -> 0 | CU12: =IF('Solution Control'!$D$18="On",'Solution 7'!I49, 0) -> 0 | CV12: =IF('Solution Control'!$D$18="On",'Solution 7'!J49, 0) -> 0 | CW12: =IF('Solution Control'!$D$18="On",'Solution 7'!K49, 0) -> 0 | DA12: =IF('Solution Control'!$D$19="On",'Solution 8'!G49, 0) -> 0 | DB12: =IF('Solution Control'!$D$19="On",'Solution 8'!H49, 0) -> 0 | DC12: =IF('Solution Control'!$D$19="On",'Solution 8'!I49, 0) -> 0 | DD12: =IF('Solution Control'!$D$19="On",'Solution 8'!J49, 0) -> 0 | DE12: =IF('Solution Control'!$D$19="On",'Solution 8'!K49, 0) -> 0 | DI12: =IF('Solution Control'!$D$20="On",'Solution 9'!G49, 0) -> 0 | DJ12: =IF('Solution Control'!$D$20="On",'Solution 9'!H49, 0) -> 0 | DK12: =IF('Solution Control'!$D$20="On",'Solution 9'!I49, 0) -> 0 | DL12: =IF('Solution Control'!$D$20="On",'Solution 9'!J49, 0) -> 0 | DM12: =IF('Solution Control'!$D$20="On",'Solution 9'!K49, 0) -> 0 | DQ12: =IF('Solution Control'!$D$21="On",'Solution 10'!G49, 0) -> 0 | DR12: =IF('Solution Control'!$D$21="On",'Solution 10'!H49, 0) -> 0 | DS12: =IF('Solution Control'!$D$21="On",'Solution 10'!I49, 0) -> 0 | DT12: =IF('Solution Control'!$D$21="On",'Solution 10'!J49, 0) -> 0 | DU12: =IF('Solution Control'!$D$21="On",'Solution 10'!K49, 0) -> 0 | DW12: Elective | DZ12: 0 | EA12: 0.0002 | EB12: 0.0002 | EC12: 0.0002 | ED12: 0.0002
C13: Other CCG Expenditure | E13: ='Solution Control'!$AK$12 -> -647353.1682 | F13: 977143.8578 | G13: 0 | H13: 0 | I13: 647353.1682 | J13: 0 | K13: =IF(ISERROR(L12>0),0,IF(L12>0,IF(L13<=0,L12,0),0)) -> 0 | L13: 977143.8578 | M13: 1 | N13: 0 | O13: 0 | P13: 647353.1682 | Q13: 0 | R13: 0 | U13: Non Elective | V13: # | Y13: =IF('Solution Control'!$D$22="On",'Solution 11'!G50, 0) -> 0 | Z13: =IF('Solution Control'!$D$22="On",'Solution 11'!H50, 0) -> 0 | AA13: =IF('Solution Control'!$D$22="On",'Solution 11'!I50, 0) -> 0 | AB13: =IF('Solution Control'!$D$22="On",'Solution 11'!J50, 0) -> 0 | AC13: =IF('Solution Control'!$D$22="On",'Solution 11'!K50, 0) -> 0 | AO13: =IF('Solution Control'!$D$23="On",'Solution 12'!G50, 0) -> 0 | AP13: =IF('Solution Control'!$D$23="On",'Solution 12'!H50, 0) -> 0 | AQ13: =IF('Solution Control'!$D$23="On",'Solution 12'!I50, 0) -> 0 | AR13: =IF('Solution Control'!$D$23="On",'Solution 12'!J50, 0) -> 0 | AS13: =IF('Solution Control'!$D$23="On",'Solution 12'!K50, 0) -> 0 | AW13: =IF('Solution Control'!$D$12="On", 'Solution 1'!G50, 0) -> 0 | AX13: =IF('Solution Control'!$D$12="On", 'Solution 1'!H50, 0) -> 0.0001 | AY13: =IF('Solution Control'!$D$12="On", 'Solution 1'!I50, 0) -> 0.0001 | AZ13: =IF('Solution Control'!$D$12="On", 'Solution 1'!J50, 0) -> 0.0001 | BA13: =IF('Solution Control'!$D$12="On", 'Solution 1'!K50, 0) -> 0.0001 | BE13: =IF('Solution Control'!$D$13="On", 'Solution 2'!G50, 0) -> 0 | BF13: =IF('Solution Control'!$D$13="On", 'Solution 2'!H50, 0) -> 0 | BG13: =IF('Solution Control'!$D$13="On", 'Solution 2'!I50, 0) -> 0 | BH13: =IF('Solution Control'!$D$13="On", 'Solution 2'!J50, 0) -> 0 | BI13: =IF('Solution Control'!$D$13="On", 'Solution 2'!K50, 0) -> 0 | BM13: =IF('Solution Control'!$D$14="On", 'Solution 3'!G50, 0) -> 0 | BN13: =IF('Solution Control'!$D$14="On", 'Solution 3'!H50, 0) -> 0 | BO13: =IF('Solution Control'!$D$14="On", 'Solution 3'!I50, 0) -> 0 | BP13: =IF('Solution Control'!$D$14="On", 'Solution 3'!J50, 0) -> 0 | BQ13: =IF('Solution Control'!$D$14="On", 'Solution 3'!K50, 0) -> 0 | BU13: =IF('Solution Control'!$D$15="On", 'Solution 4'!G50, 0) -> 0 | BV13: =IF('Solution Control'!$D$15="On", 'Solution 4'!H50, 0) -> 0 | BW13: =IF('Solution Control'!$D$15="On", 'Solution 4'!I50, 0) -> 0 | BX13: =IF('Solution Control'!$D$15="On", 'Solution 4'!J50, 0) -> 0 | BY13: =IF('Solution Control'!$D$15="On", 'Solution 4'!K50, 0) -> 0 | CC13: =IF('Solution Control'!$D$16="On",'Solution 5'!G50, 0) -> 0 | CD13: =IF('Solution Control'!$D$16="On",'Solution 5'!H50, 0) -> 0.0001 | CE13: =IF('Solution Control'!$D$16="On",'Solution 5'!I50, 0) -> 0.0001 | CF13: =IF('Solution Control'!$D$16="On",'Solution 5'!J50, 0) -> 0.0001 | CG13: =IF('Solution Control'!$D$16="On",'Solution 5'!K50, 0) -> 0.0001 | CK13: =IF('Solution Control'!$D$17="On",'Solution 6'!G50, 0) -> 0 | CL13: =IF('Solution Control'!$D$17="On",'Solution 6'!H50, 0) -> -7285.649831 | CM13: =IF('Solution Control'!$D$17="On",'Solution 6'!I50, 0) -> -11147.04424 | CN13: =IF('Solution Control'!$D$17="On",'Solution 6'!J50, 0) -> -15159.98017 | CO13: =IF('Solution Control'!$D$17="On",'Solution 6'!K50, 0) -> -15463.17977 | CS13: =IF('Solution Control'!$D$18="On",'Solution 7'!G50, 0) -> 0 | CT13: =IF('Solution Control'!$D$18="On",'Solution 7'!H50, 0) -> -900.6450343 | CU13: =IF('Solution Control'!$D$18="On",'Solution 7'!I50, 0) -> -1377.986902 | CV13: =IF('Solution Control'!$D$18="On",'Solution 7'!J50, 0) -> -1874.062187 | CW13: =IF('Solution Control'!$D$18="On",'Solution 7'!K50, 0) -> -1911.543431 | DA13: =IF('Solution Control'!$D$19="On",'Solution 8'!G50, 0) -> 0 | DB13: =IF('Solution Control'!$D$19="On",'Solution 8'!H50, 0) -> 0 | DC13: =IF('Solution Control'!$D$19="On",'Solution 8'!I50, 0) -> 0 | DD13: =IF('Solution Control'!$D$19="On",'Solution 8'!J50, 0) -> 0 | DE13: =IF('Solution Control'!$D$19="On",'Solution 8'!K50, 0) -> 0 | DI13: =IF('Solution Control'!$D$20="On",'Solution 9'!G50, 0) -> 0 | DJ13: =IF('Solution Control'!$D$20="On",'Solution 9'!H50, 0) -> 0 | DK13: =IF('Solution Control'!$D$20="On",'Solution 9'!I50, 0) -> 0 | DL13: =IF('Solution Control'!$D$20="On",'Solution 9'!J50, 0) -> 0 | DM13: =IF('Solution Control'!$D$20="On",'Solution 9'!K50, 0) -> 0 | DQ13: =IF('Solution Control'!$D$21="On",'Solution 10'!G50, 0) -> 0 | DR13: =IF('Solution Control'!$D$21="On",'Solution 10'!H50, 0) -> -5459.039704 | DS13: =IF('Solution Control'!$D$21="On",'Solution 10'!I50, 0) -> -8352.330747 | DT13: =IF('Solution Control'!$D$21="On",'Solution 10'!J50, 0) -> -11359.16982 | DU13: =IF('Solution Control'!$D$21="On",'Solution 10'!K50, 0) -> -11586.35321 | DW13: Non Elective | DZ13: 0 | EA13: -13645.33437 | EB13: -20877.36169 | EC13: -28393.21197 | ED13: -28961.07621
C14: CCG Primary Medical Care (Mandate) Expenditure | E14: ='Solution Control'!$AK$13 -> -280191 | F14: 696952.8578 | G14: 0 | H14: 0 | I14: 280191 | J14: 0 | K14: 0 | L14: 696952.8578 | M14: 1 | N14: 0 | O14: 0 | P14: 280191 | Q14: 0 | R14: 0 | U14: A&E | V14: # | Y14: =IF('Solution Control'!$D$22="On",'Solution 11'!G51, 0) -> 0 | Z14: =IF('Solution Control'!$D$22="On",'Solution 11'!H51, 0) -> 0 | AA14: =IF('Solution Control'!$D$22="On",'Solution 11'!I51, 0) -> 0 | AB14: =IF('Solution Control'!$D$22="On",'Solution 11'!J51, 0) -> 0 | AC14: =IF('Solution Control'!$D$22="On",'Solution 11'!K51, 0) -> 0 | AO14: =IF('Solution Control'!$D$23="On",'Solution 12'!G51, 0) -> 0 | AP14: =IF('Solution Control'!$D$23="On",'Solution 12'!H51, 0) -> 0 | AQ14: =IF('Solution Control'!$D$23="On",'Solution 12'!I51, 0) -> 0 | AR14: =IF('Solution Control'!$D$23="On",'Solution 12'!J51, 0) -> 0 | AS14: =IF('Solution Control'!$D$23="On",'Solution 12'!K51, 0) -> 0 | AW14: =IF('Solution Control'!$D$12="On", 'Solution 1'!G51, 0) -> 0 | AX14: =IF('Solution Control'!$D$12="On", 'Solution 1'!H51, 0) -> 0.0001 | AY14: =IF('Solution Control'!$D$12="On", 'Solution 1'!I51, 0) -> 0.0001 | AZ14: =IF('Solution Control'!$D$12="On", 'Solution 1'!J51, 0) -> 0.0001 | BA14: =IF('Solution Control'!$D$12="On", 'Solution 1'!K51, 0) -> 0.0001 | BE14: =IF('Solution Control'!$D$13="On", 'Solution 2'!G51, 0) -> 0 | BF14: =IF('Solution Control'!$D$13="On", 'Solution 2'!H51, 0) -> 0 | BG14: =IF('Solution Control'!$D$13="On", 'Solution 2'!I51, 0) -> 0 | BH14: =IF('Solution Control'!$D$13="On", 'Solution 2'!J51, 0) -> 0 | BI14: =IF('Solution Control'!$D$13="On", 'Solution 2'!K51, 0) -> 0 | BM14: =IF('Solution Control'!$D$14="On", 'Solution 3'!G51, 0) -> 0 | BN14: =IF('Solution Control'!$D$14="On", 'Solution 3'!H51, 0) -> 0 | BO14: =IF('Solution Control'!$D$14="On", 'Solution 3'!I51, 0) -> 0 | BP14: =IF('Solution Control'!$D$14="On", 'Solution 3'!J51, 0) -> 0 | BQ14: =IF('Solution Control'!$D$14="On", 'Solution 3'!K51, 0) -> 0 | BU14: =IF('Solution Control'!$D$15="On", 'Solution 4'!G51, 0) -> 0 | BV14: =IF('Solution Control'!$D$15="On", 'Solution 4'!H51, 0) -> 0 | BW14: =IF('Solution Control'!$D$15="On", 'Solution 4'!I51, 0) -> 0 | BX14: =IF('Solution Control'!$D$15="On", 'Solution 4'!J51, 0) -> 0 | BY14: =IF('Solution Control'!$D$15="On", 'Solution 4'!K51, 0) -> 0 | CC14: =IF('Solution Control'!$D$16="On",'Solution 5'!G51, 0) -> 0 | CD14: =IF('Solution Control'!$D$16="On",'Solution 5'!H51, 0) -> 0.0001 | CE14: =IF('Solution Control'!$D$16="On",'Solution 5'!I51, 0) -> 0.0001 | CF14: =IF('Solution Control'!$D$16="On",'Solution 5'!J51, 0) -> 0.0001 | CG14: =IF('Solution Control'!$D$16="On",'Solution 5'!K51, 0) -> 0.0001 | CK14: =IF('Solution Control'!$D$17="On",'Solution 6'!G51, 0) -> 0 | CL14: =IF('Solution Control'!$D$17="On",'Solution 6'!H51, 0) -> -518.2174201 | CM14: =IF('Solution Control'!$D$17="On",'Solution 6'!I51, 0) -> -792.8726528 | CN14: =IF('Solution Control'!$D$17="On",'Solution 6'!J51, 0) -> -1078.306808 | CO14: =IF('Solution Control'!$D$17="On",'Solution 6'!K51, 0) -> -1099.872944 | CS14: =IF('Solution Control'!$D$18="On",'Solution 7'!G51, 0) -> 0 | CT14: =IF('Solution Control'!$D$18="On",'Solution 7'!H51, 0) -> 0 | CU14: =IF('Solution Control'!$D$18="On",'Solution 7'!I51, 0) -> 0 | CV14: =IF('Solution Control'!$D$18="On",'Solution 7'!J51, 0) -> 0 | CW14: =IF('Solution Control'!$D$18="On",'Solution 7'!K51, 0) -> 0 | DA14: =IF('Solution Control'!$D$19="On",'Solution 8'!G51, 0) -> 0 | DB14: =IF('Solution Control'!$D$19="On",'Solution 8'!H51, 0) -> 0 | DC14: =IF('Solution Control'!$D$19="On",'Solution 8'!I51, 0) -> 0 | DD14: =IF('Solution Control'!$D$19="On",'Solution 8'!J51, 0) -> 0 | DE14: =IF('Solution Control'!$D$19="On",'Solution 8'!K51, 0) -> 0 | DI14: =IF('Solution Control'!$D$20="On",'Solution 9'!G51, 0) -> 0 | DJ14: =IF('Solution Control'!$D$20="On",'Solution 9'!H51, 0) -> 0 | DK14: =IF('Solution Control'!$D$20="On",'Solution 9'!I51, 0) -> 0 | DL14: =IF('Solution Control'!$D$20="On",'Solution 9'!J51, 0) -> 0 | DM14: =IF('Solution Control'!$D$20="On",'Solution 9'!K51, 0) -> 0 | DQ14: =IF('Solution Control'!$D$21="On",'Solution 10'!G51, 0) -> 0 | DR14: =IF('Solution Control'!$D$21="On",'Solution 10'!H51, 0) -> -51754.22364 | DS14: =IF('Solution Control'!$D$21="On",'Solution 10'!I51, 0) -> -79183.96217 | DT14: =IF('Solution Control'!$D$21="On",'Solution 10'!J51, 0) -> -107690.1886 | DU14: =IF('Solution Control'!$D$21="On",'Solution 10'!K51, 0) -> -109843.9923 | DW14: A&E | DZ14: 0 | EA14: -52272.44086 | EB14: -79976.83462 | EC14: -108768.4952 | ED14: -110943.8651
C15: CCG Specialised Expenditure (Spec Comm) Expenditure | E15: ='Solution Control'!$AK$14 -> -774522 | F15: =CHOOSE(M15,IF(E15>0,L14,L15),IF(E15>0,L15,L14),0,0) -> 0 | G15: 0 | H15: 0 | I15: -77569.14215 | J15: 0 | K15: 696952.8578 | L15: -77569.14215 | M15: 3 | N15: -774522 | O15: 0 | P15: 0 | Q15: 0 | R15: -774522 | U15: Mental Health | V15: # | Y15: =IF('Solution Control'!$D$22="On",'Solution 11'!G52, 0) -> 0 | Z15: =IF('Solution Control'!$D$22="On",'Solution 11'!H52, 0) -> 0 | AA15: =IF('Solution Control'!$D$22="On",'Solution 11'!I52, 0) -> 0 | AB15: =IF('Solution Control'!$D$22="On",'Solution 11'!J52, 0) -> 0 | AC15: =IF('Solution Control'!$D$22="On",'Solution 11'!K52, 0) -> 0 | AO15: =IF('Solution Control'!$D$23="On",'Solution 12'!G52, 0) -> 0 | AP15: =IF('Solution Control'!$D$23="On",'Solution 12'!H52, 0) -> 0 | AQ15: =IF('Solution Control'!$D$23="On",'Solution 12'!I52, 0) -> 0 | AR15: =IF('Solution Control'!$D$23="On",'Solution 12'!J52, 0) -> 0 | AS15: =IF('Solution Control'!$D$23="On",'Solution 12'!K52, 0) -> 0 | AW15: =IF('Solution Control'!$D$12="On", 'Solution 1'!G52, 0) -> 0 | AX15: =IF('Solution Control'!$D$12="On", 'Solution 1'!H52, 0) -> 0 | AY15: =IF('Solution Control'!$D$12="On", 'Solution 1'!I52, 0) -> 0 | AZ15: =IF('Solution Control'!$D$12="On", 'Solution 1'!J52, 0) -> 0 | BA15: =IF('Solution Control'!$D$12="On", 'Solution 1'!K52, 0) -> 0 | BE15: =IF('Solution Control'!$D$13="On", 'Solution 2'!G52, 0) -> 0 | BF15: =IF('Solution Control'!$D$13="On", 'Solution 2'!H52, 0) -> 0 | BG15: =IF('Solution Control'!$D$13="On", 'Solution 2'!I52, 0) -> 0 | BH15: =IF('Solution Control'!$D$13="On", 'Solution 2'!J52, 0) -> 0 | BI15: =IF('Solution Control'!$D$13="On", 'Solution 2'!K52, 0) -> 0 | BM15: =IF('Solution Control'!$D$14="On", 'Solution 3'!G52, 0) -> 0 | BN15: =IF('Solution Control'!$D$14="On", 'Solution 3'!H52, 0) -> 0 | BO15: =IF('Solution Control'!$D$14="On", 'Solution 3'!I52, 0) -> 0 | BP15: =IF('Solution Control'!$D$14="On", 'Solution 3'!J52, 0) -> 0 | BQ15: =IF('Solution Control'!$D$14="On", 'Solution 3'!K52, 0) -> 0 | BU15: =IF('Solution Control'!$D$15="On", 'Solution 4'!G52, 0) -> 0 | BV15: =IF('Solution Control'!$D$15="On", 'Solution 4'!H52, 0) -> 0 | BW15: =IF('Solution Control'!$D$15="On", 'Solution 4'!I52, 0) -> 0 | BX15: =IF('Solution Control'!$D$15="On", 'Solution 4'!J52, 0) -> 0 | BY15: =IF('Solution Control'!$D$15="On", 'Solution 4'!K52, 0) -> 0 | CC15: =IF('Solution Control'!$D$16="On",'Solution 5'!G52, 0) -> 0 | CD15: =IF('Solution Control'!$D$16="On",'Solution 5'!H52, 0) -> 0 | CE15: =IF('Solution Control'!$D$16="On",'Solution 5'!I52, 0) -> 0 | CF15: =IF('Solution Control'!$D$16="On",'Solution 5'!J52, 0) -> 0 | CG15: =IF('Solution Control'!$D$16="On",'Solution 5'!K52, 0) -> 0 | CK15: =IF('Solution Control'!$D$17="On",'Solution 6'!G52, 0) -> 0 | CL15: =IF('Solution Control'!$D$17="On",'Solution 6'!H52, 0) -> 0 | CM15: =IF('Solution Control'!$D$17="On",'Solution 6'!I52, 0) -> 0 | CN15: =IF('Solution Control'!$D$17="On",'Solution 6'!J52, 0) -> 0 | CO15: =IF('Solution Control'!$D$17="On",'Solution 6'!K52, 0) -> 0 | CS15: =IF('Solution Control'!$D$18="On",'Solution 7'!G52, 0) -> 0 | CT15: =IF('Solution Control'!$D$18="On",'Solution 7'!H52, 0) -> 0 | CU15: =IF('Solution Control'!$D$18="On",'Solution 7'!I52, 0) -> 0 | CV15: =IF('Solution Control'!$D$18="On",'Solution 7'!J52, 0) -> 0 | CW15: =IF('Solution Control'!$D$18="On",'Solution 7'!K52, 0) -> 0 | DA15: =IF('Solution Control'!$D$19="On",'Solution 8'!G52, 0) -> 0 | DB15: =IF('Solution Control'!$D$19="On",'Solution 8'!H52, 0) -> 0 | DC15: =IF('Solution Control'!$D$19="On",'Solution 8'!I52, 0) -> 0 | DD15: =IF('Solution Control'!$D$19="On",'Solution 8'!J52, 0) -> 0 | DE15: =IF('Solution Control'!$D$19="On",'Solution 8'!K52, 0) -> 0 | DI15: =IF('Solution Control'!$D$20="On",'Solution 9'!G52, 0) -> 0 | DJ15: =IF('Solution Control'!$D$20="On",'Solution 9'!H52, 0) -> 0 | DK15: =IF('Solution Control'!$D$20="On",'Solution 9'!I52, 0) -> 0 | DL15: =IF('Solution Control'!$D$20="On",'Solution 9'!J52, 0) -> 0 | DM15: =IF('Solution Control'!$D$20="On",'Solution 9'!K52, 0) -> 0 | DQ15: =IF('Solution Control'!$D$21="On",'Solution 10'!G52, 0) -> 0 | DR15: =IF('Solution Control'!$D$21="On",'Solution 10'!H52, 0) -> 0 | DS15: =IF('Solution Control'!$D$21="On",'Solution 10'!I52, 0) -> 0 | DT15: =IF('Solution Control'!$D$21="On",'Solution 10'!J52, 0) -> 0 | DU15: =IF('Solution Control'!$D$21="On",'Solution 10'!K52, 0) -> 0 | DW15: Mental Health | DZ15: 0 | EA15: 0 | EB15: 0 | EC15: 0 | ED15: 0
C16: CCG Non-Recurrent Expenditure | E16: ='Solution Control'!$AK$15 -> 0 | F16: -77569.14215 | G16: 0 | H16: 0 | I16: 0 | J16: 0 | K16: 0 | L16: -77569.14215 | M16: 2 | N16: 0 | O16: 0 | P16: 0 | Q16: 0 | R16: 0 | U16: Community | V16: # | Y16: =IF('Solution Control'!$D$22="On",'Solution 11'!G53, 0) -> 0 | Z16: =IF('Solution Control'!$D$22="On",'Solution 11'!H53, 0) -> 0 | AA16: =IF('Solution Control'!$D$22="On",'Solution 11'!I53, 0) -> 0 | AB16: =IF('Solution Control'!$D$22="On",'Solution 11'!J53, 0) -> 0 | AC16: =IF('Solution Control'!$D$22="On",'Solution 11'!K53, 0) -> 0 | AO16: =IF('Solution Control'!$D$23="On",'Solution 12'!G53, 0) -> 0 | AP16: =IF('Solution Control'!$D$23="On",'Solution 12'!H53, 0) -> 0 | AQ16: =IF('Solution Control'!$D$23="On",'Solution 12'!I53, 0) -> 0 | AR16: =IF('Solution Control'!$D$23="On",'Solution 12'!J53, 0) -> 0 | AS16: =IF('Solution Control'!$D$23="On",'Solution 12'!K53, 0) -> 0 | AW16: =IF('Solution Control'!$D$12="On", 'Solution 1'!G53, 0) -> 0 | AX16: =IF('Solution Control'!$D$12="On", 'Solution 1'!H53, 0) -> 0 | AY16: =IF('Solution Control'!$D$12="On", 'Solution 1'!I53, 0) -> 0 | AZ16: =IF('Solution Control'!$D$12="On", 'Solution 1'!J53, 0) -> 0 | BA16: =IF('Solution Control'!$D$12="On", 'Solution 1'!K53, 0) -> 0 | BE16: =IF('Solution Control'!$D$13="On", 'Solution 2'!G53, 0) -> 0 | BF16: =IF('Solution Control'!$D$13="On", 'Solution 2'!H53, 0) -> 0 | BG16: =IF('Solution Control'!$D$13="On", 'Solution 2'!I53, 0) -> 0 | BH16: =IF('Solution Control'!$D$13="On", 'Solution 2'!J53, 0) -> 0 | BI16: =IF('Solution Control'!$D$13="On", 'Solution 2'!K53, 0) -> 0 | BM16: =IF('Solution Control'!$D$14="On", 'Solution 3'!G53, 0) -> 0 | BN16: =IF('Solution Control'!$D$14="On", 'Solution 3'!H53, 0) -> 0 | BO16: =IF('Solution Control'!$D$14="On", 'Solution 3'!I53, 0) -> 0 | BP16: =IF('Solution Control'!$D$14="On", 'Solution 3'!J53, 0) -> 0 | BQ16: =IF('Solution Control'!$D$14="On", 'Solution 3'!K53, 0) -> 0 | BU16: =IF('Solution Control'!$D$15="On", 'Solution 4'!G53, 0) -> 0 | BV16: =IF('Solution Control'!$D$15="On", 'Solution 4'!H53, 0) -> 0 | BW16: =IF('Solution Control'!$D$15="On", 'Solution 4'!I53, 0) -> 0 | BX16: =IF('Solution Control'!$D$15="On", 'Solution 4'!J53, 0) -> 0 | BY16: =IF('Solution Control'!$D$15="On", 'Solution 4'!K53, 0) -> 0 | CC16: =IF('Solution Control'!$D$16="On",'Solution 5'!G53, 0) -> 0 | CD16: =IF('Solution Control'!$D$16="On",'Solution 5'!H53, 0) -> 0 | CE16: =IF('Solution Control'!$D$16="On",'Solution 5'!I53, 0) -> 0 | CF16: =IF('Solution Control'!$D$16="On",'Solution 5'!J53, 0) -> 0 | CG16: =IF('Solution Control'!$D$16="On",'Solution 5'!K53, 0) -> 0 | CK16: =IF('Solution Control'!$D$17="On",'Solution 6'!G53, 0) -> 0 | CL16: =IF('Solution Control'!$D$17="On",'Solution 6'!H53, 0) -> -607.6666949 | CM16: =IF('Solution Control'!$D$17="On",'Solution 6'!I53, 0) -> -929.7300431 | CN16: =IF('Solution Control'!$D$17="On",'Solution 6'!J53, 0) -> -1264.432859 | CO16: =IF('Solution Control'!$D$17="On",'Solution 6'!K53, 0) -> -1289.721516 | CS16: =IF('Solution Control'!$D$18="On",'Solution 7'!G53, 0) -> 0 | CT16: =IF('Solution Control'!$D$18="On",'Solution 7'!H53, 0) -> 0 | CU16: =IF('Solution Control'!$D$18="On",'Solution 7'!I53, 0) -> 0 | CV16: =IF('Solution Control'!$D$18="On",'Solution 7'!J53, 0) -> 0 | CW16: =IF('Solution Control'!$D$18="On",'Solution 7'!K53, 0) -> 0 | DA16: =IF('Solution Control'!$D$19="On",'Solution 8'!G53, 0) -> 0 | DB16: =IF('Solution Control'!$D$19="On",'Solution 8'!H53, 0) -> 0 | DC16: =IF('Solution Control'!$D$19="On",'Solution 8'!I53, 0) -> 0 | DD16: =IF('Solution Control'!$D$19="On",'Solution 8'!J53, 0) -> 0 | DE16: =IF('Solution Control'!$D$19="On",'Solution 8'!K53, 0) -> 0 | DI16: =IF('Solution Control'!$D$20="On",'Solution 9'!G53, 0) -> 0 | DJ16: =IF('Solution Control'!$D$20="On",'Solution 9'!H53, 0) -> 0 | DK16: =IF('Solution Control'!$D$20="On",'Solution 9'!I53, 0) -> 0 | DL16: =IF('Solution Control'!$D$20="On",'Solution 9'!J53, 0) -> 0 | DM16: =IF('Solution Control'!$D$20="On",'Solution 9'!K53, 0) -> 0 | DQ16: =IF('Solution Control'!$D$21="On",'Solution 10'!G53, 0) -> 0 | DR16: =IF('Solution Control'!$D$21="On",'Solution 10'!H53, 0) -> 0 | DS16: =IF('Solution Control'!$D$21="On",'Solution 10'!I53, 0) -> 0 | DT16: =IF('Solution Control'!$D$21="On",'Solution 10'!J53, 0) -> 0 | DU16: =IF('Solution Control'!$D$21="On",'Solution 10'!K53, 0) -> 0 | DW16: Community | DZ16: 0 | EA16: -607.6666949 | EB16: -929.7300431 | EC16: -1264.432859 | ED16: -1289.721516
C17: Provider Income - CCG | E17: ='Solution Control'!$AK$16 -> 2109489.95 | F17: 0 | G17: 0 | H17: 2031920.808 | I17: 0 | J17: -77569.14215 | K17: 0 | L17: 2031920.808 | M17: 3 | N17: 2109489.95 | O17: 2109489.95 | P17: 0 | Q17: 0 | R17: 0 | U17: Ambulance | V17: # | Y17: =IF('Solution Control'!$D$22="On",'Solution 11'!G54, 0) -> 0 | Z17: =IF('Solution Control'!$D$22="On",'Solution 11'!H54, 0) -> 0 | AA17: =IF('Solution Control'!$D$22="On",'Solution 11'!I54, 0) -> 0 | AB17: =IF('Solution Control'!$D$22="On",'Solution 11'!J54, 0) -> 0 | AC17: =IF('Solution Control'!$D$22="On",'Solution 11'!K54, 0) -> 0 | AO17: =IF('Solution Control'!$D$23="On",'Solution 12'!G54, 0) -> 0 | AP17: =IF('Solution Control'!$D$23="On",'Solution 12'!H54, 0) -> 0 | AQ17: =IF('Solution Control'!$D$23="On",'Solution 12'!I54, 0) -> 0 | AR17: =IF('Solution Control'!$D$23="On",'Solution 12'!J54, 0) -> 0 | AS17: =IF('Solution Control'!$D$23="On",'Solution 12'!K54, 0) -> 0 | AW17: =IF('Solution Control'!$D$12="On", 'Solution 1'!G54, 0) -> 0 | AX17: =IF('Solution Control'!$D$12="On", 'Solution 1'!H54, 0) -> 0 | AY17: =IF('Solution Control'!$D$12="On", 'Solution 1'!I54, 0) -> 0 | AZ17: =IF('Solution Control'!$D$12="On", 'Solution 1'!J54, 0) -> 0 | BA17: =IF('Solution Control'!$D$12="On", 'Solution 1'!K54, 0) -> 0 | BE17: =IF('Solution Control'!$D$13="On", 'Solution 2'!G54, 0) -> 0 | BF17: =IF('Solution Control'!$D$13="On", 'Solution 2'!H54, 0) -> 0 | BG17: =IF('Solution Control'!$D$13="On", 'Solution 2'!I54, 0) -> 0 | BH17: =IF('Solution Control'!$D$13="On", 'Solution 2'!J54, 0) -> 0 | BI17: =IF('Solution Control'!$D$13="On", 'Solution 2'!K54, 0) -> 0 | BM17: =IF('Solution Control'!$D$14="On", 'Solution 3'!G54, 0) -> 0 | BN17: =IF('Solution Control'!$D$14="On", 'Solution 3'!H54, 0) -> 0 | BO17: =IF('Solution Control'!$D$14="On", 'Solution 3'!I54, 0) -> 0 | BP17: =IF('Solution Control'!$D$14="On", 'Solution 3'!J54, 0) -> 0 | BQ17: =IF('Solution Control'!$D$14="On", 'Solution 3'!K54, 0) -> 0 | BU17: =IF('Solution Control'!$D$15="On", 'Solution 4'!G54, 0) -> 0 | BV17: =IF('Solution Control'!$D$15="On", 'Solution 4'!H54, 0) -> 0 | BW17: =IF('Solution Control'!$D$15="On", 'Solution 4'!I54, 0) -> 0 | BX17: =IF('Solution Control'!$D$15="On", 'Solution 4'!J54, 0) -> 0 | BY17: =IF('Solution Control'!$D$15="On", 'Solution 4'!K54, 0) -> 0 | CC17: =IF('Solution Control'!$D$16="On",'Solution 5'!G54, 0) -> 0 | CD17: =IF('Solution Control'!$D$16="On",'Solution 5'!H54, 0) -> 0 | CE17: =IF('Solution Control'!$D$16="On",'Solution 5'!I54, 0) -> 0 | CF17: =IF('Solution Control'!$D$16="On",'Solution 5'!J54, 0) -> 0 | CG17: =IF('Solution Control'!$D$16="On",'Solution 5'!K54, 0) -> 0 | CK17: =IF('Solution Control'!$D$17="On",'Solution 6'!G54, 0) -> 0 | CL17: =IF('Solution Control'!$D$17="On",'Solution 6'!H54, 0) -> 0 | CM17: =IF('Solution Control'!$D$17="On",'Solution 6'!I54, 0) -> 0 | CN17: =IF('Solution Control'!$D$17="On",'Solution 6'!J54, 0) -> 0 | CO17: =IF('Solution Control'!$D$17="On",'Solution 6'!K54, 0) -> 0 | CS17: =IF('Solution Control'!$D$18="On",'Solution 7'!G54, 0) -> 0 | CT17: =IF('Solution Control'!$D$18="On",'Solution 7'!H54, 0) -> 0 | CU17: =IF('Solution Control'!$D$18="On",'Solution 7'!I54, 0) -> 0 | CV17: =IF('Solution Control'!$D$18="On",'Solution 7'!J54, 0) -> 0 | CW17: =IF('Solution Control'!$D$18="On",'Solution 7'!K54, 0) -> 0 | DA17: =IF('Solution Control'!$D$19="On",'Solution 8'!G54, 0) -> 0 | DB17: =IF('Solution Control'!$D$19="On",'Solution 8'!H54, 0) -> 0 | DC17: =IF('Solution Control'!$D$19="On",'Solution 8'!I54, 0) -> 0 | DD17: =IF('Solution Control'!$D$19="On",'Solution 8'!J54, 0) -> 0 | DE17: =IF('Solution Control'!$D$19="On",'Solution 8'!K54, 0) -> 0 | DI17: =IF('Solution Control'!$D$20="On",'Solution 9'!G54, 0) -> 0 | DJ17: =IF('Solution Control'!$D$20="On",'Solution 9'!H54, 0) -> 0 | DK17: =IF('Solution Control'!$D$20="On",'Solution 9'!I54, 0) -> 0 | DL17: =IF('Solution Control'!$D$20="On",'Solution 9'!J54, 0) -> 0 | DM17: =IF('Solution Control'!$D$20="On",'Solution 9'!K54, 0) -> 0 | DQ17: =IF('Solution Control'!$D$21="On",'Solution 10'!G54, 0) -> 0 | DR17: =IF('Solution Control'!$D$21="On",'Solution 10'!H54, 0) -> 0 | DS17: =IF('Solution Control'!$D$21="On",'Solution 10'!I54, 0) -> 0 | DT17: =IF('Solution Control'!$D$21="On",'Solution 10'!J54, 0) -> 0 | DU17: =IF('Solution Control'!$D$21="On",'Solution 10'!K54, 0) -> 0 | DW17: Ambulance | DZ17: 0 | EA17: 0 | EB17: 0 | EC17: 0 | ED17: 0
C18: Provider Income - NHSE | E18: ='Solution Control'!$AK$17 -> 1280724.41 | F18: 2031920.808 | G18: 0 | H18: 1280724.41 | I18: 0 | J18: 0 | K18: 0 | L18: 3312645.217 | M18: 1 | N18: 0 | O18: 1280724.41 | P18: 0 | Q18: 0 | R18: 0 | U18: Other | V18: # | Y18: =IF('Solution Control'!$D$22="On",'Solution 11'!G55, 0) -> 0 | Z18: =IF('Solution Control'!$D$22="On",'Solution 11'!H55, 0) -> 0 | AA18: =IF('Solution Control'!$D$22="On",'Solution 11'!I55, 0) -> 0 | AB18: =IF('Solution Control'!$D$22="On",'Solution 11'!J55, 0) -> 0 | AC18: =IF('Solution Control'!$D$22="On",'Solution 11'!K55, 0) -> 0 | AO18: =IF('Solution Control'!$D$23="On",'Solution 12'!G55, 0) -> 0 | AP18: =IF('Solution Control'!$D$23="On",'Solution 12'!H55, 0) -> 0 | AQ18: =IF('Solution Control'!$D$23="On",'Solution 12'!I55, 0) -> 0 | AR18: =IF('Solution Control'!$D$23="On",'Solution 12'!J55, 0) -> 0 | AS18: =IF('Solution Control'!$D$23="On",'Solution 12'!K55, 0) -> 0 | AW18: =IF('Solution Control'!$D$12="On", 'Solution 1'!G55, 0) -> 0 | AX18: =IF('Solution Control'!$D$12="On", 'Solution 1'!H55, 0) -> 0 | AY18: =IF('Solution Control'!$D$12="On", 'Solution 1'!I55, 0) -> 0 | AZ18: =IF('Solution Control'!$D$12="On", 'Solution 1'!J55, 0) -> 0 | BA18: =IF('Solution Control'!$D$12="On", 'Solution 1'!K55, 0) -> 0 | BE18: =IF('Solution Control'!$D$13="On", 'Solution 2'!G55, 0) -> 0 | BF18: =IF('Solution Control'!$D$13="On", 'Solution 2'!H55, 0) -> 0 | BG18: =IF('Solution Control'!$D$13="On", 'Solution 2'!I55, 0) -> 0 | BH18: =IF('Solution Control'!$D$13="On", 'Solution 2'!J55, 0) -> 0 | BI18: =IF('Solution Control'!$D$13="On", 'Solution 2'!K55, 0) -> 0 | BM18: =IF('Solution Control'!$D$14="On", 'Solution 3'!G55, 0) -> 0 | BN18: =IF('Solution Control'!$D$14="On", 'Solution 3'!H55, 0) -> 0 | BO18: =IF('Solution Control'!$D$14="On", 'Solution 3'!I55, 0) -> 0 | BP18: =IF('Solution Control'!$D$14="On", 'Solution 3'!J55, 0) -> 0 | BQ18: =IF('Solution Control'!$D$14="On", 'Solution 3'!K55, 0) -> 0 | BU18: =IF('Solution Control'!$D$15="On", 'Solution 4'!G55, 0) -> 0 | BV18: =IF('Solution Control'!$D$15="On", 'Solution 4'!H55, 0) -> 0 | BW18: =IF('Solution Control'!$D$15="On", 'Solution 4'!I55, 0) -> 0 | BX18: =IF('Solution Control'!$D$15="On", 'Solution 4'!J55, 0) -> 0 | BY18: =IF('Solution Control'!$D$15="On", 'Solution 4'!K55, 0) -> 0 | CC18: =IF('Solution Control'!$D$16="On",'Solution 5'!G55, 0) -> 0 | CD18: =IF('Solution Control'!$D$16="On",'Solution 5'!H55, 0) -> 0 | CE18: =IF('Solution Control'!$D$16="On",'Solution 5'!I55, 0) -> 0 | CF18: =IF('Solution Control'!$D$16="On",'Solution 5'!J55, 0) -> 0 | CG18: =IF('Solution Control'!$D$16="On",'Solution 5'!K55, 0) -> 0 | CK18: =IF('Solution Control'!$D$17="On",'Solution 6'!G55, 0) -> 0 | CL18: =IF('Solution Control'!$D$17="On",'Solution 6'!H55, 0) -> 0 | CM18: =IF('Solution Control'!$D$17="On",'Solution 6'!I55, 0) -> 0 | CN18: =IF('Solution Control'!$D$17="On",'Solution 6'!J55, 0) -> 0 | CO18: =IF('Solution Control'!$D$17="On",'Solution 6'!K55, 0) -> 0 | CS18: =IF('Solution Control'!$D$18="On",'Solution 7'!G55, 0) -> 0 | CT18: =IF('Solution Control'!$D$18="On",'Solution 7'!H55, 0) -> 0 | CU18: =IF('Solution Control'!$D$18="On",'Solution 7'!I55, 0) -> 0 | CV18: =IF('Solution Control'!$D$18="On",'Solution 7'!J55, 0) -> 0 | CW18: =IF('Solution Control'!$D$18="On",'Solution 7'!K55, 0) -> 0 | DA18: =IF('Solution Control'!$D$19="On",'Solution 8'!G55, 0) -> 0 | DB18: =IF('Solution Control'!$D$19="On",'Solution 8'!H55, 0) -> 0 | DC18: =IF('Solution Control'!$D$19="On",'Solution 8'!I55, 0) -> 0 | DD18: =IF('Solution Control'!$D$19="On",'Solution 8'!J55, 0) -> 0 | DE18: =IF('Solution Control'!$D$19="On",'Solution 8'!K55, 0) -> 0 | DI18: =IF('Solution Control'!$D$20="On",'Solution 9'!G55, 0) -> 0 | DJ18: =IF('Solution Control'!$D$20="On",'Solution 9'!H55, 0) -> 0 | DK18: =IF('Solution Control'!$D$20="On",'Solution 9'!I55, 0) -> 0 | DL18: =IF('Solution Control'!$D$20="On",'Solution 9'!J55, 0) -> 0 | DM18: =IF('Solution Control'!$D$20="On",'Solution 9'!K55, 0) -> 0 | DQ18: =IF('Solution Control'!$D$21="On",'Solution 10'!G55, 0) -> 0 | DR18: =IF('Solution Control'!$D$21="On",'Solution 10'!H55, 0) -> 0 | DS18: =IF('Solution Control'!$D$21="On",'Solution 10'!I55, 0) -> 0 | DT18: =IF('Solution Control'!$D$21="On",'Solution 10'!J55, 0) -> 0 | DU18: =IF('Solution Control'!$D$21="On",'Solution 10'!K55, 0) -> 0 | DW18: Other | DZ18: 0 | EA18: 0 | EB18: 0 | EC18: 0 | ED18: 0
C19: Provider Income - Other Internal | E19: ='Solution Control'!$AK$18 -> 403846.04 | F19: 3312645.217 | G19: 0 | H19: 403846.04 | I19: 0 | J19: 0 | K19: 0 | L19: 3716491.257 | M19: 1 | N19: 0 | O19: 403846.04 | P19: 0 | Q19: 0 | R19: 0 | U19: CCG - Total commissioned activity | V19: # | Y19: =SUM(Y11:Y18) -> 0 | Z19: =SUM(Z11:Z18) -> 0 | AA19: =SUM(AA11:AA18) -> 0 | AB19: =SUM(AB11:AB18) -> 0 | AC19: =SUM(AC11:AC18) -> 0 | AO19: =SUM(AO11:AO18) -> 0 | AP19: =SUM(AP11:AP18) -> 0 | AQ19: =SUM(AQ11:AQ18) -> 0 | AR19: =SUM(AR11:AR18) -> 0 | AS19: =SUM(AS11:AS18) -> 0 | AW19: =SUM(AW11:AW18) -> 0 | AX19: =SUM(AX11:AX18) -> 0.0004 | AY19: =SUM(AY11:AY18) -> 0.0004 | AZ19: =SUM(AZ11:AZ18) -> 0.0004 | BA19: =SUM(BA11:BA18) -> 0.0004 | BE19: =SUM(BE11:BE18) -> 0 | BF19: =SUM(BF11:BF18) -> 0 | BG19: =SUM(BG11:BG18) -> 0 | BH19: =SUM(BH11:BH18) -> 0 | BI19: =SUM(BI11:BI18) -> 0 | BM19: =SUM(BM11:BM18) -> 0 | BN19: =SUM(BN11:BN18) -> 0 | BO19: =SUM(BO11:BO18) -> 0 | BP19: =SUM(BP11:BP18) -> 0 | BQ19: =SUM(BQ11:BQ18) -> 0 | BU19: =SUM(BU11:BU18) -> 0 | BV19: =SUM(BV11:BV18) -> 0 | BW19: =SUM(BW11:BW18) -> 0 | BX19: =SUM(BX11:BX18) -> 0 | BY19: =SUM(BY11:BY18) -> 0 | CC19: =SUM(CC11:CC18) -> 0 | CD19: =SUM(CD11:CD18) -> 0.0004 | CE19: =SUM(CE11:CE18) -> 0.0004 | CF19: =SUM(CF11:CF18) -> 0.0004 | CG19: =SUM(CG11:CG18) -> 0.0004 | CK19: =SUM(CK11:CK18) -> 0 | CL19: =SUM(CL11:CL18) -> -14146.16916 | CM19: =SUM(CM11:CM18) -> -21643.63882 | CN19: =SUM(CN11:CN18) -> -29435.3488 | CO19: =SUM(CO11:CO18) -> -30024.05577 | CS19: =SUM(CS11:CS18) -> 0 | CT19: =SUM(CT11:CT18) -> -12161.04555 | CU19: =SUM(CU11:CU18) -> -18606.39969 | CV19: =SUM(CV11:CV18) -> -25304.70358 | CW19: =SUM(CW11:CW18) -> -25810.79765 | DA19: =SUM(DA11:DA18) -> 0 | DB19: =SUM(DB11:DB18) -> -18688.82964 | DC19: =SUM(DC11:DC18) -> -28593.90935 | DD19: =SUM(DD11:DD18) -> -38887.71672 | DE19: =SUM(DE11:DE18) -> -39665.47105 | DI19: =SUM(DI11:DI18) -> 0 | DJ19: =SUM(DJ11:DJ18) -> 0 | DK19: =SUM(DK11:DK18) -> 0 | DL19: =SUM(DL11:DL18) -> 0 | DM19: =SUM(DM11:DM18) -> 0 | DQ19: =SUM(DQ11:DQ18) -> 0 | DR19: =SUM(DR11:DR18) -> -57213.26334 | DS19: =SUM(DS11:DS18) -> -87536.29292 | DT19: =SUM(DT11:DT18) -> -119049.3584 | DU19: =SUM(DU11:DU18) -> -121430.3455 | DW19: CCG - Total commissioned activity | DZ19: =SUM(DZ11:DZ18) -> 0 | EA19: =SUM(EA11:EA18) -> -102209.3069 | EB19: =SUM(EB11:EB18) -> -156380.24 | EC19: =SUM(EC11:EC18) -> -212677.1267 | ED19: =SUM(ED11:ED18) -> -216930.6692
C20: Provider Income - Other External | E20: ='Solution Control'!$AK$19 -> 239764.1463 | F20: 3716491.257 | G20: 0 | H20: 239764.1463 | I20: 0 | J20: 0 | K20: 0 | L20: 3956255.404 | M20: 1 | N20: 0 | O20: 239764.1463 | P20: 0 | Q20: 0 | R20: 0
C21: Provider Non-Recurrent Income | E21: ='Solution Control'!$AK$20 -> 0 | F21: 3956255.404 | G21: 0 | H21: 0 | I21: 0 | J21: 0 | K21: 0 | L21: 3956255.404 | M21: 1 | N21: 0 | O21: 0 | P21: 0 | Q21: 0 | R21: 0 | W21: 2014/15 | X21: 2015/16 | Y21: 2016/17 | Z21: 2017/18 | AA21: 2018/19 | AB21: 2019/20 | AC21: 2020/21 | AE21: 2014/15 | AF21: 2015/16 | AG21: 2016/17 | AH21: 2017/18 | AI21: 2018/19 | AJ21: 2019/20 | AK21: 2020/21 | AM21: 2014/15 | AN21: 2015/16 | AO21: 2016/17 | AP21: 2017/18 | AQ21: 2018/19 | AR21: 2019/20 | AS21: 2020/21 | AU21: 2014/15 | AV21: 2015/16 | AW21: 2016/17 | AX21: 2017/18 | AY21: 2018/19 | AZ21: 2019/20 | BA21: 2020/21 | BC21: 2014/15 | BD21: 2015/16 | BE21: 2016/17 | BF21: 2017/18 | BG21: 2018/19 | BH21: 2019/20 | BI21: 2020/21 | BK21: 2014/15 | BL21: 2015/16 | BM21: 2016/17 | BN21: 2017/18 | BO21: 2018/19 | BP21: 2019/20 | BQ21: 2020/21 | BS21: 2014/15 | BT21: 2015/16 | BU21: 2016/17 | BV21: 2017/18 | BW21: 2018/19 | BX21: 2019/20 | BY21: 2020/21 | CA21: 2014/15 | CB21: 2015/16 | CC21: 2016/17 | CD21: 2017/18 | CE21: 2018/19 | CF21: 2019/20 | CG21: 2020/21 | CI21: 2014/15 | CJ21: 2015/16 | CK21: 2016/17 | CL21: 2017/18 | CM21: 2018/19 | CN21: 2019/20 | CO21: 2020/21 | CQ21: 2014/15 | CR21: 2015/16 | CS21: 2016/17 | CT21: 2017/18 | CU21: 2018/19 | CV21: 2019/20 | CW21: 2020/21 | CY21: 2014/15 | CZ21: 2015/16 | DA21: 2016/17 | DB21: 2017/18 | DC21: 2018/19 | DD21: 2019/20 | DE21: 2020/21 | DG21: 2014/15 | DH21: 2015/16 | DI21: 2016/17 | DJ21: 2017/18 | DK21: 2018/19 | DL21: 2019/20 | DM21: 2020/21 | DO21: 2014/15 | DP21: 2015/16 | DQ21: 2016/17 | DR21: 2017/18 | DS21: 2018/19 | DT21: 2019/20 | DU21: 2020/21 | DX21: 2014/15 | DY21: 2015/16 | DZ21: 2016/17 | EA21: 2017/18 | EB21: 2018/19 | EC21: 2019/20 | ED21: 2020/21
C22: Provider Workforce Expenditure - Substantive and Bank | E22: ='Solution Control'!$AK$21 -> -2312630.85 | F22: 1643624.554 | G22: 0 | H22: 0 | I22: 2312630.85 | J22: 0 | K22: 0 | L22: 1643624.554 | M22: 1 | N22: 0 | O22: 0 | P22: 2312630.85 | Q22: 0 | R22: 0 | U22: Recurrent Income Intervention Adjustments | DW22: Recurrent Income Intervention Adjustments
C23: Provider Workforce Expenditure - Agency | E23: ='Solution Control'!$AK$22 -> -72090.95317 | F23: 1571533.601 | G23: 0 | H23: 0 | I23: 72090.95317 | J23: 0 | K23: 0 | L23: 1571533.601 | M23: 1 | N23: 0 | O23: 0 | P23: 72090.95317 | Q23: 0 | R23: 0 | U23: CCG Programme | V23: £000s | DW23: CCG Programme | DZ23: 0 | EA23: 0 | EB23: 0 | EC23: 0 | ED23: 0
C24: Provider Expenditure - Drugs | E24: ='Solution Control'!$AK$23 -> -337953.9301 | F24: 1233579.671 | G24: 0 | H24: 0 | I24: 337953.9301 | J24: 0 | K24: 0 | L24: 1233579.671 | M24: 1 | N24: 0 | O24: 0 | P24: 337953.9301 | Q24: 0 | R24: 0 | U24: CCG Admin | V24: £000s | DW24: CCG Admin | DZ24: 0 | EA24: 0 | EB24: 0 | EC24: 0 | ED24: 0
C25: Other Provider Expenditure | E25: ='Solution Control'!$AK$24 -> -1362643.809 | F25: 0 | G25: 0 | H25: 0 | I25: -129064.1386 | J25: 0 | K25: 1233579.671 | L25: -129064.1386 | M25: 3 | N25: -1362643.809 | O25: 0 | P25: 0 | Q25: 0 | R25: -1362643.809 | U25: Social Care | V25: £000s | DW25: Social Care | DZ25: 0 | EA25: 0 | EB25: 0 | EC25: 0 | ED25: 0
C26: Provider Non-Recurrent Expenditure | E26: ='Solution Control'!$AK$25 -> 0 | F26: -129064.1386 | G26: 0 | H26: 0 | I26: 0 | J26: 0 | K26: 0 | L26: -129064.1386 | M26: 2 | N26: 0 | O26: 0 | P26: 0 | Q26: 0 | R26: 0 | U26: Primary Medical Care | V26: £000s | DW26: Primary Medical Care | DZ26: 0 | EA26: 0 | EB26: 0 | EC26: 0 | ED26: 0
C27: BCF, Social Care and Other Income | E27: ='Solution Control'!$AK$26 -> 14732.00001 | F27: -114332.1386 | G27: 0 | H27: -14732.00001 | I27: 0 | J27: 0 | K27: 0 | L27: -114332.1386 | M27: 2 | N27: 0 | O27: 0 | P27: 0 | Q27: -14732.00001 | R27: 0 | U27: Specialised | V27: £000s | DW27: Specialised | DZ27: 0 | EA27: 0 | EB27: 0 | EC27: 0 | ED27: 0
C28: BCF, Social Care and Other Expenditure | E28: ='Solution Control'!$AK$27 -> -14732.00001 | F28: -114332.1386 | G28: 0 | H28: 0 | I28: -14732.00001 | J28: 0 | K28: 0 | L28: -129064.1386 | M28: 2 | N28: 0 | O28: 0 | P28: 0 | Q28: 0 | R28: -14732.00001
C29: Indicative STF Allocation 2020/21 | E29: ='STP Summary Do Something'!$Y$14 -> 134000 | F29: =CHOOSE(M29,IF(E29>0,L28,L29),IF(E29>0,L29,L28),0,0) -> 0 | G29: =D29 -> 0 | H29: =CHOOSE(M29,IF(E29>0,IF(J29<0,E29+J29,E29),0),IF(E29>0,IF(J29<0,-(E29+J29),-E29),0),IF(J29<0,L29,0),0) -> 4935.861395 | I29: =CHOOSE(M29,IF(E29<0,IF(K29>0,-E29-K29,-E29),0),IF(E29<0,IF(K29>0,E29+K29,E29),0),IF(K29>0,L29,0),0) -> 0 | J29: =IF(ISERROR(L28<0),0,IF(L28<0,IF(L29>0,L28,0),0)) -> -129064.1386 | K29: =IF(ISERROR(L28>0),0,IF(L28>0,IF(L29<=0,L28,0),0)) -> 0 | L29: =IF(D29=0,L28+E29,D29) -> 4935.861395 | M29: =IF(G29=0,IF(OR(J29 <0,K29>0),3,IF(L29>0,1,2)),4) -> 3 | N29: =IF(M29=3,E29,0) -> 134000 | O29: =IF(M29=4,0,IF(AND(L29>0,E29>=0),E29,)) -> 134000 | P29: =IF(M29=4,0,IF(AND(L29>0,E29<0),ABS(E29),0)) -> 0 | Q29: =IF(M29=4,0,IF(AND(L29<0,E29>=0),-1*ABS(E29),0)) -> 0 | R29: =IF(M29=4,0,IF(AND(L29<0,E29<0),E29,0)) -> 0 | U29: Non-Recurrent Income Intervention Adjustments | V29: £000s | Y29: =IF('Solution Control'!$D$22="On",'Solution 11'!G15, 0) -> 0 | Z29: =IF('Solution Control'!$D$22="On",'Solution 11'!H15, 0) -> 0 | AA29: =IF('Solution Control'!$D$22="On",'Solution 11'!I15, 0) -> 0 | AB29: =IF('Solution Control'!$D$22="On",'Solution 11'!J15, 0) -> 0 | AC29: =IF('Solution Control'!$D$22="On",'Solution 11'!K15, 0) -> 0 | AO29: =IF('Solution Control'!$D$23="On",'Solution 12'!G15, 0) -> 0 | AP29: =IF('Solution Control'!$D$23="On",'Solution 12'!H15, 0) -> 0 | AQ29: =IF('Solution Control'!$D$23="On",'Solution 12'!I15, 0) -> 0 | AR29: =IF('Solution Control'!$D$23="On",'Solution 12'!J15, 0) -> 0 | AS29: =IF('Solution Control'!$D$23="On",'Solution 12'!K15, 0) -> 0 | AW29: =IF('Solution Control'!$D$12="On", 'Solution 1'!G15, 0) -> 0 | AX29: =IF('Solution Control'!$D$12="On", 'Solution 1'!H15, 0) -> 0 | AY29: =IF('Solution Control'!$D$12="On", 'Solution 1'!I15, 0) -> 0 | AZ29: =IF('Solution Control'!$D$12="On", 'Solution 1'!J15, 0) -> 0 | BA29: =IF('Solution Control'!$D$12="On", 'Solution 1'!K15, 0) -> 0 | BE29: =IF('Solution Control'!$D$13="On", 'Solution 2'!G15, 0) -> 0 | BF29: =IF('Solution Control'!$D$13="On", 'Solution 2'!H15, 0) -> 0 | BG29: =IF('Solution Control'!$D$13="On", 'Solution 2'!I15, 0) -> 0 | BH29: =IF('Solution Control'!$D$13="On", 'Solution 2'!J15, 0) -> 0 | BI29: =IF('Solution Control'!$D$13="On", 'Solution 2'!K15, 0) -> 0 | BM29: =IF('Solution Control'!$D$14="On", 'Solution 3'!G15, 0) -> 0 | BN29: =IF('Solution Control'!$D$14="On", 'Solution 3'!H15, 0) -> 0 | BO29: =IF('Solution Control'!$D$14="On", 'Solution 3'!I15, 0) -> 0 | BP29: =IF('Solution Control'!$D$14="On", 'Solution 3'!J15, 0) -> 0 | BQ29: =IF('Solution Control'!$D$14="On", 'Solution 3'!K15, 0) -> 0 | BU29: =IF('Solution Control'!$D$15="On", 'Solution 4'!G15, 0) -> 0 | BV29: =IF('Solution Control'!$D$15="On", 'Solution 4'!H15, 0) -> 0 | BW29: =IF('Solution Control'!$D$15="On", 'Solution 4'!I15, 0) -> 0 | BX29: =IF('Solution Control'!$D$15="On", 'Solution 4'!J15, 0) -> 0 | BY29: =IF('Solution Control'!$D$15="On", 'Solution 4'!K15, 0) -> 0 | CC29: =IF('Solution Control'!$D$16="On",'Solution 5'!G15, 0) -> 0 | CD29: =IF('Solution Control'!$D$16="On",'Solution 5'!H15, 0) -> 0 | CE29: =IF('Solution Control'!$D$16="On",'Solution 5'!I15, 0) -> 0 | CF29: =IF('Solution Control'!$D$16="On",'Solution 5'!J15, 0) -> 0 | CG29: =IF('Solution Control'!$D$16="On",'Solution 5'!K15, 0) -> 0 | CK29: =IF('Solution Control'!$D$17="On",'Solution 6'!G15, 0) -> 0 | CL29: =IF('Solution Control'!$D$17="On",'Solution 6'!H15, 0) -> 0 | CM29: =IF('Solution Control'!$D$17="On",'Solution 6'!I15, 0) -> 0 | CN29: =IF('Solution Control'!$D$17="On",'Solution 6'!J15, 0) -> 0 | CO29: =IF('Solution Control'!$D$17="On",'Solution 6'!K15, 0) -> 0 | CS29: =IF('Solution Control'!$D$18="On",'Solution 7'!G15, 0) -> 0 | CT29: =IF('Solution Control'!$D$18="On",'Solution 7'!H15, 0) -> 0 | CU29: =IF('Solution Control'!$D$18="On",'Solution 7'!I15, 0) -> 0 | CV29: =IF('Solution Control'!$D$18="On",'Solution 7'!J15, 0) -> 0 | CW29: =IF('Solution Control'!$D$18="On",'Solution 7'!K15, 0) -> 0 | DA29: =IF('Solution Control'!$D$19="On",'Solution 8'!G15, 0) -> 0 | DB29: =IF('Solution Control'!$D$19="On",'Solution 8'!H15, 0) -> 0 | DC29: =IF('Solution Control'!$D$19="On",'Solution 8'!I15, 0) -> 0 | DD29: =IF('Solution Control'!$D$19="On",'Solution 8'!J15, 0) -> 0 | DE29: =IF('Solution Control'!$D$19="On",'Solution 8'!K15, 0) -> 0 | DI29: =IF('Solution Control'!$D$20="On",'Solution 9'!G15, 0) -> 0 | DJ29: =IF('Solution Control'!$D$20="On",'Solution 9'!H15, 0) -> 0 | DK29: =IF('Solution Control'!$D$20="On",'Solution 9'!I15, 0) -> 0 | DL29: =IF('Solution Control'!$D$20="On",'Solution 9'!J15, 0) -> 0 | DM29: =IF('Solution Control'!$D$20="On",'Solution 9'!K15, 0) -> 0 | DQ29: =IF('Solution Control'!$D$21="On",'Solution 10'!G15, 0) -> 0 | DR29: =IF('Solution Control'!$D$21="On",'Solution 10'!H15, 0) -> 0 | DS29: =IF('Solution Control'!$D$21="On",'Solution 10'!I15, 0) -> 0 | DT29: =IF('Solution Control'!$D$21="On",'Solution 10'!J15, 0) -> 0 | DU29: =IF('Solution Control'!$D$21="On",'Solution 10'!K15, 0) -> 0 | DW29: Non-Recurrent Income Intervention Adjustments | DZ29: =Y29+AG29+AO29+AW29+BE29+BM29+BU29+CC29+CK29+CS29+DA29+DI29+DQ29 -> 0 | EA29: =Z29+AH29+AP29+AX29+BF29+BN29+BV29+CD29+CL29+CT29+DB29+DJ29+DR29 -> 0 | EB29: =AA29+AI29+AQ29+AY29+BG29+BO29+BW29+CE29+CM29+CU29+DC29+DK29+DS29 -> 0 | EC29: =AB29+AJ29+AR29+AZ29+BH29+BP29+BX29+CF29+CN29+CV29+DD29+DL29+DT29 -> 0 | ED29: =AC29+AK29+AS29+BA29+BI29+BQ29+BY29+CG29+CO29+CW29+DE29+DM29+DU29 -> 0
C30: Footprint NHS, Social Care And Other Surplus / (Deficit) | D30: =SUM(D8:E29) -> 4935.861395 | F30: =CHOOSE(M30,IF(E30>0,L29,L30),IF(E30>0,L30,L29),0,0) -> 0 | G30: =D30 -> 4935.861395 | H30: =CHOOSE(M30,IF(E30>0,IF(J30<0,E30+J30,E30),0),IF(E30>0,IF(J30<0,-(E30+J30),-E30),0),IF(J30<0,L30,0),0) -> 0 | I30: =CHOOSE(M30,IF(E30<0,IF(K30>0,-E30-K30,-E30),0),IF(E30<0,IF(K30>0,E30+K30,E30),0),IF(K30>0,L30,0),0) -> 0 | J30: =IF(ISERROR(L29<0),0,IF(L29<0,IF(L30>0,L29,0),0)) -> 0 | K30: =IF(ISERROR(L29>0),0,IF(L29>0,IF(L30<=0,L29,0),0)) -> 0 | L30: =IF(D30=0,L29+E30,D30) -> 4935.861395 | M30: =IF(G30=0,IF(OR(J30 <0,K30>0),3,IF(L30>0,1,2)),4) -> 4 | N30: =IF(M30=3,E30,0) -> 0 | O30: =IF(M30=4,0,IF(AND(L30>0,E30>=0),E30,)) -> 0 | P30: =IF(M30=4,0,IF(AND(L30>0,E30<0),ABS(E30),0)) -> 0 | Q30: =IF(M30=4,0,IF(AND(L30<0,E30>=0),-1*ABS(E30),0)) -> 0 | R30: =IF(M30=4,0,IF(AND(L30<0,E30<0),E30,0)) -> 0
U31: Total CCG Income Adjustment | V31: £000s | Y31: =SUM(Y23:Y27,Y29:Y29) -> 0 | Z31: =SUM(Z23:Z27,Z29:Z29) -> 0 | AA31: =SUM(AA23:AA27,AA29:AA29) -> 0 | AB31: =SUM(AB23:AB27,AB29:AB29) -> 0 | AC31: =SUM(AC23:AC27,AC29:AC29) -> 0 | AO31: =SUM(AO23:AO27,AO29:AO29) -> 0 | AP31: =SUM(AP23:AP27,AP29:AP29) -> 0 | AQ31: =SUM(AQ23:AQ27,AQ29:AQ29) -> 0 | AR31: =SUM(AR23:AR27,AR29:AR29) -> 0 | AS31: =SUM(AS23:AS27,AS29:AS29) -> 0 | AW31: =SUM(AW23:AW27,AW29:AW29) -> 0 | AX31: =SUM(AX23:AX27,AX29:AX29) -> 0 | AY31: =SUM(AY23:AY27,AY29:AY29) -> 0 | AZ31: =SUM(AZ23:AZ27,AZ29:AZ29) -> 0 | BA31: =SUM(BA23:BA27,BA29:BA29) -> 0 | BE31: =SUM(BE23:BE27,BE29:BE29) -> 0 | BF31: =SUM(BF23:BF27,BF29:BF29) -> 0 | BG31: =SUM(BG23:BG27,BG29:BG29) -> 0 | BH31: =SUM(BH23:BH27,BH29:BH29) -> 0 | BI31: =SUM(BI23:BI27,BI29:BI29) -> 0 | BM31: =SUM(BM23:BM27,BM29:BM29) -> 0 | BN31: =SUM(BN23:BN27,BN29:BN29) -> 0 | BO31: =SUM(BO23:BO27,BO29:BO29) -> 0 | BP31: =SUM(BP23:BP27,BP29:BP29) -> 0 | BQ31: =SUM(BQ23:BQ27,BQ29:BQ29) -> 0 | BU31: =SUM(BU23:BU27,BU29:BU29) -> 0 | BV31: =SUM(BV23:BV27,BV29:BV29) -> 0 | BW31: =SUM(BW23:BW27,BW29:BW29) -> 0 | BX31: =SUM(BX23:BX27,BX29:BX29) -> 0 | BY31: =SUM(BY23:BY27,BY29:BY29) -> 0 | CC31: =SUM(CC23:CC27,CC29:CC29) -> 0 | CD31: =SUM(CD23:CD27,CD29:CD29) -> 0 | CE31: =SUM(CE23:CE27,CE29:CE29) -> 0 | CF31: =SUM(CF23:CF27,CF29:CF29) -> 0 | CG31: =SUM(CG23:CG27,CG29:CG29) -> 0 | CK31: =SUM(CK23:CK27,CK29:CK29) -> 0 | CL31: =SUM(CL23:CL27,CL29:CL29) -> 0 | CM31: =SUM(CM23:CM27,CM29:CM29) -> 0 | CN31: =SUM(CN23:CN27,CN29:CN29) -> 0 | CO31: =SUM(CO23:CO27,CO29:CO29) -> 0 | CS31: =SUM(CS23:CS27,CS29:CS29) -> 0 | CT31: =SUM(CT23:CT27,CT29:CT29) -> 0 | CU31: =SUM(CU23:CU27,CU29:CU29) -> 0 | CV31: =SUM(CV23:CV27,CV29:CV29) -> 0 | CW31: =SUM(CW23:CW27,CW29:CW29) -> 0 | DA31: =SUM(DA23:DA27,DA29:DA29) -> 0 | DB31: =SUM(DB23:DB27,DB29:DB29) -> 0 | DC31: =SUM(DC23:DC27,DC29:DC29) -> 0 | DD31: =SUM(DD23:DD27,DD29:DD29) -> 0 | DE31: =SUM(DE23:DE27,DE29:DE29) -> 0 | DI31: =SUM(DI23:DI27,DI29:DI29) -> 0 | DJ31: =SUM(DJ23:DJ27,DJ29:DJ29) -> 0 | DK31: =SUM(DK23:DK27,DK29:DK29) -> 0 | DL31: =SUM(DL23:DL27,DL29:DL29) -> 0 | DM31: =SUM(DM23:DM27,DM29:DM29) -> 0 | DQ31: =SUM(DQ23:DQ27,DQ29:DQ29) -> 0 | DR31: =SUM(DR23:DR27,DR29:DR29) -> 0 | DS31: =SUM(DS23:DS27,DS29:DS29) -> 0 | DT31: =SUM(DT23:DT27,DT29:DT29) -> 0 | DU31: =SUM(DU23:DU27,DU29:DU29) -> 0 | DW31: Total CCG Income Adjustment | DZ31: =SUM(DZ23:DZ27,DZ29:DZ29) -> 0 | EA31: =SUM(EA23:EA27,EA29:EA29) -> 0 | EB31: =SUM(EB23:EB27,EB29:EB29) -> 0 | EC31: =SUM(EC23:EC27,EC29:EC29) -> 0 | ED31: =SUM(ED23:ED27,ED29:ED29) -> 0
W33: 2014/15 | X33: 2015/16 | Y33: 2016/17 | Z33: 2017/18 | AA33: 2018/19 | AB33: 2019/20 | AC33: 2020/21 | AE33: 2014/15 | AF33: 2015/16 | AG33: 2016/17 | AH33: 2017/18 | AI33: 2018/19 | AJ33: 2019/20 | AK33: 2020/21 | AM33: 2014/15 | AN33: 2015/16 | AO33: 2016/17 | AP33: 2017/18 | AQ33: 2018/19 | AR33: 2019/20 | AS33: 2020/21 | AU33: 2014/15 | AV33: 2015/16 | AW33: 2016/17 | AX33: 2017/18 | AY33: 2018/19 | AZ33: 2019/20 | BA33: 2020/21 | BC33: 2014/15 | BD33: 2015/16 | BE33: 2016/17 | BF33: 2017/18 | BG33: 2018/19 | BH33: 2019/20 | BI33: 2020/21 | BK33: 2014/15 | BL33: 2015/16 | BM33: 2016/17 | BN33: 2017/18 | BO33: 2018/19 | BP33: 2019/20 | BQ33: 2020/21 | BS33: 2014/15 | BT33: 2015/16 | BU33: 2016/17 | BV33: 2017/18 | BW33: 2018/19 | BX33: 2019/20 | BY33: 2020/21 | CA33: 2014/15 | CB33: 2015/16 | CC33: 2016/17 | CD33: 2017/18 | CE33: 2018/19 | CF33: 2019/20 | CG33: 2020/21 | CI33: 2014/15 | CJ33: 2015/16 | CK33: 2016/17 | CL33: 2017/18 | CM33: 2018/19 | CN33: 2019/20 | CO33: 2020/21 | CQ33: 2014/15 | CR33: 2015/16 | CS33: 2016/17 | CT33: 2017/18 | CU33: 2018/19 | CV33: 2019/20 | CW33: 2020/21 | CY33: 2014/15 | CZ33: 2015/16 | DA33: 2016/17 | DB33: 2017/18 | DC33: 2018/19 | DD33: 2019/20 | DE33: 2020/21 | DG33: 2014/15 | DH33: 2015/16 | DI33: 2016/17 | DJ33: 2017/18 | DK33: 2018/19 | DL33: 2019/20 | DM33: 2020/21 | DO33: 2014/15 | DP33: 2015/16 | DQ33: 2016/17 | DR33: 2017/18 | DS33: 2018/19 | DT33: 2019/20 | DU33: 2020/21 | DX33: 2014/15 | DY33: 2015/16 | DZ33: 2016/17 | EA33: 2017/18 | EB33: 2018/19 | EC33: 2019/20 | ED33: 2020/21
U34: Recurrent Expenditure Intervention Adjustments | DW34: Recurrent Expenditure Intervention Adjustments
U35: Secondary Care | V35: £000s | DW35: Secondary Care
U36: Acute - NHS | V36: £000s | Y36: =IF('Solution Control'!$D$22="On",'Solution 11'!G21, 0) -> 0 | Z36: =IF('Solution Control'!$D$22="On",'Solution 11'!H21, 0) -> 0 | AA36: =IF('Solution Control'!$D$22="On",'Solution 11'!I21, 0) -> 0 | AB36: =IF('Solution Control'!$D$22="On",'Solution 11'!J21, 0) -> 0 | AC36: =IF('Solution Control'!$D$22="On",'Solution 11'!K21, 0) -> 0 | AO36: =IF('Solution Control'!$D$23="On",'Solution 12'!G21, 0) -> 0 | AP36: =IF('Solution Control'!$D$23="On",'Solution 12'!H21, 0) -> 0 | AQ36: =IF('Solution Control'!$D$23="On",'Solution 12'!I21, 0) -> 0 | AR36: =IF('Solution Control'!$D$23="On",'Solution 12'!J21, 0) -> 0 | AS36: =IF('Solution Control'!$D$23="On",'Solution 12'!K21, 0) -> 0 | AW36: =IF('Solution Control'!$D$12="On", 'Solution 1'!G21, 0) -> 0 | AX36: =IF('Solution Control'!$D$12="On", 'Solution 1'!H21, 0) -> -8922.259604 | AY36: =IF('Solution Control'!$D$12="On", 'Solution 1'!I21, 0) -> -31517.60217 | AZ36: =IF('Solution Control'!$D$12="On", 'Solution 1'!J21, 0) -> -31517.60217 | BA36: =IF('Solution Control'!$D$12="On", 'Solution 1'!K21, 0) -> -31517.60217 | BE36: =IF('Solution Control'!$D$13="On", 'Solution 2'!G21, 0) -> 0 | BF36: =IF('Solution Control'!$D$13="On", 'Solution 2'!H21, 0) -> 0 | BG36: =IF('Solution Control'!$D$13="On", 'Solution 2'!I21, 0) -> 0 | BH36: =IF('Solution Control'!$D$13="On", 'Solution 2'!J21, 0) -> 0 | BI36: =IF('Solution Control'!$D$13="On", 'Solution 2'!K21, 0) -> 0 | BM36: =IF('Solution Control'!$D$14="On", 'Solution 3'!G21, 0) -> 0 | BN36: =IF('Solution Control'!$D$14="On", 'Solution 3'!H21, 0) -> 0 | BO36: =IF('Solution Control'!$D$14="On", 'Solution 3'!I21, 0) -> 0 | BP36: =IF('Solution Control'!$D$14="On", 'Solution 3'!J21, 0) -> 0 | BQ36: =IF('Solution Control'!$D$14="On", 'Solution 3'!K21, 0) -> 0 | BU36: =IF('Solution Control'!$D$15="On", 'Solution 4'!G21, 0) -> 0 | BV36: =IF('Solution Control'!$D$15="On", 'Solution 4'!H21, 0) -> 0 | BW36: =IF('Solution Control'!$D$15="On", 'Solution 4'!I21, 0) -> 0 | BX36: =IF('Solution Control'!$D$15="On", 'Solution 4'!J21, 0) -> 0 | BY36: =IF('Solution Control'!$D$15="On", 'Solution 4'!K21, 0) -> 0 | CC36: =IF('Solution Control'!$D$16="On",'Solution 5'!G21, 0) -> 0 | CD36: =IF('Solution Control'!$D$16="On",'Solution 5'!H21, 0) -> 0.0001 | CE36: =IF('Solution Control'!$D$16="On",'Solution 5'!I21, 0) -> 0.0001 | CF36: =IF('Solution Control'!$D$16="On",'Solution 5'!J21, 0) -> 0.0001 | CG36: =IF('Solution Control'!$D$16="On",'Solution 5'!K21, 0) -> 0.0001 | CK36: =IF('Solution Control'!$D$17="On",'Solution 6'!G21, 0) -> 0 | CL36: =IF('Solution Control'!$D$17="On",'Solution 6'!H21, 0) -> -20507.85151 | CM36: =IF('Solution Control'!$D$17="On",'Solution 6'!I21, 0) -> -32098.68411 | CN36: =IF('Solution Control'!$D$17="On",'Solution 6'!J21, 0) -> -44701.91144 | CO36: =IF('Solution Control'!$D$17="On",'Solution 6'!K21, 0) -> -46690.25246 | CS36: =IF('Solution Control'!$D$18="On",'Solution 7'!G21, 0) -> 0 | CT36: =IF('Solution Control'!$D$18="On",'Solution 7'!H21, 0) -> -4248.794693 | CU36: =IF('Solution Control'!$D$18="On",'Solution 7'!I21, 0) -> -6650.170966 | CV36: =IF('Solution Control'!$D$18="On",'Solution 7'!J21, 0) -> -9261.294094 | CW36: =IF('Solution Control'!$D$18="On",'Solution 7'!K21, 0) -> -9673.236455 | DA36: =IF('Solution Control'!$D$19="On",'Solution 8'!G21, 0) -> 0 | DB36: =IF('Solution Control'!$D$19="On",'Solution 8'!H21, 0) -> -2393.348793 | DC36: =IF('Solution Control'!$D$19="On",'Solution 8'!I21, 0) -> -3746.045598 | DD36: =IF('Solution Control'!$D$19="On",'Solution 8'!J21, 0) -> -5216.892942 | DE36: =IF('Solution Control'!$D$19="On",'Solution 8'!K21, 0) -> -5448.94034 | DI36: =IF('Solution Control'!$D$20="On",'Solution 9'!G21, 0) -> 0 | DJ36: =IF('Solution Control'!$D$20="On",'Solution 9'!H21, 0) -> 0 | DK36: =IF('Solution Control'!$D$20="On",'Solution 9'!I21, 0) -> 0 | DL36: =IF('Solution Control'!$D$20="On",'Solution 9'!J21, 0) -> 0 | DM36: =IF('Solution Control'!$D$20="On",'Solution 9'!K21, 0) -> 0 | DQ36: =IF('Solution Control'!$D$21="On",'Solution 10'!G21, 0) -> 0 | DR36: =IF('Solution Control'!$D$21="On",'Solution 10'!H21, 0) -> -20060.6894 | DS36: =IF('Solution Control'!$D$21="On",'Solution 10'!I21, 0) -> -31398.79044 | DT36: =IF('Solution Control'!$D$21="On",'Solution 10'!J21, 0) -> -43727.21151 | DU36: =IF('Solution Control'!$D$21="On",'Solution 10'!K21, 0) -> -45672.19788 | DW36: Acute - NHS | DZ36: =Y36+AG36+AO36+AW36+BE36+BM36+BU36+CC36+CK36+CS36+DA36+DI36+DQ36 -> 0 | EA36: =Z36+AH36+AP36+AX36+BF36+BN36+BV36+CD36+CL36+CT36+DB36+DJ36+DR36 -> -56132.9439 | EB36: =AA36+AI36+AQ36+AY36+BG36+BO36+BW36+CE36+CM36+CU36+DC36+DK36+DS36 -> -105411.2932 | EC36: =AB36+AJ36+AR36+AZ36+BH36+BP36+BX36+CF36+CN36+CV36+DD36+DL36+DT36 -> -134424.9121 | ED36: =AC36+AK36+AS36+BA36+BI36+BQ36+BY36+CG36+CO36+CW36+DE36+DM36+DU36 -> -139002.2292
C37: 2020/21 'Do Nothing' to 'Do Something' Bridge - Health and Social Care | U37: Acute - Non-NHS | V37: £000s | Y37: =IF('Solution Control'!$D$22="On",'Solution 11'!G22, 0) -> 0 | Z37: =IF('Solution Control'!$D$22="On",'Solution 11'!H22, 0) -> 0 | AA37: =IF('Solution Control'!$D$22="On",'Solution 11'!I22, 0) -> 0 | AB37: =IF('Solution Control'!$D$22="On",'Solution 11'!J22, 0) -> 0 | AC37: =IF('Solution Control'!$D$22="On",'Solution 11'!K22, 0) -> 0 | AO37: =IF('Solution Control'!$D$23="On",'Solution 12'!G22, 0) -> 0 | AP37: =IF('Solution Control'!$D$23="On",'Solution 12'!H22, 0) -> 0 | AQ37: =IF('Solution Control'!$D$23="On",'Solution 12'!I22, 0) -> 0 | AR37: =IF('Solution Control'!$D$23="On",'Solution 12'!J22, 0) -> 0 | AS37: =IF('Solution Control'!$D$23="On",'Solution 12'!K22, 0) -> 0 | AW37: =IF('Solution Control'!$D$12="On", 'Solution 1'!G22, 0) -> 0 | AX37: =IF('Solution Control'!$D$12="On", 'Solution 1'!H22, 0) -> -9637.126487 | AY37: =IF('Solution Control'!$D$12="On", 'Solution 1'!I22, 0) -> -17795.50483 | AZ37: =IF('Solution Control'!$D$12="On", 'Solution 1'!J22, 0) -> -17795.50483 | BA37: =IF('Solution Control'!$D$12="On", 'Solution 1'!K22, 0) -> -17795.50483 | BE37: =IF('Solution Control'!$D$13="On", 'Solution 2'!G22, 0) -> 0 | BF37: =IF('Solution Control'!$D$13="On", 'Solution 2'!H22, 0) -> 0 | BG37: =IF('Solution Control'!$D$13="On", 'Solution 2'!I22, 0) -> 0 | BH37: =IF('Solution Control'!$D$13="On", 'Solution 2'!J22, 0) -> 0 | BI37: =IF('Solution Control'!$D$13="On", 'Solution 2'!K22, 0) -> 0 | BM37: =IF('Solution Control'!$D$14="On", 'Solution 3'!G22, 0) -> 0 | BN37: =IF('Solution Control'!$D$14="On", 'Solution 3'!H22, 0) -> 0 | BO37: =IF('Solution Control'!$D$14="On", 'Solution 3'!I22, 0) -> 0 | BP37: =IF('Solution Control'!$D$14="On", 'Solution 3'!J22, 0) -> 0 | BQ37: =IF('Solution Control'!$D$14="On", 'Solution 3'!K22, 0) -> 0 | BU37: =IF('Solution Control'!$D$15="On", 'Solution 4'!G22, 0) -> 0 | BV37: =IF('Solution Control'!$D$15="On", 'Solution 4'!H22, 0) -> 0 | BW37: =IF('Solution Control'!$D$15="On", 'Solution 4'!I22, 0) -> 0 | BX37: =IF('Solution Control'!$D$15="On", 'Solution 4'!J22, 0) -> 0 | BY37: =IF('Solution Control'!$D$15="On", 'Solution 4'!K22, 0) -> 0 | CC37: =IF('Solution Control'!$D$16="On",'Solution 5'!G22, 0) -> 0 | CD37: =IF('Solution Control'!$D$16="On",'Solution 5'!H22, 0) -> 0 | CE37: =IF('Solution Control'!$D$16="On",'Solution 5'!I22, 0) -> 0 | CF37: =IF('Solution Control'!$D$16="On",'Solution 5'!J22, 0) -> 0 | CG37: =IF('Solution Control'!$D$16="On",'Solution 5'!K22, 0) -> 0 | CK37: =IF('Solution Control'!$D$17="On",'Solution 6'!G22, 0) -> 0 | CL37: =IF('Solution Control'!$D$17="On",'Solution 6'!H22, 0) -> 0 | CM37: =IF('Solution Control'!$D$17="On",'Solution 6'!I22, 0) -> 0 | CN37: =IF('Solution Control'!$D$17="On",'Solution 6'!J22, 0) -> 0 | CO37: =IF('Solution Control'!$D$17="On",'Solution 6'!K22, 0) -> 0 | CS37: =IF('Solution Control'!$D$18="On",'Solution 7'!G22, 0) -> 0 | CT37: =IF('Solution Control'!$D$18="On",'Solution 7'!H22, 0) -> 0 | CU37: =IF('Solution Control'!$D$18="On",'Solution 7'!I22, 0) -> 0 | CV37: =IF('Solution Control'!$D$18="On",'Solution 7'!J22, 0) -> 0 | CW37: =IF('Solution Control'!$D$18="On",'Solution 7'!K22, 0) -> 0 | DA37: =IF('Solution Control'!$D$19="On",'Solution 8'!G22, 0) -> 0 | DB37: =IF('Solution Control'!$D$19="On",'Solution 8'!H22, 0) -> 0 | DC37: =IF('Solution Control'!$D$19="On",'Solution 8'!I22, 0) -> 0 | DD37: =IF('Solution Control'!$D$19="On",'Solution 8'!J22, 0) -> 0 | DE37: =IF('Solution Control'!$D$19="On",'Solution 8'!K22, 0) -> 0 | DI37: =IF('Solution Control'!$D$20="On",'Solution 9'!G22, 0) -> 0 | DJ37: =IF('Solution Control'!$D$20="On",'Solution 9'!H22, 0) -> 0 | DK37: =IF('Solution Control'!$D$20="On",'Solution 9'!I22, 0) -> 0 | DL37: =IF('Solution Control'!$D$20="On",'Solution 9'!J22, 0) -> 0 | DM37: =IF('Solution Control'!$D$20="On",'Solution 9'!K22, 0) -> 0 | DQ37: =IF('Solution Control'!$D$21="On",'Solution 10'!G22, 0) -> 0 | DR37: =IF('Solution Control'!$D$21="On",'Solution 10'!H22, 0) -> 0 | DS37: =IF('Solution Control'!$D$21="On",'Solution 10'!I22, 0) -> 0 | DT37: =IF('Solution Control'!$D$21="On",'Solution 10'!J22, 0) -> 0 | DU37: =IF('Solution Control'!$D$21="On",'Solution 10'!K22, 0) -> 0 | DW37: Acute - Non-NHS | DZ37: 0 | EA37: -9637.126487 | EB37: -17795.50483 | EC37: -17795.50483 | ED37: -17795.50483
U38: Mental Health - NHS | V38: £000s | Y38: =IF('Solution Control'!$D$22="On",'Solution 11'!G23, 0) -> 0 | Z38: =IF('Solution Control'!$D$22="On",'Solution 11'!H23, 0) -> 0 | AA38: =IF('Solution Control'!$D$22="On",'Solution 11'!I23, 0) -> 0 | AB38: =IF('Solution Control'!$D$22="On",'Solution 11'!J23, 0) -> 0 | AC38: =IF('Solution Control'!$D$22="On",'Solution 11'!K23, 0) -> 0 | AO38: =IF('Solution Control'!$D$23="On",'Solution 12'!G23, 0) -> 0 | AP38: =IF('Solution Control'!$D$23="On",'Solution 12'!H23, 0) -> 0 | AQ38: =IF('Solution Control'!$D$23="On",'Solution 12'!I23, 0) -> 0 | AR38: =IF('Solution Control'!$D$23="On",'Solution 12'!J23, 0) -> 0 | AS38: =IF('Solution Control'!$D$23="On",'Solution 12'!K23, 0) -> 0 | AW38: =IF('Solution Control'!$D$12="On", 'Solution 1'!G23, 0) -> 0 | AX38: =IF('Solution Control'!$D$12="On", 'Solution 1'!H23, 0) -> -4510.245669 | AY38: =IF('Solution Control'!$D$12="On", 'Solution 1'!I23, 0) -> -8328.426393 | AZ38: =IF('Solution Control'!$D$12="On", 'Solution 1'!J23, 0) -> -8328.426393 | BA38: =IF('Solution Control'!$D$12="On", 'Solution 1'!K23, 0) -> -8328.426393 | BE38: =IF('Solution Control'!$D$13="On", 'Solution 2'!G23, 0) -> 0 | BF38: =IF('Solution Control'!$D$13="On", 'Solution 2'!H23, 0) -> 0 | BG38: =IF('Solution Control'!$D$13="On", 'Solution 2'!I23, 0) -> 0 | BH38: =IF('Solution Control'!$D$13="On", 'Solution 2'!J23, 0) -> 0 | BI38: =IF('Solution Control'!$D$13="On", 'Solution 2'!K23, 0) -> 0 | BM38: =IF('Solution Control'!$D$14="On", 'Solution 3'!G23, 0) -> 0 | BN38: =IF('Solution Control'!$D$14="On", 'Solution 3'!H23, 0) -> 0 | BO38: =IF('Solution Control'!$D$14="On", 'Solution 3'!I23, 0) -> 0 | BP38: =IF('Solution Control'!$D$14="On", 'Solution 3'!J23, 0) -> 0 | BQ38: =IF('Solution Control'!$D$14="On", 'Solution 3'!K23, 0) -> 0 | BU38: =IF('Solution Control'!$D$15="On", 'Solution 4'!G23, 0) -> 0 | BV38: =IF('Solution Control'!$D$15="On", 'Solution 4'!H23, 0) -> 0 | BW38: =IF('Solution Control'!$D$15="On", 'Solution 4'!I23, 0) -> 0 | BX38: =IF('Solution Control'!$D$15="On", 'Solution 4'!J23, 0) -> 0 | BY38: =IF('Solution Control'!$D$15="On", 'Solution 4'!K23, 0) -> 0 | CC38: =IF('Solution Control'!$D$16="On",'Solution 5'!G23, 0) -> 0 | CD38: =IF('Solution Control'!$D$16="On",'Solution 5'!H23, 0) -> 0 | CE38: =IF('Solution Control'!$D$16="On",'Solution 5'!I23, 0) -> 0 | CF38: =IF('Solution Control'!$D$16="On",'Solution 5'!J23, 0) -> 0 | CG38: =IF('Solution Control'!$D$16="On",'Solution 5'!K23, 0) -> 0 | CK38: =IF('Solution Control'!$D$17="On",'Solution 6'!G23, 0) -> 0 | CL38: =IF('Solution Control'!$D$17="On",'Solution 6'!H23, 0) -> 0 | CM38: =IF('Solution Control'!$D$17="On",'Solution 6'!I23, 0) -> 0 | CN38: =IF('Solution Control'!$D$17="On",'Solution 6'!J23, 0) -> 0 | CO38: =IF('Solution Control'!$D$17="On",'Solution 6'!K23, 0) -> 0 | CS38: =IF('Solution Control'!$D$18="On",'Solution 7'!G23, 0) -> 0 | CT38: =IF('Solution Control'!$D$18="On",'Solution 7'!H23, 0) -> 0 | CU38: =IF('Solution Control'!$D$18="On",'Solution 7'!I23, 0) -> 0 | CV38: =IF('Solution Control'!$D$18="On",'Solution 7'!J23, 0) -> 0 | CW38: =IF('Solution Control'!$D$18="On",'Solution 7'!K23, 0) -> 0 | DA38: =IF('Solution Control'!$D$19="On",'Solution 8'!G23, 0) -> 0 | DB38: =IF('Solution Control'!$D$19="On",'Solution 8'!H23, 0) -> 0 | DC38: =IF('Solution Control'!$D$19="On",'Solution 8'!I23, 0) -> 0 | DD38: =IF('Solution Control'!$D$19="On",'Solution 8'!J23, 0) -> 0 | DE38: =IF('Solution Control'!$D$19="On",'Solution 8'!K23, 0) -> 0 | DI38: =IF('Solution Control'!$D$20="On",'Solution 9'!G23, 0) -> 0 | DJ38: =IF('Solution Control'!$D$20="On",'Solution 9'!H23, 0) -> 0 | DK38: =IF('Solution Control'!$D$20="On",'Solution 9'!I23, 0) -> 0 | DL38: =IF('Solution Control'!$D$20="On",'Solution 9'!J23, 0) -> 0 | DM38: =IF('Solution Control'!$D$20="On",'Solution 9'!K23, 0) -> 0 | DQ38: =IF('Solution Control'!$D$21="On",'Solution 10'!G23, 0) -> 0 | DR38: =IF('Solution Control'!$D$21="On",'Solution 10'!H23, 0) -> 0 | DS38: =IF('Solution Control'!$D$21="On",'Solution 10'!I23, 0) -> 0 | DT38: =IF('Solution Control'!$D$21="On",'Solution 10'!J23, 0) -> 0 | DU38: =IF('Solution Control'!$D$21="On",'Solution 10'!K23, 0) -> 0 | DW38: Mental Health - NHS | DZ38: 0 | EA38: -4510.245669 | EB38: -8328.426393 | EC38: -8328.426393 | ED38: -8328.426393
C39: Data labels | D39: Totals | E39: Movement | F39: Base | G39: Standalone | H39: Positive | I39: Negative | J39: Positive cross | K39: Negative cross | L39: Total | M39: Choice | N39: Total positive | O39: Pos end pos | P39: pos end neg | Q39: neg end pos | R39: neg end neg | U39: Mental Health - Non NHS | V39: £000s | Y39: =IF('Solution Control'!$D$22="On",'Solution 11'!G24, 0) -> 0 | Z39: =IF('Solution Control'!$D$22="On",'Solution 11'!H24, 0) -> 0 | AA39: =IF('Solution Control'!$D$22="On",'Solution 11'!I24, 0) -> 0 | AB39: =IF('Solution Control'!$D$22="On",'Solution 11'!J24, 0) -> 0 | AC39: =IF('Solution Control'!$D$22="On",'Solution 11'!K24, 0) -> 0 | AO39: =IF('Solution Control'!$D$23="On",'Solution 12'!G24, 0) -> 0 | AP39: =IF('Solution Control'!$D$23="On",'Solution 12'!H24, 0) -> 0 | AQ39: =IF('Solution Control'!$D$23="On",'Solution 12'!I24, 0) -> 0 | AR39: =IF('Solution Control'!$D$23="On",'Solution 12'!J24, 0) -> 0 | AS39: =IF('Solution Control'!$D$23="On",'Solution 12'!K24, 0) -> 0 | AW39: =IF('Solution Control'!$D$12="On", 'Solution 1'!G24, 0) -> 0 | AX39: =IF('Solution Control'!$D$12="On", 'Solution 1'!H24, 0) -> 0 | AY39: =IF('Solution Control'!$D$12="On", 'Solution 1'!I24, 0) -> 0 | AZ39: =IF('Solution Control'!$D$12="On", 'Solution 1'!J24, 0) -> 0 | BA39: =IF('Solution Control'!$D$12="On", 'Solution 1'!K24, 0) -> 0 | BE39: =IF('Solution Control'!$D$13="On", 'Solution 2'!G24, 0) -> 0 | BF39: =IF('Solution Control'!$D$13="On", 'Solution 2'!H24, 0) -> 0 | BG39: =IF('Solution Control'!$D$13="On", 'Solution 2'!I24, 0) -> 0 | BH39: =IF('Solution Control'!$D$13="On", 'Solution 2'!J24, 0) -> 0 | BI39: =IF('Solution Control'!$D$13="On", 'Solution 2'!K24, 0) -> 0 | BM39: =IF('Solution Control'!$D$14="On", 'Solution 3'!G24, 0) -> 0 | BN39: =IF('Solution Control'!$D$14="On", 'Solution 3'!H24, 0) -> 0 | BO39: =IF('Solution Control'!$D$14="On", 'Solution 3'!I24, 0) -> 0 | BP39: =IF('Solution Control'!$D$14="On", 'Solution 3'!J24, 0) -> 0 | BQ39: =IF('Solution Control'!$D$14="On", 'Solution 3'!K24, 0) -> 0 | BU39: =IF('Solution Control'!$D$15="On", 'Solution 4'!G24, 0) -> 0 | BV39: =IF('Solution Control'!$D$15="On", 'Solution 4'!H24, 0) -> 0 | BW39: =IF('Solution Control'!$D$15="On", 'Solution 4'!I24, 0) -> 0 | BX39: =IF('Solution Control'!$D$15="On", 'Solution 4'!J24, 0) -> 0 | BY39: =IF('Solution Control'!$D$15="On", 'Solution 4'!K24, 0) -> 0 | CC39: =IF('Solution Control'!$D$16="On",'Solution 5'!G24, 0) -> 0 | CD39: =IF('Solution Control'!$D$16="On",'Solution 5'!H24, 0) -> 0 | CE39: =IF('Solution Control'!$D$16="On",'Solution 5'!I24, 0) -> 0 | CF39: =IF('Solution Control'!$D$16="On",'Solution 5'!J24, 0) -> 0 | CG39: =IF('Solution Control'!$D$16="On",'Solution 5'!K24, 0) -> 0 | CK39: =IF('Solution Control'!$D$17="On",'Solution 6'!G24, 0) -> 0 | CL39: =IF('Solution Control'!$D$17="On",'Solution 6'!H24, 0) -> 0 | CM39: =IF('Solution Control'!$D$17="On",'Solution 6'!I24, 0) -> 0 | CN39: =IF('Solution Control'!$D$17="On",'Solution 6'!J24, 0) -> 0 | CO39: =IF('Solution Control'!$D$17="On",'Solution 6'!K24, 0) -> 0 | CS39: =IF('Solution Control'!$D$18="On",'Solution 7'!G24, 0) -> 0 | CT39: =IF('Solution Control'!$D$18="On",'Solution 7'!H24, 0) -> 0 | CU39: =IF('Solution Control'!$D$18="On",'Solution 7'!I24, 0) -> 0 | CV39: =IF('Solution Control'!$D$18="On",'Solution 7'!J24, 0) -> 0 | CW39: =IF('Solution Control'!$D$18="On",'Solution 7'!K24, 0) -> 0 | DA39: =IF('Solution Control'!$D$19="On",'Solution 8'!G24, 0) -> 0 | DB39: =IF('Solution Control'!$D$19="On",'Solution 8'!H24, 0) -> 0 | DC39: =IF('Solution Control'!$D$19="On",'Solution 8'!I24, 0) -> 0 | DD39: =IF('Solution Control'!$D$19="On",'Solution 8'!J24, 0) -> 0 | DE39: =IF('Solution Control'!$D$19="On",'Solution 8'!K24, 0) -> 0 | DI39: =IF('Solution Control'!$D$20="On",'Solution 9'!G24, 0) -> 0 | DJ39: =IF('Solution Control'!$D$20="On",'Solution 9'!H24, 0) -> 0 | DK39: =IF('Solution Control'!$D$20="On",'Solution 9'!I24, 0) -> 0 | DL39: =IF('Solution Control'!$D$20="On",'Solution 9'!J24, 0) -> 0 | DM39: =IF('Solution Control'!$D$20="On",'Solution 9'!K24, 0) -> 0 | DQ39: =IF('Solution Control'!$D$21="On",'Solution 10'!G24, 0) -> 0 | DR39: =IF('Solution Control'!$D$21="On",'Solution 10'!H24, 0) -> 0 | DS39: =IF('Solution Control'!$D$21="On",'Solution 10'!I24, 0) -> 0 | DT39: =IF('Solution Control'!$D$21="On",'Solution 10'!J24, 0) -> 0 | DU39: =IF('Solution Control'!$D$21="On",'Solution 10'!K24, 0) -> 0 | DW39: Mental Health - Non NHS | DZ39: 0 | EA39: 0 | EB39: 0 | EC39: 0 | ED39: 0
C40: Blank | D40: 0 | E40: 0 | F40: 0 | G40: 0 | H40: 0 | I40: 0 | J40: 0 | K40: 0 | L40: 0 | M40: 0 | U40: Community Health Services - NHS | V40: £000s | Y40: =IF('Solution Control'!$D$22="On",'Solution 11'!G25, 0) -> 0 | Z40: =IF('Solution Control'!$D$22="On",'Solution 11'!H25, 0) -> 0 | AA40: =IF('Solution Control'!$D$22="On",'Solution 11'!I25, 0) -> 0 | AB40: =IF('Solution Control'!$D$22="On",'Solution 11'!J25, 0) -> 0 | AC40: =IF('Solution Control'!$D$22="On",'Solution 11'!K25, 0) -> 0 | AO40: =IF('Solution Control'!$D$23="On",'Solution 12'!G25, 0) -> 0 | AP40: =IF('Solution Control'!$D$23="On",'Solution 12'!H25, 0) -> 0 | AQ40: =IF('Solution Control'!$D$23="On",'Solution 12'!I25, 0) -> 0 | AR40: =IF('Solution Control'!$D$23="On",'Solution 12'!J25, 0) -> 0 | AS40: =IF('Solution Control'!$D$23="On",'Solution 12'!K25, 0) -> 0 | AW40: =IF('Solution Control'!$D$12="On", 'Solution 1'!G25, 0) -> 0 | AX40: =IF('Solution Control'!$D$12="On", 'Solution 1'!H25, 0) -> -460.6634653 | AY40: =IF('Solution Control'!$D$12="On", 'Solution 1'!I25, 0) -> -1232.67639 | AZ40: =IF('Solution Control'!$D$12="On", 'Solution 1'!J25, 0) -> -1232.67639 | BA40: =IF('Solution Control'!$D$12="On", 'Solution 1'!K25, 0) -> -1232.67639 | BE40: =IF('Solution Control'!$D$13="On", 'Solution 2'!G25, 0) -> 0 | BF40: =IF('Solution Control'!$D$13="On", 'Solution 2'!H25, 0) -> 0 | BG40: =IF('Solution Control'!$D$13="On", 'Solution 2'!I25, 0) -> 0 | BH40: =IF('Solution Control'!$D$13="On", 'Solution 2'!J25, 0) -> 0 | BI40: =IF('Solution Control'!$D$13="On", 'Solution 2'!K25, 0) -> 0 | BM40: =IF('Solution Control'!$D$14="On", 'Solution 3'!G25, 0) -> 0 | BN40: =IF('Solution Control'!$D$14="On", 'Solution 3'!H25, 0) -> 0 | BO40: =IF('Solution Control'!$D$14="On", 'Solution 3'!I25, 0) -> 0 | BP40: =IF('Solution Control'!$D$14="On", 'Solution 3'!J25, 0) -> 0 | BQ40: =IF('Solution Control'!$D$14="On", 'Solution 3'!K25, 0) -> 0 | BU40: =IF('Solution Control'!$D$15="On", 'Solution 4'!G25, 0) -> 0 | BV40: =IF('Solution Control'!$D$15="On", 'Solution 4'!H25, 0) -> 0 | BW40: =IF('Solution Control'!$D$15="On", 'Solution 4'!I25, 0) -> 0 | BX40: =IF('Solution Control'!$D$15="On", 'Solution 4'!J25, 0) -> 0 | BY40: =IF('Solution Control'!$D$15="On", 'Solution 4'!K25, 0) -> 0 | CC40: =IF('Solution Control'!$D$16="On",'Solution 5'!G25, 0) -> 0 | CD40: =IF('Solution Control'!$D$16="On",'Solution 5'!H25, 0) -> 0 | CE40: =IF('Solution Control'!$D$16="On",'Solution 5'!I25, 0) -> 0 | CF40: =IF('Solution Control'!$D$16="On",'Solution 5'!J25, 0) -> 0 | CG40: =IF('Solution Control'!$D$16="On",'Solution 5'!K25, 0) -> 0 | CK40: =IF('Solution Control'!$D$17="On",'Solution 6'!G25, 0) -> 0 | CL40: =IF('Solution Control'!$D$17="On",'Solution 6'!H25, 0) -> -1357.781008 | CM40: =IF('Solution Control'!$D$17="On",'Solution 6'!I25, 0) -> -2125.185255 | CN40: =IF('Solution Control'!$D$17="On",'Solution 6'!J25, 0) -> -2959.617994 | CO40: =IF('Solution Control'!$D$17="On",'Solution 6'!K25, 0) -> -3091.261803 | CS40: =IF('Solution Control'!$D$18="On",'Solution 7'!G25, 0) -> 0 | CT40: =IF('Solution Control'!$D$18="On",'Solution 7'!H25, 0) -> 0 | CU40: =IF('Solution Control'!$D$18="On",'Solution 7'!I25, 0) -> 0 | CV40: =IF('Solution Control'!$D$18="On",'Solution 7'!J25, 0) -> 0 | CW40: =IF('Solution Control'!$D$18="On",'Solution 7'!K25, 0) -> 0 | DA40: =IF('Solution Control'!$D$19="On",'Solution 8'!G25, 0) -> 0 | DB40: =IF('Solution Control'!$D$19="On",'Solution 8'!H25, 0) -> 0 | DC40: =IF('Solution Control'!$D$19="On",'Solution 8'!I25, 0) -> 0 | DD40: =IF('Solution Control'!$D$19="On",'Solution 8'!J25, 0) -> 0 | DE40: =IF('Solution Control'!$D$19="On",'Solution 8'!K25, 0) -> 0 | DI40: =IF('Solution Control'!$D$20="On",'Solution 9'!G25, 0) -> 0 | DJ40: =IF('Solution Control'!$D$20="On",'Solution 9'!H25, 0) -> 0 | DK40: =IF('Solution Control'!$D$20="On",'Solution 9'!I25, 0) -> 0 | DL40: =IF('Solution Control'!$D$20="On",'Solution 9'!J25, 0) -> 0 | DM40: =IF('Solution Control'!$D$20="On",'Solution 9'!K25, 0) -> 0 | DQ40: =IF('Solution Control'!$D$21="On",'Solution 10'!G25, 0) -> 0 | DR40: =IF('Solution Control'!$D$21="On",'Solution 10'!H25, 0) -> 0 | DS40: =IF('Solution Control'!$D$21="On",'Solution 10'!I25, 0) -> 0 | DT40: =IF('Solution Control'!$D$21="On",'Solution 10'!J25, 0) -> 0 | DU40: =IF('Solution Control'!$D$21="On",'Solution 10'!K25, 0) -> 0 | DW40: Community Health Services - NHS | DZ40: 0 | EA40: -1818.444473 | EB40: -3357.861646 | EC40: -4192.294384 | ED40: -4323.938193
